Workbook

Sheet Contents
A1: 80 | M1: ESC USE ONLY
D2: ESSENTIAL SERVICES COMMISSION
D3: Water Price Review
D4: Financial Model Template
B7: Table of Contents | F7: Water Business: | H7: =+N24 -> Yarra Valley Water | I7: =+O24 -> YVW
B8: Section & Sheet Titles | F8: Regulatory Period: | H8: 2018-19 to 2022-23 (Fourth) | N8: [Decision] | O8: [Month] | P8: [Year] | Q8: [Version]
F9: Model Name: | H9: =I7&"_Price Review Template_"&O9&P9&Q9 -> YVW_Price Review Template_Mar2017- v1.2 | N9: Draft | O9: Mar | P9: 2017 | Q9: - v1.2 | R9: << Select
B10: a. | C10: =+KeyAssumptionsPriceControl_FO!B1 -> Key Assumptions Price Control | F10: Decision type: | H10: =+N9&" Decision" -> Draft Decision | N10: Draft | O10: Jan | P10: 2016 | Q10: - v1
B11: b. | C11: Expenditure Detail - Removed as it contained confidential information | N11: Final | O11: Feb | P11: 2017 | Q11: - v1.2
B12: c. | C12: =Opex_FO!B1 -> Operating Expenditure - Forecast | F12: Model Key: | O12: Mar | P12: 2018 | Q12: - v3
B13: d. | C13: =Opex_Breakdown!B1 -> Operating Expenditure - Breakdown | O13: Apr | P13: 2019 | Q13: - v3.1
B14: e. | C14: =+'Capex_FO input'!B1 -> Capital Expenditure - Forecast Input | G14: BLUE | H14: =+I7&" - DATA INPUT CELL" -> YVW - DATA INPUT CELL | O14: May | P14: 2020 | Q14: - v4
B15: f. | C15: =Capex_FO_AC!B1 -> Capital Expenditure - Asset Category Breakdown | O15: Jun | P15: 2021 | Q15: - v4.1
B16: g. | C16: =ExpSummary_FO!B1 -> Expenditure Summary | G16: YELLOW | H16: NOTES / INSTRUCTIONS | O16: Jul | Q16: - v5
B17: h. | C17: =RollForward_FO!B1 -> Rolled forward regulatory asset base (RAB) | O17: Aug | Q17: - v5.1
B18: i. | C18: =PrevPerAdj_FO!B1 -> Previous period adjustments | G18: GREY | H18: MODEL PARAMETERS / ASSUMPTIONS | O18: Sep | Q18: - v6
B19: j. | C19: =RevenuePriceCap_FO!C1 -> Revenue forecast (price caps) | O19: Oct | Q19: - v6.1
B20: k. | C20: Revenue forecast (tariff basket) | G20: WHITE | H20: FORMULA / HARDCODED VALUES | O20: Nov | Q20: - v7
B21: l. | C21: =NotPres_FO!B1 -> Non Prescribed Services | O21: Dec | Q21: - v7.1
B22: m. | C22: ='Finance&Tax_FO'!B1 -> Cash, debt and tax assumptions | G22: ORANGE | H22: FORMULA DIFFERENT TO ADJACENT CELL
B23: n. | C23: ='Rev&RAV_FO'!B1 -> Revenue requirement detail | N23: [Business]
B24: o. | C24: =Indicators_FO!B1 -> Financial indicators | G24: GREEN | H24: DATA FROM 2013 DECISION OR PERFORMANCE REPORT | N24: Yarra Valley Water | O24: =+VLOOKUP(N24,N25:O42,2,FALSE) -> YVW
B25: p. | C25: =Outcomes!B1 -> Outcomes | N25: Barwon Water | O25: BW
B26: q. | C26: =GSL!B1 -> Guaranteed Service Levels (GSL) | G26: RED | H26: ERROR CHECK | N26: Central Highlands Water | O26: CHW
N27: City West Water | O27: CWW
N28: Coliban Water | O28: CW
N29: East Gippsland Water | O29: EGW
N30: Gippsland Water | O30: CGW
N31: Goulburn Valley Water | O31: GVW
N32: GWM Water | O32: GWMW | P32: diff model
N33: Lower Murray Water - Urban | O33: LMW-U | P33: diff model
N34: Lower Murray Water - Rural | O34: LMW-R
N35: North East Water | O35: NEW
N36: South East Water | O36: SEW
N37: South Gippsland Water | O37: SGW
N38: Southern Rural Water | O38: SRW | P38: diff model
N39: Wannon Water | O39: WNW
N40: Western Water | O40: WW
N41: Westernport Water | O41: WPW
N42: Yarra Valley Water | O42: YVW

Sheet KeyAssumptionsPriceControl_FO
A1: 80 | B1: Key Assumptions Price Control
B2: =+Contents!H7 -> Yarra Valley Water
B3: Go to Table of Contents
L4: FIRST REG PERIOD | P4: SECOND REG PERIOD | U4: THIRD REG PERIOD | Z4: FOURTH REG PERIOD | AC4: FIFTH REG PERIOD
F6: Straight Line | K6: 2006 | L6: 2007 | M6: 2008 | N6: 2009 | O6: 2010 | P6: 2011 | Q6: 2012 | R6: 2013 | S6: 2014 | T6: 2015 | U6: 2016 | V6: 2017 | W6: 2018 | X6: 2019 | Y6: 2020 | Z6: 2021 | AA6: 2022 | AB6: 2023 | AC6: 2024 | AD6: 2025 | AE6: 2026 | AF6: 2027 | AG6: 2028
F7: Declining Balance | I7: 2003-04 | J7: 2004-05 | K7: =+CONCATENATE(K6-1,"-",RIGHT(K6,2)) -> 2005-06 | L7: =+CONCATENATE(L6-1,"-",RIGHT(L6,2)) -> 2006-07 | M7: 2007-08 | N7: 2008-09 | O7: 2009-10 | P7: 2010-11 | Q7: 2011-12 | R7: 2012-13 | S7: 2013-14 | T7: 2014-15 | U7: 2015-16 | V7: 2016-17 | W7: 2017-18 | X7: 2018-19 | Y7: 2019-20 | Z7: 2020-21 | AA7: 2021-22 | AB7: 2022-23 | AC7: 2023-24 | AD7: 2024-25 | AE7: 2025-26 | AF7: 2026-27 | AG7: 2027-28
E11: Inflation assumptions
W12: Estimate
F13: March quarter annual CPI | I13: 141.3 | J13: 144.1 | K13: 147.5 | L13: 151.9 | M13: 155.6 | N13: 162.2 | O13: 166.2 | P13: 171 | Q13: 176.7 | R13: 99.9 | S13: 102.4 | T13: 105.4 | U13: 106.8 | V13: 108.2 | W13: 110.5
F14: Inflation | J14: =+J13/I13-1 -> 0.01981599434 | K14: 0.02359472588 | L14: 0.02983050847 | M14: 0.02435813035 | N14: 0.04241645244 | O14: 0.02466091245 | P14: 0.02888086643 | Q14: 0.03333333333 | R14: 0.01584606678 | S14: =+IF(S13=0,$X$44,S13/R13-1) -> 0.02502502503 | T14: 0.029296875 | U14: 0.01328273245 | V14: 0.01310861423 | W14: 0.02125693161 | X14: 0.023 | Y14: 0.023 | Z14: 0.023 | AA14: 0.023 | AB14: 0.023 | AC14: 0.023 | AD14: 0.023 | AE14: 0.023 | AF14: 0.023 | AG14: 0.023
F15: Inflation factor | I15: 0.7871866295 | J15: 0.8027855153 | K15: 0.8217270195 | L15: 0.8462395543 | M15: 0.8668523677 | N15: 0.9036211699 | O15: 0.9259052925 | P15: 0.9526462396 | Q15: 0.9844011142 | R15: =+R13/$W$13 -> 0.9040723982 | S15: 0.9266968326 | T15: 0.9538461538 | U15: 0.9665158371 | V15: =+V13/$W$13 -> 0.9791855204 | W15: =+W13/$W$13 -> 1 | X15: =+W15*(1+X14) -> 1.023 | Y15: =+X15*(1+Y14) -> 1.046529 | Z15: 1.070599167 | AA15: 1.095222948 | AB15: 1.120413076 | AC15: 1.146182576 | AD15: 1.172544776 | AE15: 1.199513305 | AF15: 1.227102112 | AG15: 1.25532546
I16: CPI index re-referenced in 2012-13, shaded values have been hardcoded to lock in RAB value.
E21: Cost of debt - 10 year trailing average (Nominal)
V22: Estimate | W22: Estimate
E23: Cost of debt | L23: 0.06981666667 | M23: 0.07414 | N23: 0.0691525788 | O23: 0.07361870984 | P23: 0.07046784142 | Q23: 0.06308887941 | R23: 0.0526945046 | S23: 0.070525 | T23: 0.05360833333 | U23: 0.05270138413 | V23: 0.04908333333 | W23: 0.04908333333
E24: Re-financing weightings - average 10 yrs | L24: =1/10 -> 0.1 | M24: =1/10 -> 0.1 | N24: =1/10 -> 0.1 | O24: =1/10 -> 0.1 | P24: =1/10 -> 0.1 | Q24: 0.1 | R24: 0.1 | S24: 0.1 | T24: 0.1 | U24: 0.1 | V24: 0.1 | W24: 0.1 | X24: 0.1 | Y24: 0.1 | Z24: 0.1 | AA24: 0.1 | AB24: 0.1 | AC24: 0.1 | AD24: 0.1 | AE24: 0.1 | AF24: 0.1 | AG24: 0.1
E26: Cost of debt - 10 year trailing average | V26: =IF(U23<>"",SUMPRODUCT(L23:U23,L24:U24),"") -> 0.06498138982 | W26: =IF(V23<>"",SUMPRODUCT(M23:V23,M24:V24),"") -> 0.06290805649 | X26: =IF(W23<>"",SUMPRODUCT(N23:W23,N24:W24),"") -> 0.06040238982 | Y26: =IF(X23<>"",SUMPRODUCT(O23:X23,O24:X24),"") ->  | Z26: =IF(Y23<>"",SUMPRODUCT(P23:Y23,P24:Y24),"") -> 
E30: WACC assumptions (retained for historical purposes only) | U30: Regulatory Rate of Return (RRR) - Nominal
K32: 1st period | M32: 2nd period | O32: 3rd period | U32: Cost of Debt | X32: =+X26 -> 0.06040238982 | Y32: =+$X$32 -> 0.06040238982 | Z32: 0.06040238982 | AA32: 0.06040238982 | AB32: 0.06040238982 | AC32: 0.06040238982 | AD32: 0.06040238982 | AE32: 0.06040238982 | AF32: 0.06040238982 | AG32: 0.06040238982 | AI32: << Linked to Benchmark tax liability calculation (Rev&RAV_FO)
E33: Parameters
F34: Risk Free Rate (Real) | K34: =+HLOOKUP(Contents!$I$7&1,Determination_Lookup!$C$54:$BD$61,2,FALSE) -> 0.0267 | M34: =+HLOOKUP(Contents!$I$7&2,Determination_Lookup!$C$54:$BD$61,2,FALSE) -> 0.022185 | O34: =+HLOOKUP(Contents!$I$7&3,Determination_Lookup!$C$54:$BD$61,2,FALSE) -> 0.005959
F35: Debt Premium | K35: =+HLOOKUP(Contents!$I$7&1,Determination_Lookup!$C$54:$BD$61,3,FALSE) -> 0.0116 | M35: =+HLOOKUP(Contents!$I$7&2,Determination_Lookup!$C$54:$BD$61,3,FALSE) -> 0.0225 | O35: =+HLOOKUP(Contents!$I$7&3,Determination_Lookup!$C$54:$BD$61,3,FALSE) -> 0.0399
F36: Equity Premium | K36: =+HLOOKUP(Contents!$I$7&1,Determination_Lookup!$C$54:$BD$61,4,FALSE) -> 0.06 | M36: =+HLOOKUP(Contents!$I$7&2,Determination_Lookup!$C$54:$BD$61,4,FALSE) -> 0.06 | O36: =+HLOOKUP(Contents!$I$7&3,Determination_Lookup!$C$54:$BD$61,4,FALSE) -> 0.06 | U36: Regulatory Rate of Return (RRR) - Real
F37: Equity Beta | K37: =+HLOOKUP(Contents!$I$7&1,Determination_Lookup!$C$54:$BD$61,5,FALSE) -> 0.75 | M37: =+HLOOKUP(Contents!$I$7&2,Determination_Lookup!$C$54:$BD$61,5,FALSE) -> 0.65 | O37: =+HLOOKUP(Contents!$I$7&3,Determination_Lookup!$C$54:$BD$61,5,FALSE) -> 0.65
F38: Gearing (Debt/Assets) | K38: =+HLOOKUP(Contents!$I$7&1,Determination_Lookup!$C$54:$BD$61,6,FALSE) -> 0.6 | M38: =+HLOOKUP(Contents!$I$7&2,Determination_Lookup!$C$54:$BD$61,6,FALSE) -> 0.6 | O38: =+HLOOKUP(Contents!$I$7&3,Determination_Lookup!$C$54:$BD$61,6,FALSE) -> 0.6 | U38: Cost of Debt | X38: =(1+X32)/(1+X44)-1 -> 0.03656147587 | Y38: =+$X$38 -> 0.03656147587 | Z38: =+$X$38 -> 0.03656147587 | AA38: 0.03656147587 | AB38: 0.03656147587 | AC38: 0.03656147587 | AD38: 0.03656147587 | AE38: 0.03656147587 | AF38: 0.03656147587 | AG38: 0.03656147587
F39: Forecast Inflation | K39: =+HLOOKUP(Contents!$I$7&1,Determination_Lookup!$C$54:$BD$61,7,FALSE) -> 0.0255 | M39: =+HLOOKUP(Contents!$I$7&2,Determination_Lookup!$C$54:$BD$61,7,FALSE) -> 0.025 | O39: =+HLOOKUP(Contents!$I$7&3,Determination_Lookup!$C$54:$BD$61,7,FALSE) -> 0.0275
F40: Franking credit value | K40: =+HLOOKUP(Contents!$I$7&1,Determination_Lookup!$C$54:$BD$61,8,FALSE) -> 0.5 | M40: =+HLOOKUP(Contents!$I$7&2,Determination_Lookup!$C$54:$BD$61,8,FALSE) -> 0.5 | O40: =+HLOOKUP(Contents!$I$7&3,Determination_Lookup!$C$54:$BD$61,8,FALSE) -> 0.5 | U40: Return on Equity | X40: =IF(AG65<>0,(AG65/100),IF(AG63<>0,(AG63/100),(AG61/100))) -> 0.049 | Y40: =+$X$40 -> 0.049 | Z40: 0.049 | AA40: 0.049 | AB40: 0.049 | AC40: 0.049 | AD40: 0.049 | AE40: 0.049 | AF40: 0.049 | AG40: 0.049 | AI40: << Source: PREMO Assessment Matrix
E42: 'Vanilla' After Tax WACC (Real) | K42: =ROUND(((K34+K36*K37)*(1-K38))+((K34+K35)*K38),3) -> 0.052 | M42: =ROUND(((M34+M36*M37)*(1-M38))+((M34+M35)*M38),3) -> 0.051 | O42: =ROUND(((O34+O36*O37)*(1-O38))+((O34+O35)*O38),3) -> 0.045 | U42: RRR (real) | X42: =ROUND((X40*(1-X43)+X38*X43),3) -> 0.042 | Y42: 0.042 | Z42: 0.042 | AA42: 0.042 | AB42: 0.042 | AC42: 0.042 | AD42: 0.042 | AE42: 0.042 | AF42: 0.042 | AG42: 0.042
U43: Gearing | X43: 0.6 | Y43: =+X43 -> 0.6 | Z43: =+Y43 -> 0.6 | AA43: 0.6 | AB43: 0.6 | AC43: 0.6 | AD43: 0.6 | AE43: 0.6 | AF43: 0.6 | AG43: 0.6
U44: Forecast Inflation | X44: 0.023 | Y44: =+X44 -> 0.023 | Z44: 0.023 | AA44: 0.023 | AB44: 0.023 | AC44: 0.023 | AD44: 0.023 | AE44: 0.023 | AF44: 0.023 | AG44: 0.023
E46: Form of price control selected
E48: Price caps | I48: 2
U49: PREMO Graded Scoring System (for reference only) | AB49: PREMO Assessment Matrix (linked to Regulatory Rate of Return calculation above)
E50: Revenue cap / Hybrid Tariff Basket
V52: Water business | X52: ESC assessment | Z52: Difference | AD52: Water business self-assessment
V53: self-assessment | X53: of submission
AD54: Leading | AE54: Advanced | AF54: Standard | AG54: Basic
U55: Risk | V55: 4 | Z55: =IFERROR(IF(X55=0,"",X55-V55),"") ->  | AB55: ESC assessment of submission | AC55: Leading | AD55: 5.3
U56: Engagement | V56: 4 | Z56: =IFERROR(IF(X56=0,"",X56-V56),"") ->  | AC56: Advanced | AD56: 4.7 | AE56: 4.9
U57: Management | V57: 4 | Z57: =IFERROR(IF(X57=0,"",X57-V57),"") ->  | AC57: Standard | AD57: 4.1 | AE57: 4.3 | AF57: 4.5
U58: Outcomes | V58: 3.5 | Z58: =IFERROR(IF(X58=0,"",X58-V58),"") ->  | AC58: Basic | AF58: 3.9 | AG58: 4.1
U60: Total Score | V60: =SUM(V55:V58) -> 15.5 | X60: =SUM(X55:X58) -> 0 | Z60: =IFERROR(IF(X60=0,"",X60-V60),"") -> 
AB61: Water business self-assessment (Maximum allowable ROE) | AF61: Advanced | AG61: =+VLOOKUP(AF61,$AF$72:$AG$76,2,FALSE) -> 4.9
AB63: ROE Override (Must be less than Maximum allowable ROE) | AG63: =+IF(AF63<=AG61,AF63,"CHECK") -> 0
U64: Rating | V64: =IF(V60<4,"",IF(AND(V60>=4,V60<=7.25),"Basic",IF(AND(V60>=7.5,V60<=11.25),"Standard",IF(AND(V60>=11.5,V60<=15.25),"Advanced",IF(AND(V60>=15.5,V60<=16),"Leading"))))) -> Leading | X64: =IF(X60<4,"",IF(AND(X60>=4,X60<=7.25),"Basic",IF(AND(X60>=7.5,X60<=11.25),"Standard",IF(AND(X60>=11.5,X60<=15.25),"Advanced",IF(AND(X60>=15.5,X60<=16),"Leading"))))) -> 
AB65: ESC assessment of submission | AG65: =IFERROR(IF(AF65=AF61,AG61,VLOOKUP(AF61&AF65,AF79:AG83,2,FALSE)),0) -> 0
AF67: Difference | AG67: =IFERROR(IF(AG65=0,"",AG65-AG61),"") -> 
U70: ESC USE ONLY
W71: [Select] | Y71: Rating | Z71: Aggregate score for overall PREMO rating | AF71: Business self assessment
W72: 1 | Y72: Leading | Z72: 15.5 to 16.0 | AF72: [Select]
W73: 1.25 | Y73: Advanced | Z73: 11.5 to 15.25 | AF73: Leading | AG73: =+AD55 -> 5.3
W74: 1.5 | Y74: Standard | Z74: 7.5 to 11.25 | AF74: Advanced | AG74: =+AE56 -> 4.9
W75: 1.75 | Y75: Basic | Z75: 4.0 to 7.25 | AF75: Standard | AG75: =+AF57 -> 4.5
W76: 2 | AF76: Basic | AG76: =+AG58 -> 4.1
W77: 2.25
W78: 2.5 | AF78: downgrading
W79: 2.75 | AF79: =AF54&AC58 -> StandardBasic | AG79: =+AF58 -> 3.9
W80: 3 | AF80: =+AE54&AC57 -> AdvancedStandard | AG80: =+AE57 -> 4.3
W81: 3.25 | AF81: =+AD54&AC56 -> LeadingAdvanced | AG81: =+AD56 -> 4.7
W82: 3.5 | AF82: =+AD54&AC57 -> LeadingStandard | AG82: =+AD57 -> 4.1
W83: 3.75 | AF83: =+AF61&"Basic" -> AdvancedBasic | AG83: CHECK
W84: 4

Sheet Opex_FO
B1: Operating Expenditure - Forecast
B2: =+Model_Name -> Yarra Valley Water
B3: Go to Table of Contents
L4: FIRST REG PERIOD | P4: SECOND REG PERIOD | S4: THIRD REG PERIOD | X4: FOURTH REG PERIOD | AC4: FIFTH REG PERIOD
K5: 2006 | L5: 2007 | M5: 2008 | N5: 2009 | O5: 2010 | P5: 2011 | Q5: 2012 | R5: 2013 | S5: 2014 | T5: 2015 | U5: 2016 | V5: 2017 | W5: 2018 | X5: 2019 | Y5: 2020 | Z5: 2021 | AA5: 2022 | AB5: 2023 | AC5: 2024 | AD5: 2025 | AE5: 2026 | AF5: 2027 | AG5: 2028
B6: $m, 01/01/18 | K6: =+CONCATENATE(K5-1,"-",RIGHT(K5,2)) -> 2005-06 | L6: =+CONCATENATE(L5-1,"-",RIGHT(L5,2)) -> 2006-07 | M6: 2007-08 | N6: 2008-09 | O6: 2009-10 | P6: 2010-11 | Q6: 2011-12 | R6: 2012-13 | S6: 2013-14 | T6: 2014-15 | U6: 2015-16 | V6: 2016-17 | W6: 2017-18 | X6: 2018-19 | Y6: 2019-20 | Z6: 2020-21 | AA6: 2021-22 | AB6: 2022-23 | AC6: 2023-24 | AD6: 2024-25 | AE6: 2025-26 | AF6: 2026-27 | AG6: 2027-28
C9: Parameters | F9: 3rd period | H9: 4th period
D11: Cost efficiency improvement rate (% per annum) | F11: 0.01 | H11: =+SUM(X11:AB11)/5 -> 0.025 | X11: 0.025 | Y11: 0.025 | Z11: 0.025 | AA11: 0.025 | AB11: 0.025 | AC11: 0.015 | AD11: 0.015 | AE11: 0.015 | AF11: 0.015 | AG11: 0.015
D13: Customer growth forecast (% per annum) | F13: =AVERAGE(T13:W13) -> 0.02092397622 | H13: =+SUM(X13:AB13)/5 -> 0.01738076756 | T13: =IF(T15="","",T15/S15-1) -> 0.01965320427 | U13: =IF(U15="","",U15/T15-1) -> 0.01776362161 | V13: 0.02430330059 | W13: 0.02197577839 | X13: 0.01865728388 | Y13: 0.01807126716 | Z13: 0.01751719725 | AA13: 0.01673741582 | AB13: 0.01592067368 | AC13: 0.0153160238 | AD13: 0.0147289388 | AE13: 0.01418273818 | AF13: 0.01395405299 | AG13: 0.01403139105
E14: Net baseline opex growth | F14: =IFERROR(F13-F11,"-") -> 0.01092397622 | H14: =IFERROR(H13-H11,"-") -> -0.007619232443
D15: Water customers (No.) - Residential & Non-Residential - [BED 1] | S15: =+Determination_Lookup!BF3 -> 737437 | T15: =+Determination_Lookup!BG3 -> 751930 | U15: =+Determination_Lookup!BH3 -> 765287 | V15: 783886 | W15: =+V$15*(1+W$13) -> 801112.505 | X15: =+W$15*(1+X$13) -> 816059.0884 | Y15: =+X$15*(1+Y$13) -> 830806.3102 | Z15: 845359.7083 | AA15: 859508.8452 | AB15: 873192.8051 | AC15: 886566.6468 | AD15: 899624.8327 | AE15: 912383.9762 | AF15: 925115.4305 | AG15: 938096.0869 | AI15: << Used as normalising metric for dashboard graphs
D17: Sewer customers (No.) - Residential & Non-Residential - [BED 2] | S17: =+Determination_Lookup!BJ3 -> 694001 | T17: =+Determination_Lookup!BK3 -> 709048 | U17: =+Determination_Lookup!BL3 -> 722699 | V17: 726808 | W17: =+V$17*(1+W$13) -> 742780.1715 | X17: =+W$17*(1+X$13) -> 756638.4321 | Y17: =+X$17*(1+Y$13) -> 770311.8473 | Z17: 783805.5519 | AA17: 796924.4313 | AB17: 809612.0051 | AC17: 822012.0419 | AD17: 834119.4069 | AE17: 845949.5041 | AF17: 857753.9283 | AG17: 869789.4091 | AI17: << Used as normalising metric for dashboard graphs
D19: Total metered volume of water delivered to customers (ML) - [BED 10] | S19: =+Determination_Lookup!BB3 -> 131930 | T19: =+Determination_Lookup!BC3 -> 133690 | U19: =+Determination_Lookup!BD3 -> 141886 | V19: 135253.6359 | W19: 137717.5386 | X19: 138906.7057 | Y19: 140019.7608 | Z19: 141146.6821 | AA19: 142272.6053 | AB19: 143389.4381 | AC19: 144488.5415 | AD19: 145566.505 | AE19: 146629.7198 | AF19: 147736.2147 | AG19: 148876.8946 | AI19: << Used as normalising metric for dashboard graphs
D20: Residential, Non-Residential & Recycled (Residential & Non-Residential)
C24: Baseline Forecast
D26: Baseline year - total prescribed operating expenditure in 2016-17: | V26: =+Opex_Breakdown!V37 -> 675.818817
D28: Less non-controllable expenditure items incurred in 2016-17:
E29: External bulk water charges (excl. temporary purchases) | V29: =+Opex_Breakdown!V29 -> 503.9024677
E30: External temporary water purchases | V30: =+Opex_Breakdown!V30 -> 0 | X30: Comparison with approved 2016-17 total controllable opex
E31: Licence fees | V31: =+Opex_Breakdown!V31 -> 1.05189464 | X31: per 2013 determination model
E32: Environment Contribution | V32: =+Opex_Breakdown!V32 -> 30.51515712
E33: Other non-controllable | V33: =+Opex_Breakdown!V33 -> 0
V34: =SUM(V29:V33) -> 535.4695194 | Y34: 2016-17 | Z34: Difference | AA34: %
D36: Baseline year - total controllable operating expenditure in 2016-17: | V36: =+V26-V34 -> 140.3492976 | Y36: =+Determination_Lookup!AX3 -> 146.6170134 | Z36: =+V52-Y36 -> -12.16766652 | AA36: =+Z36/Y36 -> -0.08298945831
D38: Adjustments for non-recurring expenditure items incurred in 2016-17 and any efficiency savings to be realised from 2016-17: | X38: ($, 2017-18)
D40: 1 | E40: Reduction in maintenance costs as a result of 2016/17 volumes being 6% higher than historical volumes | V40: 2.343376155
D41: 2 | E41: Reduction in GSL payments as a result of 2016/17 volumes being higher than historical levels | V41: 0.559
D42: 3 | E42: Reduction in recoverable works as a result of 2016/17 volumes being higher than historical values | V42: 1.546182994
D43: 4 | E43: 2017/18 opex efficiency commitments underpinning the $100 Government water rebate | V43: 1.451391602
D44: 5
D45: 6
D46: 7
D47: 8
D48: 9
D49: 10
V50: =SUM(V40:V49) -> 5.899950751
D52: Baseline controllable operating expenditure (2016-17) | V52: =+V36-V50 -> 134.4493468
D54: Adjusted Baseline controllable operating expenditure (Forecast) | W54: =+V52*(1+$W$13-$F$11) -> 136.0594824 | X54: =+$W$54*(1+X$13-X$11) -> 135.1964958 | Y54: =+X$54*(1+Y$13-Y$11) -> 134.2597554 | Z54: 133.2551161 | AA54: 132.1540845 | AB54: 130.9542144 | AC54: 130.9955991 | AD54: 130.9600912 | AE54: 130.8530626 | AF54: 130.7161972 | AG54: 130.5895843
C58: Operating expenditure - reconciliation
D61: Adjusted Baseline controllable operating expenditure (Forecast) | X61: =+X54 -> 135.1964958 | Y61: 134.2597554 | Z61: 133.2551161 | AA61: 132.1540845 | AB61: 130.9542144 | AC61: 130.9955991 | AD61: 130.9600912 | AE61: 130.8530626 | AF61: 130.7161972 | AG61: 130.5895843
H62: Controllable
D63: Forecast variations to baseline operating expenditure (above or below baseline) | H63: only
D65: 1 | E65: Additional suport for out WaterCare vulnerability program as recommended by the citizens' jury | H65: Sewerage | X65: 1 | Y65: 1 | Z65: 1 | AA65: 1 | AB65: 1 | AC65: 1 | AD65: 1 | AE65: 1 | AF65: 1 | AG65: 1
D66: 2 | E66: Increased water conservation education and awareness advice as recommended by the citizens' jury | H66: Water | X66: 1.2 | Y66: 1.2 | Z66: 1.2 | AA66: 1.2 | AB66: 1.2 | AC66: 1.2 | AD66: 1.2 | AE66: 1.2 | AF66: 1.2 | AG66: 1.2
D67: 3 | E67: Increase in electricity prices | H67: Sewerage | X67: 0 | Y67: 0 | Z67: 0 | AA67: 0 | AB67: 0 | AC67: 0 | AD67: 0 | AE67: 0 | AF67: 0 | AG67: 0
D68: 4 | E68: Wages growth above inflation | H68: Water | X68: 0 | Y68: 0 | Z68: 0 | AA68: 0 | AB68: 0 | AC68: 0 | AD68: 0 | AE68: 0 | AF68: 0 | AG68: 0
D69: 5 | E69: Reduction in GSL payments acknowledging citizens' jury recommendation to remove rebates for service interuptions beyond 4 hours | H69: Water | X69: -0.5 | Y69: -0.4887585533 | Z69: -0.4777698468 | AA69: -0.4670281982 | AB69: -0.456528053 | AC69: -0.4462639814 | AD69: -0.4362306759 | AE69: -0.4264229481 | AF69: -0.4168357264 | AG69: -0.4074640532
D70: 6 | H70: [Service]
D71: 7 | H71: [Service]
D72: 8 | H72: [Service]
D73: 9 | H73: [Service]
D74: 10 | H74: [Service]
D75: 11 | H75: [Service]
D76: 12 | H76: [Service]
D77: 13 | H77: [Service]
D78: 14 | H78: [Service]
D79: 15 | H79: [Service]
D81: Total changes required to baseline operating expenditure | X81: =SUM(X65:X80) -> 1.7 | Y81: 1.711241447 | Z81: 1.722230153 | AA81: 1.732971802 | AB81: 1.743471947 | AC81: 1.753736019 | AD81: 1.763769324 | AE81: 1.773577052 | AF81: 1.783164274 | AG81: 1.792535947
W82: % Change in baseline opex per annum | X82: =IFERROR(X81/X61,"-") -> 0.01257429041 | Y82: =IFERROR(Y81/Y61,"-") -> 0.01274575127 | Z82: 0.01292430793 | AA82: 0.01311326705 | AB82: 0.01331359937 | AC82: 0.01338774761 | AD82: 0.01346799095 | AE82: 0.01355395905 | AF82: 0.01364149441 | AG82: 0.01372648482
W83: % Change in baseline opex per reg period | AB83: =IFERROR(AVERAGE(X82:AB82),"-") -> 0.01293424321 | AG83: =IFERROR(AVERAGE(AC82:AG82),"-") -> 0.01355553537
D84: Total controllable operating expenditure | X84: =+X81+X61 -> 136.8964958 | Y84: 135.9709968 | Z84: 134.9773462 | AA84: 133.8870563 | AB84: 132.6976864 | AC84: 132.7493351 | AD84: 132.7238606 | AE84: 132.6266396 | AF84: 132.4993615 | AG84: 132.3821203
W85: Controllable Opex growth from baseline to 5th year | AB85: =IFERROR(AB84-V52,"-") -> -1.751660481 | AC85: =IFERROR(AB84/V52-1,"-") -> -0.01302840454
D86: Non-controllable operating expenditure
D87: External bulk water charges (excl. temporary purchases) | X87: =+Opex_Breakdown!X29 -> 502.6737092 | Y87: =+Opex_Breakdown!Y29 -> 500.3293438 | Z87: =+Opex_Breakdown!Z29 -> 488.5213253 | AA87: =+Opex_Breakdown!AA29 -> 488.8791156 | AB87: =+Opex_Breakdown!AB29 -> 489.2362288 | AC87: =+Opex_Breakdown!AC29 -> 489.5894121 | AD87: =+Opex_Breakdown!AD29 -> 489.9374046 | AE87: =+Opex_Breakdown!AE29 -> 490.2830318 | AF87: =+Opex_Breakdown!AF29 -> 490.6465201 | AG87: =+Opex_Breakdown!AG29 -> 491.0245513
D88: External temporary water purchases | X88: =+Opex_Breakdown!X30 -> 0 | Y88: =+Opex_Breakdown!Y30 -> 0 | Z88: =+Opex_Breakdown!Z30 -> 0 | AA88: =+Opex_Breakdown!AA30 -> 0 | AB88: =+Opex_Breakdown!AB30 -> 0 | AC88: =+Opex_Breakdown!AC30 -> 0 | AD88: =+Opex_Breakdown!AD30 -> 0 | AE88: =+Opex_Breakdown!AE30 -> 0 | AF88: =+Opex_Breakdown!AF30 -> 0 | AG88: =+Opex_Breakdown!AG30 -> 0
D89: Licence fees | X89: =+Opex_Breakdown!X31 -> 1 | Y89: =+Opex_Breakdown!Y31 -> 1 | Z89: =+Opex_Breakdown!Z31 -> 1 | AA89: =+Opex_Breakdown!AA31 -> 1 | AB89: =+Opex_Breakdown!AB31 -> 1.15 | AC89: =+Opex_Breakdown!AC31 -> 1 | AD89: =+Opex_Breakdown!AD31 -> 1 | AE89: =+Opex_Breakdown!AE31 -> 1 | AF89: =+Opex_Breakdown!AF31 -> 1 | AG89: =+Opex_Breakdown!AG31 -> 1.15
D90: Environment Contribution | X90: =+Opex_Breakdown!X32 -> 41.8914956 | Y90: =+Opex_Breakdown!Y32 -> 40.94965357 | Z90: =+Opex_Breakdown!Z32 -> 40.02898687 | AA90: =+Opex_Breakdown!AA32 -> 39.12901942 | AB90: =+Opex_Breakdown!AB32 -> 38.24928585 | AC90: =+Opex_Breakdown!AC32 -> 37.38933123 | AD90: =+Opex_Breakdown!AD32 -> 36.54871088 | AE90: =+Opex_Breakdown!AE32 -> 35.72699011 | AF90: =+Opex_Breakdown!AF32 -> 34.923744 | AG90: =+Opex_Breakdown!AG32 -> 34.13855718
D91: Other non-controllable | X91: =+Opex_Breakdown!X33 -> 0 | Y91: =+Opex_Breakdown!Y33 -> 0 | Z91: =+Opex_Breakdown!Z33 -> 0 | AA91: =+Opex_Breakdown!AA33 -> 0 | AB91: =+Opex_Breakdown!AB33 -> 0 | AC91: =+Opex_Breakdown!AC33 -> 0 | AD91: =+Opex_Breakdown!AD33 -> 0 | AE91: =+Opex_Breakdown!AE33 -> 0 | AF91: =+Opex_Breakdown!AF33 -> 0 | AG91: =+Opex_Breakdown!AG33 -> 0
D92: Total non-controllable operating expenditure | X92: =SUM(X87:X91) -> 545.5652048 | Y92: 542.2789973 | Z92: 529.5503121 | AA92: 529.008135 | AB92: 528.6355146 | AC92: 527.9787434 | AD92: 527.4861155 | AE92: 527.0100219 | AF92: 526.5702641 | AG92: 526.3131085
W93: Non-controllable Opex growth from baseline to 5th year | AB93: =IFERROR(AB92-V34,"-") -> -6.834004796 | AC93: =IFERROR(AB92/V34-1,"-") -> -0.01276264017
D95: Total prescribed operating expenditure | X95: =+X92+X84 -> 682.4617006 | Y95: 678.2499941 | Z95: 664.5276584 | AA95: 662.8951913 | AB95: 661.333201 | AC95: 660.7280785 | AD95: 660.2099761 | AE95: 659.6366615 | AF95: 659.0696255 | AG95: =+AG92+AG84 -> 658.6952288
W96: Prescribed Opex growth from baseline to 5th year | AB96: =IFERROR(AB95-(V52+V34),"-") -> -8.585665277 | AC96: =IFERROR((AB95/(V52+V34))-1,"-") -> -0.01281597774
W98: To reconcile to 'Opex_Breakdown' tab row 37 >> | X98: =+Opex_Breakdown!X37 -> 682.4617006 | Y98: =+Opex_Breakdown!Y37 -> 678.2499941 | Z98: =+Opex_Breakdown!Z37 -> 664.5276584 | AA98: =+Opex_Breakdown!AA37 -> 662.8951913 | AB98: =+Opex_Breakdown!AB37 -> 661.333201 | AC98: =+Opex_Breakdown!AC37 -> 660.7280785 | AD98: =+Opex_Breakdown!AD37 -> 660.2099761 | AE98: =+Opex_Breakdown!AE37 -> 659.6366615 | AF98: =+Opex_Breakdown!AF37 -> 659.0696255 | AG98: =+Opex_Breakdown!AG37 -> 658.6952288
W99: Difference | X99: =+X98-X95 -> 0 | Y99: 0 | Z99: 0 | AA99: 0 | AB99: 0 | AC99: 0 | AD99: 0 | AE99: 0 | AF99: 0 | AG99: 0
W100: Test | X100: =+X98=X95 -> TRUE | Y100: TRUE | Z100: TRUE | AA100: TRUE | AB100: TRUE | AC100: TRUE | AD100: TRUE | AE100: TRUE | AF100: TRUE | AG100: TRUE
X139: =+X$160 -> 2018-19 | Y139: 2019-20 | Z139: 2020-21 | AA139: 2021-22 | AB139: 2022-23 | AC139: 2023-24 | AD139: 2024-25 | AE139: 2025-26 | AF139: 2026-27 | AG139: 2027-28
W140: Total controllable opex | X140: =+X84 -> 136.8964958 | Y140: 135.9709968 | Z140: 134.9773462 | AA140: 133.8870563 | AB140: 132.6976864 | AC140: 132.7493351 | AD140: 132.7238606 | AE140: 132.6266396 | AF140: 132.4993615 | AG140: 132.3821203
W141: Change - $ | Y141: =+Y140-X140 -> -0.9254989532 | Z141: -0.9936505603 | AA141: -1.090289965 | AB141: -1.189369912 | AC141: 0.05164871943 | AD141: -0.02547451817 | AE141: -0.09722095477 | AF141: -0.1272781481 | AG141: -0.1172412056
W142: Change - % | Y142: =IFERROR(Y141/X140,"") -> -0.006760574463 | Z142: -0.007307812575 | AA142: -0.008077577428 | AB142: -0.008883382346 | AC142: 0.0003892209491 | AD142: -0.0001918994031 | AE142: -0.0007325054769 | AF142: -0.0009596725702 | AG142: -0.0008848435521
X144: =+X$160 -> 2018-19 | Y144: 2019-20 | Z144: 2020-21 | AA144: 2021-22 | AB144: 2022-23 | AC144: 2023-24 | AD144: 2024-25 | AE144: 2025-26 | AF144: 2026-27 | AG144: 2027-28
W145: Total non-controllable opex | X145: =+X92 -> 545.5652048 | Y145: 542.2789973 | Z145: 529.5503121 | AA145: 529.008135 | AB145: 528.6355146 | AC145: 527.9787434 | AD145: 527.4861155 | AE145: 527.0100219 | AF145: 526.5702641 | AG145: 526.3131085
W146: Change - $ | Y146: =+Y145-X145 -> -3.286207511 | Z146: -12.72868519 | AA146: -0.5421771274 | AB146: -0.372620399 | AC146: -0.6567712366 | AD146: -0.4926278486 | AE146: -0.4760936094 | AF146: -0.4397578459 | AG146: -0.2571555727
W147: Change - % | Y147: =IFERROR(Y146/X145,"") -> -0.00602349175 | Z147: -0.02347257639 | AA147: -0.001023844411 | AB147: -0.0007043755556 | AC147: -0.001242389545 | AD147: -0.0009330448523 | AE147: -0.0009025708837 | AF147: -0.000834439247 | AG147: -0.0004883594655
X149: =+X$160 -> 2018-19 | Y149: 2019-20 | Z149: 2020-21 | AA149: 2021-22 | AB149: 2022-23 | AC149: 2023-24 | AD149: 2024-25 | AE149: 2025-26 | AF149: 2026-27 | AG149: 2027-28
W150: Total prescribed opex | X150: =+X140+X145 -> 682.4617006 | Y150: 678.2499941 | Z150: 664.5276584 | AA150: 662.8951913 | AB150: 661.333201 | AC150: 660.7280785 | AD150: 660.2099761 | AE150: 659.6366615 | AF150: 659.0696255 | AG150: 658.6952288
W151: Change - $ | Y151: =+Y150-X150 -> -4.211706464 | Z151: -13.72233575 | AA151: -1.632467093 | AB151: -1.561990311 | AC151: -0.6051225172 | AD151: -0.5181023668 | AE151: -0.5733145642 | AF151: -0.567035994 | AG151: -0.3743967784
W152: Change - % | Y152: =IFERROR(Y151/X150,"") -> -0.006171344795 | Z152: -0.02023197327 | AA152: -0.002456582615 | AB152: -0.002356315646 | AC152: -0.0009150039894 | AD152: -0.0007841385642 | AE152: -0.0008683821587 | AF152: -0.0008596186765 | AG152: -0.0005680686287
W155: Controllable vs. Non-controllable opex - % | X155: =+X$160 -> 2018-19 | Y155: 2019-20 | Z155: 2020-21 | AA155: 2021-22 | AB155: 2022-23 | AC155: 2023-24 | AD155: 2024-25 | AE155: 2025-26 | AF155: 2026-27 | AG155: 2027-28
W156: Controllable opex - % | X156: =+X84/X95 -> 0.2005922027 | Y156: 0.2004732738 | Z156: 0.2031177251 | AA156: 0.2019731898 | AB156: 0.2006517837 | AC156: 0.2009137184 | AD156: 0.2010328007 | AE156: 0.2010601401 | AF156: 0.201040006 | AG156: 0.2009762854
W157: Non-controllable opex - % | X157: =+X92/X95 -> 0.7994077973 | Y157: 0.7995267262 | Z157: 0.7968822749 | AA157: 0.7980268102 | AB157: 0.7993482163 | AC157: 0.7990862816 | AD157: 0.7989671993 | AE157: 0.7989398599 | AF157: 0.798959994 | AG157: 0.7990237146
X158: =SUM(X156:X157) -> 1 | Y158: 1 | Z158: 1 | AA158: 1 | AB158: 1 | AC158: 1 | AD158: 1 | AE158: 1 | AF158: 1 | AG158: 1
V160: =+V6 -> 2016-17 | W160: 2017-18 | X160: 2018-19 | Y160: 2019-20 | Z160: 2020-21 | AA160: 2021-22 | AB160: 2022-23 | AC160: 2023-24 | AD160: 2024-25 | AE160: 2025-26 | AF160: 2026-27 | AG160: 2027-28
U161: Third Reg period Opex | V161: =+V169-SUM(V162:V168) -> 140.3492976 | W161: =+W169-SUM(W162:W168) -> 137.1062758
U162: Adjusted baseline opex | X162: =+X61 -> 135.1964958 | Y162: 134.2597554 | Z162: 133.2551161 | AA162: 132.1540845 | AB162: 130.9542144 | AC162: 130.9955991 | AD162: 130.9600912 | AE162: 130.8530626 | AF162: 130.7161972 | AG162: 130.5895843
U163: Forecast variations to baseline operating expenditure | X163: =+X81 -> 1.7 | Y163: 1.711241447 | Z163: 1.722230153 | AA163: 1.732971802 | AB163: 1.743471947 | AC163: 1.753736019 | AD163: 1.763769324 | AE163: 1.773577052 | AF163: 1.783164274 | AG163: 1.792535947
U164: Licence fees | V164: =+V193 -> 1.05189464 | W164: =+W193 -> 1.15 | X164: =+X89 -> 1 | Y164: 1 | Z164: 1 | AA164: 1 | AB164: 1.15 | AC164: 1 | AD164: 1 | AE164: 1 | AF164: 1 | AG164: 1.15
U165: Environment Contribution | V165: =+V194 -> 30.51515712 | W165: =+W194 -> 29.88 | X165: =+X90 -> 41.8914956 | Y165: 40.94965357 | Z165: 40.02898687 | AA165: 39.12901942 | AB165: 38.24928585 | AC165: 37.38933123 | AD165: 36.54871088 | AE165: 35.72699011 | AF165: 34.923744 | AG165: 34.13855718
U166: External bulk water charges | V166: =+V191 -> 503.9024677 | W166: =+W191 -> 501.309299 | X166: =+X87 -> 502.6737092 | Y166: 500.3293438 | Z166: 488.5213253 | AA166: 488.8791156 | AB166: 489.2362288 | AC166: 489.5894121 | AD166: 489.9374046 | AE166: 490.2830318 | AF166: 490.6465201 | AG166: 491.0245513
U167: External temporary water purchases | V167: =+V192 -> 0 | W167: =+W192 -> 0 | X167: =+X88 -> 0 | Y167: 0 | Z167: 0 | AA167: 0 | AB167: 0 | AC167: 0 | AD167: 0 | AE167: 0 | AF167: 0 | AG167: 0
U168: Other non-controllable | V168: =+V195 -> 0 | W168: =+W195 -> 0 | X168: =+X91 -> 0 | Y168: 0 | Z168: 0 | AA168: 0 | AB168: 0 | AC168: 0 | AD168: 0 | AE168: 0 | AF168: 0 | AG168: 0
U169: Total prescribed opex | V169: =+Opex_Breakdown!V37 -> 675.818817 | W169: =+Opex_Breakdown!W37 -> 669.4455748 | X169: =SUM(X162:X168) -> 682.4617006 | Y169: 678.2499941 | Z169: 664.5276584 | AA169: 662.8951913 | AB169: 661.333201 | AC169: 660.7280785 | AD169: 660.2099761 | AE169: 659.6366615 | AF169: 659.0696255 | AG169: 658.6952288
X171: =+X$160 -> 2018-19 | Y171: 2019-20 | Z171: 2020-21 | AA171: 2021-22 | AB171: 2022-23 | AC171: 2023-24 | AD171: 2024-25 | AE171: 2025-26 | AF171: 2026-27 | AG171: 2027-28
W172: Adjusted baseline opex | X172: =+X162/X$169 -> 0.1981012204 | Y172: 0.1979502492 | Z172: 0.2005260645 | AA172: 0.1993589427 | AB172: 0.1980154848 | AC172: 0.1982594706 | AD172: 0.1983612729 | AE172: 0.198371422 | AF172: 0.198334428 | AG172: 0.1982549419
W173: Forecast variations to baseline operating expenditure | X173: =+X163/X$169 -> 0.002490982276 | Y173: 0.002523024639 | Z173: 0.002591660605 | AA173: 0.002614247055 | AB173: 0.002636298835 | AC173: 0.002654247754 | AD173: 0.002671527829 | AE173: 0.002688718131 | AF173: 0.002705577991 | AG173: 0.002721343451
W174: Licence fees | X174: =+X164/X$169 -> 0.001465283692 | Y174: 0.001474382615 | Z174: 0.00150482826 | AA174: 0.001508534099 | AB174: 0.001738911638 | AC174: 0.001513481919 | AD174: 0.00151466963 | AE174: 0.001515986085 | AF174: 0.001517290376 | AG174: 0.00174587571
W175: Environment Contribution | X175: =+X165/X$169 -> 0.06138292532 | Y175: 0.06037545731 | Z175: 0.06023675067 | AA175: 0.05902746005 | AB175: 0.05783663332 | AC175: 0.05658807678 | AD175: 0.05535922238 | AE175: 0.05416161986 | AF175: 0.05298946066 | AG175: 0.05182754587
W176: External bulk water charges (excl. temporary purchases) | X176: =+X166/X$169 -> 0.7365595883 | Y176: 0.7376768862 | Z176: 0.735140696 | AA176: 0.7374908161 | AB176: 0.7397726714 | AC176: 0.7409847229 | AD176: 0.7420933073 | AE176: 0.7432622539 | AF176: 0.744453243 | AG176: 0.7454502931
W177: External temporary water purchases | X177: =+X167/X$169 -> 0 | Y177: 0 | Z177: 0 | AA177: 0 | AB177: 0 | AC177: 0 | AD177: 0 | AE177: 0 | AF177: 0 | AG177: 0
W178: Other non-controllable | X178: =+X168/X$169 -> 0 | Y178: 0 | Z178: 0 | AA178: 0 | AB178: 0 | AC178: 0 | AD178: 0 | AE178: 0 | AF178: 0 | AG178: 0
W179: Total prescribed opex | X179: =+X169/X$169 -> 1 | Y179: 1 | Z179: 1 | AA179: 1 | AB179: 1 | AC179: 1 | AD179: 1 | AE179: 1 | AF179: 1 | AG179: 1
X181: =+X$160 -> 2018-19 | Y181: 2019-20 | Z181: 2020-21 | AA181: 2021-22 | AB181: 2022-23 | AC181: 2023-24 | AD181: 2024-25 | AE181: 2025-26 | AF181: 2026-27 | AG181: 2027-28
W182: Water | X182: =+SUMIF($H$65:$H$80,$W182,X$65:X$80) -> 0.7 | Y182: 0.7112414467 | Z182: 0.7222301532 | AA182: 0.7329718018 | AB182: 0.743471947 | AC182: 0.7537360186 | AD182: 0.7637693241 | AE182: 0.7735770519 | AF182: 0.7831642736 | AG182: 0.7925359468
W183: Sewerage | X183: 1 | Y183: 1 | Z183: 1 | AA183: 1 | AB183: 1 | AC183: 1 | AD183: 1 | AE183: 1 | AF183: 1 | AG183: 1
W184: Recycled Water | X184: 0 | Y184: 0 | Z184: 0 | AA184: 0 | AB184: 0 | AC184: 0 | AD184: 0 | AE184: 0 | AF184: 0 | AG184: 0
W185: Rural water | X185: 0 | Y185: 0 | Z185: 0 | AA185: 0 | AB185: 0 | AC185: 0 | AD185: 0 | AE185: 0 | AF185: 0 | AG185: 0
W186: Bulk Water | X186: 0 | Y186: 0 | Z186: 0 | AA186: 0 | AB186: 0 | AC186: 0 | AD186: 0 | AE186: 0 | AF186: 0 | AG186: 0
W187: Forecast variations to baseline operating expenditure | X187: =SUM(X182:X186) -> 1.7 | Y187: 1.711241447 | Z187: 1.722230153 | AA187: 1.732971802 | AB187: 1.743471947 | AC187: 1.753736019 | AD187: 1.763769324 | AE187: 1.773577052 | AF187: 1.783164274 | AG187: 1.792535947
V190: =+V6 -> 2016-17 | W190: 2017-18 | X190: 2018-19 | Y190: 2019-20 | Z190: 2020-21 | AA190: 2021-22 | AB190: 2022-23 | AC190: 2023-24 | AD190: 2024-25 | AE190: 2025-26 | AF190: 2026-27 | AG190: 2027-28
U191: External bulk water charges (excl. temporary purchases) | V191: =+Opex_Breakdown!V29 -> 503.9024677 | W191: =+Opex_Breakdown!W29 -> 501.309299 | X191: =+X87 -> 502.6737092 | Y191: 500.3293438 | Z191: 488.5213253 | AA191: 488.8791156 | AB191: 489.2362288 | AC191: 489.5894121 | AD191: 489.9374046 | AE191: 490.2830318 | AF191: 490.6465201 | AG191: 491.0245513
U192: External temporary water purchases | V192: =+Opex_Breakdown!V30 -> 0 | W192: =+Opex_Breakdown!W30 -> 0 | X192: =+X88 -> 0 | Y192: 0 | Z192: 0 | AA192: 0 | AB192: 0 | AC192: 0 | AD192: 0 | AE192: 0 | AF192: 0 | AG192: 0
U193: Licence fees | V193: =+Opex_Breakdown!V31 -> 1.05189464 | W193: =+Opex_Breakdown!W31 -> 1.15 | X193: =+X89 -> 1 | Y193: 1 | Z193: 1 | AA193: 1 | AB193: 1.15 | AC193: 1 | AD193: 1 | AE193: 1 | AF193: 1 | AG193: 1.15
U194: Environment Contribution | V194: =+Opex_Breakdown!V32 -> 30.51515712 | W194: =+Opex_Breakdown!W32 -> 29.88 | X194: =+X90 -> 41.8914956 | Y194: 40.94965357 | Z194: 40.02898687 | AA194: 39.12901942 | AB194: 38.24928585 | AC194: 37.38933123 | AD194: 36.54871088 | AE194: 35.72699011 | AF194: 34.923744 | AG194: 34.13855718
U195: Other non-controllable | V195: =+Opex_Breakdown!V33 -> 0 | W195: =+Opex_Breakdown!W33 -> 0 | X195: =+X91 -> 0 | Y195: 0 | Z195: 0 | AA195: 0 | AB195: 0 | AC195: 0 | AD195: 0 | AE195: 0 | AF195: 0 | AG195: 0
U196: Total Non-controllable operating expenditure | V196: =+Opex_Breakdown!V34 -> 535.4695194 | W196: =+Opex_Breakdown!W34 -> 532.339299 | X196: =SUM(X191:X195) -> 545.5652048 | Y196: 542.2789973 | Z196: 529.5503121 | AA196: 529.008135 | AB196: 528.6355146 | AC196: 527.9787434 | AD196: 527.4861155 | AE196: 527.0100219 | AF196: 526.5702641 | AG196: 526.3131085
V198: ERROR CHECK | X198: =+X169=X95 -> TRUE | Y198: TRUE | Z198: TRUE | AA198: FALSE | AB198: TRUE | AC198: TRUE | AD198: TRUE | AE198: TRUE | AF198: TRUE | AG198: TRUE
X199: =+X187=X163 -> TRUE | Y199: TRUE | Z199: TRUE | AA199: TRUE | AB199: TRUE | AC199: TRUE | AD199: TRUE | AE199: TRUE | AF199: TRUE | AG199: TRUE
X200: =+X150=X169 -> TRUE | Y200: TRUE | Z200: TRUE | AA200: FALSE | AB200: TRUE | AC200: TRUE | AD200: TRUE | AE200: TRUE | AF200: TRUE | AG200: TRUE
X201: =+X196=X145 -> TRUE | Y201: TRUE | Z201: TRUE | AA201: TRUE | AB201: TRUE | AC201: TRUE | AD201: TRUE | AE201: TRUE | AF201: TRUE | AG201: TRUE

Sheet Opex_Breakdown
A1: 80 | B1: Operating Expenditure - Breakdown
B2: =+Contents!H7 -> Yarra Valley Water
B3: Go to Table of Contents
L4: FIRST REG PERIOD | P4: SECOND REG PERIOD | U4: THIRD REG PERIOD | Z4: FOURTH REG PERIOD | AC4: FIFTH REG PERIOD
K6: 2006 | L6: 2007 | M6: 2008 | N6: 2009 | O6: 2010 | P6: 2011 | Q6: 2012 | R6: 2013 | S6: 2014 | T6: 2015 | U6: 2016 | V6: 2017 | W6: 2018 | X6: 2019 | Y6: 2020 | Z6: 2021 | AA6: 2022 | AB6: 2023 | AC6: 2024 | AD6: 2025 | AE6: 2026 | AF6: 2027 | AG6: 2028
B7: $m, 01/01/18 | K7: =+CONCATENATE(K6-1,"-",RIGHT(K6,2)) -> 2005-06 | L7: =+CONCATENATE(L6-1,"-",RIGHT(L6,2)) -> 2006-07 | M7: 2007-08 | N7: 2008-09 | O7: 2009-10 | P7: 2010-11 | Q7: 2011-12 | R7: 2012-13 | S7: 2013-14 | T7: 2014-15 | U7: 2015-16 | V7: 2016-17 | W7: 2017-18 | X7: =+CONCATENATE(X6-1,"-",RIGHT(X6,2)) -> 2018-19 | Y7: =+CONCATENATE(Y6-1,"-",RIGHT(Y6,2)) -> 2019-20 | Z7: =+CONCATENATE(Z6-1,"-",RIGHT(Z6,2)) -> 2020-21 | AA7: =+CONCATENATE(AA6-1,"-",RIGHT(AA6,2)) -> 2021-22 | AB7: =+CONCATENATE(AB6-1,"-",RIGHT(AB6,2)) -> 2022-23 | AC7: =+CONCATENATE(AC6-1,"-",RIGHT(AC6,2)) -> 2023-24 | AD7: 2024-25 | AE7: 2025-26 | AF7: 2026-27 | AG7: 2027-28
D10: Operating Expenditure Summary
E12: =C48 -> Water | K12: =+K57-K50-K54 -> 0 | L12: =+L57-L50-L54 -> 0 | M12: 0 | N12: 0 | O12: 0 | P12: 0 | Q12: =+Q57-Q50-Q54 -> 0 | R12: 81.59191692 | S12: 83.20844238 | T12: 83.24822581 | U12: 78.47672753 | V12: 80.83963494 | W12: 79.05056406 | X12: 78.77285222 | Y12: 78.23802829 | Z12: 77.66375187 | AA12: 77.03398085 | AB12: 76.34731057 | AC12: =+AC57-AC50-AC54 -> 76.3742146 | AD12: 76.35684022 | AE12: 76.29827734 | AF12: 76.22249337 | AG12: 76.15253863
E13: =C59 -> Sewerage | K13: =K68-K61-K65 -> 0 | L13: =L68-L61-L65 -> 0 | M13: 0 | N13: 0 | O13: 0 | P13: 0 | Q13: 0 | R13: 51.0290991 | S13: 53.77163086 | T13: 48.02137097 | U13: 54.00325375 | V13: 59.19920055 | W13: 57.75130347 | X13: 57.81853804 | Y13: 57.42988502 | Z13: 57.01268054 | AA13: 56.55454866 | AB13: 56.05445896 | AC13: =AC68-AC61-AC65 -> 56.07903816 | AD13: 56.07094621 | AE13: 56.03245794 | AF13: 55.9812019 | AG13: 55.93413215
E14: =C70 -> Recycled Water | K14: =K79-K72-K76 -> 0 | L14: =L79-L72-L76 -> 0 | M14: 0 | N14: 0 | O14: 0 | P14: 0 | Q14: 0 | R14: 0.280950951 | S14: 0.05287597656 | T14: 0.05241935484 | U14: 0.1872705993 | V14: 0.3104621072 | W14: 0.3044082711 | X14: 0.3051054983 | Y14: 0.3030834948 | Z14: 0.3009138353 | AA14: 0.298526761 | AB14: 0.2959168386 | AC14: =AC79-AC72-AC76 -> 0.2960823206 | AD14: 0.296074131 | AE14: 0.2959043246 | AF14: 0.295666198 | AG14: 0.2954494788
E15: =C81 -> Rural Water | K15: =K90-K83-K87 -> 0 | L15: =L90-L83-L87 -> 0 | M15: 0 | N15: 0 | O15: 0 | P15: 0 | Q15: 0 | R15: 0 | S15: 0 | T15: 0 | U15: 0 | V15: 0 | W15: 0 | X15: 0 | Y15: 0 | Z15: 0 | AA15: 0 | AB15: 0 | AC15: =AC90-AC83-AC87 -> 0 | AD15: 0 | AE15: 0 | AF15: 0 | AG15: 0
E16: Bulk Water | K16: =K100-K97 -> 0 | L16: =L100-L97 -> 0 | M16: 0 | N16: 0 | O16: 0 | P16: 0 | Q16: 0 | R16: 0 | S16: 0 | T16: 0 | U16: 0 | V16: 0 | W16: 0 | X16: 0 | Y16: 0 | Z16: 0 | AA16: 0 | AB16: 0 | AC16: =AC100-AC97 -> 0 | AD16: 0 | AE16: 0 | AF16: 0 | AG16: 0
E17: Total controllable operating expenditure | K17: =SUM(K12:K16) -> 0 | L17: 0 | M17: 0 | N17: 0 | O17: 0 | P17: 0 | Q17: 0 | R17: 132.901967 | S17: 137.0329492 | T17: 131.3220161 | U17: 132.6672519 | V17: 140.3492976 | W17: 137.1062758 | X17: 136.8964958 | Y17: 135.9709968 | Z17: 134.9773462 | AA17: 133.8870563 | AB17: 132.6976864 | AC17: 132.7493351 | AD17: 132.7238606 | AE17: 132.6266396 | AF17: 132.4993615 | AG17: 132.3821203
V18: Controllable Opex for 3rd Reg Period | W18: =SUM(S17:W17) -> 678.4777906 | AA18: Controllable Opex for 4th Reg Period | AB18: =SUM(X17:AB17) -> 674.4295814
AA19: Controllable Opex growth from 3rd to 4th Reg Period | AB19: =IFERROR(AB18-W18,"-") -> -4.048209175 | AC19: =IFERROR(AB18/W18-1,"-") -> -0.005966605291
E20: Operations & Maintenance | K20: =K49+K60+K71+K82+K93 -> 0 | L20: 0 | M20: 0 | N20: 0 | O20: 0 | P20: 0 | Q20: 0 | R20: 66.24911912 | S20: 65.39247559 | T20: 64.32903226 | U20: 65.90062734 | V20: 71.20509704 | W20: 69.81663779 | X20: 69.97654822 | Y20: 69.51279773 | Z20: 69.01518204 | AA20: 68.46770182 | AB20: 67.86911097 | AC20: 67.90706461 | AD20: 67.90518631 | AE20: 67.86624086 | AF20: 67.81162607 | AG20: 67.76192109
E21: Treatment | K21: =K51+K62+K73+K84+K94 -> 0 | L21: 0 | M21: 0 | N21: 0 | O21: 0 | P21: 0 | Q21: 0 | R21: 7.367772773 | S21: 8.476342773 | T21: 6.392016129 | U21: 6.299948502 | V21: 6.824038817 | W21: 6.690973907 | X21: 6.706299144 | Y21: 6.661854975 | Z21: 6.614165288 | AA21: 6.561696766 | AB21: 6.504329985 | AC21: 6.507967324 | AD21: 6.507787314 | AE21: 6.504054924 | AF21: 6.498820839 | AG21: 6.494057294
E22: Customer Service and billing | K22: =K52+K63+K74+K85+K95 -> 0 | L22: 0 | M22: 0 | N22: 0 | O22: 0 | P22: 0 | Q22: 0 | R22: 27.23233233 | S22: 28.36526367 | T22: 29.01830645 | U22: 27.08698502 | V22: 29.62564233 | W22: 29.04795901 | X22: 29.11449145 | Y22: 28.9215431 | Z22: 28.71450476 | AA22: 28.48671977 | AB22: 28.23766964 | AC22: 28.25346066 | AD22: 28.25267917 | AE22: 28.2364755 | AF22: 28.21375243 | AG22: 28.19307214
E23: GSL Payments | K23: =K53+K64+K75+K86+K96 -> 0 | L23: 0 | M23: 0 | N23: 0 | O23: 0 | P23: 0 | Q23: 0 | R23: 0.7156506507 | S23: 0.7640039063 | T23: 0.7516935484 | U23: 0.9994662921 | V23: 1.583969501 | W23: 1.04679337 | X23: 0.5253780037 | Y23: 0.5036414467 | Z23: 0.4797501923 | AA23: 0.4563960824 | AB23: 0.4335670405 | AC23: 0.4112512615 | AD23: 0.3894372057 | AE23: 0.3681135931 | AF23: 0.347269397 | AG23: 0.3268938387
E24: Corporate | K24: =K55+K66+K77+K88+K98 -> 0 | L24: 0 | M24: 0 | N24: 0 | O24: 0 | P24: 0 | Q24: 0 | R24: 29.45892392 | S24: 34.03486328 | T24: 30.83096774 | U24: 32.38022472 | V24: 31.11054991 | W24: 30.50391172 | X24: 30.57377893 | Y24: 30.37115955 | Z24: 30.15374396 | AA24: 29.91454184 | AB24: 29.65300873 | AC24: 29.66959123 | AD24: 29.66877057 | AE24: 29.65175473 | AF24: 29.62789273 | AG24: 29.6061759
E25: Other operating expenditure | K25: =K56+K67+K78+K89+K99 -> 0 | L25: 0 | M25: 0 | N25: 0 | O25: 0 | P25: 0 | Q25: 0 | R25: 1.878168168 | S25: 0 | T25: 0 | U25: 0 | V25: 0 | W25: 0 | X25: 0 | Y25: 0 | Z25: 0 | AA25: 0 | AB25: 0 | AC25: 0 | AD25: 0 | AE25: 0 | AF25: 0 | AG25: 0
E26: Total controllable operating expenditure | K26: =SUM(K20:K25) -> 0 | L26: =SUM(L20:L25) -> 0 | M26: 0 | N26: 0 | O26: 0 | P26: 0 | Q26: 0 | R26: 132.901967 | S26: 137.0329492 | T26: 131.3220161 | U26: 132.6672519 | V26: 140.3492976 | W26: 137.1062758 | X26: 136.8964958 | Y26: 135.9709968 | Z26: 134.9773462 | AA26: 133.8870563 | AB26: 132.6976864 | AC26: 132.7493351 | AD26: 132.7238606 | AE26: 132.6266396 | AF26: 132.4993615 | AG26: 132.3821203
V27: Non-controllable Opex for 3rd Reg Period | W27: =SUM(S26:W26) -> 678.4777906 | AA27: Non-controllable Opex for 4th Reg Period | AB27: =SUM(X26:AB26) -> 674.4295814
AA28: Non-controllable Opex growth from 3rd to 4th Reg Period | AB28: =IFERROR(AB27-W27,"-") -> -4.048209175 | AC28: =IFERROR(AB27/W27-1,"-") -> -0.005966605291
E29: External bulk water charges (excl. temporary purchases) | K29: =K50+K61+K72+K83 -> 0 | L29: 0 | M29: 0 | N29: 0 | O29: 0 | P29: 0 | Q29: 0 | R29: 397.8034499 | S29: 581.2757156 | T29: 497.2268346 | U29: 549.3981984 | V29: 503.9024677 | W29: 501.309299 | X29: =X50+X61+X72+X83 -> 502.6737092 | Y29: =Y50+Y61+Y72+Y83 -> 500.3293438 | Z29: 488.5213253 | AA29: 488.8791156 | AB29: 489.2362288 | AC29: 489.5894121 | AD29: 489.9374046 | AE29: 490.2830318 | AF29: 490.6465201 | AG29: 491.0245513
E30: External temporary water purchases | K30: =+K102 -> 0 | L30: 0 | M30: 0 | N30: 0 | O30: 0 | P30: 0 | Q30: 0 | R30: 0 | S30: 0 | T30: 0 | U30: 0 | V30: 0 | W30: 0 | X30: 0 | Y30: 0 | Z30: 0 | AA30: 0 | AB30: 0 | AC30: 0 | AD30: 0 | AE30: 0 | AF30: 0 | AG30: 0
E31: Licence fees | K31: =+K109 -> 0 | L31: 0 | M31: 0 | N31: 0 | O31: 0 | P31: 0 | Q31: 0 | R31: 1.279764765 | S31: 1.062915039 | T31: 0.7097580645 | U31: 0.9870505618 | V31: 1.05189464 | W31: 1.15 | X31: 1 | Y31: 1 | Z31: 1 | AA31: 1 | AB31: 1.15 | AC31: 1 | AD31: 1 | AE31: 1 | AF31: 1 | AG31: 1.15
E32: Environment Contribution | K32: =K111 -> 0 | L32: 0 | M32: 0 | N32: 0 | O32: 0 | P32: 0 | Q32: 0 | R32: 19.36017518 | S32: 32.24355469 | T32: 31.32580645 | U32: 30.91516854 | V32: 30.51515712 | W32: 29.88 | X32: 41.8914956 | Y32: 40.94965357 | Z32: 40.02898687 | AA32: 39.12901942 | AB32: 38.24928585 | AC32: 37.38933123 | AD32: 36.54871088 | AE32: 35.72699011 | AF32: 34.923744 | AG32: 34.13855718
E33: Other non-controllable | K33: =+K124 -> 0 | L33: 0 | M33: 0 | N33: 0 | O33: 0 | P33: 0 | Q33: 0 | R33: 0 | S33: 0 | T33: 0 | U33: 0 | V33: 0 | W33: 0 | X33: 0 | Y33: 0 | Z33: 0 | AA33: 0 | AB33: 0 | AC33: 0 | AD33: 0 | AE33: 0 | AF33: 0 | AG33: =+AG124 -> 0
E34: Total non-controllable operating expenditure | K34: =SUM(K29:K33) -> 0 | L34: =SUM(L29:L33) -> 0 | M34: 0 | N34: 0 | O34: 0 | P34: 0 | Q34: 0 | R34: 418.4433898 | S34: 614.5821853 | T34: 529.2623991 | U34: 581.3004175 | V34: 535.4695194 | W34: 532.339299 | X34: 545.5652048 | Y34: 542.2789973 | Z34: 529.5503121 | AA34: 529.008135 | AB34: 528.6355146 | AC34: 527.9787434 | AD34: 527.4861155 | AE34: 527.0100219 | AF34: 526.5702641 | AG34: 526.3131085
V35: Prescribed Opex for 3rd Reg Period | W35: =SUM(S34:W34) -> 2792.95382 | AA35: Prescribed Opex for 4th Reg Period | AB35: =SUM(X34:AB34) -> 2675.038164
AA36: Prescribed Opex growth from 3rd to 4th Reg Period | AB36: =IFERROR(AB35-W35,"-") -> -117.9156564 | AC36: =IFERROR(AB35/W35-1,"-") -> -0.04221897818
E37: Total prescribed operating expenditure | K37: =+K34+K17 -> 0 | L37: 0 | M37: 0 | N37: 0 | O37: 0 | P37: 0 | Q37: 0 | R37: 551.3453568 | S37: 751.6151346 | T37: 660.5844152 | U37: 713.9676694 | V37: 675.818817 | W37: 669.4455748 | X37: 682.4617006 | Y37: 678.2499941 | Z37: 664.5276584 | AA37: 662.8951913 | AB37: 661.333201 | AC37: 660.7280785 | AD37: 660.2099761 | AE37: 659.6366615 | AF37: 659.0696255 | AG37: 658.6952288
W40: To reconcile to 'Opex_FO' tab row 123>> | X40: =+Opex_FO!X95 -> 682.4617006 | Y40: =+Opex_FO!Y95 -> 678.2499941 | Z40: =+Opex_FO!Z95 -> 664.5276584 | AA40: =+Opex_FO!AA95 -> 662.8951913 | AB40: =+Opex_FO!AB95 -> 661.333201 | AC40: =+Opex_FO!AC95 -> 660.7280785 | AD40: =+Opex_FO!AD95 -> 660.2099761 | AE40: =+Opex_FO!AE95 -> 659.6366615 | AF40: =+Opex_FO!AF95 -> 659.0696255 | AG40: =+Opex_FO!AG95 -> 658.6952288
W41: Difference | X41: =+X40-X37 -> 0 | Y41: 0 | Z41: 0 | AA41: 0 | AB41: 0 | AC41: 0 | AD41: 0 | AE41: 0 | AF41: 0 | AG41: 0
W42: Test | X42: =+X40=X37 -> TRUE | Y42: TRUE | Z42: TRUE | AA42: TRUE | AB42: TRUE | AC42: TRUE | AD42: TRUE | AE42: TRUE | AF42: TRUE | AG42: TRUE
B46: Total operating expenditure
C48: Water
D49: Operations & Maintenance | R49: 43.84383383 | S49: 44.31222656 | T49: 44.20524194 | U49: 40.96363296 | V49: 44.24697782 | W49: 43.3841867 | X49: 43.48355533 | Y49: 43.19537993 | Z49: 42.88616062 | AA49: 42.54595541 | AB49: 42.17398996 | AC49: 42.19757442 | AD49: 42.19640724 | AE49: 42.17220647 | AF49: 42.13826873 | AG49: 42.10738197
D50: External bulk charges (excl. temporary purchases) | R50: =+R131 -> 225.8752971 | S50: =+S131 -> 365.8050355 | T50: =+T131 -> 288.200369 | U50: 339.1370823 | V50: 343.7971145 | W50: 340.8020806 | X50: 340.1492634 | Y50: 336.3659637 | Z50: 324.3104743 | AA50: 324.5750416 | AB50: 324.8368625 | AC50: 325.0938136 | AD50: 325.3453916 | AE50: 325.5931691 | AF50: 325.8515945 | AG50: 326.1184334 | AH50: see reconciliation below
D51: Treatment | R51: 0 | S51: 0 | T51: 0 | U51: 0 | V51: 0 | W51: 0 | X51: 0 | Y51: 0 | Z51: 0 | AA51: 0 | AB51: 0 | AC51: 0 | AD51: 0 | AE51: 0 | AF51: 0 | AG51: 0
D52: Customer Service and billing | R52: 16.68782282 | S52: 16.94297363 | T52: 18.03120968 | U52: 16.83986891 | V52: 16.39117375 | W52: 16.0715551 | X52: 16.10836595 | Y52: 16.00161215 | Z52: 15.88706269 | AA52: 15.76103458 | AB52: 15.62324098 | AC52: 15.63197778 | AD52: 15.6315454 | AE52: 15.62258029 | AF52: 15.61000815 | AG52: 15.59856623
D53: GSL Payments | R53: 0.678043043 | S53: 0.7273144531 | T53: 0.6573387097 | U53: 0.7873642322 | V53: 1.058022181 | W53: 0.8246477792 | X53: 0.3677646026 | Y53: 0.3525490127 | Z53: 0.3358251346 | AA53: 0.3194772577 | AB53: 0.3034969283 | AC53: 0.287875883 | AD53: 0.272606044 | AE53: 0.2576795152 | AF53: 0.2430885779 | AG53: 0.2288256871
D54: Licence Fees | R54: 0.5873423423 | S54: 0.5676074219 | T54: 0.3428225806 | U54: 0.5245646067 | V54: 0.5320748614 | W54: 0.675 | X54: 0.6 | Y54: 0.6 | Z54: 0.6 | AA54: 0.6 | AB54: 0.675 | AC54: 0.6 | AD54: 0.6 | AE54: 0.6 | AF54: 0.6 | AG54: 0.675
D55: Corporate | R55: 18.50404905 | S55: 21.22592773 | T55: 20.35443548 | U55: 19.88586142 | V55: 19.14346118 | W55: 18.77017448 | X55: 18.81316634 | Y55: 18.68848721 | Z55: 18.55470343 | AA55: 18.4075136 | AB55: 18.24658269 | AC55: 18.25678651 | AD55: 18.25628153 | AE55: 18.24581107 | AF55: 18.2311279 | AG55: 18.21776474
D56: Other operating expenditure | R56: 1.878168168 | S56: 0 | T56: 0 | U56: 0 | V56: 0 | W56: 0 | X56: 0 | Y56: 0 | Z56: 0 | AA56: 0 | AB56: 0 | AC56: 0 | AD56: 0 | AE56: 0 | AF56: 0 | AG56: 0
C57: =+CONCATENATE("Total ",C48) -> Total Water | K57: =+SUM(K49:K56) -> 0 | L57: =+SUM(L49:L56) -> 0 | M57: 0 | N57: 0 | O57: 0 | P57: 0 | Q57: 0 | R57: 308.0545564 | S57: 449.5810853 | T57: 371.7914174 | U57: 418.1383745 | V57: 425.1688243 | W57: 420.5276446 | X57: 419.5221156 | Y57: 415.203992 | Z57: 402.5742262 | AA57: 402.2090224 | AB57: 401.859173 | AC57: =+SUM(AC49:AC56) -> 402.0680282 | AD57: 402.3022318 | AE57: 402.4914464 | AF57: 402.6740878 | AG57: 402.9459721
C59: Sewerage
D60: =+D49 -> Operations & Maintenance | R60: 22.24711211 | S60: 21.0629834 | T60: 20.10596774 | U60: 24.8438764 | V60: 26.77020795 | W60: 26.24820399 | X60: 26.30832378 | Y60: 26.13397253 | Z60: 25.94688936 | AA60: 25.74105916 | AB60: 25.51601345 | AC60: 25.53028247 | AD60: 25.5295763 | AE60: 25.51493441 | AF60: 25.49440148 | AG60: 25.47571443
D61: =+D50 -> External bulk charges (excl. temporary purchases) | R61: =+R132 -> 171.9281527 | S61: =+S132 -> 215.4706801 | T61: =+T132 -> 209.0264656 | U61: 210.2611161 | V61: 160.1053531 | W61: 160.5072184 | X61: 162.5244459 | Y61: 163.96338 | Z61: 164.2108509 | AA61: 164.304074 | AB61: 164.3993663 | AC61: 164.4955986 | AD61: 164.5920131 | AE61: 164.6898627 | AF61: 164.7949256 | AG61: 164.9061179 | AH61: see reconciliation below
D62: Treatment | R62: 7.367772773 | S62: 8.476342773 | T62: 6.392016129 | U62: 6.299948502 | V62: 6.824038817 | W62: 6.690973907 | X62: 6.706299144 | Y62: 6.661854975 | Z62: 6.614165288 | AA62: 6.561696766 | AB62: 6.504329985 | AC62: 6.507967324 | AD62: 6.507787314 | AE62: 6.504054924 | AF62: 6.498820839 | AG62: 6.494057294
D63: Customer Service and billing | R63: 10.48367367 | S63: 11.41581543 | T63: 10.97975806 | U63: 10.21607678 | V63: 13.1721719 | W63: 12.91532198 | X63: 12.94490368 | Y63: 12.85911486 | Z63: 12.76706134 | AA63: 12.66578343 | AB63: 12.5550506 | AC63: 12.56207162 | AD63: 12.56172415 | AE63: 12.55451967 | AF63: 12.54441652 | AG63: 12.53522164
D64: GSL Payments | R64: 0.03760760761 | S64: 0.03668945313 | T64: 0.09435483871 | U64: 0.2121020599 | V64: 0.5259473198 | W64: 0.222145591 | X64: 0.1576134011 | Y64: 0.151092434 | Z64: 0.1439250577 | AA64: 0.1369188247 | AB64: 0.1300701121 | AC64: 0.1233753784 | AD64: 0.1168311617 | AE64: 0.1104340779 | AF64: 0.1041808191 | AG64: 0.0980681516
D65: Licence Fees | R65: 0.6913163163 | S65: 0.4942285156 | T65: 0.3658870968 | U65: 0.4604166667 | V65: 0.5177772643 | W65: 0.475 | X65: 0.4 | Y65: 0.4 | Z65: 0.4 | AA65: 0.4 | AB65: 0.475 | AC65: 0.4 | AD65: 0.4 | AE65: 0.4 | AF65: 0.4 | AG65: 0.475
D66: Corporate | R66: 10.89293293 | S66: 12.7797998 | T66: 10.44927419 | U66: 12.43125 | V66: 11.90683457 | W66: 11.674658 | X66: 11.70139804 | Y66: 11.62385022 | Z66: 11.54063949 | AA66: 11.44909048 | AB66: 11.34899481 | AC66: 11.35534137 | AD66: 11.35502728 | AE66: 11.34851487 | AF66: 11.33938225 | AG66: 11.33107064
D67: Other operating expenditure | R67: 0 | S67: 0 | T67: 0 | U67: 0 | V67: 0 | W67: 0 | X67: 0 | Y67: 0 | Z67: 0 | AA67: 0 | AB67: 0 | AC67: 0 | AD67: 0 | AE67: 0 | AF67: 0 | AG67: 0
C68: =+CONCATENATE("Total ",C59) -> Total Sewerage | K68: =+SUM(K60:K67) -> 0 | L68: 0 | M68: 0 | N68: 0 | O68: 0 | P68: 0 | Q68: 0 | R68: 223.6485682 | S68: 269.7365395 | T68: 257.4137237 | U68: 264.7247865 | V68: 219.822331 | W68: 218.7335219 | X68: 220.7429839 | Y68: 221.793265 | Z68: 221.6235315 | AA68: 221.2586227 | AB68: 220.9288252 | AC68: =+SUM(AC60:AC67) -> 220.9746367 | AD68: 221.0629593 | AE68: 221.1223207 | AF68: 221.1761275 | AG68: 221.31525
C70: Recycled Water
D71: =+D60 -> Operations & Maintenance | R71: 0.1581731732 | S71: 0.017265625 | T71: 0.01782258065 | U71: 0.09311797753 | V71: 0.1879112754 | W71: 0.1842471115 | X71: 0.1846691174 | Y71: 0.1834452732 | Z71: 0.1821320582 | AA71: 0.1806872501 | AB71: 0.1791075602 | AC71: 0.1792077204 | AD71: 0.1792027635 | AE71: 0.1790999859 | AF71: 0.1789558567 | AG71: 0.1788246845
D72: =+D61 -> External bulk charges (excl. temporary purchases) | R72: =+R133 -> 0 | S72: =+S133 -> 0 | T72: =+T133 -> 0 | U72: 0 | V72: 0 | W72: 0 | X72: 0 | Y72: 0 | Z72: 0 | AA72: 0 | AB72: 0 | AC72: 0 | AD72: 0 | AE72: 0 | AF72: 0 | AG72: 0 | AH72: see reconciliation below
D73: Treatment | R73: 0 | S73: 0 | T73: 0 | U73: 0 | V73: 0 | W73: 0 | X73: 0 | Y73: 0 | Z73: 0 | AA73: 0 | AB73: 0 | AC73: 0 | AD73: 0 | AE73: 0 | AF73: 0 | AG73: 0
D74: Customer Service and billing | R74: 0.06083583584 | S74: 0.006474609375 | T74: 0.007338709677 | U74: 0.03103932584 | V74: 0.06229667283 | W74: 0.06108192283 | X74: 0.06122182697 | Y74: 0.060816096 | Z74: 0.06038073669 | AA74: 0.05990175138 | AB74: 0.05937804984 | AC74: 0.05941125513 | AD74: 0.05940961182 | AE74: 0.05937553881 | AF74: 0.05932775684 | AG74: 0.05928427042
D75: GSL Payments | R75: 0 | S75: 0 | T75: 0 | U75: 0 | V75: 0 | W75: 0
D76: Licence Fees | R76: 0.001106106106 | S76: 0.001079101562 | T76: 0.001048387097 | U76: 0.00206928839 | V76: 0.002042513863 | W76: 0 | X76: 0.002015006156 | Y76: 0.002001383557 | Z76: 0.001986757821 | AA76: 0.001970709631 | AB76: 0.001953203064 | AC76: 0.001953963292 | AD76: 0.001953588327 | AE76: 0.001952157313 | AF76: 0.001950283881 | AG76: 0.001948558185
D77: Corporate | R77: 0.06194194194 | S77: 0.02913574219 | T77: 0.02725806452 | U77: 0.06311329588 | V77: 0.06025415896 | W77: 0.05907923683 | X77: 0.05921455395 | Y77: 0.05882212564 | Z77: 0.0584010404 | AA77: 0.05793775953 | AB77: 0.05743122854 | AC77: 0.05746334512 | AD77: 0.05746175569 | AE77: 0.05742879983 | AF77: 0.05738258448 | AG77: 0.05734052385
D78: Other operating expenditure | R78: 0 | S78: 0 | T78: 0 | U78: 0 | V78: 0 | W78: 0 | X78: 0 | Y78: 0 | Z78: 0 | AA78: 0 | AB78: 0 | AC78: 0 | AD78: 0 | AE78: 0 | AF78: 0 | AG78: 0
C79: =+CONCATENATE("Total ",C70) -> Total Recycled Water | K79: =+SUM(K71:K78) -> 0 | L79: =+SUM(L71:L78) -> 0 | M79: =+SUM(M71:M78) -> 0 | N79: =+SUM(N71:N78) -> 0 | O79: 0 | P79: 0 | Q79: 0 | R79: 0.2820570571 | S79: 0.05395507812 | T79: 0.05346774194 | U79: 0.1893398876 | V79: 0.3125046211 | W79: 0.3044082711 | X79: =+SUM(X71:X78) -> 0.3071205045 | Y79: =+SUM(Y71:Y78) -> 0.3050848784 | Z79: =+SUM(Z71:Z78) -> 0.3029005931 | AA79: =+SUM(AA71:AA78) -> 0.3004974706 | AB79: =+SUM(AB71:AB78) -> 0.2978700416 | AC79: =+SUM(AC71:AC78) -> 0.2980362839 | AD79: 0.2980277194 | AE79: 0.2978564819 | AF79: 0.2976164819 | AG79: 0.297398037
C81: Rural Water
D82: =+D60 -> Operations & Maintenance
D83: =+D61 -> External bulk charges (excl. temporary purchases) | R83: =+R134 -> 0 | S83: =+S134 -> 0 | T83: =+T134 -> 0 | U83: 0 | V83: 0 | W83: 0 | X83: 0 | Y83: 0 | Z83: 0 | AA83: 0 | AB83: 0 | AC83: 0 | AD83: 0 | AE83: 0 | AF83: 0 | AG83: 0 | AH83: see reconciliation below
D84: Treatment
D85: Customer Service and billing
D86: GSL Payments
D87: Licence Fees
D88: Corporate
D89: Other operating expenditure
C90: =+CONCATENATE("Total ",C81) -> Total Rural Water | K90: =+SUM(K82:K89) -> 0 | L90: 0 | M90: 0 | N90: 0 | O90: 0 | P90: 0 | Q90: 0 | R90: 0 | S90: 0 | T90: 0 | U90: 0 | V90: 0 | W90: 0 | X90: =+SUM(X82:X89) -> 0 | Y90: =+SUM(Y82:Y89) -> 0 | Z90: =+SUM(Z82:Z89) -> 0 | AA90: =+SUM(AA82:AA89) -> 0 | AB90: =+SUM(AB82:AB89) -> 0 | AC90: =+SUM(AC82:AC89) -> 0 | AD90: 0 | AE90: 0 | AF90: 0 | AG90: 0
C92: Bulk Water
D93: Operations & Maintenance
D94: Treatment
D95: Customer Service and billing
D96: GSL Payments
D97: Licence Fees
D98: Corporate
D99: Other operating expenditure
C100: Total Bulk water | K100: =+SUM(K93:K99) -> 0 | L100: 0 | M100: 0 | N100: 0 | O100: 0 | P100: 0 | Q100: 0 | R100: 0 | S100: 0 | T100: 0 | U100: 0 | V100: 0 | W100: 0 | X100: 0 | Y100: 0 | Z100: 0 | AA100: 0 | AB100: 0 | AC100: =+SUM(AC93:AC99) -> 0 | AD100: 0 | AE100: 0 | AF100: 0 | AG100: 0
C102: External temporary water purchases
C105: Licence fees
D106: Essential Services Commission | R106: 0.8915215215 | S106: 0.7154443359 | T106: 0.3637903226 | U106: 0.6363061798 | V106: 0.6964972274 | W106: 0.75 | X106: 0.6 | Y106: 0.6 | Z106: 0.6 | AA106: 0.6 | AB106: 0.75 | AC106: 0.6 | AD106: 0.6 | AE106: 0.6 | AF106: 0.6 | AG106: 0.75
D107: Department of Human Services | R107: 0.2721021021 | S107: 0.2719335937 | T107: 0.270483871 | U107: 0.2741807116 | V107: 0.2777818854 | W107: 0.3 | X107: 0.3 | Y107: 0.3 | Z107: 0.3 | AA107: 0.3 | AB107: 0.3 | AC107: 0.3 | AD107: 0.3 | AE107: 0.3 | AF107: 0.3 | AG107: 0.3
D108: Environment Protection Authority | R108: 0.1161411411 | S108: 0.07553710938 | T108: 0.07548387097 | U108: 0.07656367041 | V108: 0.0776155268 | W108: 0.1 | X108: 0.1 | Y108: 0.1 | Z108: 0.1 | AA108: 0.1 | AB108: 0.1 | AC108: 0.1 | AD108: 0.1 | AE108: 0.1 | AF108: 0.1 | AG108: 0.1
C109: =+CONCATENATE("Total ",C105) -> Total Licence fees | K109: =+SUM(K106:K108) -> 0 | L109: =+SUM(L106:L108) -> 0 | M109: 0 | N109: 0 | O109: 0 | P109: 0 | Q109: 0 | R109: 1.279764765 | S109: 1.062915039 | T109: 0.7097580645 | U109: 0.9870505618 | V109: 1.05189464 | W109: 1.15 | X109: =+SUM(X106:X108) -> 1 | Y109: =+SUM(Y106:Y108) -> 1 | Z109: =+SUM(Z106:Z108) -> 1 | AA109: =+SUM(AA106:AA108) -> 1 | AB109: =+SUM(AB106:AB108) -> 1.15 | AC109: =+SUM(AC106:AC108) -> 1 | AD109: 1 | AE109: 1 | AF109: 1 | AG109: 1.15
C111: Environment Contribution | R111: 19.36017518 | S111: 32.24355469 | T111: 31.32580645 | U111: 30.91516854 | V111: 30.51515712 | W111: 29.88 | X111: 41.8914956 | Y111: 40.94965357 | Z111: 40.02898687 | AA111: 39.12901942 | AB111: 38.24928585 | AC111: 37.38933123 | AD111: 36.54871088 | AE111: 35.72699011 | AF111: 34.923744 | AG111: 34.13855718
C113: Other non-controllable
D114: [Non-controllable 1]
D115: [Non-controllable 2]
D116: [Non-controllable 3]
D117: [Non-controllable 4]
D118: [Non-controllable 5]
D119: [Non-controllable 6]
D120: [Non-controllable 7]
D121: [Non-controllable 8]
D122: [Non-controllable 9]
D123: [Non-controllable 10]
K124: =SUM(K114:K123) -> 0 | L124: 0 | M124: 0 | N124: 0 | O124: 0 | P124: 0 | Q124: 0 | R124: 0 | S124: 0 | T124: 0 | U124: 0 | V124: 0 | W124: 0 | X124: 0 | Y124: 0 | Z124: 0 | AA124: 0 | AB124: 0 | AC124: 0 | AD124: 0 | AE124: 0 | AF124: 0 | AG124: 0
C127: External bulk charges (excl. temporary purchases)
C128: Reconciliation
C130: Service | R130: =+R7 -> 2012-13 | S130: 2013-14 | T130: 2014-15 | U130: 2015-16 | V130: 2016-17 | W130: 2017-18 | X130: 2018-19 | Y130: 2019-20 | Z130: 2020-21 | AA130: 2021-22 | AB130: 2022-23 | AC130: 2023-24 | AD130: 2024-25 | AE130: 2025-26 | AF130: 2026-27 | AG130: 2027-28
D131: Water | R131: =+SUMIF($I$138:$I$179,$D$131,R$138:R$179) -> 225.8752971 | S131: 365.8050355 | T131: 288.200369 | U131: 339.1370823 | V131: 343.7971145 | W131: 340.8020806 | X131: 340.1492634 | Y131: 336.3659637 | Z131: 324.3104743 | AA131: 324.5750416 | AB131: 324.8368625 | AC131: 325.0938136 | AD131: 325.3453916 | AE131: 325.5931691 | AF131: 325.8515945 | AG131: 326.1184334
D132: Sewerage | R132: =+SUMIF($I$138:$I$179,$D$132,R$138:R$179) -> 171.9281527 | S132: 215.4706801 | T132: 209.0264656 | U132: 210.2611161 | V132: 160.1053531 | W132: 160.5072184 | X132: 162.5244459 | Y132: 163.96338 | Z132: 164.2108509 | AA132: 164.304074 | AB132: 164.3993663 | AC132: 164.4955986 | AD132: 164.5920131 | AE132: 164.6898627 | AF132: 164.7949256 | AG132: 164.9061179
D133: Recycled Water | R133: =+SUMIF($I$138:$I$179,$D$133,R$138:R$179) -> 0 | S133: 0 | T133: 0 | U133: 0 | V133: 0 | W133: 0 | X133: 0 | Y133: 0 | Z133: 0 | AA133: 0 | AB133: 0 | AC133: 0 | AD133: 0 | AE133: 0 | AF133: 0 | AG133: 0
D134: Rural Water | R134: =+SUMIF($I$138:$I$179,$D$134,R$138:R$179) -> 0 | S134: 0 | T134: 0 | U134: 0 | V134: 0 | W134: 0 | X134: 0 | Y134: 0 | Z134: 0 | AA134: 0 | AB134: 0 | AC134: 0 | AD134: 0 | AE134: 0 | AF134: 0 | AG134: 0
C135: Total External Bulk Charges | R135: =SUM(R131:R134) -> 397.8034499 | S135: =SUM(S131:S134) -> 581.2757156 | T135: =SUM(T131:T134) -> 497.2268346 | U135: 549.3981984 | V135: 503.9024677 | W135: 501.309299 | X135: 502.6737092 | Y135: 500.3293438 | Z135: 488.5213253 | AA135: 488.8791156 | AB135: 489.2362288 | AC135: 489.5894121 | AD135: 489.9374046 | AE135: 490.2830318 | AF135: 490.6465201 | AG135: 491.0245513
C137: Description | H137: Source | I137: Service | J137: Price
B138: 1 | C138: Storage operator and bulk water service charges - headworks | H138: Melbourne Water | I138: Water | J138: Fixed | R138: 54.57591828 | S138: 93.5514374 | T138: 83.56068693 | U138: 88.07142055 | AJ138: ESC USE ONLY
B139: 2 | C139: Storage operator and bulk water service charges - transfer | H139: Melbourne Water | I139: Water | J139: Fixed | R139: 26.03397945 | S139: 24.92082225 | T139: 24.75643849 | U139: 24.60274045
B140: 3 | C140: Storage operator and bulk water usage charges - headworks | H140: Melbourne Water | I140: Water | J140: Variable | R140: 124.6546186 | S140: 225.3638867 | T140: 207.935 | U140: 232.1687772 | AJ140: [Service]
B141: 4 | C141: Storage operator and bulk water usage charges - transfer | H141: Melbourne Water | I141: Water | J141: Variable | R141: 24.38488338 | S141: 23.69221436 | T141: 23.39276613 | U141: 25.14423361 | V141: 34.96991523 | W141: 36.30806824 | X141: 36.74389535 | Y141: 37.16473234 | Z141: 37.61487031 | AA141: 37.87943755 | AB141: 38.14125847 | AC141: 38.39820956 | AD141: 38.64978759 | AE141: 38.89756506 | AF141: 39.15599047 | AG141: 39.42282943 | AJ141: Water
B142: 5 | C142: Bulk sewerage service charges | H142: Melbourne Water | I142: Sewerage | J142: Fixed | R142: 123.3440293 | S142: 155.2052567 | T142: 152.6375167 | U142: 152.4398721 | V142: 128.0854168 | W142: 129.887457 | X142: 131.9656563 | Y142: 133.2853129 | Z142: 133.4185982 | AA142: 133.4185982 | AB142: 133.4185982 | AC142: 133.4185982 | AD142: 133.4185982 | AE142: 133.4185982 | AF142: 133.4185982 | AG142: 133.4185982 | AJ142: Sewerage
B143: 6 | C143: Bulk sewerage usage charges - eastern system | H143: Melbourne Water | I143: Sewerage | J143: Variable | R143: 25.28657666 | S143: 31.82264465 | T143: 32.10283323 | U143: 30.58135301 | AJ143: Recycled Water
B144: 7 | C144: Bulk sewerage usage charges - western system | H144: Melbourne Water | I144: Sewerage | J144: Variable | R144: 21.24916991 | S144: 25.53043689 | T144: 22.34490323 | U144: 25.1448275 | AJ144: Rural Water
B145: 8 | C145: BOD - eastern system | H145: Melbourne Water | I145: Sewerage | J145: Variable | R145: 1.1939254 | S145: 1.947148125 | T145: 1.015639677 | U145: 1.115028806 | V145: 0.7165792237 | W145: 0.7906869362 | X145: 0.7534709995 | Y145: 0.7534709995 | Z145: 0.7534709995 | AA145: 0.7534709995 | AB145: 0.7534709995 | AC145: 0.7534709995 | AD145: 0.7534709995 | AE145: 0.7534709995 | AF145: 0.7534709995 | AG145: 0.7534709995
B146: 9 | C146: BOD - western system | H146: Melbourne Water | I146: Sewerage | J146: Variable | R146: 0.1607083684 | S146: 0.1252675049 | T146: 0.1444687903 | U146: 0.1578867041 | V146: 1.752957907 | W146: 1.727230304 | X146: 1.645933524 | Y146: 1.645933524 | Z146: 1.645933524 | AA146: 1.645933524 | AB146: 1.645933524 | AC146: 1.645933524 | AD146: 1.645933524 | AE146: 1.645933524 | AF146: 1.645933524 | AG146: 1.645933524 | AJ146: [Source]
B147: 10 | C147: SS - eastern system | H147: Melbourne Water | I147: Sewerage | J147: Variable | R147: 0.376847032 | S147: 0.497493877 | T147: 0.4600437903 | U147: 0.4646452575 | V147: 0.7203854482 | W147: 0.8688836991 | X147: 0.8279870917 | Y147: 0.8279870917 | Z147: 0.8279870917 | AA147: 0.8279870917 | AB147: 0.8279870917 | AC147: 0.8279870917 | AD147: 0.8279870917 | AE147: 0.8279870917 | AF147: 0.8279870917 | AG147: 0.8279870917 | AJ147: Melbourne Water
B148: 11 | C148: SS - western system | H148: Melbourne Water | I148: Sewerage | J148: Variable | R148: 0.01082656657 | S148: 0.01127876953 | T148: 0.009266693548 | U148: 0.008770678839 | V148: 0.3212659843 | W148: 0.3015798955 | X148: 0.2873852349 | Y148: 0.2873852349 | Z148: 0.2873852349 | AA148: 0.2873852349 | AB148: 0.2873852349 | AC148: 0.2873852349 | AD148: 0.2873852349 | AE148: 0.2873852349 | AF148: 0.2873852349 | AG148: 0.2873852349 | AJ148: Goulburn-Murray Water
B149: 12 | C149: TKN - eastern system | H149: Melbourne Water | I149: Sewerage | J149: Variable | R149: 0.05364061562 | S149: 0.1001460205 | T149: 0.05406112903 | U149: 0.05402291199 | V149: 0.009938872458 | W149: 0.01036337288 | X149: 0.009875585148 | Y149: 0.009875585148 | Z149: 0.009875585148 | AA149: 0.009875585148 | AB149: 0.009875585148 | AC149: 0.009875585148 | AD149: 0.009875585148 | AE149: 0.009875585148 | AF149: 0.009875585148 | AG149: 0.009875585148 | AJ149: Other Sources
B150: 13 | C150: TKN - western system | H150: Melbourne Water | I150: Sewerage | J150: Variable | R150: 0.06234124625 | S150: 0.05989445312 | T150: 0.06428290323 | U150: 0.07111833801 | V150: 0.07632874307 | W150: 0.07990877863 | X150: 0.07614772197 | Y150: 0.07614772197 | Z150: 0.07614772197 | AA150: 0.07614772197 | AB150: 0.07614772197 | AC150: 0.07614772197 | AD150: 0.07614772197 | AE150: 0.07614772197 | AF150: 0.07614772197 | AG150: 0.07614772197
B151: 14 | C151: ITDS - eastern system | H151: Melbourne Water | I151: Sewerage | J151: Variable | R151: 0.02741262763 | S151: 0.04914660156 | T151: 0.02666153226 | U151: 0.02643929775
B152: 15 | C152: ITDS - western system | H152: Melbourne Water | I152: Sewerage | J152: Variable | R152: 0.162675025 | S152: 0.1219665332 | T152: 0.1667879032 | U152: 0.1971514513 | V152: 0.2189227634 | W152: 0.2206006342 | X152: 0.2102169387 | Y152: 0.2102169387 | Z152: 0.2102169387 | AA152: 0.2102169387 | AB152: 0.2102169387 | AC152: 0.2102169387 | AD152: 0.2102169387 | AE152: 0.2102169387 | AF152: 0.2102169387 | AG152: 0.2102169387
B153: 16 | C153: Desalination refund | H153: Melbourne Water | I153: Water | J153: Variable | R153: -4.058396216 | S153: -1.723325195
B154: 17 | C154: FWB rebate | H154: Melbourne Water | I154: Water | J154: Fixed | T154: -51.44452258 | U154: -30.85008942
B155: 18 | C155: GMW storage | H155: Goulburn-Murray Water | I155: Water | J155: Variable | R155: 0.2842936036
B156: 19 | H156: [Source] | I156: [Service] | J156: [Price]
B157: 20 | C157: Storage operator and bulk water service charges - Greater Yarra System - Thompson River | H157: Melbourne Water | I157: Water | J157: Fixed | V157: 75.76219494 | W157: 76.37875328 | X157: 77.14254081 | Y157: 77.52825352 | Z157: 77.91589478 | AA157: 77.91589478 | AB157: 77.91589478 | AC157: 77.91589478 | AD157: 77.91589478 | AE157: 77.91589478 | AF157: 77.91589478 | AG157: 77.91589478
B158: 21 | C158: Storage operator and bulk water service charges - Victorian Desalination Project | H158: Melbourne Water | I158: Water | J158: Fixed | V158: 219.8926352 | W158: 215.334009 | X158: 213.826671 | Y158: 209.3363109 | Z158: 196.7761322 | AA158: 196.7761322 | AB158: 196.7761322 | AC158: 196.7761322 | AD158: 196.7761322 | AE158: 196.7761322 | AF158: 196.7761322 | AG158: 196.7761322
B159: 22 | C159: Victorian Desalination Project Water Order | H159: Melbourne Water | I159: Water | J159: Fixed
B160: 23 | C160: Storage operator and bulk water service charges - North South Pipeline | H160: Melbourne Water | I160: Water | J160: Fixed | V160: 13.17236917 | W160: 12.78125 | X160: 12.43615625 | Y160: 12.336667 | Z160: 12.00357699 | AA160: 12.00357699 | AB160: 12.00357699 | AC160: 12.00357699 | AD160: 12.00357699 | AE160: 12.00357699 | AF160: 12.00357699 | AG160: 12.00357699
B161: 24 | C161: Bulk Sewerage usage charges - Treatment Western System | H161: Melbourne Water | I161: Sewerage | J161: Variable | V161: 21.22609717 | W161: 19.95480379 | X161: 20.05412016 | Y161: 20.14759579 | Z161: 20.2359339 | AA161: 20.30805467 | AB161: 20.38179742 | AC161: 20.45629992 | AD161: 20.53098421 | AE161: 20.60685222 | AF161: 20.6884576 | AG161: 20.77480851
B162: 25 | C162: Bulk Sewerage usage charges - Treatment Eastern System | H162: Melbourne Water | I162: Sewerage | J162: Variable | V162: 3.797538794 | W162: 3.669043661 | X162: 3.682431865 | Y162: 3.694564104 | Z162: 3.707393918 | AA162: 3.717868369 | AB162: 3.728552853 | AC162: 3.739308502 | AD162: 3.750041348 | AE162: 3.760857685 | AF162: 3.772318103 | AG162: 3.784463418
B163: 26 | C163: Bulk Sewerage usage charges - Transfer Western System | H163: Melbourne Water | I163: Sewerage | J163: Variable | V163: 2.903667324 | W163: 2.729756634 | X163: 2.743342813 | Y163: 2.756129995 | Z163: 2.768214381 | AA163: 2.778080284 | AB163: 2.788168068 | AC163: 2.798359785 | AD163: 2.808576369 | AE163: 2.818954882 | AF163: 2.830118251 | AG163: 2.841930794
B164: 27 | C164: Bulk Sewerage usage charges - Transfer Eastern System | H164: Melbourne Water | I164: Sewerage | J164: Variable | V164: 0.276254085 | W164: 0.2669036854 | X164: 0.267877607 | Y164: 0.2687601638 | Z164: 0.2696934655 | AA164: 0.2704554269 | AB164: 0.2712326671 | AC164: 0.2720150841 | AD164: 0.2727958424 | AE164: 0.2735826742 | AF164: 0.2744163595 | AG164: 0.2752998674
B165: 28 | H165: [Source] | I165: [Service] | J165: [Price]
B166: 29 | H166: [Source] | I166: [Service] | J166: [Price]
B167: 30 | H167: [Source] | I167: [Service] | J167: [Price]
B168: 31 | H168: [Source] | I168: [Service] | J168: [Price]
B169: 32 | H169: [Source] | I169: [Service] | J169: [Price]
B170: 33 | H170: [Source] | I170: [Service] | J170: [Price]
B171: 34 | H171: [Source] | I171: [Service] | J171: [Price]
B172: 35 | H172: [Source] | I172: [Service] | J172: [Price]
B173: 36 | H173: [Source] | I173: [Service] | J173: [Price]
B174: 37 | H174: [Source] | I174: [Service] | J174: [Price]
B175: 38 | H175: [Source] | I175: [Service] | J175: [Price]
B176: 39 | H176: [Source] | I176: [Service] | J176: [Price]
B177: 40 | H177: [Source] | I177: [Service] | J177: [Price]

Sheet Capex_FO input
B1: Capital Expenditure - Forecast Input
B2: =+Contents!H7 -> Yarra Valley Water
B3: Go to Table of Contents
C7: Input Summary | F7: FOURTH REG PERIOD | K7: FIFTH REG PERIOD
D9: =+O39 -> 2018-19 | E9: 2019-20 | F9: 2020-21 | G9: 2021-22 | H9: 2022-23 | I9: 2023-24 | J9: 2024-25 | K9: 2025-26 | L9: 2026-27 | M9: 2027-28 | P9: 4th Reg Period | S9: 5th Reg Period
C10: By Cost Driver | P10: Total | Q10: % of Total | S10: Total | T10: % of Total
C11: Net capital expenditure - Renewals | D11: =+SUMIF($F$42:$F$1019,"Renewals",AV$42:AV$1019) -> 91.61908573 | E11: 91.72092824 | F11: 92.97933358 | G11: 94.19911216 | H11: 89.17011694 | I11: 82.92202486 | J11: 90.05127625 | K11: 95.30497249 | L11: 92.0752409 | M11: 81.50064778 | P11: =SUM(D11:H11) -> 459.6885767 | Q11: =IFERROR(P11/$P$16,"-") -> 0.3973563338 | S11: =SUM(I11:M11) -> 441.8541623 | T11: =IFERROR(S11/$S$16,"-") -> 0.3618423795
C12: Net capital expenditure - Growth | D12: =+SUMIF($F$42:$F$1019,"Growth",AV$42:AV$1019) -> 53.31296914 | E12: 55.19226105 | F12: 74.50037153 | G12: 27.39955401 | H12: 14.04788086 | I12: 53.20836149 | J12: 55.58082722 | K12: 27.87763285 | L12: 63.71674536 | M12: 55.18496289 | P12: =SUM(D12:H12) -> 224.4530366 | Q12: =IFERROR(P12/$P$16,"-") -> 0.194017951 | S12: =SUM(I12:M12) -> 255.5685298 | T12: =IFERROR(S12/$S$16,"-") -> 0.2092896997
C13: Net capital expenditure - Improvements / Compliance | D13: =+SUMIF($F$42:$F$1019,"Improvements / Compliance",AV$42:AV$1019) -> 47.7499933 | E13: 51.91169039 | F13: 52.16889464 | G13: 50.33996567 | H13: 49.28935384 | I13: 62.25705091 | J13: 90.20792032 | K13: 88.69928816 | L13: 38.53482088 | M13: 35.35747032 | P13: 251.4598978 | Q13: 0.2173627716 | S13: 315.0565506 | T13: 0.2580055178
C14: Government Contributions | D14: =+Z41 -> 0 | E14: =+AA41 -> 0 | F14: 0 | G14: 0 | H14: 0 | I14: 0 | J14: 0 | K14: 0 | L14: 0 | M14: 0 | P14: 0 | Q14: 0 | S14: 0 | T14: 0
C15: Customer Contributions | D15: =+AK41 -> 46.10788389 | E15: =+AL41 -> 47.01178122 | F15: 43.79367455 | G15: 42.49534142 | H15: 41.85717737 | I15: 42.77604189 | J15: 41.60210721 | K15: 41.00795423 | L15: 41.49207903 | M15: 41.76587982 | P15: 221.2658584 | Q15: 0.1912629436 | S15: 208.6440622 | T15: 0.170862403
C16: Total prescribed capex | D16: =SUM(D11:D15) -> 238.7899321 | E16: 245.8366609 | F16: 263.4422743 | G16: 214.4339732 | H16: 194.364529 | I16: 241.1634792 | J16: 277.442131 | K16: 252.8898477 | L16: 235.8188862 | M16: 213.8089608 | P16: 1156.86737 | Q16: 1 | S16: 1221.123305 | T16: 1
C18: By Capital Type
C19: Top 10 Major Projects | D19: =+SUMIF($H$42:$H$1019,$C$19,O$42:O$1019) -> 42.17232185 | E19: 60.99528995 | F19: 86.09707139 | G19: 28.06005733 | H19: 11.31246379 | I19: 7.235605845 | J19: 4.906118628 | K19: 0 | L19: 0 | M19: 0 | P19: =SUM(D19:H19) -> 228.6372043 | Q19: =IFERROR(P19/$P$23,"-") -> 0.1976347595 | S19: =SUM(I19:M19) -> 12.14172447 | T19: =IFERROR(S19/$S$23,"-") -> 0.009943078168
C20: Significant projects | D20: =+SUMIF($H$42:$H$1019,$C$20,O$42:O$1019) -> -1.525138635e-06 | E20: -1.525138635e-06 | F20: -3.898336419e-06 | G20: -8.61737524e-07 | H20: 0 | I20: 5.514787431 | J20: 0 | K20: 18.38262477 | L20: 45.95656192 | M20: 51.47134935 | P20: =SUM(D20:H20) -> -7.810351213e-06 | Q20: =IFERROR(P20/$P$23,"-") -> -6.751293553e-09 | S20: =SUM(I20:M20) -> 121.3253235 | T20: =IFERROR(S20/$S$23,"-") -> 0.0993555057
C21: Capital Programs / Allocation | D21: =+SUMIF($H$42:$H$1019,$C$21,O$42:O$1019) -> 196.6176117 | E21: 184.8413725 | F21: 177.3452068 | G21: 186.3739168 | H21: 183.0520652 | I21: 228.4130859 | J21: 272.5360124 | K21: 234.507223 | L21: 189.8623242 | M21: 162.3376115 | P21: 928.230173 | Q21: 0.8023652473 | S21: 1087.656257 | T21: 0.8907014161
C22: Other Capital expenditure | D22: =+SUMIF($H$42:$H$1019,$C$22,O$42:O$1019) -> 0 | E22: 0 | F22: 0 | G22: 0 | H22: 0 | I22: 0 | J22: 0 | K22: 0 | L22: 0 | M22: 0 | P22: 0 | Q22: 0 | S22: 0 | T22: 0
C23: Total prescribed capex | D23: =SUM(D19:D22) -> 238.7899321 | E23: =SUM(E19:E22) -> 245.8366609 | F23: 263.4422743 | G23: 214.4339732 | H23: 194.364529 | I23: 241.1634792 | J23: 277.442131 | K23: 252.8898477 | L23: 235.8188862 | M23: 213.8089608 | P23: 1156.86737 | Q23: 1 | S23: 1221.123305 | T23: 1
C25: Difference | D25: =+D23-D16 -> 0 | E25: =+E23-E16 -> 0 | F25: 0 | G25: 0 | H25: 0 | I25: 0 | J25: 0 | K25: 0 | L25: 0 | M25: 0
C26: Test | D26: =+D23=D16 -> TRUE | E26: TRUE | F26: TRUE | G26: TRUE | H26: TRUE | I26: TRUE | J26: TRUE | K26: TRUE | L26: TRUE | M26: FALSE
C29: Total prescribed capex | D29: =+D23 -> 238.7899321 | E29: =+E23 -> 245.8366609 | F29: 263.4422743 | G29: 214.4339732 | H29: 194.364529 | I29: 241.1634792 | J29: 277.442131 | K29: 252.8898477 | L29: 235.8188862 | M29: 213.8089608
C32: Regulatory Depreciation | D32: =+BG41 -> 2.203438491 | E32: =+BH41 -> 6.702308437 | F32: 11.42404961 | G32: 16.55436768 | H32: 20.08197116 | I32: 21.75236606 | J32: 23.44402484 | K32: 25.03268675 | L32: 27.06963226 | M32: 28.98528198
B35: $m, 01/01/18
O36: Gross capital expenditure | Z36: Government contributions | AK36: Customer contributions | AV36: Net capital expenditure | BG36: Regulatory Depreciation | BR36: Accumulated capex | CC36: Gross capital expenditure | CN36: Tax Depreciation
O37: $m, 01/01/18 | Z37: $m, 01/01/18 | AK37: $m, 01/01/18 | AV37: $m, 01/01/18 | BG37: $m, 01/01/18 | BR37: $m, 01/01/18 | CC37: Nominal,$ | CN37: Nominal,$
O39: 2018-19 | P39: 2019-20 | Q39: 2020-21 | R39: 2021-22 | S39: 2022-23 | T39: 2023-24 | U39: 2024-25 | V39: 2025-26 | W39: 2026-27 | X39: 2027-28 | Z39: 2018-19 | AA39: 2019-20 | AB39: 2020-21 | AC39: 2021-22 | AD39: 2022-23 | AE39: 2023-24 | AF39: 2024-25 | AG39: 2025-26 | AH39: 2026-27 | AI39: 2027-28 | AK39: 2018-19 | AL39: 2019-20 | AM39: 2020-21 | AN39: 2021-22 | AO39: 2022-23 | AP39: 2023-24 | AQ39: 2024-25 | AR39: 2025-26 | AS39: 2026-27 | AT39: 2027-28 | AV39: 2018-19 | AW39: 2019-20 | AX39: 2020-21 | AY39: 2021-22 | AZ39: 2022-23 | BA39: 2023-24 | BB39: 2024-25 | BC39: 2025-26 | BD39: 2026-27 | BE39: 2027-28 | BG39: 2018-19 | BH39: 2019-20 | BI39: 2020-21 | BJ39: 2021-22 | BK39: 2022-23 | BL39: 2023-24 | BM39: 2024-25 | BN39: 2025-26 | BO39: 2026-27 | BP39: 2027-28 | BR39: 2018-19 | BS39: 2019-20 | BT39: 2020-21 | BU39: 2021-22 | BV39: 2022-23 | BW39: 2023-24 | BX39: 2024-25 | BY39: 2025-26 | BZ39: 2026-27 | CA39: 2027-28 | CC39: 2018-19 | CD39: 2019-20 | CE39: 2020-21 | CF39: 2021-22 | CG39: 2022-23 | CH39: 2023-24 | CI39: 2024-25 | CJ39: 2025-26 | CK39: 2026-27 | CL39: 2027-28 | CN39: 2018-19 | CO39: 2019-20 | CP39: 2020-21 | CQ39: 2021-22 | CR39: 2022-23 | CS39: 2023-24 | CT39: 2024-25 | CU39: 2025-26 | CV39: 2026-27 | CW39: 2027-28
BG40: 1 | BH40: 2 | BI40: 3 | BJ40: 4 | BK40: 5 | BL40: 6 | BM40: 7 | BN40: 8 | BO40: 9 | BP40: 10 | CN40: 1 | CO40: 2 | CP40: 3 | CQ40: 4 | CR40: 5 | CS40: 6 | CT40: 7 | CU40: 8 | CV40: 9 | CW40: 10
C41: Project/program Name | E41: Service | F41: Major cost driver | G41: Asset category | H41: Capital type | J41: Depreciation Method | K41: Year asset operational | L41: Asset life (Regulatory) | M41: Asset life (Tax) | O41: =SUM(O42:O1019) -> 238.7899321 | P41: 245.8366609 | Q41: 263.4422743 | R41: 214.4339732 | S41: 194.364529 | T41: 241.1634792 | U41: 277.442131 | V41: 252.8898477 | W41: 235.8188862 | X41: 213.8089608 | Z41: =SUM(Z42:Z1019) -> 0 | AA41: 0 | AB41: 0 | AC41: 0 | AD41: 0 | AE41: 0 | AF41: 0 | AG41: 0 | AH41: 0 | AI41: 0 | AK41: =SUM(AK42:AK1019) -> 46.10788389 | AL41: 47.01178122 | AM41: 43.79367455 | AN41: 42.49534142 | AO41: 41.85717737 | AP41: 42.77604189 | AQ41: 41.60210721 | AR41: 41.00795423 | AS41: 41.49207903 | AT41: 41.76587982 | AV41: =SUM(AV42:AV1019) -> 192.6820482 | AW41: 198.8248797 | AX41: 219.6485997 | AY41: 171.9386318 | AZ41: 152.5073516 | BA41: 198.3874373 | BB41: 235.8400238 | BC41: 211.8818935 | BD41: 194.3268071 | BE41: 172.043081 | BG41: =SUM(BG42:BG1019) -> 2.203438491 | BH41: 6.702308437 | BI41: 11.42404961 | BJ41: 16.55436768 | BK41: 20.08197116 | BL41: 21.75236606 | BM41: 23.44402484 | BN41: 25.03268675 | BO41: 27.06963226 | BP41: 28.98528198 | BR41: =SUM(BR42:BR1019) -> 165.930707 | BS41: 197.4916533 | BT41: 175.7345487 | BU41: 243.9372503 | BV41: 152.5073516 | BW41: 198.3874373 | BX41: 235.8400238 | BY41: 211.8818935 | BZ41: 194.3268071 | CA41: 172.043081 | CC41: =SUM(CC42:CC1019) -> 244.2821005 | CD41: 257.2751949 | CE41: 282.0410794 | CF41: 234.8530083 | CG41: 217.7685597 | CH41: 276.4173779 | CI41: 325.3133213 | CJ41: 303.3447372 | CK41: 289.3738532 | CL41: 268.3998321 | CN41: =SUM(CN42:CN1019) -> 42.76768789 | CO41: 49.73333639 | CP41: 57.15526921 | CQ41: 64.99980546 | CR41: 71.0085542 | CS41: 67.10680971 | CT41: 71.78268059 | CU41: 76.2596323 | CV41: 81.39547955 | CW41: 86.61245215
C42: Lockerbie Main Sewer | E42: Sewerage | F42: Growth | G42: Pipelines/network | H42: Top 10 Major Projects | J42: Straight line | K42: 2021-22 | L42: 1000000 | M42: 100 | O42: 0.5106285 | P42: 15.318855 | Q42: 56.169135 | R42: 12.8678382 | S42: 0 | T42: 0 | U42: 0 | V42: 0 | W42: 0 | X42: 0 | AV42: =+O42-Z42-AK42 -> 0.5106285 | AW42: =+P42-AA42-AL42 -> 15.318855 | AX42: 56.169135 | AY42: 12.8678382 | AZ42: 0 | BA42: 0 | BB42: 0 | BC42: 0 | BD42: 0 | BE42: 0 | BG42: =IF($L42=0,0, IF($L42<=0.5,BR42, IF($J42="straight line", IF((LEFT(BG$39,4)*1)-INT($L42)<LEFT($BG$39,4)*1,0,((OFFSET(BR42,0,-INT($L42+0.5),1,1))/$L42)*(IF($L42-INT($L42)>0.5,$L42-0.5-INT($L42),IF($L42-INT($L42)<=0.5,$L42-0.5-INT($L42)+1,0)))) +BR42/$L42*0.5, IF($J42="Declining Balance",-$BG$38,0)))) -> 0 | BH42: =IF($L42=0,0, IF($L42<=0.5,BS42, IF(AND($J42="straight line",$L42<1.51),(BR42-((BR42/$L42)*0.5))+BS42/$L42*0.5, IF($J42="straight line", IF((LEFT(BH$39,4)*1)-INT($L42)<LEFT($BG$39,4)*1,0,((OFFSET(BS42,0,-INT($L42+0.5),1,1))/$L42)*(IF($L42-INT($L42)>0.5,$L42-0.5-INT($L42),IF($L42-INT($L42)<=0.5,$L42-0.5-INT($L42)+1,0)))) +BS42/$L42*0.5 +SUM(OFFSET(BS42,0,MAX(-INT($L42+(0.5-(10^-12))),-BH$40)+1,1,MIN(INT($L42+(0.5-(10^-12))),BH$40)-1))*1/$L42, IF($J42="Declining Balance",-$BG$38,0))))) -> 0 | BI42: =IF($L42=0,0, IF($L42<=0.5,BT42, IF(AND($J42="straight line",$L42<1.51),(BS42-((BS42/$L42)*0.5))+BT42/$L42*0.5, IF($J42="straight line", IF((LEFT(BI$39,4)*1)-INT($L42)<LEFT($BG$39,4)*1,0,((OFFSET(BT42,0,-INT($L42+0.5),1,1))/$L42)*(IF($L42-INT($L42)>0.5,$L42-0.5-INT($L42),IF($L42-INT($L42)<=0.5,$L42-0.5-INT($L42)+1,0)))) +BT42/$L42*0.5 +SUM(OFFSET(BT42,0,MAX(-INT($L42+(0.5-(10^-12))),-BI$40)+1,1,MIN(INT($L42+(0.5-(10^-12))),BI$40)-1))*1/$L42, IF($J42="Declining Balance",-$BG$38,0))))) -> 0 | BJ42: 4.243322835e-05 | BK42: 8.48664567e-05 | BL42: 8.48664567e-05 | BM42: 8.48664567e-05 | BN42: 8.48664567e-05 | BO42: 8.48664567e-05 | BP42: 8.48664567e-05 | BR42: =+IF($K42="Ongoing",AV42,IF(RIGHT($K42,2)=RIGHT(BR$39,2),SUM($AV42:AV42),0)+IF(RIGHT(BR$39,2)>RIGHT($K42,2),AV42,0)) -> 0 | BS42: =+IF($K42="Ongoing",AW42,IF(RIGHT($K42,2)=RIGHT(BS$39,2),SUM($AV42:AW42),0)+IF(RIGHT(BS$39,2)>RIGHT($K42,2),AW42,0)) -> 0 | BT42: =+IF($K42="Ongoing",AX42,IF(RIGHT($K42,2)=RIGHT(BT$39,2),SUM($AV42:AX42),0)+IF(RIGHT(BT$39,2)>RIGHT($K42,2),AX42,0)) -> 0 | BU42: =+IF($K42="Ongoing",AY42,IF(RIGHT($K42,2)=RIGHT(BU$39,2),SUM($AV42:AY42),0)+IF(RIGHT(BU$39,2)>RIGHT($K42,2),AY42,0)) -> 84.8664567 | BV42: =+IF($K42="Ongoing",AZ42,IF(RIGHT($K42,2)=RIGHT(BV$39,2),SUM($AV42:AZ42),0)+IF(RIGHT(BV$39,2)>RIGHT($K42,2),AZ42,0)) -> 0 | BW42: =+IF($K42="Ongoing",BA42,IF(RIGHT($K42,2)=RIGHT(BW$39,2),SUM($AV42:BA42),0)+IF(RIGHT(BW$39,2)>RIGHT($K42,2),BA42,0)) -> 0 | BX42: =+IF($K42="Ongoing",BB42,IF(RIGHT($K42,2)=RIGHT(BX$39,2),SUM($AV42:BB42),0)+IF(RIGHT(BX$39,2)>RIGHT($K42,2),BB42,0)) -> 0 | BY42: =+IF($K42="Ongoing",BC42,IF(RIGHT($K42,2)=RIGHT(BY$39,2),SUM($AV42:BC42),0)+IF(RIGHT(BY$39,2)>RIGHT($K42,2),BC42,0)) -> 0 | BZ42: =+IF($K42="Ongoing",BD42,IF(RIGHT($K42,2)=RIGHT(BZ$39,2),SUM($AV42:BD42),0)+IF(RIGHT(BZ$39,2)>RIGHT($K42,2),BD42,0)) -> 0 | CA42: =+IF($K42="Ongoing",BE42,IF(RIGHT($K42,2)=RIGHT(CA$39,2),SUM($AV42:BE42),0)+IF(RIGHT(CA$39,2)>RIGHT($K42,2),BE42,0)) -> 0 | CC42: =+O42*KeyAssumptionsPriceControl_FO!X$15 -> 0.5223729555 | CD42: =+P42*KeyAssumptionsPriceControl_FO!Y$15 -> 16.031626 | CE42: =+Q42*KeyAssumptionsPriceControl_FO!Z$15 -> 60.13462914 | CF42: =+R42*KeyAssumptionsPriceControl_FO!AA$15 -> 14.09315169 | CG42: =+S42*KeyAssumptionsPriceControl_FO!AB$15 -> 0 | CH42: =+T42*KeyAssumptionsPriceControl_FO!AC$15 -> 0 | CI42: =+U42*KeyAssumptionsPriceControl_FO!AD$15 -> 0 | CJ42: =+V42*KeyAssumptionsPriceControl_FO!AE$15 -> 0 | CK42: =+W42*KeyAssumptionsPriceControl_FO!AF$15 -> 0 | CL42: =+X42*KeyAssumptionsPriceControl_FO!AG$15 -> 0 | CN42: =IF($M42=0,0, IF($M42<=0.5,CC42, IF($J42="straight line", IF((LEFT(CN$39,4)*1)-INT($M42)<LEFT($CN$39,4)*1,0,((OFFSET(CC42,0,-INT($M42+0.5),1,1))/$M42)*(IF($M42-INT($M42)>0.5,$M42-0.5-INT($M42),IF($M42-INT($M42)<=0.5,$M42-0.5-INT($M42)+1,0)))) +CC42/$M42*0.5, IF($J42="Declining Balance",-$CN$38,0)))) -> 0.002611864777 | CO42: =IF($M42=0,0, IF($M42<=0.5,CD42, IF(AND($J42="straight line",$M42<1.51),(CC42-((CC42/$M42)*0.5))+CD42/$M42*0.5, IF($J42="straight line", IF((LEFT(CO$39,4)*1)-INT($M42)<LEFT($CN$39,4)*1,0,((OFFSET(CD42,0,-INT($M42+0.5),1,1))/$M42)*(IF($M42-INT($M42)>0.5,$M42-0.5-INT($M42),IF($M42-INT($M42)<=0.5,$M42-0.5-INT($M42)+1,0)))) +CD42/$M42*0.5 +SUM(OFFSET(CD42,0,MAX(-INT($M42+(0.5-(10^-12))),-CO$40)+1,1,MIN(INT($M42+(0.5-(10^-12))),CO$40)-1))*1/$M42, IF($J42="Declining Balance",-$CN$38,0))))) -> 0.08538185958 | CP42: =IF($M42=0,0, IF($M42<=0.5,CE42, IF(AND($J42="straight line",$M42<1.51),(CD42-((CD42/$M42)*0.5))+CE42/$M42*0.5, IF($J42="straight line", IF((LEFT(CP$39,4)*1)-INT($M42)<LEFT($CN$39,4)*1,0,((OFFSET(CE42,0,-INT($M42+0.5),1,1))/$M42)*(IF($M42-INT($M42)>0.5,$M42-0.5-INT($M42),IF($M42-INT($M42)<=0.5,$M42-0.5-INT($M42)+1,0)))) +CE42/$M42*0.5 +SUM(OFFSET(CE42,0,MAX(-INT($M42+(0.5-(10^-12))),-CP$40)+1,1,MIN(INT($M42+(0.5-(10^-12))),CP$40)-1))*1/$M42, IF($J42="Declining Balance",-$CN$38,0))))) -> 0.4662131353 | CQ42: 0.8373520394 | CR42: 0.9078177979 | CS42: 0.9078177979 | CT42: 0.9078177979 | CU42: 0.9078177979 | CV42: 0.9078177979 | CW42: 0.9078177979
C43: CSA032 Monbulk (Central) | E43: Sewerage | F43: Improvements / Compliance | G43: Pipelines/network | H43: Top 10 Major Projects | J43: Straight line | K43: 2020-21 | L43: 1000000 | M43: 50 | O43: 4.085028 | P43: 8.170056 | Q43: 8.029122534 | R43: 3.732694335 | S43: 4.479233202 | T43: 3.732694335 | U43: 2.986155468 | V43: 0 | W43: 0 | X43: 0 | AV43: =+O43-Z43-AK43 -> 4.085028 | AW43: 8.170056 | AX43: 8.029122534 | AY43: 3.732694335 | AZ43: 4.479233202 | BA43: 3.732694335 | BB43: 2.986155468 | BC43: 0 | BD43: 0 | BE43: 0 | BG43: =IF($L43=0,0, IF($L43<=0.5,BR43, IF($J43="straight line", IF((LEFT(BG$39,4)*1)-INT($L43)<LEFT($BG$39,4)*1,0,((OFFSET(BR43,0,-INT($L43+0.5),1,1))/$L43)*(IF($L43-INT($L43)>0.5,$L43-0.5-INT($L43),IF($L43-INT($L43)<=0.5,$L43-0.5-INT($L43)+1,0)))) +BR43/$L43*0.5, IF($J43="Declining Balance",-$BG$38,0)))) -> 0 | BH43: =IF($L43=0,0, IF($L43<=0.5,BS43, IF(AND($J43="straight line",$L43<1.51),(BR43-((BR43/$L43)*0.5))+BS43/$L43*0.5, IF($J43="straight line", IF((LEFT(BH$39,4)*1)-INT($L43)<LEFT($BG$39,4)*1,0,((OFFSET(BS43,0,-INT($L43+0.5),1,1))/$L43)*(IF($L43-INT($L43)>0.5,$L43-0.5-INT($L43),IF($L43-INT($L43)<=0.5,$L43-0.5-INT($L43)+1,0)))) +BS43/$L43*0.5 +SUM(OFFSET(BS43,0,MAX(-INT($L43+(0.5-(10^-12))),-BH$40)+1,1,MIN(INT($L43+(0.5-(10^-12))),BH$40)-1))*1/$L43, IF($J43="Declining Balance",-$BG$38,0))))) -> 0 | BI43: 1.014210327e-05 | BJ43: 2.21505537e-05 | BK43: 2.625651747e-05 | BL43: 3.036248124e-05 | BM43: 3.372190614e-05 | BN43: 3.521498387e-05 | BO43: 3.521498387e-05 | BP43: 3.521498387e-05 | BR43: =+IF($K43="Ongoing",AV43,IF(RIGHT($K43,2)=RIGHT(BR$39,2),SUM($AV43:AV43),0)+IF(RIGHT(BR$39,2)>RIGHT($K43,2),AV43,0)) -> 0 | BS43: =+IF($K43="Ongoing",AW43,IF(RIGHT($K43,2)=RIGHT(BS$39,2),SUM($AV43:AW43),0)+IF(RIGHT(BS$39,2)>RIGHT($K43,2),AW43,0)) -> 0 | BT43: =+IF($K43="Ongoing",AX43,IF(RIGHT($K43,2)=RIGHT(BT$39,2),SUM($AV43:AX43),0)+IF(RIGHT(BT$39,2)>RIGHT($K43,2),AX43,0)) -> 20.28420653 | BU43: =+IF($K43="Ongoing",AY43,IF(RIGHT($K43,2)=RIGHT(BU$39,2),SUM($AV43:AY43),0)+IF(RIGHT(BU$39,2)>RIGHT($K43,2),AY43,0)) -> 3.732694335 | BV43: =+IF($K43="Ongoing",AZ43,IF(RIGHT($K43,2)=RIGHT(BV$39,2),SUM($AV43:AZ43),0)+IF(RIGHT(BV$39,2)>RIGHT($K43,2),AZ43,0)) -> 4.479233202 | BW43: =+IF($K43="Ongoing",BA43,IF(RIGHT($K43,2)=RIGHT(BW$39,2),SUM($AV43:BA43),0)+IF(RIGHT(BW$39,2)>RIGHT($K43,2),BA43,0)) -> 3.732694335 | BX43: =+IF($K43="Ongoing",BB43,IF(RIGHT($K43,2)=RIGHT(BX$39,2),SUM($AV43:BB43),0)+IF(RIGHT(BX$39,2)>RIGHT($K43,2),BB43,0)) -> 2.986155468 | BY43: =+IF($K43="Ongoing",BC43,IF(RIGHT($K43,2)=RIGHT(BY$39,2),SUM($AV43:BC43),0)+IF(RIGHT(BY$39,2)>RIGHT($K43,2),BC43,0)) -> 0 | BZ43: =+IF($K43="Ongoing",BD43,IF(RIGHT($K43,2)=RIGHT(BZ$39,2),SUM($AV43:BD43),0)+IF(RIGHT(BZ$39,2)>RIGHT($K43,2),BD43,0)) -> 0 | CA43: =+IF($K43="Ongoing",BE43,IF(RIGHT($K43,2)=RIGHT(CA$39,2),SUM($AV43:BE43),0)+IF(RIGHT(CA$39,2)>RIGHT($K43,2),BE43,0)) -> 0 | CC43: =+O43*KeyAssumptionsPriceControl_FO!X$15 -> 4.178983644 | CD43: =+P43*KeyAssumptionsPriceControl_FO!Y$15 -> 8.550200536 | CE43: =+Q43*KeyAssumptionsPriceControl_FO!Z$15 -> 8.595971897 | CF43: =+R43*KeyAssumptionsPriceControl_FO!AA$15 -> 4.088132493 | CG43: =+S43*KeyAssumptionsPriceControl_FO!AB$15 -> 5.018591448 | CH43: =+T43*KeyAssumptionsPriceControl_FO!AC$15 -> 4.27834921 | CI43: =+U43*KeyAssumptionsPriceControl_FO!AD$15 -> 3.501400993 | CJ43: =+V43*KeyAssumptionsPriceControl_FO!AE$15 -> 0 | CK43: =+W43*KeyAssumptionsPriceControl_FO!AF$15 -> 0 | CL43: =+X43*KeyAssumptionsPriceControl_FO!AG$15 -> 0 | CN43: =IF($M43=0,0, IF($M43<=0.5,CC43, IF($J43="straight line", IF((LEFT(CN$39,4)*1)-INT($M43)<LEFT($CN$39,4)*1,0,((OFFSET(CC43,0,-INT($M43+0.5),1,1))/$M43)*(IF($M43-INT($M43)>0.5,$M43-0.5-INT($M43),IF($M43-INT($M43)<=0.5,$M43-0.5-INT($M43)+1,0)))) +CC43/$M43*0.5, IF($J43="Declining Balance",-$CN$38,0)))) -> 0.04178983644 | CO43: =IF($M43=0,0, IF($M43<=0.5,CD43, IF(AND($J43="straight line",$M43<1.51),(CC43-((CC43/$M43)*0.5))+CD43/$M43*0.5, IF($J43="straight line", IF((LEFT(CO$39,4)*1)-INT($M43)<LEFT($CN$39,4)*1,0,((OFFSET(CD43,0,-INT($M43+0.5),1,1))/$M43)*(IF($M43-INT($M43)>0.5,$M43-0.5-INT($M43),IF($M43-INT($M43)<=0.5,$M43-0.5-INT($M43)+1,0)))) +CD43/$M43*0.5 +SUM(OFFSET(CD43,0,MAX(-INT($M43+(0.5-(10^-12))),-CO$40)+1,1,MIN(INT($M43+(0.5-(10^-12))),CO$40)-1))*1/$M43, IF($J43="Declining Balance",-$CN$38,0))))) -> 0.1690816782 | CP43: 0.3405434026 | CQ43: 0.4673844465 | CR43: 0.5584516859 | CS43: 0.6514210924 | CT43: 0.7292185945 | CU43: 0.7642326044 | CV43: 0.7642326044 | CW43: 0.7642326044
C44: Doreen Pressure Main SPS651 to ELT49 | E44: Sewerage | F44: Growth | G44: Pipelines/network | H44: Top 10 Major Projects | J44: Straight line | K44: Ongoing | L44: 100 | M44: 100 | O44: 3.063771 | P44: 14.297598 | Q44: 10.4168214 | R44: 0 | S44: 0 | T44: 0 | U44: 0 | V44: 0 | W44: 0 | X44: 0 | AV44: 3.063771 | AW44: 14.297598 | AX44: 10.4168214 | AY44: 0 | AZ44: 0 | BA44: 0 | BB44: 0 | BC44: 0 | BD44: 0 | BE44: 0 | BG44: 0.015318855 | BH44: 0.1021257 | BI44: 0.225697797 | BJ44: 0.277781904 | BK44: 0.277781904 | BL44: 0.277781904 | BM44: 0.277781904 | BN44: 0.277781904 | BO44: 0.277781904 | BP44: 0.277781904 | BR44: =+IF($K44="Ongoing",AV44,IF(RIGHT($K44,2)=RIGHT(BR$39,2),SUM($AV44:AV44),0)+IF(RIGHT(BR$39,2)>RIGHT($K44,2),AV44,0)) -> 3.063771 | BS44: =+IF($K44="Ongoing",AW44,IF(RIGHT($K44,2)=RIGHT(BS$39,2),SUM($AV44:AW44),0)+IF(RIGHT(BS$39,2)>RIGHT($K44,2),AW44,0)) -> 14.297598 | BT44: =+IF($K44="Ongoing",AX44,IF(RIGHT($K44,2)=RIGHT(BT$39,2),SUM($AV44:AX44),0)+IF(RIGHT(BT$39,2)>RIGHT($K44,2),AX44,0)) -> 10.4168214 | BU44: =+IF($K44="Ongoing",AY44,IF(RIGHT($K44,2)=RIGHT(BU$39,2),SUM($AV44:AY44),0)+IF(RIGHT(BU$39,2)>RIGHT($K44,2),AY44,0)) -> 0 | BV44: =+IF($K44="Ongoing",AZ44,IF(RIGHT($K44,2)=RIGHT(BV$39,2),SUM($AV44:AZ44),0)+IF(RIGHT(BV$39,2)>RIGHT($K44,2),AZ44,0)) -> 0 | BW44: =+IF($K44="Ongoing",BA44,IF(RIGHT($K44,2)=RIGHT(BW$39,2),SUM($AV44:BA44),0)+IF(RIGHT(BW$39,2)>RIGHT($K44,2),BA44,0)) -> 0 | BX44: =+IF($K44="Ongoing",BB44,IF(RIGHT($K44,2)=RIGHT(BX$39,2),SUM($AV44:BB44),0)+IF(RIGHT(BX$39,2)>RIGHT($K44,2),BB44,0)) -> 0 | BY44: =+IF($K44="Ongoing",BC44,IF(RIGHT($K44,2)=RIGHT(BY$39,2),SUM($AV44:BC44),0)+IF(RIGHT(BY$39,2)>RIGHT($K44,2),BC44,0)) -> 0 | BZ44: =+IF($K44="Ongoing",BD44,IF(RIGHT($K44,2)=RIGHT(BZ$39,2),SUM($AV44:BD44),0)+IF(RIGHT(BZ$39,2)>RIGHT($K44,2),BD44,0)) -> 0 | CA44: =+IF($K44="Ongoing",BE44,IF(RIGHT($K44,2)=RIGHT(CA$39,2),SUM($AV44:BE44),0)+IF(RIGHT(CA$39,2)>RIGHT($K44,2),BE44,0)) -> 0 | CC44: =+O44*KeyAssumptionsPriceControl_FO!X$15 -> 3.134237733 | CD44: =+P44*KeyAssumptionsPriceControl_FO!Y$15 -> 14.96285094 | CE44: =+Q44*KeyAssumptionsPriceControl_FO!Z$15 -> 11.15224031 | CF44: =+R44*KeyAssumptionsPriceControl_FO!AA$15 -> 0 | CG44: =+S44*KeyAssumptionsPriceControl_FO!AB$15 -> 0 | CH44: =+T44*KeyAssumptionsPriceControl_FO!AC$15 -> 0 | CI44: =+U44*KeyAssumptionsPriceControl_FO!AD$15 -> 0 | CJ44: =+V44*KeyAssumptionsPriceControl_FO!AE$15 -> 0 | CK44: =+W44*KeyAssumptionsPriceControl_FO!AF$15 -> 0 | CL44: =+X44*KeyAssumptionsPriceControl_FO!AG$15 -> 0 | CN44: 0.01567118866 | CO44: 0.106156632 | CP44: 0.2367320883 | CQ44: 0.2924932898 | CR44: 0.2924932898 | CS44: 0.2924932898 | CT44: 0.2924932898 | CU44: 0.2924932898 | CV44: 0.2924932898 | CW44: 0.2924932898
C45: Epping Branch Sewer To MCM - Tunnel Extension | E45: Sewerage | F45: Growth | G45: Pipelines/network | H45: Top 10 Major Projects | J45: Straight line | K45: 2019-20 | L45: 1000000 | M45: 100 | O45: 10.21257 | P45: 1.021257 | Q45: 0 | R45: 0 | S45: 0 | T45: 0 | U45: 0 | V45: 0 | W45: 0 | X45: 0 | AV45: 10.21257 | AW45: 1.021257 | AX45: 0 | AY45: 0 | AZ45: 0 | BA45: 0 | BB45: 0 | BC45: 0 | BD45: 0 | BE45: 0 | BG45: 0 | BH45: 5.6169135e-06 | BI45: 1.1233827e-05 | BJ45: 1.1233827e-05 | BK45: 1.1233827e-05 | BL45: 1.1233827e-05 | BM45: 1.1233827e-05 | BN45: 1.1233827e-05 | BO45: 1.1233827e-05 | BP45: 1.1233827e-05 | BR45: =+IF($K45="Ongoing",AV45,IF(RIGHT($K45,2)=RIGHT(BR$39,2),SUM($AV45:AV45),0)+IF(RIGHT(BR$39,2)>RIGHT($K45,2),AV45,0)) -> 0 | BS45: =+IF($K45="Ongoing",AW45,IF(RIGHT($K45,2)=RIGHT(BS$39,2),SUM($AV45:AW45),0)+IF(RIGHT(BS$39,2)>RIGHT($K45,2),AW45,0)) -> 11.233827 | BT45: =+IF($K45="Ongoing",AX45,IF(RIGHT($K45,2)=RIGHT(BT$39,2),SUM($AV45:AX45),0)+IF(RIGHT(BT$39,2)>RIGHT($K45,2),AX45,0)) -> 0 | BU45: =+IF($K45="Ongoing",AY45,IF(RIGHT($K45,2)=RIGHT(BU$39,2),SUM($AV45:AY45),0)+IF(RIGHT(BU$39,2)>RIGHT($K45,2),AY45,0)) -> 0 | BV45: =+IF($K45="Ongoing",AZ45,IF(RIGHT($K45,2)=RIGHT(BV$39,2),SUM($AV45:AZ45),0)+IF(RIGHT(BV$39,2)>RIGHT($K45,2),AZ45,0)) -> 0 | BW45: =+IF($K45="Ongoing",BA45,IF(RIGHT($K45,2)=RIGHT(BW$39,2),SUM($AV45:BA45),0)+IF(RIGHT(BW$39,2)>RIGHT($K45,2),BA45,0)) -> 0 | BX45: =+IF($K45="Ongoing",BB45,IF(RIGHT($K45,2)=RIGHT(BX$39,2),SUM($AV45:BB45),0)+IF(RIGHT(BX$39,2)>RIGHT($K45,2),BB45,0)) -> 0 | BY45: =+IF($K45="Ongoing",BC45,IF(RIGHT($K45,2)=RIGHT(BY$39,2),SUM($AV45:BC45),0)+IF(RIGHT(BY$39,2)>RIGHT($K45,2),BC45,0)) -> 0 | BZ45: =+IF($K45="Ongoing",BD45,IF(RIGHT($K45,2)=RIGHT(BZ$39,2),SUM($AV45:BD45),0)+IF(RIGHT(BZ$39,2)>RIGHT($K45,2),BD45,0)) -> 0 | CA45: =+IF($K45="Ongoing",BE45,IF(RIGHT($K45,2)=RIGHT(CA$39,2),SUM($AV45:BE45),0)+IF(RIGHT(CA$39,2)>RIGHT($K45,2),BE45,0)) -> 0 | CC45: =+O45*KeyAssumptionsPriceControl_FO!X$15 -> 10.44745911 | CD45: =+P45*KeyAssumptionsPriceControl_FO!Y$15 -> 1.068775067 | CE45: =+Q45*KeyAssumptionsPriceControl_FO!Z$15 -> 0 | CF45: =+R45*KeyAssumptionsPriceControl_FO!AA$15 -> 0 | CG45: =+S45*KeyAssumptionsPriceControl_FO!AB$15 -> 0 | CH45: =+T45*KeyAssumptionsPriceControl_FO!AC$15 -> 0 | CI45: =+U45*KeyAssumptionsPriceControl_FO!AD$15 -> 0 | CJ45: =+V45*KeyAssumptionsPriceControl_FO!AE$15 -> 0 | CK45: =+W45*KeyAssumptionsPriceControl_FO!AF$15 -> 0 | CL45: =+X45*KeyAssumptionsPriceControl_FO!AG$15 -> 0 | CN45: 0.05223729555 | CO45: 0.1098184664 | CP45: 0.1151623418 | CQ45: 0.1151623418 | CR45: 0.1151623418 | CS45: 0.1151623418 | CT45: 0.1151623418 | CU45: 0.1151623418 | CV45: 0.1151623418 | CW45: 0.1151623418
C46: Kalkallo Creek BS - Stage 1E | E46: Sewerage | F46: Growth | G46: Pipelines/network | H46: Top 10 Major Projects | J46: Straight line | K46: 2018-19 | L46: 1000000 | M46: 100 | O46: 11.5402041 | P46: 0 | Q46: 0 | R46: 0 | S46: 0 | T46: 0 | U46: 0 | V46: 0 | W46: 0 | X46: 0 | AV46: 11.5402041 | AW46: 0 | AX46: 0 | AY46: 0 | AZ46: 0 | BA46: 0 | BB46: 0 | BC46: 0 | BD46: 0 | BE46: 0 | BG46: 5.77010205e-06 | BH46: 1.15402041e-05 | BI46: 1.15402041e-05 | BJ46: 1.15402041e-05 | BK46: 1.15402041e-05 | BL46: 1.15402041e-05 | BM46: 1.15402041e-05 | BN46: 1.15402041e-05 | BO46: 1.15402041e-05 | BP46: 1.15402041e-05 | BR46: =+IF($K46="Ongoing",AV46,IF(RIGHT($K46,2)=RIGHT(BR$39,2),SUM($AV46:AV46),0)+IF(RIGHT(BR$39,2)>RIGHT($K46,2),AV46,0)) -> 11.5402041 | BS46: =+IF($K46="Ongoing",AW46,IF(RIGHT($K46,2)=RIGHT(BS$39,2),SUM($AV46:AW46),0)+IF(RIGHT(BS$39,2)>RIGHT($K46,2),AW46,0)) -> 0 | BT46: =+IF($K46="Ongoing",AX46,IF(RIGHT($K46,2)=RIGHT(BT$39,2),SUM($AV46:AX46),0)+IF(RIGHT(BT$39,2)>RIGHT($K46,2),AX46,0)) -> 0 | BU46: =+IF($K46="Ongoing",AY46,IF(RIGHT($K46,2)=RIGHT(BU$39,2),SUM($AV46:AY46),0)+IF(RIGHT(BU$39,2)>RIGHT($K46,2),AY46,0)) -> 0 | BV46: =+IF($K46="Ongoing",AZ46,IF(RIGHT($K46,2)=RIGHT(BV$39,2),SUM($AV46:AZ46),0)+IF(RIGHT(BV$39,2)>RIGHT($K46,2),AZ46,0)) -> 0 | BW46: =+IF($K46="Ongoing",BA46,IF(RIGHT($K46,2)=RIGHT(BW$39,2),SUM($AV46:BA46),0)+IF(RIGHT(BW$39,2)>RIGHT($K46,2),BA46,0)) -> 0 | BX46: =+IF($K46="Ongoing",BB46,IF(RIGHT($K46,2)=RIGHT(BX$39,2),SUM($AV46:BB46),0)+IF(RIGHT(BX$39,2)>RIGHT($K46,2),BB46,0)) -> 0 | BY46: =+IF($K46="Ongoing",BC46,IF(RIGHT($K46,2)=RIGHT(BY$39,2),SUM($AV46:BC46),0)+IF(RIGHT(BY$39,2)>RIGHT($K46,2),BC46,0)) -> 0 | BZ46: =+IF($K46="Ongoing",BD46,IF(RIGHT($K46,2)=RIGHT(BZ$39,2),SUM($AV46:BD46),0)+IF(RIGHT(BZ$39,2)>RIGHT($K46,2),BD46,0)) -> 0 | CA46: =+IF($K46="Ongoing",BE46,IF(RIGHT($K46,2)=RIGHT(CA$39,2),SUM($AV46:BE46),0)+IF(RIGHT(CA$39,2)>RIGHT($K46,2),BE46,0)) -> 0 | CC46: =+O46*KeyAssumptionsPriceControl_FO!X$15 -> 11.80562879 | CD46: =+P46*KeyAssumptionsPriceControl_FO!Y$15 -> 0 | CE46: =+Q46*KeyAssumptionsPriceControl_FO!Z$15 -> 0 | CF46: =+R46*KeyAssumptionsPriceControl_FO!AA$15 -> 0 | CG46: =+S46*KeyAssumptionsPriceControl_FO!AB$15 -> 0 | CH46: =+T46*KeyAssumptionsPriceControl_FO!AC$15 -> 0 | CI46: =+U46*KeyAssumptionsPriceControl_FO!AD$15 -> 0 | CJ46: =+V46*KeyAssumptionsPriceControl_FO!AE$15 -> 0 | CK46: =+W46*KeyAssumptionsPriceControl_FO!AF$15 -> 0 | CL46: =+X46*KeyAssumptionsPriceControl_FO!AG$15 -> 0 | CN46: 0.05902814397 | CO46: 0.1180562879 | CP46: 0.1180562879 | CQ46: 0.1180562879 | CR46: 0.1180562879 | CS46: 0.1180562879 | CT46: 0.1180562879 | CU46: 0.1180562879 | CV46: 0.1180562879 | CW46: 0.1180562879
C47: (DW) WPS610 Kalkallo PS Augmentation (Mt Ridley to Bald Hill) | E47: Water | F47: Growth | G47: Pipelines/network | H47: Top 10 Major Projects | J47: Straight line | K47: 2019-20 | L47: 1000000 | M47: 50 | O47: 11.265 | P47: 9.575 | Q47: 0 | R47: 0 | S47: 0 | T47: 0 | U47: 0 | V47: 0 | W47: 0 | X47: 0 | AV47: 11.265 | AW47: 9.575 | AX47: 0 | AY47: 0 | AZ47: 0 | BA47: 0 | BB47: 0 | BC47: 0 | BD47: 0 | BE47: 0 | BG47: 0 | BH47: 1.042e-05 | BI47: 2.084e-05 | BJ47: 2.084e-05 | BK47: 2.084e-05 | BL47: 2.084e-05 | BM47: 2.084e-05 | BN47: 2.084e-05 | BO47: 2.084e-05 | BP47: 2.084e-05 | BR47: =+IF($K47="Ongoing",AV47,IF(RIGHT($K47,2)=RIGHT(BR$39,2),SUM($AV47:AV47),0)+IF(RIGHT(BR$39,2)>RIGHT($K47,2),AV47,0)) -> 0 | BS47: =+IF($K47="Ongoing",AW47,IF(RIGHT($K47,2)=RIGHT(BS$39,2),SUM($AV47:AW47),0)+IF(RIGHT(BS$39,2)>RIGHT($K47,2),AW47,0)) -> 20.84 | BT47: =+IF($K47="Ongoing",AX47,IF(RIGHT($K47,2)=RIGHT(BT$39,2),SUM($AV47:AX47),0)+IF(RIGHT(BT$39,2)>RIGHT($K47,2),AX47,0)) -> 0 | BU47: =+IF($K47="Ongoing",AY47,IF(RIGHT($K47,2)=RIGHT(BU$39,2),SUM($AV47:AY47),0)+IF(RIGHT(BU$39,2)>RIGHT($K47,2),AY47,0)) -> 0 | BV47: =+IF($K47="Ongoing",AZ47,IF(RIGHT($K47,2)=RIGHT(BV$39,2),SUM($AV47:AZ47),0)+IF(RIGHT(BV$39,2)>RIGHT($K47,2),AZ47,0)) -> 0 | BW47: =+IF($K47="Ongoing",BA47,IF(RIGHT($K47,2)=RIGHT(BW$39,2),SUM($AV47:BA47),0)+IF(RIGHT(BW$39,2)>RIGHT($K47,2),BA47,0)) -> 0 | BX47: =+IF($K47="Ongoing",BB47,IF(RIGHT($K47,2)=RIGHT(BX$39,2),SUM($AV47:BB47),0)+IF(RIGHT(BX$39,2)>RIGHT($K47,2),BB47,0)) -> 0 | BY47: =+IF($K47="Ongoing",BC47,IF(RIGHT($K47,2)=RIGHT(BY$39,2),SUM($AV47:BC47),0)+IF(RIGHT(BY$39,2)>RIGHT($K47,2),BC47,0)) -> 0 | BZ47: =+IF($K47="Ongoing",BD47,IF(RIGHT($K47,2)=RIGHT(BZ$39,2),SUM($AV47:BD47),0)+IF(RIGHT(BZ$39,2)>RIGHT($K47,2),BD47,0)) -> 0 | CA47: =+IF($K47="Ongoing",BE47,IF(RIGHT($K47,2)=RIGHT(CA$39,2),SUM($AV47:BE47),0)+IF(RIGHT(CA$39,2)>RIGHT($K47,2),BE47,0)) -> 0 | CC47: =+O47*KeyAssumptionsPriceControl_FO!X$15 -> 11.524095 | CD47: =+P47*KeyAssumptionsPriceControl_FO!Y$15 -> 10.02051517 | CE47: =+Q47*KeyAssumptionsPriceControl_FO!Z$15 -> 0 | CF47: =+R47*KeyAssumptionsPriceControl_FO!AA$15 -> 0 | CG47: =+S47*KeyAssumptionsPriceControl_FO!AB$15 -> 0 | CH47: =+T47*KeyAssumptionsPriceControl_FO!AC$15 -> 0 | CI47: =+U47*KeyAssumptionsPriceControl_FO!AD$15 -> 0 | CJ47: =+V47*KeyAssumptionsPriceControl_FO!AE$15 -> 0 | CK47: =+W47*KeyAssumptionsPriceControl_FO!AF$15 -> 0 | CL47: =+X47*KeyAssumptionsPriceControl_FO!AG$15 -> 0 | CN47: 0.11524095 | CO47: 0.3306870517 | CP47: 0.4308922035 | CQ47: 0.4308922035 | CR47: 0.4308922035 | CS47: 0.4308922035 | CT47: 0.4308922035 | CU47: 0.4308922035 | CV47: 0.4308922035 | CW47: 0.4308922035
C48: CSA034AThe Patch (West) | E48: Sewerage | F48: Improvements / Compliance | G48: Pipelines/network | H48: Top 10 Major Projects | J48: Straight line | K48: 2019-20 | L48: 1000000 | M48: 80 | O48: 0.678114648 | P48: 4.85097075 | Q48: 5.148156537 | R48: 1.65443634 | S48: 1.37869695 | T48: 1.10295756 | U48: 0 | V48: 0 | W48: 0 | X48: 0 | AV48: 0.678114648 | AW48: 4.85097075 | AX48: 5.148156537 | AY48: 1.65443634 | AZ48: 1.37869695 | BA48: 1.10295756 | BB48: 0 | BC48: 0 | BD48: 0 | BE48: 0 | BG48: 0 | BH48: 2.764542699e-06 | BI48: 8.103163667e-06 | BJ48: 1.150446011e-05 | BK48: 1.302102675e-05 | BL48: 1.426185401e-05 | BM48: 1.481333279e-05 | BN48: 1.481333279e-05 | BO48: 1.481333279e-05 | BP48: 1.481333279e-05 | BR48: =+IF($K48="Ongoing",AV48,IF(RIGHT($K48,2)=RIGHT(BR$39,2),SUM($AV48:AV48),0)+IF(RIGHT(BR$39,2)>RIGHT($K48,2),AV48,0)) -> 0 | BS48: =+IF($K48="Ongoing",AW48,IF(RIGHT($K48,2)=RIGHT(BS$39,2),SUM($AV48:AW48),0)+IF(RIGHT(BS$39,2)>RIGHT($K48,2),AW48,0)) -> 5.529085398 | BT48: =+IF($K48="Ongoing",AX48,IF(RIGHT($K48,2)=RIGHT(BT$39,2),SUM($AV48:AX48),0)+IF(RIGHT(BT$39,2)>RIGHT($K48,2),AX48,0)) -> 5.148156537 | BU48: =+IF($K48="Ongoing",AY48,IF(RIGHT($K48,2)=RIGHT(BU$39,2),SUM($AV48:AY48),0)+IF(RIGHT(BU$39,2)>RIGHT($K48,2),AY48,0)) -> 1.65443634 | BV48: =+IF($K48="Ongoing",AZ48,IF(RIGHT($K48,2)=RIGHT(BV$39,2),SUM($AV48:AZ48),0)+IF(RIGHT(BV$39,2)>RIGHT($K48,2),AZ48,0)) -> 1.37869695 | BW48: =+IF($K48="Ongoing",BA48,IF(RIGHT($K48,2)=RIGHT(BW$39,2),SUM($AV48:BA48),0)+IF(RIGHT(BW$39,2)>RIGHT($K48,2),BA48,0)) -> 1.10295756 | BX48: =+IF($K48="Ongoing",BB48,IF(RIGHT($K48,2)=RIGHT(BX$39,2),SUM($AV48:BB48),0)+IF(RIGHT(BX$39,2)>RIGHT($K48,2),BB48,0)) -> 0 | BY48: =+IF($K48="Ongoing",BC48,IF(RIGHT($K48,2)=RIGHT(BY$39,2),SUM($AV48:BC48),0)+IF(RIGHT(BY$39,2)>RIGHT($K48,2),BC48,0)) -> 0 | BZ48: =+IF($K48="Ongoing",BD48,IF(RIGHT($K48,2)=RIGHT(BZ$39,2),SUM($AV48:BD48),0)+IF(RIGHT(BZ$39,2)>RIGHT($K48,2),BD48,0)) -> 0 | CA48: =+IF($K48="Ongoing",BE48,IF(RIGHT($K48,2)=RIGHT(CA$39,2),SUM($AV48:BE48),0)+IF(RIGHT(CA$39,2)>RIGHT($K48,2),BE48,0)) -> 0 | CC48: =+O48*KeyAssumptionsPriceControl_FO!X$15 -> 0.6937112849 | CD48: =+P48*KeyAssumptionsPriceControl_FO!Y$15 -> 5.076681568 | CE48: =+Q48*KeyAssumptionsPriceControl_FO!Z$15 -> 5.5116121 | CF48: =+R48*KeyAssumptionsPriceControl_FO!AA$15 -> 1.811976645 | CG48: =+S48*KeyAssumptionsPriceControl_FO!AB$15 -> 1.54471009 | CH48: =+T48*KeyAssumptionsPriceControl_FO!AC$15 -> 1.264190738 | CI48: =+U48*KeyAssumptionsPriceControl_FO!AD$15 -> 0 | CJ48: =+V48*KeyAssumptionsPriceControl_FO!AE$15 -> 0 | CK48: =+W48*KeyAssumptionsPriceControl_FO!AF$15 -> 0 | CL48: =+X48*KeyAssumptionsPriceControl_FO!AG$15 -> 0 | CN48: 0.004335695531 | CO48: 0.04040065086 | CP48: 0.1065774863 | CQ48: 0.1523499159 | CR48: 0.173329208 | CS48: 0.1908848382 | CT48: 0.1987860303 | CU48: 0.1987860303 | CV48: 0.1987860303 | CW48: 0.1987860303
C49: CSA030A Sassafras (East) | E49: Sewerage | F49: Improvements / Compliance | G49: Pipelines/network | H49: Top 10 Major Projects | J49: Straight line | K49: Ongoing | L49: 100 | M49: 100 | O49: 0 | P49: 0.3063771 | Q49: 0.951811524 | R49: 4.085028 | S49: 3.867500259 | T49: 1.077426135 | U49: 0.861940908 | V49: 0 | W49: 0 | X49: 0 | AV49: 0 | AW49: 0.3063771 | AX49: 0.951811524 | AY49: 4.085028 | AZ49: 3.867500259 | BA49: 1.077426135 | BB49: 0.861940908 | BC49: 0 | BD49: 0 | BE49: 0 | BG49: 0 | BH49: 0.0015318855 | BI49: 0.00782282862 | BJ49: 0.03300702624 | BK49: 0.07276966753 | BL49: 0.09749429951 | BM49: 0.1071911347 | BN49: 0.1115008393 | BO49: 0.1115008393 | BP49: 0.1115008393 | BR49: =+IF($K49="Ongoing",AV49,IF(RIGHT($K49,2)=RIGHT(BR$39,2),SUM($AV49:AV49),0)+IF(RIGHT(BR$39,2)>RIGHT($K49,2),AV49,0)) -> 0 | BS49: =+IF($K49="Ongoing",AW49,IF(RIGHT($K49,2)=RIGHT(BS$39,2),SUM($AV49:AW49),0)+IF(RIGHT(BS$39,2)>RIGHT($K49,2),AW49,0)) -> 0.3063771 | BT49: =+IF($K49="Ongoing",AX49,IF(RIGHT($K49,2)=RIGHT(BT$39,2),SUM($AV49:AX49),0)+IF(RIGHT(BT$39,2)>RIGHT($K49,2),AX49,0)) -> 0.951811524 | BU49: =+IF($K49="Ongoing",AY49,IF(RIGHT($K49,2)=RIGHT(BU$39,2),SUM($AV49:AY49),0)+IF(RIGHT(BU$39,2)>RIGHT($K49,2),AY49,0)) -> 4.085028 | BV49: =+IF($K49="Ongoing",AZ49,IF(RIGHT($K49,2)=RIGHT(BV$39,2),SUM($AV49:AZ49),0)+IF(RIGHT(BV$39,2)>RIGHT($K49,2),AZ49,0)) -> 3.867500259 | BW49: =+IF($K49="Ongoing",BA49,IF(RIGHT($K49,2)=RIGHT(BW$39,2),SUM($AV49:BA49),0)+IF(RIGHT(BW$39,2)>RIGHT($K49,2),BA49,0)) -> 1.077426135 | BX49: =+IF($K49="Ongoing",BB49,IF(RIGHT($K49,2)=RIGHT(BX$39,2),SUM($AV49:BB49),0)+IF(RIGHT(BX$39,2)>RIGHT($K49,2),BB49,0)) -> 0.861940908 | BY49: =+IF($K49="Ongoing",BC49,IF(RIGHT($K49,2)=RIGHT(BY$39,2),SUM($AV49:BC49),0)+IF(RIGHT(BY$39,2)>RIGHT($K49,2),BC49,0)) -> 0 | BZ49: =+IF($K49="Ongoing",BD49,IF(RIGHT($K49,2)=RIGHT(BZ$39,2),SUM($AV49:BD49),0)+IF(RIGHT(BZ$39,2)>RIGHT($K49,2),BD49,0)) -> 0 | CA49: =+IF($K49="Ongoing",BE49,IF(RIGHT($K49,2)=RIGHT(CA$39,2),SUM($AV49:BE49),0)+IF(RIGHT(CA$39,2)>RIGHT($K49,2),BE49,0)) -> 0 | CC49: =+O49*KeyAssumptionsPriceControl_FO!X$15 -> 0 | CD49: =+P49*KeyAssumptionsPriceControl_FO!Y$15 -> 0.3206325201 | CE49: =+Q49*KeyAssumptionsPriceControl_FO!Z$15 -> 1.019008625 | CF49: =+R49*KeyAssumptionsPriceControl_FO!AA$15 -> 4.474016408 | CG49: =+S49*KeyAssumptionsPriceControl_FO!AB$15 -> 4.33319786 | CH49: =+T49*KeyAssumptionsPriceControl_FO!AC$15 -> 1.234927063 | CI49: =+U49*KeyAssumptionsPriceControl_FO!AD$15 -> 1.010664309 | CJ49: =+V49*KeyAssumptionsPriceControl_FO!AE$15 -> 0 | CK49: =+W49*KeyAssumptionsPriceControl_FO!AF$15 -> 0 | CL49: =+X49*KeyAssumptionsPriceControl_FO!AG$15 -> 0 | CN49: 0 | CO49: 0.0016031626 | CP49: 0.008301368325 | CQ49: 0.03576649349 | CR49: 0.07980256483 | CS49: 0.1076431894 | CT49: 0.1188711463 | CU49: 0.1239244679 | CV49: 0.1239244679 | CW49: 0.1239244679
C50: CSA033 Sherbrooke / Kallista (West) | E50: Sewerage | F50: Improvements / Compliance | G50: Pipelines/network | H50: Top 10 Major Projects | J50: Straight line | K50: Ongoing | L50: 100 | M50: 100 | O50: 0.3063771 | P50: 1.021257 | Q50: 3.33951039 | R50: 5.720060457 | S50: 1.587033378 | T50: 1.322527815 | U50: 1.058022252 | V50: 0 | W50: 0 | X50: 0 | AV50: 0.3063771 | AW50: 1.021257 | AX50: 3.33951039 | AY50: 5.720060457 | AZ50: 1.587033378 | BA50: 1.322527815 | BB50: 1.058022252 | BC50: 0 | BD50: 0 | BE50: 0 | BG50: 0.0015318855 | BH50: 0.008170056 | BI50: 0.02997389295 | BJ50: 0.07527174719 | BK50: 0.1118072164 | BL50: 0.1263550223 | BM50: 0.1382577727 | BN50: 0.1435478839 | BO50: 0.1435478839 | BP50: 0.1435478839 | BR50: =+IF($K50="Ongoing",AV50,IF(RIGHT($K50,2)=RIGHT(BR$39,2),SUM($AV50:AV50),0)+IF(RIGHT(BR$39,2)>RIGHT($K50,2),AV50,0)) -> 0.3063771 | BS50: =+IF($K50="Ongoing",AW50,IF(RIGHT($K50,2)=RIGHT(BS$39,2),SUM($AV50:AW50),0)+IF(RIGHT(BS$39,2)>RIGHT($K50,2),AW50,0)) -> 1.021257 | BT50: =+IF($K50="Ongoing",AX50,IF(RIGHT($K50,2)=RIGHT(BT$39,2),SUM($AV50:AX50),0)+IF(RIGHT(BT$39,2)>RIGHT($K50,2),AX50,0)) -> 3.33951039 | BU50: =+IF($K50="Ongoing",AY50,IF(RIGHT($K50,2)=RIGHT(BU$39,2),SUM($AV50:AY50),0)+IF(RIGHT(BU$39,2)>RIGHT($K50,2),AY50,0)) -> 5.720060457 | BV50: =+IF($K50="Ongoing",AZ50,IF(RIGHT($K50,2)=RIGHT(BV$39,2),SUM($AV50:AZ50),0)+IF(RIGHT(BV$39,2)>RIGHT($K50,2),AZ50,0)) -> 1.587033378 | BW50: =+IF($K50="Ongoing",BA50,IF(RIGHT($K50,2)=RIGHT(BW$39,2),SUM($AV50:BA50),0)+IF(RIGHT(BW$39,2)>RIGHT($K50,2),BA50,0)) -> 1.322527815 | BX50: =+IF($K50="Ongoing",BB50,IF(RIGHT($K50,2)=RIGHT(BX$39,2),SUM($AV50:BB50),0)+IF(RIGHT(BX$39,2)>RIGHT($K50,2),BB50,0)) -> 1.058022252 | BY50: =+IF($K50="Ongoing",BC50,IF(RIGHT($K50,2)=RIGHT(BY$39,2),SUM($AV50:BC50),0)+IF(RIGHT(BY$39,2)>RIGHT($K50,2),BC50,0)) -> 0 | BZ50: =+IF($K50="Ongoing",BD50,IF(RIGHT($K50,2)=RIGHT(BZ$39,2),SUM($AV50:BD50),0)+IF(RIGHT(BZ$39,2)>RIGHT($K50,2),BD50,0)) -> 0 | CA50: =+IF($K50="Ongoing",BE50,IF(RIGHT($K50,2)=RIGHT(CA$39,2),SUM($AV50:BE50),0)+IF(RIGHT(CA$39,2)>RIGHT($K50,2),BE50,0)) -> 0 | CC50: =+O50*KeyAssumptionsPriceControl_FO!X$15 -> 0.3134237733 | CD50: =+P50*KeyAssumptionsPriceControl_FO!Y$15 -> 1.068775067 | CE50: =+Q50*KeyAssumptionsPriceControl_FO!Z$15 -> 3.575277042 | CF50: =+R50*KeyAssumptionsPriceControl_FO!AA$15 -> 6.264741476 | CG50: =+S50*KeyAssumptionsPriceControl_FO!AB$15 -> 1.778132948 | CH50: =+T50*KeyAssumptionsPriceControl_FO!AC$15 -> 1.515858338 | CI50: =+U50*KeyAssumptionsPriceControl_FO!AD$15 -> 1.240578464 | CJ50: =+V50*KeyAssumptionsPriceControl_FO!AE$15 -> 0 | CK50: =+W50*KeyAssumptionsPriceControl_FO!AF$15 -> 0 | CL50: =+X50*KeyAssumptionsPriceControl_FO!AG$15 -> 0 | CN50: 0.001567118867 | CO50: 0.008478113068 | CP50: 0.03169837361 | CQ50: 0.0808984662 | CR50: 0.1211128383 | CS50: 0.1375827947 | CT50: 0.1513649788 | CU50: 0.1575678711 | CV50: 0.1575678711 | CW50: 0.1575678711
C51: Craigieburn Flow Storage and Distribution - Stage 2A Tank3 | E51: Sewerage | F51: Growth | G51: Pipelines/network | H51: Top 10 Major Projects | J51: Straight line | K51: Ongoing | L51: 100 | M51: 100 | O51: 0.5106285 | P51: 6.4339191 | Q51: 2.042514 | R51: 0 | S51: 0 | T51: 0 | U51: 0 | V51: 0 | W51: 0 | X51: 0 | AV51: 0.5106285 | AW51: 6.4339191 | AX51: 2.042514 | AY51: 0 | AZ51: 0 | BA51: 0 | BB51: 0 | BC51: 0 | BD51: 0 | BE51: 0 | BG51: 0.0025531425 | BH51: 0.0372758805 | BI51: 0.079658046 | BJ51: 0.089870616 | BK51: 0.089870616 | BL51: 0.089870616 | BM51: 0.089870616 | BN51: 0.089870616 | BO51: 0.089870616 | BP51: 0.089870616 | BR51: =+IF($K51="Ongoing",AV51,IF(RIGHT($K51,2)=RIGHT(BR$39,2),SUM($AV51:AV51),0)+IF(RIGHT(BR$39,2)>RIGHT($K51,2),AV51,0)) -> 0.5106285 | BS51: =+IF($K51="Ongoing",AW51,IF(RIGHT($K51,2)=RIGHT(BS$39,2),SUM($AV51:AW51),0)+IF(RIGHT(BS$39,2)>RIGHT($K51,2),AW51,0)) -> 6.4339191 | BT51: =+IF($K51="Ongoing",AX51,IF(RIGHT($K51,2)=RIGHT(BT$39,2),SUM($AV51:AX51),0)+IF(RIGHT(BT$39,2)>RIGHT($K51,2),AX51,0)) -> 2.042514 | BU51: =+IF($K51="Ongoing",AY51,IF(RIGHT($K51,2)=RIGHT(BU$39,2),SUM($AV51:AY51),0)+IF(RIGHT(BU$39,2)>RIGHT($K51,2),AY51,0)) -> 0 | BV51: =+IF($K51="Ongoing",AZ51,IF(RIGHT($K51,2)=RIGHT(BV$39,2),SUM($AV51:AZ51),0)+IF(RIGHT(BV$39,2)>RIGHT($K51,2),AZ51,0)) -> 0 | BW51: =+IF($K51="Ongoing",BA51,IF(RIGHT($K51,2)=RIGHT(BW$39,2),SUM($AV51:BA51),0)+IF(RIGHT(BW$39,2)>RIGHT($K51,2),BA51,0)) -> 0 | BX51: =+IF($K51="Ongoing",BB51,IF(RIGHT($K51,2)=RIGHT(BX$39,2),SUM($AV51:BB51),0)+IF(RIGHT(BX$39,2)>RIGHT($K51,2),BB51,0)) -> 0 | BY51: =+IF($K51="Ongoing",BC51,IF(RIGHT($K51,2)=RIGHT(BY$39,2),SUM($AV51:BC51),0)+IF(RIGHT(BY$39,2)>RIGHT($K51,2),BC51,0)) -> 0 | BZ51: =+IF($K51="Ongoing",BD51,IF(RIGHT($K51,2)=RIGHT(BZ$39,2),SUM($AV51:BD51),0)+IF(RIGHT(BZ$39,2)>RIGHT($K51,2),BD51,0)) -> 0 | CA51: =+IF($K51="Ongoing",BE51,IF(RIGHT($K51,2)=RIGHT(CA$39,2),SUM($AV51:BE51),0)+IF(RIGHT(CA$39,2)>RIGHT($K51,2),BE51,0)) -> 0 | CC51: =+O51*KeyAssumptionsPriceControl_FO!X$15 -> 0.5223729555 | CD51: =+P51*KeyAssumptionsPriceControl_FO!Y$15 -> 6.733282922 | CE51: =+Q51*KeyAssumptionsPriceControl_FO!Z$15 -> 2.186713787 | CF51: =+R51*KeyAssumptionsPriceControl_FO!AA$15 -> 0 | CG51: =+S51*KeyAssumptionsPriceControl_FO!AB$15 -> 0 | CH51: =+T51*KeyAssumptionsPriceControl_FO!AC$15 -> 0 | CI51: =+U51*KeyAssumptionsPriceControl_FO!AD$15 -> 0 | CJ51: =+V51*KeyAssumptionsPriceControl_FO!AE$15 -> 0 | CK51: =+W51*KeyAssumptionsPriceControl_FO!AF$15 -> 0 | CL51: =+X51*KeyAssumptionsPriceControl_FO!AG$15 -> 0 | CN51: 0.002611864777 | CO51: 0.03889014416 | CP51: 0.08349012771 | CQ51: 0.09442369664 | CR51: 0.09442369664 | CS51: 0.09442369664 | CT51: 0.09442369664 | CU51: 0.09442369664 | CV51: 0.09442369664 | CW51: 0.09442369664
C53: Water Growth Works | E53: Water | F53: Growth | G53: Pipelines/network | H53: Capital Programs / Allocation | J53: Straight line | K53: Ongoing | L53: 1000000 | M53: 90 | O53: 8.370570176 | P53: 7.218906005 | Q53: 4.883953827 | R53: 2.160459169 | S53: 8.700747702 | T53: 17.35580604 | U53: 8.589922738 | V53: 2.137756285 | W53: 1.968227634 | X53: 1.968227634 | AK53: 12.7368689 | AL53: 12.57842783 | AM53: 12.41118516 | AN53: 11.89185191 | AO53: 11.63658629 | AP53: 11.39012309 | AQ53: 11.12605545 | AR53: 10.88839426 | AS53: 11.08204418 | AT53: 11.30210054 | AV53: -4.366298723 | AW53: -5.359521825 | AX53: -7.527231333 | AY53: -9.73139274 | AZ53: -2.935838587 | BA53: 5.965682958 | BB53: -2.536132717 | BC53: -8.750637976 | BD53: -9.113816549 | BE53: -9.333872908 | BG53: -2.183149361e-06 | BH53: -7.046059635e-06 | BI53: -1.348943621e-05 | BJ53: -2.211874825e-05 | BK53: -2.845236392e-05 | BL53: -2.693744173e-05 | BM53: -2.522266661e-05 | BN53: -3.086605196e-05 | BO53: -3.979827922e-05 | BP53: -4.902212395e-05 | BR53: =+IF($K53="Ongoing",AV53,IF(RIGHT($K53,2)=RIGHT(BR$39,2),SUM($AV53:AV53),0)+IF(RIGHT(BR$39,2)>RIGHT($K53,2),AV53,0)) -> -4.366298723 | BS53: =+IF($K53="Ongoing",AW53,IF(RIGHT($K53,2)=RIGHT(BS$39,2),SUM($AV53:AW53),0)+IF(RIGHT(BS$39,2)>RIGHT($K53,2),AW53,0)) -> -5.359521825 | BT53: =+IF($K53="Ongoing",AX53,IF(RIGHT($K53,2)=RIGHT(BT$39,2),SUM($AV53:AX53),0)+IF(RIGHT(BT$39,2)>RIGHT($K53,2),AX53,0)) -> -7.527231333 | BU53: =+IF($K53="Ongoing",AY53,IF(RIGHT($K53,2)=RIGHT(BU$39,2),SUM($AV53:AY53),0)+IF(RIGHT(BU$39,2)>RIGHT($K53,2),AY53,0)) -> -9.73139274 | BV53: =+IF($K53="Ongoing",AZ53,IF(RIGHT($K53,2)=RIGHT(BV$39,2),SUM($AV53:AZ53),0)+IF(RIGHT(BV$39,2)>RIGHT($K53,2),AZ53,0)) -> -2.935838587 | BW53: =+IF($K53="Ongoing",BA53,IF(RIGHT($K53,2)=RIGHT(BW$39,2),SUM($AV53:BA53),0)+IF(RIGHT(BW$39,2)>RIGHT($K53,2),BA53,0)) -> 5.965682958 | BX53: =+IF($K53="Ongoing",BB53,IF(RIGHT($K53,2)=RIGHT(BX$39,2),SUM($AV53:BB53),0)+IF(RIGHT(BX$39,2)>RIGHT($K53,2),BB53,0)) -> -2.536132717 | BY53: =+IF($K53="Ongoing",BC53,IF(RIGHT($K53,2)=RIGHT(BY$39,2),SUM($AV53:BC53),0)+IF(RIGHT(BY$39,2)>RIGHT($K53,2),BC53,0)) -> -8.750637976 | BZ53: =+IF($K53="Ongoing",BD53,IF(RIGHT($K53,2)=RIGHT(BZ$39,2),SUM($AV53:BD53),0)+IF(RIGHT(BZ$39,2)>RIGHT($K53,2),BD53,0)) -> -9.113816549 | CA53: =+IF($K53="Ongoing",BE53,IF(RIGHT($K53,2)=RIGHT(CA$39,2),SUM($AV53:BE53),0)+IF(RIGHT(CA$39,2)>RIGHT($K53,2),BE53,0)) -> -9.333872908 | CC53: =+O53*KeyAssumptionsPriceControl_FO!X$15 -> 8.56309329 | CD53: =+P53*KeyAssumptionsPriceControl_FO!Y$15 -> 7.554794482 | CE53: =+Q53*KeyAssumptionsPriceControl_FO!Z$15 -> 5.228756899 | CF53: =+R53*KeyAssumptionsPriceControl_FO!AA$15 -> 2.36618446 | CG53: =+S53*KeyAssumptionsPriceControl_FO!AB$15 -> 9.748431493 | CH53: =+T53*KeyAssumptionsPriceControl_FO!AC$15 -> 19.89292249 | CI53: =+U53*KeyAssumptionsPriceControl_FO!AD$15 -> 10.07206903 | CJ53: =+V53*KeyAssumptionsPriceControl_FO!AE$15 -> 2.564267107 | CK53: =+W53*KeyAssumptionsPriceControl_FO!AF$15 -> 2.415216286 | CL53: =+X53*KeyAssumptionsPriceControl_FO!AG$15 -> 2.47076626 | CN53: 0.0475727405 | CO53: 0.1371165615 | CP53: 0.2081362913 | CQ53: 0.25033041 | CR53: 0.317633832 | CS53: 0.4823080207 | CT53: 0.6487801958 | CU53: 0.7189820632 | CV53: 0.7466458599 | CW53: 0.7737902073
C54: Water Developer Reimbursements | E54: Water | F54: Growth | G54: Pipelines/network | H54: Capital Programs / Allocation | J54: Straight line | K54: Ongoing | L54: 1000000 | M54: 90 | O54: 3.077908165 | P54: 6.670415757 | Q54: 9.696124379 | R54: 9.761904568 | S54: 9.580330824 | T54: 8.154324659 | U54: 15.95826227 | V54: 8.317867633 | W54: 8.269166482 | X54: 3.032615314 | AV54: 3.077908165 | AW54: 6.670415757 | AX54: 9.696124379 | AY54: 9.761904568 | AZ54: 9.580330824 | BA54: 8.154324659 | BB54: 15.95826227 | BC54: 8.317867633 | BD54: 8.269166482 | BE54: 3.032615314 | BG54: 1.538954082e-06 | BH54: 6.413116043e-06 | BI54: 1.459638611e-05 | BJ54: 2.432540059e-05 | BK54: 3.399651828e-05 | BL54: 4.286384602e-05 | BM54: 5.492013949e-05 | BN54: 6.705820444e-05 | BO54: 7.53517215e-05 | BP54: 8.100261239e-05 | BR54: =+IF($K54="Ongoing",AV54,IF(RIGHT($K54,2)=RIGHT(BR$39,2),SUM($AV54:AV54),0)+IF(RIGHT(BR$39,2)>RIGHT($K54,2),AV54,0)) -> 3.077908165 | BS54: =+IF($K54="Ongoing",AW54,IF(RIGHT($K54,2)=RIGHT(BS$39,2),SUM($AV54:AW54),0)+IF(RIGHT(BS$39,2)>RIGHT($K54,2),AW54,0)) -> 6.670415757 | BT54: =+IF($K54="Ongoing",AX54,IF(RIGHT($K54,2)=RIGHT(BT$39,2),SUM($AV54:AX54),0)+IF(RIGHT(BT$39,2)>RIGHT($K54,2),AX54,0)) -> 9.696124379 | BU54: =+IF($K54="Ongoing",AY54,IF(RIGHT($K54,2)=RIGHT(BU$39,2),SUM($AV54:AY54),0)+IF(RIGHT(BU$39,2)>RIGHT($K54,2),AY54,0)) -> 9.761904568 | BV54: =+IF($K54="Ongoing",AZ54,IF(RIGHT($K54,2)=RIGHT(BV$39,2),SUM($AV54:AZ54),0)+IF(RIGHT(BV$39,2)>RIGHT($K54,2),AZ54,0)) -> 9.580330824 | BW54: =+IF($K54="Ongoing",BA54,IF(RIGHT($K54,2)=RIGHT(BW$39,2),SUM($AV54:BA54),0)+IF(RIGHT(BW$39,2)>RIGHT($K54,2),BA54,0)) -> 8.154324659 | BX54: =+IF($K54="Ongoing",BB54,IF(RIGHT($K54,2)=RIGHT(BX$39,2),SUM($AV54:BB54),0)+IF(RIGHT(BX$39,2)>RIGHT($K54,2),BB54,0)) -> 15.95826227 | BY54: =+IF($K54="Ongoing",BC54,IF(RIGHT($K54,2)=RIGHT(BY$39,2),SUM($AV54:BC54),0)+IF(RIGHT(BY$39,2)>RIGHT($K54,2),BC54,0)) -> 8.317867633 | BZ54: =+IF($K54="Ongoing",BD54,IF(RIGHT($K54,2)=RIGHT(BZ$39,2),SUM($AV54:BD54),0)+IF(RIGHT(BZ$39,2)>RIGHT($K54,2),BD54,0)) -> 8.269166482 | CA54: =+IF($K54="Ongoing",BE54,IF(RIGHT($K54,2)=RIGHT(CA$39,2),SUM($AV54:BE54),0)+IF(RIGHT(CA$39,2)>RIGHT($K54,2),BE54,0)) -> 3.032615314 | CC54: =+O54*KeyAssumptionsPriceControl_FO!X$15 -> 3.148700053 | CD54: =+P54*KeyAssumptionsPriceControl_FO!Y$15 -> 6.980783532 | CE54: =+Q54*KeyAssumptionsPriceControl_FO!Z$15 -> 10.38066268 | CF54: =+R54*KeyAssumptionsPriceControl_FO!AA$15 -> 10.6914619 | CG54: =+S54*KeyAssumptionsPriceControl_FO!AB$15 -> 10.73392792 | CH54: =+T54*KeyAssumptionsPriceControl_FO!AC$15 -> 9.346344847 | CI54: =+U54*KeyAssumptionsPriceControl_FO!AD$15 -> 18.71177705 | CJ54: =+V54*KeyAssumptionsPriceControl_FO!AE$15 -> 9.977392899 | CK54: =+W54*KeyAssumptionsPriceControl_FO!AF$15 -> 10.14711165 | CL54: =+X54*KeyAssumptionsPriceControl_FO!AG$15 -> 3.806919214 | CN54: 0.01749277807 | CO54: 0.07376768687 | CP54: 0.1702201658 | CQ54: 0.2872875246 | CR54: 0.4063174681 | CS54: 0.517874539 | CT54: 0.673752994 | CU54: 0.8331372715 | CV54: 0.9449400746 | CW54: 1.022462468
C55: Recycled Water Growth Works | E55: Recycled Water | F55: Growth | G55: Pipelines/network | H55: Capital Programs / Allocation | J55: Straight line | K55: Ongoing | L55: 1000000 | M55: 90 | O55: 12.31939083 | P55: 5.45767964 | Q55: 3.592071429 | R55: 4.1052283 | S55: 4.035752979 | T55: 20.3382475 | U55: 8.879782622 | V55: 4.874204537 | W55: 18.1226275 | X55: 19.00818588 | AK55: 6.368434449 | AL55: 6.289213915 | AM55: 6.20559258 | AN55: 5.945925955 | AO55: 5.818293144 | AP55: 5.695061543 | AQ55: 5.563027727 | AR55: 5.44419713 | AS55: 5.541022091 | AT55: 5.651050271 | AV55: 5.95095638 | AW55: -0.8315342753 | AX55: -2.613521152 | AY55: -1.840697655 | AZ55: -1.782540166 | BA55: 14.64318596 | BB55: 3.316754895 | BC55: -0.5699925936 | BD55: 12.58160541 | BE55: 13.35713561 | BG55: 2.97547819e-06 | BH55: 5.535189243e-06 | BI55: 3.812661529e-06 | BJ55: 1.585552126e-06 | BK55: -2.260667842e-07 | BL55: 6.204256113e-06 | BM55: 1.518422654e-05 | BN55: 1.655760769e-05 | BO55: 2.25634141e-05 | BP55: 3.55327846e-05 | BR55: =+IF($K55="Ongoing",AV55,IF(RIGHT($K55,2)=RIGHT(BR$39,2),SUM($AV55:AV55),0)+IF(RIGHT(BR$39,2)>RIGHT($K55,2),AV55,0)) -> 5.95095638 | BS55: =+IF($K55="Ongoing",AW55,IF(RIGHT($K55,2)=RIGHT(BS$39,2),SUM($AV55:AW55),0)+IF(RIGHT(BS$39,2)>RIGHT($K55,2),AW55,0)) -> -0.8315342753 | BT55: =+IF($K55="Ongoing",AX55,IF(RIGHT($K55,2)=RIGHT(BT$39,2),SUM($AV55:AX55),0)+IF(RIGHT(BT$39,2)>RIGHT($K55,2),AX55,0)) -> -2.613521152 | BU55: =+IF($K55="Ongoing",AY55,IF(RIGHT($K55,2)=RIGHT(BU$39,2),SUM($AV55:AY55),0)+IF(RIGHT(BU$39,2)>RIGHT($K55,2),AY55,0)) -> -1.840697655 | BV55: =+IF($K55="Ongoing",AZ55,IF(RIGHT($K55,2)=RIGHT(BV$39,2),SUM($AV55:AZ55),0)+IF(RIGHT(BV$39,2)>RIGHT($K55,2),AZ55,0)) -> -1.782540166 | BW55: =+IF($K55="Ongoing",BA55,IF(RIGHT($K55,2)=RIGHT(BW$39,2),SUM($AV55:BA55),0)+IF(RIGHT(BW$39,2)>RIGHT($K55,2),BA55,0)) -> 14.64318596 | BX55: =+IF($K55="Ongoing",BB55,IF(RIGHT($K55,2)=RIGHT(BX$39,2),SUM($AV55:BB55),0)+IF(RIGHT(BX$39,2)>RIGHT($K55,2),BB55,0)) -> 3.316754895 | BY55: =+IF($K55="Ongoing",BC55,IF(RIGHT($K55,2)=RIGHT(BY$39,2),SUM($AV55:BC55),0)+IF(RIGHT(BY$39,2)>RIGHT($K55,2),BC55,0)) -> -0.5699925936 | BZ55: =+IF($K55="Ongoing",BD55,IF(RIGHT($K55,2)=RIGHT(BZ$39,2),SUM($AV55:BD55),0)+IF(RIGHT(BZ$39,2)>RIGHT($K55,2),BD55,0)) -> 12.58160541 | CA55: =+IF($K55="Ongoing",BE55,IF(RIGHT($K55,2)=RIGHT(CA$39,2),SUM($AV55:BE55),0)+IF(RIGHT(CA$39,2)>RIGHT($K55,2),BE55,0)) -> 13.35713561 | CC55: =+O55*KeyAssumptionsPriceControl_FO!X$15 -> 12.60273682 | CD55: =+P55*KeyAssumptionsPriceControl_FO!Y$15 -> 5.711620016 | CE55: =+Q55*KeyAssumptionsPriceControl_FO!Z$15 -> 3.845668679 | CF55: =+R55*KeyAssumptionsPriceControl_FO!AA$15 -> 4.49614024 | CG55: =+S55*KeyAssumptionsPriceControl_FO!AB$15 -> 4.521710407 | CH55: =+T55*KeyAssumptionsPriceControl_FO!AC$15 -> 23.31134492 | CI55: =+U55*KeyAssumptionsPriceControl_FO!AD$15 -> 10.41194272 | CJ55: =+V55*KeyAssumptionsPriceControl_FO!AE$15 -> 5.846673195 | CK55: =+W55*KeyAssumptionsPriceControl_FO!AF$15 -> 22.23831447 | CL55: =+X55*KeyAssumptionsPriceControl_FO!AG$15 -> 23.86145968 | CN55: 0.07001520455 | CO55: 0.1717616314 | CP55: 0.2248576797 | CQ55: 0.2712010626 | CR55: 0.3213002329 | CS55: 0.475928318 | CT55: 0.663279916 | CU55: 0.75360556 | CV55: 0.9096332693 | CW55: 1.165743126
C56: Recycled Water Developer Reimbursements | E56: Recycled Water | F56: Growth | G56: Pipelines/network | H56: Capital Programs / Allocation | J56: Straight line | K56: Ongoing | L56: 1000000 | M56: 90 | O56: 3.374194109 | P56: 3.082712753 | Q56: 0.4082249908 | R56: 2.177467925 | S56: 2.213291576 | T56: 3.814698254 | U56: 12.20817848 | V56: 2.083867614 | W56: 2.341129785 | X56: 1.502045909 | AV56: 3.374194109 | AW56: 3.082712753 | AX56: 0.4082249908 | AY56: 2.177467925 | AZ56: 2.213291576 | BA56: 3.814698254 | BB56: 12.20817848 | BC56: 2.083867614 | BD56: 2.341129785 | BE56: 1.502045909 | BG56: 1.687097055e-06 | BH56: 4.915550486e-06 | BI56: 6.661019358e-06 | BJ56: 7.953865816e-06 | BK56: 1.014924557e-05 | BL56: 1.316324048e-05 | BM56: 2.117467885e-05 | BN56: 2.832070189e-05 | BO56: 3.053320059e-05 | BP56: 3.245478844e-05 | BR56: =+IF($K56="Ongoing",AV56,IF(RIGHT($K56,2)=RIGHT(BR$39,2),SUM($AV56:AV56),0)+IF(RIGHT(BR$39,2)>RIGHT($K56,2),AV56,0)) -> 3.374194109 | BS56: =+IF($K56="Ongoing",AW56,IF(RIGHT($K56,2)=RIGHT(BS$39,2),SUM($AV56:AW56),0)+IF(RIGHT(BS$39,2)>RIGHT($K56,2),AW56,0)) -> 3.082712753 | BT56: =+IF($K56="Ongoing",AX56,IF(RIGHT($K56,2)=RIGHT(BT$39,2),SUM($AV56:AX56),0)+IF(RIGHT(BT$39,2)>RIGHT($K56,2),AX56,0)) -> 0.4082249908 | BU56: =+IF($K56="Ongoing",AY56,IF(RIGHT($K56,2)=RIGHT(BU$39,2),SUM($AV56:AY56),0)+IF(RIGHT(BU$39,2)>RIGHT($K56,2),AY56,0)) -> 2.177467925 | BV56: =+IF($K56="Ongoing",AZ56,IF(RIGHT($K56,2)=RIGHT(BV$39,2),SUM($AV56:AZ56),0)+IF(RIGHT(BV$39,2)>RIGHT($K56,2),AZ56,0)) -> 2.213291576 | BW56: =+IF($K56="Ongoing",BA56,IF(RIGHT($K56,2)=RIGHT(BW$39,2),SUM($AV56:BA56),0)+IF(RIGHT(BW$39,2)>RIGHT($K56,2),BA56,0)) -> 3.814698254 | BX56: =+IF($K56="Ongoing",BB56,IF(RIGHT($K56,2)=RIGHT(BX$39,2),SUM($AV56:BB56),0)+IF(RIGHT(BX$39,2)>RIGHT($K56,2),BB56,0)) -> 12.20817848 | BY56: =+IF($K56="Ongoing",BC56,IF(RIGHT($K56,2)=RIGHT(BY$39,2),SUM($AV56:BC56),0)+IF(RIGHT(BY$39,2)>RIGHT($K56,2),BC56,0)) -> 2.083867614 | BZ56: =+IF($K56="Ongoing",BD56,IF(RIGHT($K56,2)=RIGHT(BZ$39,2),SUM($AV56:BD56),0)+IF(RIGHT(BZ$39,2)>RIGHT($K56,2),BD56,0)) -> 2.341129785 | CA56: =+IF($K56="Ongoing",BE56,IF(RIGHT($K56,2)=RIGHT(CA$39,2),SUM($AV56:BE56),0)+IF(RIGHT(CA$39,2)>RIGHT($K56,2),BE56,0)) -> 1.502045909 | CC56: =+O56*KeyAssumptionsPriceControl_FO!X$15 -> 3.451800574 | CD56: =+P56*KeyAssumptionsPriceControl_FO!Y$15 -> 3.226148295 | CE56: =+Q56*KeyAssumptionsPriceControl_FO!Z$15 -> 0.4370453351 | CF56: =+R56*KeyAssumptionsPriceControl_FO!AA$15 -> 2.384812839 | CG56: =+S56*KeyAssumptionsPriceControl_FO!AB$15 -> 2.479800822 | CH56: =+T56*KeyAssumptionsPriceControl_FO!AC$15 -> 4.372340673 | CI56: =+U56*KeyAssumptionsPriceControl_FO!AD$15 -> 14.31463589 | CJ56: =+V56*KeyAssumptionsPriceControl_FO!AE$15 -> 2.499626929 | CK56: =+W56*KeyAssumptionsPriceControl_FO!AF$15 -> 2.872805302 | CL56: =+X56*KeyAssumptionsPriceControl_FO!AG$15 -> 1.885556471 | CN56: 0.01917666985 | CO56: 0.05627638579 | CP56: 0.07662746151 | CQ56: 0.09230445137 | CR56: 0.1193300828 | CS56: 0.1573975356 | CT56: 0.261214072 | CU56: 0.3546266433 | CV56: 0.384473489 | CW56: 0.4109088322
C57: Water Improve Quality | E57: Water | F57: Improvements / Compliance | G57: Treatment | H57: Capital Programs / Allocation | J57: Straight line | K57: Ongoing | L57: 90 | M57: 90 | O57: 5.58 | P57: 6.95 | Q57: 8.26 | R57: 6.95 | S57: 5.86 | T57: 4.67082 | U57: 4.67082 | V57: 4.67082 | W57: 4.67082 | X57: 4.82582 | AV57: 5.58 | AW57: 6.95 | AX57: 8.26 | AY57: 6.95 | AZ57: 5.86 | BA57: 4.67082 | BB57: 4.67082 | BC57: 4.67082 | BD57: 4.67082 | BE57: 4.82582 | BG57: 0.031 | BH57: 0.1006111111 | BI57: 0.1851111111 | BJ57: 0.2696111111 | BK57: 0.3407777778 | BL57: 0.3992823333 | BM57: 0.4511803333 | BN57: 0.5030783333 | BO57: 0.5549763333 | BP57: 0.6077354444 | BR57: =+IF($K57="Ongoing",AV57,IF(RIGHT($K57,2)=RIGHT(BR$39,2),SUM($AV57:AV57),0)+IF(RIGHT(BR$39,2)>RIGHT($K57,2),AV57,0)) -> 5.58 | BS57: =+IF($K57="Ongoing",AW57,IF(RIGHT($K57,2)=RIGHT(BS$39,2),SUM($AV57:AW57),0)+IF(RIGHT(BS$39,2)>RIGHT($K57,2),AW57,0)) -> 6.95 | BT57: =+IF($K57="Ongoing",AX57,IF(RIGHT($K57,2)=RIGHT(BT$39,2),SUM($AV57:AX57),0)+IF(RIGHT(BT$39,2)>RIGHT($K57,2),AX57,0)) -> 8.26 | BU57: =+IF($K57="Ongoing",AY57,IF(RIGHT($K57,2)=RIGHT(BU$39,2),SUM($AV57:AY57),0)+IF(RIGHT(BU$39,2)>RIGHT($K57,2),AY57,0)) -> 6.95 | BV57: =+IF($K57="Ongoing",AZ57,IF(RIGHT($K57,2)=RIGHT(BV$39,2),SUM($AV57:AZ57),0)+IF(RIGHT(BV$39,2)>RIGHT($K57,2),AZ57,0)) -> 5.86 | BW57: =+IF($K57="Ongoing",BA57,IF(RIGHT($K57,2)=RIGHT(BW$39,2),SUM($AV57:BA57),0)+IF(RIGHT(BW$39,2)>RIGHT($K57,2),BA57,0)) -> 4.67082 | BX57: =+IF($K57="Ongoing",BB57,IF(RIGHT($K57,2)=RIGHT(BX$39,2),SUM($AV57:BB57),0)+IF(RIGHT(BX$39,2)>RIGHT($K57,2),BB57,0)) -> 4.67082 | BY57: =+IF($K57="Ongoing",BC57,IF(RIGHT($K57,2)=RIGHT(BY$39,2),SUM($AV57:BC57),0)+IF(RIGHT(BY$39,2)>RIGHT($K57,2),BC57,0)) -> 4.67082 | BZ57: =+IF($K57="Ongoing",BD57,IF(RIGHT($K57,2)=RIGHT(BZ$39,2),SUM($AV57:BD57),0)+IF(RIGHT(BZ$39,2)>RIGHT($K57,2),BD57,0)) -> 4.67082 | CA57: =+IF($K57="Ongoing",BE57,IF(RIGHT($K57,2)=RIGHT(CA$39,2),SUM($AV57:BE57),0)+IF(RIGHT(CA$39,2)>RIGHT($K57,2),BE57,0)) -> 4.82582 | CC57: =+O57*KeyAssumptionsPriceControl_FO!X$15 -> 5.70834 | CD57: =+P57*KeyAssumptionsPriceControl_FO!Y$15 -> 7.27337655 | CE57: =+Q57*KeyAssumptionsPriceControl_FO!Z$15 -> 8.843149119 | CF57: =+R57*KeyAssumptionsPriceControl_FO!AA$15 -> 7.611799487 | CG57: =+S57*KeyAssumptionsPriceControl_FO!AB$15 -> 6.565620623 | CH57: =+T57*KeyAssumptionsPriceControl_FO!AC$15 -> 5.353612501 | CI57: =+U57*KeyAssumptionsPriceControl_FO!AD$15 -> 5.476745589 | CJ57: =+V57*KeyAssumptionsPriceControl_FO!AE$15 -> 5.602710737 | CK57: =+W57*KeyAssumptionsPriceControl_FO!AF$15 -> 5.731573084 | CL57: =+X57*KeyAssumptionsPriceControl_FO!AG$15 -> 6.057974712 | CN57: 0.031713 | CO57: 0.1038336475 | CP57: 0.1933699012 | CQ57: 0.2847862824 | CR57: 0.3635497274 | CS57: 0.4297676892 | CT57: 0.4899363453 | CU57: 0.5514888804 | CV57: 0.6144571239 | CW57: 0.6799546116
C58: Water Reticulation Main Renewals | E58: Water | F58: Renewals | G58: Pipelines/network | H58: Capital Programs / Allocation | J58: Straight line | K58: Ongoing | L58: 100 | M58: 0.5 | O58: 17.587 | P58: 17.587 | Q58: 17.587 | R58: 17.587 | S58: 17.587 | T58: 15.73 | U58: 15.73 | V58: 15.73 | W58: 15.73 | X58: 15.73 | AV58: 17.587 | AW58: 17.587 | AX58: 17.587 | AY58: 17.587 | AZ58: 17.587 | BA58: 15.73 | BB58: 15.73 | BC58: 15.73 | BD58: 15.73 | BE58: 15.73 | BG58: 0.087935 | BH58: 0.263805 | BI58: 0.439675 | BJ58: 0.615545 | BK58: 0.791415 | BL58: 0.958 | BM58: 1.1153 | BN58: 1.2726 | BO58: 1.4299 | BP58: 1.5872 | BR58: =+IF($K58="Ongoing",AV58,IF(RIGHT($K58,2)=RIGHT(BR$39,2),SUM($AV58:AV58),0)+IF(RIGHT(BR$39,2)>RIGHT($K58,2),AV58,0)) -> 17.587 | BS58: =+IF($K58="Ongoing",AW58,IF(RIGHT($K58,2)=RIGHT(BS$39,2),SUM($AV58:AW58),0)+IF(RIGHT(BS$39,2)>RIGHT($K58,2),AW58,0)) -> 17.587 | BT58: =+IF($K58="Ongoing",AX58,IF(RIGHT($K58,2)=RIGHT(BT$39,2),SUM($AV58:AX58),0)+IF(RIGHT(BT$39,2)>RIGHT($K58,2),AX58,0)) -> 17.587 | BU58: =+IF($K58="Ongoing",AY58,IF(RIGHT($K58,2)=RIGHT(BU$39,2),SUM($AV58:AY58),0)+IF(RIGHT(BU$39,2)>RIGHT($K58,2),AY58,0)) -> 17.587 | BV58: =+IF($K58="Ongoing",AZ58,IF(RIGHT($K58,2)=RIGHT(BV$39,2),SUM($AV58:AZ58),0)+IF(RIGHT(BV$39,2)>RIGHT($K58,2),AZ58,0)) -> 17.587 | BW58: =+IF($K58="Ongoing",BA58,IF(RIGHT($K58,2)=RIGHT(BW$39,2),SUM($AV58:BA58),0)+IF(RIGHT(BW$39,2)>RIGHT($K58,2),BA58,0)) -> 15.73 | BX58: =+IF($K58="Ongoing",BB58,IF(RIGHT($K58,2)=RIGHT(BX$39,2),SUM($AV58:BB58),0)+IF(RIGHT(BX$39,2)>RIGHT($K58,2),BB58,0)) -> 15.73 | BY58: =+IF($K58="Ongoing",BC58,IF(RIGHT($K58,2)=RIGHT(BY$39,2),SUM($AV58:BC58),0)+IF(RIGHT(BY$39,2)>RIGHT($K58,2),BC58,0)) -> 15.73 | BZ58: =+IF($K58="Ongoing",BD58,IF(RIGHT($K58,2)=RIGHT(BZ$39,2),SUM($AV58:BD58),0)+IF(RIGHT(BZ$39,2)>RIGHT($K58,2),BD58,0)) -> 15.73 | CA58: =+IF($K58="Ongoing",BE58,IF(RIGHT($K58,2)=RIGHT(CA$39,2),SUM($AV58:BE58),0)+IF(RIGHT(CA$39,2)>RIGHT($K58,2),BE58,0)) -> 15.73 | CC58: =+O58*KeyAssumptionsPriceControl_FO!X$15 -> 17.991501 | CD58: =+P58*KeyAssumptionsPriceControl_FO!Y$15 -> 18.40530552 | CE58: =+Q58*KeyAssumptionsPriceControl_FO!Z$15 -> 18.82862755 | CF58: =+R58*KeyAssumptionsPriceControl_FO!AA$15 -> 19.26168598 | CG58: =+S58*KeyAssumptionsPriceControl_FO!AB$15 -> 19.70470476 | CH58: =+T58*KeyAssumptionsPriceControl_FO!AC$15 -> 18.02945193 | CI58: =+U58*KeyAssumptionsPriceControl_FO!AD$15 -> 18.44412932 | CJ58: =+V58*KeyAssumptionsPriceControl_FO!AE$15 -> 18.8683443 | CK58: =+W58*KeyAssumptionsPriceControl_FO!AF$15 -> 19.30231621 | CL58: =+X58*KeyAssumptionsPriceControl_FO!AG$15 -> 19.74626949 | CN58: 17.991501 | CO58: 18.40530552 | CP58: 18.82862755 | CQ58: 19.26168598 | CR58: 19.70470476 | CS58: 18.02945193 | CT58: 18.44412932 | CU58: 18.8683443 | CV58: 19.30231621 | CW58: 19.74626949
C59: Water Distribution Main Renewals | E59: Water | F59: Renewals | G59: Pipelines/network | H59: Capital Programs / Allocation | J59: Straight line | K59: Ongoing | L59: 100 | M59: 100 | O59: 1.6 | P59: 1.54 | Q59: 1.13 | R59: 1.28 | S59: 1.125 | T59: 3.825 | U59: 10.75 | V59: 13.52 | W59: 8.74 | X59: 2.71 | AV59: 1.6 | AW59: 1.54 | AX59: 1.13 | AY59: 1.28 | AZ59: 1.125 | BA59: 3.825 | BB59: 10.75 | BC59: 13.52 | BD59: 8.74 | BE59: 2.71 | BG59: 0.008 | BH59: 0.0237 | BI59: 0.03705 | BJ59: 0.0491 | BK59: 0.061125 | BL59: 0.085875 | BM59: 0.15875 | BN59: 0.2801 | BO59: 0.3914 | BP59: 0.44865 | BR59: =+IF($K59="Ongoing",AV59,IF(RIGHT($K59,2)=RIGHT(BR$39,2),SUM($AV59:AV59),0)+IF(RIGHT(BR$39,2)>RIGHT($K59,2),AV59,0)) -> 1.6 | BS59: =+IF($K59="Ongoing",AW59,IF(RIGHT($K59,2)=RIGHT(BS$39,2),SUM($AV59:AW59),0)+IF(RIGHT(BS$39,2)>RIGHT($K59,2),AW59,0)) -> 1.54 | BT59: =+IF($K59="Ongoing",AX59,IF(RIGHT($K59,2)=RIGHT(BT$39,2),SUM($AV59:AX59),0)+IF(RIGHT(BT$39,2)>RIGHT($K59,2),AX59,0)) -> 1.13 | BU59: =+IF($K59="Ongoing",AY59,IF(RIGHT($K59,2)=RIGHT(BU$39,2),SUM($AV59:AY59),0)+IF(RIGHT(BU$39,2)>RIGHT($K59,2),AY59,0)) -> 1.28 | BV59: =+IF($K59="Ongoing",AZ59,IF(RIGHT($K59,2)=RIGHT(BV$39,2),SUM($AV59:AZ59),0)+IF(RIGHT(BV$39,2)>RIGHT($K59,2),AZ59,0)) -> 1.125 | BW59: =+IF($K59="Ongoing",BA59,IF(RIGHT($K59,2)=RIGHT(BW$39,2),SUM($AV59:BA59),0)+IF(RIGHT(BW$39,2)>RIGHT($K59,2),BA59,0)) -> 3.825 | BX59: =+IF($K59="Ongoing",BB59,IF(RIGHT($K59,2)=RIGHT(BX$39,2),SUM($AV59:BB59),0)+IF(RIGHT(BX$39,2)>RIGHT($K59,2),BB59,0)) -> 10.75 | BY59: =+IF($K59="Ongoing",BC59,IF(RIGHT($K59,2)=RIGHT(BY$39,2),SUM($AV59:BC59),0)+IF(RIGHT(BY$39,2)>RIGHT($K59,2),BC59,0)) -> 13.52 | BZ59: =+IF($K59="Ongoing",BD59,IF(RIGHT($K59,2)=RIGHT(BZ$39,2),SUM($AV59:BD59),0)+IF(RIGHT(BZ$39,2)>RIGHT($K59,2),BD59,0)) -> 8.74 | CA59: =+IF($K59="Ongoing",BE59,IF(RIGHT($K59,2)=RIGHT(CA$39,2),SUM($AV59:BE59),0)+IF(RIGHT(CA$39,2)>RIGHT($K59,2),BE59,0)) -> 2.71 | CC59: =+O59*KeyAssumptionsPriceControl_FO!X$15 -> 1.6368 | CD59: =+P59*KeyAssumptionsPriceControl_FO!Y$15 -> 1.61165466 | CE59: =+Q59*KeyAssumptionsPriceControl_FO!Z$15 -> 1.209777059 | CF59: =+R59*KeyAssumptionsPriceControl_FO!AA$15 -> 1.401885373 | CG59: =+S59*KeyAssumptionsPriceControl_FO!AB$15 -> 1.26046471 | CH59: =+T59*KeyAssumptionsPriceControl_FO!AC$15 -> 4.384148355 | CI59: =+U59*KeyAssumptionsPriceControl_FO!AD$15 -> 12.60485634 | CJ59: =+V59*KeyAssumptionsPriceControl_FO!AE$15 -> 16.21741989 | CK59: =+W59*KeyAssumptionsPriceControl_FO!AF$15 -> 10.72487245 | CL59: =+X59*KeyAssumptionsPriceControl_FO!AG$15 -> 3.401931997 | CN59: 0.008184 | CO59: 0.0244262733 | CP59: 0.03853343189 | CQ59: 0.05159174405 | CR59: 0.06490349447 | CS59: 0.09312655979 | CT59: 0.1780715833 | CU59: 0.3221829644 | CV59: 0.4568944261 | CW59: 0.5275284484
C60: Water Main To Meter Renewals | E60: Water | F60: Renewals | G60: Pipelines/network | H60: Capital Programs / Allocation | J60: Straight line | K60: Ongoing | L60: 100 | M60: 0.5 | O60: 2.554 | P60: 2.554 | Q60: 2.554 | R60: 2.554 | S60: 2.554 | T60: 2.554 | U60: 2.554 | V60: 2.554 | W60: 2.554 | X60: 2.554 | AV60: 2.554 | AW60: 2.554 | AX60: 2.554 | AY60: 2.554 | AZ60: 2.554 | BA60: 2.554 | BB60: 2.554 | BC60: 2.554 | BD60: 2.554 | BE60: 2.554 | BG60: 0.01277 | BH60: 0.03831 | BI60: 0.06385 | BJ60: 0.08939 | BK60: 0.11493 | BL60: 0.14047 | BM60: 0.16601 | BN60: 0.19155 | BO60: 0.21709 | BP60: 0.24263 | BR60: =+IF($K60="Ongoing",AV60,IF(RIGHT($K60,2)=RIGHT(BR$39,2),SUM($AV60:AV60),0)+IF(RIGHT(BR$39,2)>RIGHT($K60,2),AV60,0)) -> 2.554 | BS60: =+IF($K60="Ongoing",AW60,IF(RIGHT($K60,2)=RIGHT(BS$39,2),SUM($AV60:AW60),0)+IF(RIGHT(BS$39,2)>RIGHT($K60,2),AW60,0)) -> 2.554 | BT60: =+IF($K60="Ongoing",AX60,IF(RIGHT($K60,2)=RIGHT(BT$39,2),SUM($AV60:AX60),0)+IF(RIGHT(BT$39,2)>RIGHT($K60,2),AX60,0)) -> 2.554 | BU60: =+IF($K60="Ongoing",AY60,IF(RIGHT($K60,2)=RIGHT(BU$39,2),SUM($AV60:AY60),0)+IF(RIGHT(BU$39,2)>RIGHT($K60,2),AY60,0)) -> 2.554 | BV60: =+IF($K60="Ongoing",AZ60,IF(RIGHT($K60,2)=RIGHT(BV$39,2),SUM($AV60:AZ60),0)+IF(RIGHT(BV$39,2)>RIGHT($K60,2),AZ60,0)) -> 2.554 | BW60: =+IF($K60="Ongoing",BA60,IF(RIGHT($K60,2)=RIGHT(BW$39,2),SUM($AV60:BA60),0)+IF(RIGHT(BW$39,2)>RIGHT($K60,2),BA60,0)) -> 2.554 | BX60: =+IF($K60="Ongoing",BB60,IF(RIGHT($K60,2)=RIGHT(BX$39,2),SUM($AV60:BB60),0)+IF(RIGHT(BX$39,2)>RIGHT($K60,2),BB60,0)) -> 2.554 | BY60: =+IF($K60="Ongoing",BC60,IF(RIGHT($K60,2)=RIGHT(BY$39,2),SUM($AV60:BC60),0)+IF(RIGHT(BY$39,2)>RIGHT($K60,2),BC60,0)) -> 2.554 | BZ60: =+IF($K60="Ongoing",BD60,IF(RIGHT($K60,2)=RIGHT(BZ$39,2),SUM($AV60:BD60),0)+IF(RIGHT(BZ$39,2)>RIGHT($K60,2),BD60,0)) -> 2.554 | CA60: =+IF($K60="Ongoing",BE60,IF(RIGHT($K60,2)=RIGHT(CA$39,2),SUM($AV60:BE60),0)+IF(RIGHT(CA$39,2)>RIGHT($K60,2),BE60,0)) -> 2.554 | CC60: =+O60*KeyAssumptionsPriceControl_FO!X$15 -> 2.612742 | CD60: =+P60*KeyAssumptionsPriceControl_FO!Y$15 -> 2.672835066 | CE60: =+Q60*KeyAssumptionsPriceControl_FO!Z$15 -> 2.734310273 | CF60: =+R60*KeyAssumptionsPriceControl_FO!AA$15 -> 2.797199409 | CG60: =+S60*KeyAssumptionsPriceControl_FO!AB$15 -> 2.861534995 | CH60: =+T60*KeyAssumptionsPriceControl_FO!AC$15 -> 2.9273503 | CI60: =+U60*KeyAssumptionsPriceControl_FO!AD$15 -> 2.994679357 | CJ60: =+V60*KeyAssumptionsPriceControl_FO!AE$15 -> 3.063556982 | CK60: =+W60*KeyAssumptionsPriceControl_FO!AF$15 -> 3.134018793 | CL60: =+X60*KeyAssumptionsPriceControl_FO!AG$15 -> 3.206101225 | CN60: 2.612742 | CO60: 2.672835066 | CP60: 2.734310273 | CQ60: 2.797199409 | CR60: 2.861534995 | CS60: 2.9273503 | CT60: 2.994679357 | CU60: 3.063556982 | CV60: 3.134018793 | CW60: 3.206101225
C61: Water Reliability Civil | E61: Water | F61: Renewals | G61: Pipelines/network | H61: Capital Programs / Allocation | J61: Straight line | K61: Ongoing | L61: 100 | M61: 100 | O61: 6.73141 | P61: 6.68141 | Q61: 6.40641 | R61: 6.03141 | S61: 6.33141 | T61: 8.96371 | U61: 8.96371 | V61: 8.96371 | W61: 8.96371 | X61: 8.96371 | AV61: 6.73141 | AW61: 6.68141 | AX61: 6.40641 | AY61: 6.03141 | AZ61: 6.33141 | BA61: 8.96371 | BB61: 8.96371 | BC61: 8.96371 | BD61: 8.96371 | BE61: 8.96371 | BG61: 0.03365705 | BH61: 0.10072115 | BI61: 0.16616025 | BJ61: 0.22834935 | BK61: 0.29016345 | BL61: 0.36663905 | BM61: 0.45627615 | BN61: 0.54591325 | BO61: 0.63555035 | BP61: 0.72518745 | BR61: =+IF($K61="Ongoing",AV61,IF(RIGHT($K61,2)=RIGHT(BR$39,2),SUM($AV61:AV61),0)+IF(RIGHT(BR$39,2)>RIGHT($K61,2),AV61,0)) -> 6.73141 | BS61: =+IF($K61="Ongoing",AW61,IF(RIGHT($K61,2)=RIGHT(BS$39,2),SUM($AV61:AW61),0)+IF(RIGHT(BS$39,2)>RIGHT($K61,2),AW61,0)) -> 6.68141 | BT61: =+IF($K61="Ongoing",AX61,IF(RIGHT($K61,2)=RIGHT(BT$39,2),SUM($AV61:AX61),0)+IF(RIGHT(BT$39,2)>RIGHT($K61,2),AX61,0)) -> 6.40641 | BU61: =+IF($K61="Ongoing",AY61,IF(RIGHT($K61,2)=RIGHT(BU$39,2),SUM($AV61:AY61),0)+IF(RIGHT(BU$39,2)>RIGHT($K61,2),AY61,0)) -> 6.03141 | BV61: =+IF($K61="Ongoing",AZ61,IF(RIGHT($K61,2)=RIGHT(BV$39,2),SUM($AV61:AZ61),0)+IF(RIGHT(BV$39,2)>RIGHT($K61,2),AZ61,0)) -> 6.33141 | BW61: =+IF($K61="Ongoing",BA61,IF(RIGHT($K61,2)=RIGHT(BW$39,2),SUM($AV61:BA61),0)+IF(RIGHT(BW$39,2)>RIGHT($K61,2),BA61,0)) -> 8.96371 | BX61: =+IF($K61="Ongoing",BB61,IF(RIGHT($K61,2)=RIGHT(BX$39,2),SUM($AV61:BB61),0)+IF(RIGHT(BX$39,2)>RIGHT($K61,2),BB61,0)) -> 8.96371 | BY61: =+IF($K61="Ongoing",BC61,IF(RIGHT($K61,2)=RIGHT(BY$39,2),SUM($AV61:BC61),0)+IF(RIGHT(BY$39,2)>RIGHT($K61,2),BC61,0)) -> 8.96371 | BZ61: =+IF($K61="Ongoing",BD61,IF(RIGHT($K61,2)=RIGHT(BZ$39,2),SUM($AV61:BD61),0)+IF(RIGHT(BZ$39,2)>RIGHT($K61,2),BD61,0)) -> 8.96371 | CA61: =+IF($K61="Ongoing",BE61,IF(RIGHT($K61,2)=RIGHT(CA$39,2),SUM($AV61:BE61),0)+IF(RIGHT(CA$39,2)>RIGHT($K61,2),BE61,0)) -> 8.96371 | CC61: =+O61*KeyAssumptionsPriceControl_FO!X$15 -> 6.88623243 | CD61: =+P61*KeyAssumptionsPriceControl_FO!Y$15 -> 6.992289326 | CE61: =+Q61*KeyAssumptionsPriceControl_FO!Z$15 -> 6.858697209 | CF61: =+R61*KeyAssumptionsPriceControl_FO!AA$15 -> 6.60573864 | CG61: =+S61*KeyAssumptionsPriceControl_FO!AB$15 -> 7.093794551 | CH61: =+T61*KeyAssumptionsPriceControl_FO!AC$15 -> 10.27404822 | CI61: =+U61*KeyAssumptionsPriceControl_FO!AD$15 -> 10.51035133 | CJ61: =+V61*KeyAssumptionsPriceControl_FO!AE$15 -> 10.75208941 | CK61: =+W61*KeyAssumptionsPriceControl_FO!AF$15 -> 10.99938747 | CL61: =+X61*KeyAssumptionsPriceControl_FO!AG$15 -> 11.25237338 | CN61: 0.03443116215 | CO61: 0.1038237709 | CP61: 0.1730787036 | CQ61: 0.2404008829 | CR61: 0.3088985488 | CS61: 0.3957377627 | CT61: 0.4996597604 | CU61: 0.6059719641 | CV61: 0.7147293485 | CW61: 0.8259881528
C62: Water Reliability M&E | E62: Water | F62: Renewals | G62: Pipelines/network | H62: Capital Programs / Allocation | J62: Straight line | K62: Ongoing | L62: 50 | M62: 50 | O62: 5.095 | P62: 5.395 | Q62: 5.495 | R62: 5.345 | S62: 5.225 | T62: 4.025 | U62: 4.025 | V62: 4.025 | W62: 4.025 | X62: 4.025 | AV62: 5.095 | AW62: 5.395 | AX62: 5.495 | AY62: 5.345 | AZ62: 5.225 | BA62: 4.025 | BB62: 4.025 | BC62: 4.025 | BD62: 4.025 | BE62: 4.025 | BG62: 0.05095 | BH62: 0.15585 | BI62: 0.26475 | BJ62: 0.37315 | BK62: 0.47885 | BL62: 0.57135 | BM62: 0.65185 | BN62: 0.73235 | BO62: 0.81285 | BP62: 0.89335 | BR62: =+IF($K62="Ongoing",AV62,IF(RIGHT($K62,2)=RIGHT(BR$39,2),SUM($AV62:AV62),0)+IF(RIGHT(BR$39,2)>RIGHT($K62,2),AV62,0)) -> 5.095 | BS62: =+IF($K62="Ongoing",AW62,IF(RIGHT($K62,2)=RIGHT(BS$39,2),SUM($AV62:AW62),0)+IF(RIGHT(BS$39,2)>RIGHT($K62,2),AW62,0)) -> 5.395 | BT62: =+IF($K62="Ongoing",AX62,IF(RIGHT($K62,2)=RIGHT(BT$39,2),SUM($AV62:AX62),0)+IF(RIGHT(BT$39,2)>RIGHT($K62,2),AX62,0)) -> 5.495 | BU62: =+IF($K62="Ongoing",AY62,IF(RIGHT($K62,2)=RIGHT(BU$39,2),SUM($AV62:AY62),0)+IF(RIGHT(BU$39,2)>RIGHT($K62,2),AY62,0)) -> 5.345 | BV62: =+IF($K62="Ongoing",AZ62,IF(RIGHT($K62,2)=RIGHT(BV$39,2),SUM($AV62:AZ62),0)+IF(RIGHT(BV$39,2)>RIGHT($K62,2),AZ62,0)) -> 5.225 | BW62: =+IF($K62="Ongoing",BA62,IF(RIGHT($K62,2)=RIGHT(BW$39,2),SUM($AV62:BA62),0)+IF(RIGHT(BW$39,2)>RIGHT($K62,2),BA62,0)) -> 4.025 | BX62: =+IF($K62="Ongoing",BB62,IF(RIGHT($K62,2)=RIGHT(BX$39,2),SUM($AV62:BB62),0)+IF(RIGHT(BX$39,2)>RIGHT($K62,2),BB62,0)) -> 4.025 | BY62: =+IF($K62="Ongoing",BC62,IF(RIGHT($K62,2)=RIGHT(BY$39,2),SUM($AV62:BC62),0)+IF(RIGHT(BY$39,2)>RIGHT($K62,2),BC62,0)) -> 4.025 | BZ62: =+IF($K62="Ongoing",BD62,IF(RIGHT($K62,2)=RIGHT(BZ$39,2),SUM($AV62:BD62),0)+IF(RIGHT(BZ$39,2)>RIGHT($K62,2),BD62,0)) -> 4.025 | CA62: =+IF($K62="Ongoing",BE62,IF(RIGHT($K62,2)=RIGHT(CA$39,2),SUM($AV62:BE62),0)+IF(RIGHT(CA$39,2)>RIGHT($K62,2),BE62,0)) -> 4.025 | CC62: =+O62*KeyAssumptionsPriceControl_FO!X$15 -> 5.212185 | CD62: =+P62*KeyAssumptionsPriceControl_FO!Y$15 -> 5.646023955 | CE62: =+Q62*KeyAssumptionsPriceControl_FO!Z$15 -> 5.882942423 | CF62: =+R62*KeyAssumptionsPriceControl_FO!AA$15 -> 5.853966656 | CG62: =+S62*KeyAssumptionsPriceControl_FO!AB$15 -> 5.85415832 | CH62: =+T62*KeyAssumptionsPriceControl_FO!AC$15 -> 4.61338487 | CI62: =+U62*KeyAssumptionsPriceControl_FO!AD$15 -> 4.719492722 | CJ62: =+V62*KeyAssumptionsPriceControl_FO!AE$15 -> 4.828041055 | CK62: =+W62*KeyAssumptionsPriceControl_FO!AF$15 -> 4.939085999 | CL62: =+X62*KeyAssumptionsPriceControl_FO!AG$15 -> 5.052684977 | CN62: 0.05212185 | CO62: 0.1607039395 | CP62: 0.2759936033 | CQ62: 0.3933626941 | CR62: 0.5104439439 | CS62: 0.6151193758 | CT62: 0.7084481517 | CU62: 0.8039234895 | CV62: 0.90159476 | CW62: 1.00151247
C63: Water Conservation | E63: Water | F63: Renewals | G63: Pipelines/network | H63: Capital Programs / Allocation | J63: Straight line | K63: Ongoing | L63: 100 | M63: 100 | O63: 0 | P63: 0 | Q63: 0 | R63: 0 | S63: 0 | T63: 0.545 | U63: 0.545 | V63: 0.545 | W63: 0.545 | X63: 0.545 | AV63: 0 | AW63: 0 | AX63: 0 | AY63: 0 | AZ63: 0 | BA63: 0.545 | BB63: 0.545 | BC63: 0.545 | BD63: 0.545 | BE63: 0.545 | BG63: 0 | BH63: 0 | BI63: 0 | BJ63: 0 | BK63: 0 | BL63: 0.002725 | BM63: 0.008175 | BN63: 0.013625 | BO63: 0.019075 | BP63: 0.024525 | BR63: =+IF($K63="Ongoing",AV63,IF(RIGHT($K63,2)=RIGHT(BR$39,2),SUM($AV63:AV63),0)+IF(RIGHT(BR$39,2)>RIGHT($K63,2),AV63,0)) -> 0 | BS63: =+IF($K63="Ongoing",AW63,IF(RIGHT($K63,2)=RIGHT(BS$39,2),SUM($AV63:AW63),0)+IF(RIGHT(BS$39,2)>RIGHT($K63,2),AW63,0)) -> 0 | BT63: =+IF($K63="Ongoing",AX63,IF(RIGHT($K63,2)=RIGHT(BT$39,2),SUM($AV63:AX63),0)+IF(RIGHT(BT$39,2)>RIGHT($K63,2),AX63,0)) -> 0 | BU63: =+IF($K63="Ongoing",AY63,IF(RIGHT($K63,2)=RIGHT(BU$39,2),SUM($AV63:AY63),0)+IF(RIGHT(BU$39,2)>RIGHT($K63,2),AY63,0)) -> 0 | BV63: =+IF($K63="Ongoing",AZ63,IF(RIGHT($K63,2)=RIGHT(BV$39,2),SUM($AV63:AZ63),0)+IF(RIGHT(BV$39,2)>RIGHT($K63,2),AZ63,0)) -> 0 | BW63: =+IF($K63="Ongoing",BA63,IF(RIGHT($K63,2)=RIGHT(BW$39,2),SUM($AV63:BA63),0)+IF(RIGHT(BW$39,2)>RIGHT($K63,2),BA63,0)) -> 0.545 | BX63: =+IF($K63="Ongoing",BB63,IF(RIGHT($K63,2)=RIGHT(BX$39,2),SUM($AV63:BB63),0)+IF(RIGHT(BX$39,2)>RIGHT($K63,2),BB63,0)) -> 0.545 | BY63: =+IF($K63="Ongoing",BC63,IF(RIGHT($K63,2)=RIGHT(BY$39,2),SUM($AV63:BC63),0)+IF(RIGHT(BY$39,2)>RIGHT($K63,2),BC63,0)) -> 0.545 | BZ63: =+IF($K63="Ongoing",BD63,IF(RIGHT($K63,2)=RIGHT(BZ$39,2),SUM($AV63:BD63),0)+IF(RIGHT(BZ$39,2)>RIGHT($K63,2),BD63,0)) -> 0.545 | CA63: =+IF($K63="Ongoing",BE63,IF(RIGHT($K63,2)=RIGHT(CA$39,2),SUM($AV63:BE63),0)+IF(RIGHT(CA$39,2)>RIGHT($K63,2),BE63,0)) -> 0.545 | CC63: =+O63*KeyAssumptionsPriceControl_FO!X$15 -> 0 | CD63: =+P63*KeyAssumptionsPriceControl_FO!Y$15 -> 0 | CE63: =+Q63*KeyAssumptionsPriceControl_FO!Z$15 -> 0 | CF63: =+R63*KeyAssumptionsPriceControl_FO!AA$15 -> 0 | CG63: =+S63*KeyAssumptionsPriceControl_FO!AB$15 -> 0 | CH63: =+T63*KeyAssumptionsPriceControl_FO!AC$15 -> 0.6246695041 | CI63: =+U63*KeyAssumptionsPriceControl_FO!AD$15 -> 0.6390369027 | CJ63: =+V63*KeyAssumptionsPriceControl_FO!AE$15 -> 0.6537347515 | CK63: =+W63*KeyAssumptionsPriceControl_FO!AF$15 -> 0.6687706508 | CL63: =+X63*KeyAssumptionsPriceControl_FO!AG$15 -> 0.6841523757 | CN63: 0 | CO63: 0 | CP63: 0 | CQ63: 0 | CR63: 0 | CS63: 0.003123347521 | CT63: 0.009441879555 | CU63: 0.01590573783 | CV63: 0.02251826484 | CW63: 0.02928287997
C64: Water Customer Meter Replacements | E64: Water | F64: Renewals | G64: Pipelines/network | H64: Capital Programs / Allocation | J64: Straight line | K64: Ongoing | L64: 18 | M64: 18 | O64: 2.319 | P64: 2.319 | Q64: 2.319 | R64: 2.319 | S64: 2.319 | T64: 2.319 | U64: 2.319 | V64: 2.319 | W64: 2.319 | X64: 2.319 | AV64: 2.319 | AW64: 2.319 | AX64: 2.319 | AY64: 2.319 | AZ64: 2.319 | BA64: 2.319 | BB64: 2.319 | BC64: 2.319 | BD64: 2.319 | BE64: 2.319 | BG64: 0.06441666667 | BH64: 0.19325 | BI64: 0.3220833333 | BJ64: 0.4509166667 | BK64: 0.57975 | BL64: 0.7085833333 | BM64: 0.8374166667 | BN64: 0.96625 | BO64: 1.095083333 | BP64: 1.223916667 | BR64: =+IF($K64="Ongoing",AV64,IF(RIGHT($K64,2)=RIGHT(BR$39,2),SUM($AV64:AV64),0)+IF(RIGHT(BR$39,2)>RIGHT($K64,2),AV64,0)) -> 2.319 | BS64: =+IF($K64="Ongoing",AW64,IF(RIGHT($K64,2)=RIGHT(BS$39,2),SUM($AV64:AW64),0)+IF(RIGHT(BS$39,2)>RIGHT($K64,2),AW64,0)) -> 2.319 | BT64: =+IF($K64="Ongoing",AX64,IF(RIGHT($K64,2)=RIGHT(BT$39,2),SUM($AV64:AX64),0)+IF(RIGHT(BT$39,2)>RIGHT($K64,2),AX64,0)) -> 2.319 | BU64: =+IF($K64="Ongoing",AY64,IF(RIGHT($K64,2)=RIGHT(BU$39,2),SUM($AV64:AY64),0)+IF(RIGHT(BU$39,2)>RIGHT($K64,2),AY64,0)) -> 2.319 | BV64: =+IF($K64="Ongoing",AZ64,IF(RIGHT($K64,2)=RIGHT(BV$39,2),SUM($AV64:AZ64),0)+IF(RIGHT(BV$39,2)>RIGHT($K64,2),AZ64,0)) -> 2.319 | BW64: =+IF($K64="Ongoing",BA64,IF(RIGHT($K64,2)=RIGHT(BW$39,2),SUM($AV64:BA64),0)+IF(RIGHT(BW$39,2)>RIGHT($K64,2),BA64,0)) -> 2.319 | BX64: =+IF($K64="Ongoing",BB64,IF(RIGHT($K64,2)=RIGHT(BX$39,2),SUM($AV64:BB64),0)+IF(RIGHT(BX$39,2)>RIGHT($K64,2),BB64,0)) -> 2.319 | BY64: =+IF($K64="Ongoing",BC64,IF(RIGHT($K64,2)=RIGHT(BY$39,2),SUM($AV64:BC64),0)+IF(RIGHT(BY$39,2)>RIGHT($K64,2),BC64,0)) -> 2.319 | BZ64: =+IF($K64="Ongoing",BD64,IF(RIGHT($K64,2)=RIGHT(BZ$39,2),SUM($AV64:BD64),0)+IF(RIGHT(BZ$39,2)>RIGHT($K64,2),BD64,0)) -> 2.319 | CA64: =+IF($K64="Ongoing",BE64,IF(RIGHT($K64,2)=RIGHT(CA$39,2),SUM($AV64:BE64),0)+IF(RIGHT(CA$39,2)>RIGHT($K64,2),BE64,0)) -> 2.319 | CC64: =+O64*KeyAssumptionsPriceControl_FO!X$15 -> 2.372337 | CD64: =+P64*KeyAssumptionsPriceControl_FO!Y$15 -> 2.426900751 | CE64: =+Q64*KeyAssumptionsPriceControl_FO!Z$15 -> 2.482719468 | CF64: =+R64*KeyAssumptionsPriceControl_FO!AA$15 -> 2.539822016 | CG64: =+S64*KeyAssumptionsPriceControl_FO!AB$15 -> 2.598237922 | CH64: =+T64*KeyAssumptionsPriceControl_FO!AC$15 -> 2.657997395 | CI64: =+U64*KeyAssumptionsPriceControl_FO!AD$15 -> 2.719131335 | CJ64: =+V64*KeyAssumptionsPriceControl_FO!AE$15 -> 2.781671355 | CK64: =+W64*KeyAssumptionsPriceControl_FO!AF$15 -> 2.845649797 | CL64: =+X64*KeyAssumptionsPriceControl_FO!AG$15 -> 2.911099742 | CN64: 0.06589825 | CO64: 0.1992104097 | CP64: 0.3355887492 | CQ64: 0.4751037904 | CR64: 0.6178276776 | CS64: 0.7638342142 | CT64: 0.9131989011 | CU64: 1.065998976 | CV64: 1.222313452 | CW64: 1.382223162
C65: [Capex Item - Significant Project / Capital Program / Other Capex] | E65: [Service] | F65: [Major Cost Driver] | G65: [Asset category] | H65: [Capital type] | J65: Straight line | K65: [Year finalised?] | AV65: 0 | AW65: 0 | AX65: 0 | AY65: 0 | AZ65: 0 | BA65: 0 | BB65: 0 | BC65: 0 | BD65: 0 | BE65: 0 | BG65: 0 | BH65: 0 | BI65: 0 | BJ65: 0 | BK65: 0 | BL65: 0 | BM65: 0 | BN65: 0 | BO65: 0 | BP65: 0 | BR65: =+IF($K65="Ongoing",AV65,IF(RIGHT($K65,2)=RIGHT(BR$39,2),SUM($AV65:AV65),0)+IF(RIGHT(BR$39,2)>RIGHT($K65,2),AV65,0)) -> 0 | BS65: =+IF($K65="Ongoing",AW65,IF(RIGHT($K65,2)=RIGHT(BS$39,2),SUM($AV65:AW65),0)+IF(RIGHT(BS$39,2)>RIGHT($K65,2),AW65,0)) -> 0 | BT65: =+IF($K65="Ongoing",AX65,IF(RIGHT($K65,2)=RIGHT(BT$39,2),SUM($AV65:AX65),0)+IF(RIGHT(BT$39,2)>RIGHT($K65,2),AX65,0)) -> 0 | BU65: =+IF($K65="Ongoing",AY65,IF(RIGHT($K65,2)=RIGHT(BU$39,2),SUM($AV65:AY65),0)+IF(RIGHT(BU$39,2)>RIGHT($K65,2),AY65,0)) -> 0 | BV65: =+IF($K65="Ongoing",AZ65,IF(RIGHT($K65,2)=RIGHT(BV$39,2),SUM($AV65:AZ65),0)+IF(RIGHT(BV$39,2)>RIGHT($K65,2),AZ65,0)) -> 0 | BW65: =+IF($K65="Ongoing",BA65,IF(RIGHT($K65,2)=RIGHT(BW$39,2),SUM($AV65:BA65),0)+IF(RIGHT(BW$39,2)>RIGHT($K65,2),BA65,0)) -> 0 | BX65: =+IF($K65="Ongoing",BB65,IF(RIGHT($K65,2)=RIGHT(BX$39,2),SUM($AV65:BB65),0)+IF(RIGHT(BX$39,2)>RIGHT($K65,2),BB65,0)) -> 0 | BY65: =+IF($K65="Ongoing",BC65,IF(RIGHT($K65,2)=RIGHT(BY$39,2),SUM($AV65:BC65),0)+IF(RIGHT(BY$39,2)>RIGHT($K65,2),BC65,0)) -> 0 | BZ65: =+IF($K65="Ongoing",BD65,IF(RIGHT($K65,2)=RIGHT(BZ$39,2),SUM($AV65:BD65),0)+IF(RIGHT(BZ$39,2)>RIGHT($K65,2),BD65,0)) -> 0 | CA65: =+IF($K65="Ongoing",BE65,IF(RIGHT($K65,2)=RIGHT(CA$39,2),SUM($AV65:BE65),0)+IF(RIGHT(CA$39,2)>RIGHT($K65,2),BE65,0)) -> 0 | CC65: =+O65*KeyAssumptionsPriceControl_FO!X$15 -> 0 | CD65: =+P65*KeyAssumptionsPriceControl_FO!Y$15 -> 0 | CE65: =+Q65*KeyAssumptionsPriceControl_FO!Z$15 -> 0 | CF65: =+R65*KeyAssumptionsPriceControl_FO!AA$15 -> 0 | CG65: =+S65*KeyAssumptionsPriceControl_FO!AB$15 -> 0 | CH65: =+T65*KeyAssumptionsPriceControl_FO!AC$15 -> 0 | CI65: =+U65*KeyAssumptionsPriceControl_FO!AD$15 -> 0 | CJ65: =+V65*KeyAssumptionsPriceControl_FO!AE$15 -> 0 | CK65: =+W65*KeyAssumptionsPriceControl_FO!AF$15 -> 0 | CL65: =+X65*KeyAssumptionsPriceControl_FO!AG$15 -> 0 | CN65: 0 | CO65: 0 | CP65: 0 | CQ65: 0 | CR65: 0 | CS65: 0 | CT65: 0 | CU65: 0 | CV65: 0 | CW65: 0
C66: Community Sewerage | E66: Sewerage | F66: Improvements / Compliance | G66: Pipelines/network | H66: Capital Programs / Allocation | J66: Straight line | K66: Ongoing | L66: 100 | M66: 100 | O66: 18.48347355 | P66: 8.361029538 | Q66: 7.340793655 | R66: 9.215821533 | S66: 11.72096505 | T66: 17.76170007 | U66: 20.1882067 | V66: 21.46069316 | W66: 23.51852588 | X66: 21.22682532 | AV66: 18.48347355 | AW66: 8.361029538 | AX66: 7.340793655 | AY66: 9.215821533 | AZ66: 11.72096505 | BA66: 17.76170007 | BB66: 20.1882067 | BC66: 21.46069316 | BD66: 23.51852588 | BE66: 21.22682532 | BG66: 0.09241736776 | BH66: 0.2266398832 | BI66: 0.3051489992 | BJ66: 0.3879320751 | BK66: 0.492616008 | BL66: 0.6400293336 | BM66: 0.8297788674 | BN66: 1.038023367 | BO66: 1.262919462 | BP66: 1.486646218 | BR66: =+IF($K66="Ongoing",AV66,IF(RIGHT($K66,2)=RIGHT(BR$39,2),SUM($AV66:AV66),0)+IF(RIGHT(BR$39,2)>RIGHT($K66,2),AV66,0)) -> 18.48347355 | BS66: =+IF($K66="Ongoing",AW66,IF(RIGHT($K66,2)=RIGHT(BS$39,2),SUM($AV66:AW66),0)+IF(RIGHT(BS$39,2)>RIGHT($K66,2),AW66,0)) -> 8.361029538 | BT66: =+IF($K66="Ongoing",AX66,IF(RIGHT($K66,2)=RIGHT(BT$39,2),SUM($AV66:AX66),0)+IF(RIGHT(BT$39,2)>RIGHT($K66,2),AX66,0)) -> 7.340793655 | BU66: =+IF($K66="Ongoing",AY66,IF(RIGHT($K66,2)=RIGHT(BU$39,2),SUM($AV66:AY66),0)+IF(RIGHT(BU$39,2)>RIGHT($K66,2),AY66,0)) -> 9.215821533 | BV66: =+IF($K66="Ongoing",AZ66,IF(RIGHT($K66,2)=RIGHT(BV$39,2),SUM($AV66:AZ66),0)+IF(RIGHT(BV$39,2)>RIGHT($K66,2),AZ66,0)) -> 11.72096505 | BW66: =+IF($K66="Ongoing",BA66,IF(RIGHT($K66,2)=RIGHT(BW$39,2),SUM($AV66:BA66),0)+IF(RIGHT(BW$39,2)>RIGHT($K66,2),BA66,0)) -> 17.76170007 | BX66: =+IF($K66="Ongoing",BB66,IF(RIGHT($K66,2)=RIGHT(BX$39,2),SUM($AV66:BB66),0)+IF(RIGHT(BX$39,2)>RIGHT($K66,2),BB66,0)) -> 20.1882067 | BY66: =+IF($K66="Ongoing",BC66,IF(RIGHT($K66,2)=RIGHT(BY$39,2),SUM($AV66:BC66),0)+IF(RIGHT(BY$39,2)>RIGHT($K66,2),BC66,0)) -> 21.46069316 | BZ66: =+IF($K66="Ongoing",BD66,IF(RIGHT($K66,2)=RIGHT(BZ$39,2),SUM($AV66:BD66),0)+IF(RIGHT(BZ$39,2)>RIGHT($K66,2),BD66,0)) -> 23.51852588 | CA66: =+IF($K66="Ongoing",BE66,IF(RIGHT($K66,2)=RIGHT(CA$39,2),SUM($AV66:BE66),0)+IF(RIGHT(CA$39,2)>RIGHT($K66,2),BE66,0)) -> 21.22682532 | CC66: =+O66*KeyAssumptionsPriceControl_FO!X$15 -> 18.90859344 | CD66: =+P66*KeyAssumptionsPriceControl_FO!Y$15 -> 8.750059882 | CE66: =+Q66*KeyAssumptionsPriceControl_FO!Z$15 -> 7.859047572 | CF66: =+R66*KeyAssumptionsPriceControl_FO!AA$15 -> 10.09337923 | CG66: =+S66*KeyAssumptionsPriceControl_FO!AB$15 -> 13.1323225 | CH66: =+T66*KeyAssumptionsPriceControl_FO!AC$15 -> 20.35815115 | CI66: =+U66*KeyAssumptionsPriceControl_FO!AD$15 -> 23.67157629 | CJ66: =+V66*KeyAssumptionsPriceControl_FO!AE$15 -> 25.74238699 | CK66: =+W66*KeyAssumptionsPriceControl_FO!AF$15 -> 28.85963276 | CL66: =+X66*KeyAssumptionsPriceControl_FO!AG$15 -> 26.64657426 | CN66: 0.09454296722 | CO66: 0.2328362338 | CP66: 0.3158817711 | CQ66: 0.4056439051 | CR66: 0.5217724137 | CS66: 0.6892247819 | CT66: 0.9093734191 | CU66: 1.156443236 | CV66: 1.429453334 | CW66: 1.706984369
C67: Sewer Growth Works | E67: Sewerage | F67: Growth | G67: Pipelines/network | H67: Capital Programs / Allocation | J67: Straight line | K67: Ongoing | L67: 1000000 | M67: 100 | O67: 15.28114912 | P67: 11.06319087 | Q67: 12.37999882 | R67: 14.06138116 | S67: 5.937546682 | T67: 18.53230536 | U67: 21.07714598 | V67: 12.71065225 | W67: 11.11472659 | X67: 4.625705328 | AK67: 12.7368689 | AL67: 12.57842783 | AM67: 12.41118516 | AN67: 11.89185191 | AO67: 11.63658629 | AP67: 11.39012309 | AQ67: 11.12605545 | AR67: 10.88839426 | AS67: 11.08204418 | AT67: 11.30210054 | AV67: 2.544280226 | AW67: -1.515236957 | AX67: -0.03118634434 | AY67: 2.16952925 | AZ67: -5.699039607 | BA67: 7.142182277 | BB67: 9.951090526 | BC67: 1.822257993 | BD67: 0.03268240822 | BE67: -6.676395214 | BG67: 1.272140113e-06 | BH67: 1.786661747e-06 | BI67: 1.013450097e-06 | BJ67: 2.08262155e-06 | BK67: 3.178663716e-07 | BL67: 1.039437707e-06 | BM67: 9.586074109e-06 | BN67: 1.547274837e-05 | BO67: 1.640021857e-05 | BP67: 1.307836217e-05 | BR67: =+IF($K67="Ongoing",AV67,IF(RIGHT($K67,2)=RIGHT(BR$39,2),SUM($AV67:AV67),0)+IF(RIGHT(BR$39,2)>RIGHT($K67,2),AV67,0)) -> 2.544280226 | BS67: =+IF($K67="Ongoing",AW67,IF(RIGHT($K67,2)=RIGHT(BS$39,2),SUM($AV67:AW67),0)+IF(RIGHT(BS$39,2)>RIGHT($K67,2),AW67,0)) -> -1.515236957 | BT67: =+IF($K67="Ongoing",AX67,IF(RIGHT($K67,2)=RIGHT(BT$39,2),SUM($AV67:AX67),0)+IF(RIGHT(BT$39,2)>RIGHT($K67,2),AX67,0)) -> -0.03118634434 | BU67: =+IF($K67="Ongoing",AY67,IF(RIGHT($K67,2)=RIGHT(BU$39,2),SUM($AV67:AY67),0)+IF(RIGHT(BU$39,2)>RIGHT($K67,2),AY67,0)) -> 2.16952925 | BV67: =+IF($K67="Ongoing",AZ67,IF(RIGHT($K67,2)=RIGHT(BV$39,2),SUM($AV67:AZ67),0)+IF(RIGHT(BV$39,2)>RIGHT($K67,2),AZ67,0)) -> -5.699039607 | BW67: =+IF($K67="Ongoing",BA67,IF(RIGHT($K67,2)=RIGHT(BW$39,2),SUM($AV67:BA67),0)+IF(RIGHT(BW$39,2)>RIGHT($K67,2),BA67,0)) -> 7.142182277 | BX67: =+IF($K67="Ongoing",BB67,IF(RIGHT($K67,2)=RIGHT(BX$39,2),SUM($AV67:BB67),0)+IF(RIGHT(BX$39,2)>RIGHT($K67,2),BB67,0)) -> 9.951090526 | BY67: =+IF($K67="Ongoing",BC67,IF(RIGHT($K67,2)=RIGHT(BY$39,2),SUM($AV67:BC67),0)+IF(RIGHT(BY$39,2)>RIGHT($K67,2),BC67,0)) -> 1.822257993 | BZ67: =+IF($K67="Ongoing",BD67,IF(RIGHT($K67,2)=RIGHT(BZ$39,2),SUM($AV67:BD67),0)+IF(RIGHT(BZ$39,2)>RIGHT($K67,2),BD67,0)) -> 0.03268240822 | CA67: =+IF($K67="Ongoing",BE67,IF(RIGHT($K67,2)=RIGHT(CA$39,2),SUM($AV67:BE67),0)+IF(RIGHT(CA$39,2)>RIGHT($K67,2),BE67,0)) -> -6.676395214 | CC67: =+O67*KeyAssumptionsPriceControl_FO!X$15 -> 15.63261555 | CD67: =+P67*KeyAssumptionsPriceControl_FO!Y$15 -> 11.57795008 | CE67: =+Q67*KeyAssumptionsPriceControl_FO!Z$15 -> 13.25401642 | CF67: =+R67*KeyAssumptionsPriceControl_FO!AA$15 -> 15.40034732 | CG67: =+S67*KeyAssumptionsPriceControl_FO!AB$15 -> 6.652504939 | CH67: =+T67*KeyAssumptionsPriceControl_FO!AC$15 -> 21.24140551 | CI67: =+U67*KeyAssumptionsPriceControl_FO!AD$15 -> 24.71389741 | CJ67: =+V67*KeyAssumptionsPriceControl_FO!AE$15 -> 15.2465965 | CK67: =+W67*KeyAssumptionsPriceControl_FO!AF$15 -> 13.63890447 | CL67: =+X67*KeyAssumptionsPriceControl_FO!AG$15 -> 5.806765669 | CN67: 0.07816307777 | CO67: 0.2142159059 | CP67: 0.3383757385 | CQ67: 0.4816475572 | CR67: 0.5919118185 | CS67: 0.7313813707 | CT67: 0.9611578853 | CU67: 1.160960355 | CV67: 1.30538786 | CW67: 1.40261621
C68: Sewer Developer Reimbursements | E68: Sewerage | F68: Growth | G68: Pipelines/network | H68: Capital Programs / Allocation | J68: Straight line | K68: Ongoing | L68: 1000000 | M68: 100 | O68: 5.629128411 | P68: 6.498798024 | Q68: 5.939494485 | R68: 11.99490532 | S68: 12.67167682 | T68: 7.973499954 | U68: 16.68267377 | V68: 6.591645413 | W68: 3.649415904 | X68: 1.832084828 | AV68: 5.629128411 | AW68: 6.498798024 | AX68: 5.939494485 | AY68: 11.99490532 | AZ68: 12.67167682 | BA68: 7.973499954 | BB68: 16.68267377 | BC68: 6.591645413 | BD68: 3.649415904 | BE68: 1.832084828 | BG68: 2.814564205e-06 | BH68: 8.878527423e-06 | BI68: 1.509767368e-05 | BJ68: 2.406487358e-05 | BK68: 3.639816465e-05 | BL68: 4.672075304e-05 | BM68: 5.90488399e-05 | BN68: 7.06859995e-05 | BO68: 7.580653016e-05 | BP68: 7.854728052e-05 | BR68: =+IF($K68="Ongoing",AV68,IF(RIGHT($K68,2)=RIGHT(BR$39,2),SUM($AV68:AV68),0)+IF(RIGHT(BR$39,2)>RIGHT($K68,2),AV68,0)) -> 5.629128411 | BS68: =+IF($K68="Ongoing",AW68,IF(RIGHT($K68,2)=RIGHT(BS$39,2),SUM($AV68:AW68),0)+IF(RIGHT(BS$39,2)>RIGHT($K68,2),AW68,0)) -> 6.498798024 | BT68: =+IF($K68="Ongoing",AX68,IF(RIGHT($K68,2)=RIGHT(BT$39,2),SUM($AV68:AX68),0)+IF(RIGHT(BT$39,2)>RIGHT($K68,2),AX68,0)) -> 5.939494485 | BU68: =+IF($K68="Ongoing",AY68,IF(RIGHT($K68,2)=RIGHT(BU$39,2),SUM($AV68:AY68),0)+IF(RIGHT(BU$39,2)>RIGHT($K68,2),AY68,0)) -> 11.99490532 | BV68: =+IF($K68="Ongoing",AZ68,IF(RIGHT($K68,2)=RIGHT(BV$39,2),SUM($AV68:AZ68),0)+IF(RIGHT(BV$39,2)>RIGHT($K68,2),AZ68,0)) -> 12.67167682 | BW68: =+IF($K68="Ongoing",BA68,IF(RIGHT($K68,2)=RIGHT(BW$39,2),SUM($AV68:BA68),0)+IF(RIGHT(BW$39,2)>RIGHT($K68,2),BA68,0)) -> 7.973499954 | BX68: =+IF($K68="Ongoing",BB68,IF(RIGHT($K68,2)=RIGHT(BX$39,2),SUM($AV68:BB68),0)+IF(RIGHT(BX$39,2)>RIGHT($K68,2),BB68,0)) -> 16.68267377 | BY68: =+IF($K68="Ongoing",BC68,IF(RIGHT($K68,2)=RIGHT(BY$39,2),SUM($AV68:BC68),0)+IF(RIGHT(BY$39,2)>RIGHT($K68,2),BC68,0)) -> 6.591645413 | BZ68: =+IF($K68="Ongoing",BD68,IF(RIGHT($K68,2)=RIGHT(BZ$39,2),SUM($AV68:BD68),0)+IF(RIGHT(BZ$39,2)>RIGHT($K68,2),BD68,0)) -> 3.649415904 | CA68: =+IF($K68="Ongoing",BE68,IF(RIGHT($K68,2)=RIGHT(CA$39,2),SUM($AV68:BE68),0)+IF(RIGHT(CA$39,2)>RIGHT($K68,2),BE68,0)) -> 1.832084828 | CC68: =+O68*KeyAssumptionsPriceControl_FO!X$15 -> 5.758598364 | CD68: =+P68*KeyAssumptionsPriceControl_FO!Y$15 -> 6.801180597 | CE68: =+Q68*KeyAssumptionsPriceControl_FO!Z$15 -> 6.358817848 | CF68: =+R68*KeyAssumptionsPriceControl_FO!AA$15 -> 13.13709556 | CG68: =+S68*KeyAssumptionsPriceControl_FO!AB$15 -> 14.1975124 | CH68: =+T68*KeyAssumptionsPriceControl_FO!AC$15 -> 9.13908672 | CI68: =+U68*KeyAssumptionsPriceControl_FO!AD$15 -> 19.56118198 | CJ68: =+V68*KeyAssumptionsPriceControl_FO!AE$15 -> 7.906766378 | CK68: =+W68*KeyAssumptionsPriceControl_FO!AF$15 -> 4.478205962 | CL68: =+X68*KeyAssumptionsPriceControl_FO!AG$15 -> 2.29986273 | CN68: 0.02879299182 | CO68: 0.09159188663 | CP68: 0.1573918789 | CQ68: 0.2548714459 | CR68: 0.3915444857 | CS68: 0.5082274813 | CT68: 0.6517288248 | CU68: 0.7890685666 | CV68: 0.8509934283 | CW68: 0.8848837718
C69: Major Projects | E69: Sewerage | F69: Growth | G69: Pipelines/network | H69: Significant projects | J69: Straight line | K69: Ongoing | L69: 1000000 | M69: 100 | O69: -1.525138635e-06 | P69: -1.525138635e-06 | Q69: -3.898336419e-06 | R69: -8.61737524e-07 | S69: 0 | T69: 5.514787431 | U69: 0 | V69: 18.38262477 | W69: 45.95656192 | X69: 51.47134935 | AV69: -1.525138635e-06 | AW69: -1.525138635e-06 | AX69: -3.898336419e-06 | AY69: -8.61737524e-07 | AZ69: 0 | BA69: 5.514787431 | BB69: 0 | BC69: 18.38262477 | BD69: 45.95656192 | BE69: 51.47134935 | BG69: -7.625693174e-13 | BH69: -2.287707952e-12 | BI69: -4.999445479e-12 | BJ69: -7.379482451e-12 | BK69: -7.810351213e-12 | BL69: 2.757385905e-06 | BM69: 5.51477962e-06 | BN69: 1.4706092e-05 | BO69: 4.687568535e-05 | BP69: 9.558964099e-05 | BR69: =+IF($K69="Ongoing",AV69,IF(RIGHT($K69,2)=RIGHT(BR$39,2),SUM($AV69:AV69),0)+IF(RIGHT(BR$39,2)>RIGHT($K69,2),AV69,0)) -> -1.525138635e-06 | BS69: =+IF($K69="Ongoing",AW69,IF(RIGHT($K69,2)=RIGHT(BS$39,2),SUM($AV69:AW69),0)+IF(RIGHT(BS$39,2)>RIGHT($K69,2),AW69,0)) -> -1.525138635e-06 | BT69: =+IF($K69="Ongoing",AX69,IF(RIGHT($K69,2)=RIGHT(BT$39,2),SUM($AV69:AX69),0)+IF(RIGHT(BT$39,2)>RIGHT($K69,2),AX69,0)) -> -3.898336419e-06 | BU69: =+IF($K69="Ongoing",AY69,IF(RIGHT($K69,2)=RIGHT(BU$39,2),SUM($AV69:AY69),0)+IF(RIGHT(BU$39,2)>RIGHT($K69,2),AY69,0)) -> -8.61737524e-07 | BV69: =+IF($K69="Ongoing",AZ69,IF(RIGHT($K69,2)=RIGHT(BV$39,2),SUM($AV69:AZ69),0)+IF(RIGHT(BV$39,2)>RIGHT($K69,2),AZ69,0)) -> 0 | BW69: =+IF($K69="Ongoing",BA69,IF(RIGHT($K69,2)=RIGHT(BW$39,2),SUM($AV69:BA69),0)+IF(RIGHT(BW$39,2)>RIGHT($K69,2),BA69,0)) -> 5.514787431 | BX69: =+IF($K69="Ongoing",BB69,IF(RIGHT($K69,2)=RIGHT(BX$39,2),SUM($AV69:BB69),0)+IF(RIGHT(BX$39,2)>RIGHT($K69,2),BB69,0)) -> 0 | BY69: =+IF($K69="Ongoing",BC69,IF(RIGHT($K69,2)=RIGHT(BY$39,2),SUM($AV69:BC69),0)+IF(RIGHT(BY$39,2)>RIGHT($K69,2),BC69,0)) -> 18.38262477 | BZ69: =+IF($K69="Ongoing",BD69,IF(RIGHT($K69,2)=RIGHT(BZ$39,2),SUM($AV69:BD69),0)+IF(RIGHT(BZ$39,2)>RIGHT($K69,2),BD69,0)) -> 45.95656192 | CA69: =+IF($K69="Ongoing",BE69,IF(RIGHT($K69,2)=RIGHT(CA$39,2),SUM($AV69:BE69),0)+IF(RIGHT(CA$39,2)>RIGHT($K69,2),BE69,0)) -> 51.47134935 | CC69: =+O69*KeyAssumptionsPriceControl_FO!X$15 -> -1.560216823e-06 | CD69: =+P69*KeyAssumptionsPriceControl_FO!Y$15 -> -1.59610181e-06 | CE69: =+Q69*KeyAssumptionsPriceControl_FO!Z$15 -> -4.173555723e-06 | CF69: =+R69*KeyAssumptionsPriceControl_FO!AA$15 -> -9.437947113e-07 | CG69: =+S69*KeyAssumptionsPriceControl_FO!AB$15 -> 0 | CH69: =+T69*KeyAssumptionsPriceControl_FO!AC$15 -> 6.320953265 | CI69: =+U69*KeyAssumptionsPriceControl_FO!AD$15 -> 0 | CJ69: =+V69*KeyAssumptionsPriceControl_FO!AE$15 -> 22.050203 | CK69: =+W69*KeyAssumptionsPriceControl_FO!AF$15 -> 56.39339417 | CL69: =+X69*KeyAssumptionsPriceControl_FO!AG$15 -> 64.61329531 | CN69: -7.801084117e-09 | CO69: -2.358267729e-08 | CP69: -5.243096496e-08 | CQ69: -7.801771713e-08 | CR69: -8.273669069e-08 | CS69: 0.03160468359 | CT69: 0.06320944992 | CU69: 0.1734604649 | CV69: 0.5656784508 | CW69: 1.170711898
C70: Sewer Main Renewals | E70: Sewerage | F70: Renewals | G70: Pipelines/network | H70: Capital Programs / Allocation | J70: Straight line | K70: Ongoing | L70: 100 | M70: 0.5 | O70: 18.27 | P70: 18.27 | Q70: 18.27 | R70: 18.27 | S70: 18.27 | T70: 12.86 | U70: 12.86 | V70: 12.86 | W70: 12.86 | X70: 12.86 | AV70: 18.27 | AW70: 18.27 | AX70: 18.27 | AY70: 18.27 | AZ70: 18.27 | BA70: 12.86 | BB70: 12.86 | BC70: 12.86 | BD70: 12.86 | BE70: 12.86 | BG70: 0.09135 | BH70: 0.27405 | BI70: 0.45675 | BJ70: 0.63945 | BK70: 0.82215 | BL70: 0.9778 | BM70: 1.1064 | BN70: 1.235 | BO70: 1.3636 | BP70: 1.4922 | BR70: =+IF($K70="Ongoing",AV70,IF(RIGHT($K70,2)=RIGHT(BR$39,2),SUM($AV70:AV70),0)+IF(RIGHT(BR$39,2)>RIGHT($K70,2),AV70,0)) -> 18.27 | BS70: =+IF($K70="Ongoing",AW70,IF(RIGHT($K70,2)=RIGHT(BS$39,2),SUM($AV70:AW70),0)+IF(RIGHT(BS$39,2)>RIGHT($K70,2),AW70,0)) -> 18.27 | BT70: =+IF($K70="Ongoing",AX70,IF(RIGHT($K70,2)=RIGHT(BT$39,2),SUM($AV70:AX70),0)+IF(RIGHT(BT$39,2)>RIGHT($K70,2),AX70,0)) -> 18.27 | BU70: =+IF($K70="Ongoing",AY70,IF(RIGHT($K70,2)=RIGHT(BU$39,2),SUM($AV70:AY70),0)+IF(RIGHT(BU$39,2)>RIGHT($K70,2),AY70,0)) -> 18.27 | BV70: =+IF($K70="Ongoing",AZ70,IF(RIGHT($K70,2)=RIGHT(BV$39,2),SUM($AV70:AZ70),0)+IF(RIGHT(BV$39,2)>RIGHT($K70,2),AZ70,0)) -> 18.27 | BW70: =+IF($K70="Ongoing",BA70,IF(RIGHT($K70,2)=RIGHT(BW$39,2),SUM($AV70:BA70),0)+IF(RIGHT(BW$39,2)>RIGHT($K70,2),BA70,0)) -> 12.86 | BX70: =+IF($K70="Ongoing",BB70,IF(RIGHT($K70,2)=RIGHT(BX$39,2),SUM($AV70:BB70),0)+IF(RIGHT(BX$39,2)>RIGHT($K70,2),BB70,0)) -> 12.86 | BY70: =+IF($K70="Ongoing",BC70,IF(RIGHT($K70,2)=RIGHT(BY$39,2),SUM($AV70:BC70),0)+IF(RIGHT(BY$39,2)>RIGHT($K70,2),BC70,0)) -> 12.86 | BZ70: =+IF($K70="Ongoing",BD70,IF(RIGHT($K70,2)=RIGHT(BZ$39,2),SUM($AV70:BD70),0)+IF(RIGHT(BZ$39,2)>RIGHT($K70,2),BD70,0)) -> 12.86 | CA70: =+IF($K70="Ongoing",BE70,IF(RIGHT($K70,2)=RIGHT(CA$39,2),SUM($AV70:BE70),0)+IF(RIGHT(CA$39,2)>RIGHT($K70,2),BE70,0)) -> 12.86 | CC70: =+O70*KeyAssumptionsPriceControl_FO!X$15 -> 18.69021 | CD70: =+P70*KeyAssumptionsPriceControl_FO!Y$15 -> 19.12008483 | CE70: =+Q70*KeyAssumptionsPriceControl_FO!Z$15 -> 19.55984678 | CF70: =+R70*KeyAssumptionsPriceControl_FO!AA$15 -> 20.00972326 | CG70: =+S70*KeyAssumptionsPriceControl_FO!AB$15 -> 20.46994689 | CH70: =+T70*KeyAssumptionsPriceControl_FO!AC$15 -> 14.73990793 | CI70: =+U70*KeyAssumptionsPriceControl_FO!AD$15 -> 15.07892581 | CJ70: =+V70*KeyAssumptionsPriceControl_FO!AE$15 -> 15.42574111 | CK70: =+W70*KeyAssumptionsPriceControl_FO!AF$15 -> 15.78053315 | CL70: =+X70*KeyAssumptionsPriceControl_FO!AG$15 -> 16.14348542 | CN70: 18.69021 | CO70: 19.12008483 | CP70: 19.55984678 | CQ70: 20.00972326 | CR70: 20.46994689 | CS70: 14.73990793 | CT70: 15.07892581 | CU70: 15.42574111 | CV70: 15.78053315 | CW70: 16.14348542
C71: Sewer HCB Renewals | E71: Sewerage | F71: Renewals | G71: Pipelines/network | H71: Capital Programs / Allocation | J71: Straight line | K71: Ongoing | L71: 100 | M71: 100 | O71: 9.96 | P71: 9.96 | Q71: 9.96 | R71: 9.96 | S71: 9.96 | T71: 9.51 | U71: 9.51 | V71: 9.51 | W71: 9.51 | X71: 9.51 | AV71: 9.96 | AW71: 9.96 | AX71: 9.96 | AY71: 9.96 | AZ71: 9.96 | BA71: 9.51 | BB71: 9.51 | BC71: 9.51 | BD71: 9.51 | BE71: 9.51 | BG71: 0.0498 | BH71: 0.1494 | BI71: 0.249 | BJ71: 0.3486 | BK71: 0.4482 | BL71: 0.54555 | BM71: 0.64065 | BN71: 0.73575 | BO71: 0.83085 | BP71: 0.92595 | BR71: =+IF($K71="Ongoing",AV71,IF(RIGHT($K71,2)=RIGHT(BR$39,2),SUM($AV71:AV71),0)+IF(RIGHT(BR$39,2)>RIGHT($K71,2),AV71,0)) -> 9.96 | BS71: =+IF($K71="Ongoing",AW71,IF(RIGHT($K71,2)=RIGHT(BS$39,2),SUM($AV71:AW71),0)+IF(RIGHT(BS$39,2)>RIGHT($K71,2),AW71,0)) -> 9.96 | BT71: =+IF($K71="Ongoing",AX71,IF(RIGHT($K71,2)=RIGHT(BT$39,2),SUM($AV71:AX71),0)+IF(RIGHT(BT$39,2)>RIGHT($K71,2),AX71,0)) -> 9.96 | BU71: =+IF($K71="Ongoing",AY71,IF(RIGHT($K71,2)=RIGHT(BU$39,2),SUM($AV71:AY71),0)+IF(RIGHT(BU$39,2)>RIGHT($K71,2),AY71,0)) -> 9.96 | BV71: =+IF($K71="Ongoing",AZ71,IF(RIGHT($K71,2)=RIGHT(BV$39,2),SUM($AV71:AZ71),0)+IF(RIGHT(BV$39,2)>RIGHT($K71,2),AZ71,0)) -> 9.96 | BW71: =+IF($K71="Ongoing",BA71,IF(RIGHT($K71,2)=RIGHT(BW$39,2),SUM($AV71:BA71),0)+IF(RIGHT(BW$39,2)>RIGHT($K71,2),BA71,0)) -> 9.51 | BX71: =+IF($K71="Ongoing",BB71,IF(RIGHT($K71,2)=RIGHT(BX$39,2),SUM($AV71:BB71),0)+IF(RIGHT(BX$39,2)>RIGHT($K71,2),BB71,0)) -> 9.51 | BY71: =+IF($K71="Ongoing",BC71,IF(RIGHT($K71,2)=RIGHT(BY$39,2),SUM($AV71:BC71),0)+IF(RIGHT(BY$39,2)>RIGHT($K71,2),BC71,0)) -> 9.51 | BZ71: =+IF($K71="Ongoing",BD71,IF(RIGHT($K71,2)=RIGHT(BZ$39,2),SUM($AV71:BD71),0)+IF(RIGHT(BZ$39,2)>RIGHT($K71,2),BD71,0)) -> 9.51 | CA71: =+IF($K71="Ongoing",BE71,IF(RIGHT($K71,2)=RIGHT(CA$39,2),SUM($AV71:BE71),0)+IF(RIGHT(CA$39,2)>RIGHT($K71,2),BE71,0)) -> 9.51 | CC71: =+O71*KeyAssumptionsPriceControl_FO!X$15 -> 10.18908 | CD71: =+P71*KeyAssumptionsPriceControl_FO!Y$15 -> 10.42342884 | CE71: =+Q71*KeyAssumptionsPriceControl_FO!Z$15 -> 10.6631677 | CF71: =+R71*KeyAssumptionsPriceControl_FO!AA$15 -> 10.90842056 | CG71: =+S71*KeyAssumptionsPriceControl_FO!AB$15 -> 11.15931423 | CH71: =+T71*KeyAssumptionsPriceControl_FO!AC$15 -> 10.9001963 | CI71: =+U71*KeyAssumptionsPriceControl_FO!AD$15 -> 11.15090082 | CJ71: =+V71*KeyAssumptionsPriceControl_FO!AE$15 -> 11.40737154 | CK71: =+W71*KeyAssumptionsPriceControl_FO!AF$15 -> 11.66974108 | CL71: =+X71*KeyAssumptionsPriceControl_FO!AG$15 -> 11.93814513 | CN71: 0.0509454 | CO71: 0.1540079442 | CP71: 0.2594409269 | CQ71: 0.3672988682 | CR71: 0.4776375422 | CS71: 0.5879350949 | CT71: 0.6981905805 | CU71: 0.8109819422 | CV71: 0.9263675053 | CW71: 1.044406936
C72: Sewer Improve System Capacity | E72: Sewerage | F72: Improvements / Compliance | G72: Pipelines/network | H72: Capital Programs / Allocation | J72: Straight line | K72: Ongoing | L72: 100 | M72: 100 | O72: 4.49 | P72: 8.37 | Q72: 9.55 | R72: 11.45 | S72: 11.3 | T72: 22.25 | U72: 52.75 | V72: 54.7 | W72: 4.65 | X72: 3.85 | AV72: 4.49 | AW72: 8.37 | AX72: 9.55 | AY72: 11.45 | AZ72: 11.3 | BA72: 22.25 | BB72: 52.75 | BC72: 54.7 | BD72: 4.65 | BE72: 3.85 | BG72: 0.02245 | BH72: 0.08675 | BI72: 0.17635 | BJ72: 0.28135 | BK72: 0.3951 | BL72: 0.56285 | BM72: 0.93785 | BN72: 1.4751 | BO72: 1.77185 | BP72: 1.81435 | BR72: =+IF($K72="Ongoing",AV72,IF(RIGHT($K72,2)=RIGHT(BR$39,2),SUM($AV72:AV72),0)+IF(RIGHT(BR$39,2)>RIGHT($K72,2),AV72,0)) -> 4.49 | BS72: =+IF($K72="Ongoing",AW72,IF(RIGHT($K72,2)=RIGHT(BS$39,2),SUM($AV72:AW72),0)+IF(RIGHT(BS$39,2)>RIGHT($K72,2),AW72,0)) -> 8.37 | BT72: =+IF($K72="Ongoing",AX72,IF(RIGHT($K72,2)=RIGHT(BT$39,2),SUM($AV72:AX72),0)+IF(RIGHT(BT$39,2)>RIGHT($K72,2),AX72,0)) -> 9.55 | BU72: =+IF($K72="Ongoing",AY72,IF(RIGHT($K72,2)=RIGHT(BU$39,2),SUM($AV72:AY72),0)+IF(RIGHT(BU$39,2)>RIGHT($K72,2),AY72,0)) -> 11.45 | BV72: =+IF($K72="Ongoing",AZ72,IF(RIGHT($K72,2)=RIGHT(BV$39,2),SUM($AV72:AZ72),0)+IF(RIGHT(BV$39,2)>RIGHT($K72,2),AZ72,0)) -> 11.3 | BW72: =+IF($K72="Ongoing",BA72,IF(RIGHT($K72,2)=RIGHT(BW$39,2),SUM($AV72:BA72),0)+IF(RIGHT(BW$39,2)>RIGHT($K72,2),BA72,0)) -> 22.25 | BX72: =+IF($K72="Ongoing",BB72,IF(RIGHT($K72,2)=RIGHT(BX$39,2),SUM($AV72:BB72),0)+IF(RIGHT(BX$39,2)>RIGHT($K72,2),BB72,0)) -> 52.75 | BY72: =+IF($K72="Ongoing",BC72,IF(RIGHT($K72,2)=RIGHT(BY$39,2),SUM($AV72:BC72),0)+IF(RIGHT(BY$39,2)>RIGHT($K72,2),BC72,0)) -> 54.7 | BZ72: =+IF($K72="Ongoing",BD72,IF(RIGHT($K72,2)=RIGHT(BZ$39,2),SUM($AV72:BD72),0)+IF(RIGHT(BZ$39,2)>RIGHT($K72,2),BD72,0)) -> 4.65 | CA72: =+IF($K72="Ongoing",BE72,IF(RIGHT($K72,2)=RIGHT(CA$39,2),SUM($AV72:BE72),0)+IF(RIGHT(CA$39,2)>RIGHT($K72,2),BE72,0)) -> 3.85 | CC72: =+O72*KeyAssumptionsPriceControl_FO!X$15 -> 4.59327 | CD72: =+P72*KeyAssumptionsPriceControl_FO!Y$15 -> 8.75944773 | CE72: =+Q72*KeyAssumptionsPriceControl_FO!Z$15 -> 10.22422204 | CF72: =+R72*KeyAssumptionsPriceControl_FO!AA$15 -> 12.54030275 | CG72: =+S72*KeyAssumptionsPriceControl_FO!AB$15 -> 12.66066775 | CH72: =+T72*KeyAssumptionsPriceControl_FO!AC$15 -> 25.50256232 | CI72: =+U72*KeyAssumptionsPriceControl_FO!AD$15 -> 61.85173691 | CJ72: =+V72*KeyAssumptionsPriceControl_FO!AE$15 -> 65.61337781 | CK72: =+W72*KeyAssumptionsPriceControl_FO!AF$15 -> 5.706024818 | CL72: =+X72*KeyAssumptionsPriceControl_FO!AG$15 -> 4.833003021 | CN72: 0.02296635 | CO72: 0.08972993865 | CP72: 0.1846482875 | CQ72: 0.2984709115 | CR72: 0.4244757641 | CS72: 0.6152919144 | CT72: 1.052063411 | CU72: 1.689388984 | CV72: 2.045985997 | CW72: 2.098681137
C73: Sewer Reliability Civil | E73: Sewerage | F73: Renewals | G73: Pipelines/network | H73: Capital Programs / Allocation | J73: Straight line | K73: Ongoing | L73: 100 | M73: 100 | O73: 11.098392 | P73: 10.655387 | Q73: 11.454638 | R73: 10.195387 | S73: 10.120694 | T73: 6.256179 | U73: 6.256179 | V73: 7.156927 | W73: 5.847676 | X73: 6.256179 | AV73: 11.098392 | AW73: 10.655387 | AX73: 11.454638 | AY73: 10.195387 | AZ73: 10.120694 | BA73: 6.256179 | BB73: 6.256179 | BC73: 7.156927 | BD73: 5.847676 | BE73: 6.256179 | BG73: 0.05549196 | BH73: 0.164260855 | BI73: 0.27481098 | BJ73: 0.383061105 | BK73: 0.48464151 | BL73: 0.566525875 | BM73: 0.629087665 | BN73: 0.696153195 | BO73: 0.76117621 | BP73: 0.821695485 | BR73: =+IF($K73="Ongoing",AV73,IF(RIGHT($K73,2)=RIGHT(BR$39,2),SUM($AV73:AV73),0)+IF(RIGHT(BR$39,2)>RIGHT($K73,2),AV73,0)) -> 11.098392 | BS73: =+IF($K73="Ongoing",AW73,IF(RIGHT($K73,2)=RIGHT(BS$39,2),SUM($AV73:AW73),0)+IF(RIGHT(BS$39,2)>RIGHT($K73,2),AW73,0)) -> 10.655387 | BT73: =+IF($K73="Ongoing",AX73,IF(RIGHT($K73,2)=RIGHT(BT$39,2),SUM($AV73:AX73),0)+IF(RIGHT(BT$39,2)>RIGHT($K73,2),AX73,0)) -> 11.454638 | BU73: =+IF($K73="Ongoing",AY73,IF(RIGHT($K73,2)=RIGHT(BU$39,2),SUM($AV73:AY73),0)+IF(RIGHT(BU$39,2)>RIGHT($K73,2),AY73,0)) -> 10.195387 | BV73: =+IF($K73="Ongoing",AZ73,IF(RIGHT($K73,2)=RIGHT(BV$39,2),SUM($AV73:AZ73),0)+IF(RIGHT(BV$39,2)>RIGHT($K73,2),AZ73,0)) -> 10.120694 | BW73: =+IF($K73="Ongoing",BA73,IF(RIGHT($K73,2)=RIGHT(BW$39,2),SUM($AV73:BA73),0)+IF(RIGHT(BW$39,2)>RIGHT($K73,2),BA73,0)) -> 6.256179 | BX73: =+IF($K73="Ongoing",BB73,IF(RIGHT($K73,2)=RIGHT(BX$39,2),SUM($AV73:BB73),0)+IF(RIGHT(BX$39,2)>RIGHT($K73,2),BB73,0)) -> 6.256179 | BY73: =+IF($K73="Ongoing",BC73,IF(RIGHT($K73,2)=RIGHT(BY$39,2),SUM($AV73:BC73),0)+IF(RIGHT(BY$39,2)>RIGHT($K73,2),BC73,0)) -> 7.156927 | BZ73: =+IF($K73="Ongoing",BD73,IF(RIGHT($K73,2)=RIGHT(BZ$39,2),SUM($AV73:BD73),0)+IF(RIGHT(BZ$39,2)>RIGHT($K73,2),BD73,0)) -> 5.847676 | CA73: =+IF($K73="Ongoing",BE73,IF(RIGHT($K73,2)=RIGHT(CA$39,2),SUM($AV73:BE73),0)+IF(RIGHT(CA$39,2)>RIGHT($K73,2),BE73,0)) -> 6.256179 | CC73: =+O73*KeyAssumptionsPriceControl_FO!X$15 -> 11.35365502 | CD73: =+P73*KeyAssumptionsPriceControl_FO!Y$15 -> 11.1511715 | CE73: =+Q73*KeyAssumptionsPriceControl_FO!Z$15 -> 12.2633259 | CF73: =+R73*KeyAssumptionsPriceControl_FO!AA$15 -> 11.1662218 | CG73: =+S73*KeyAssumptionsPriceControl_FO!AB$15 -> 11.33935789 | CH73: =+T73*KeyAssumptionsPriceControl_FO!AC$15 -> 7.170723365 | CI73: =+U73*KeyAssumptionsPriceControl_FO!AD$15 -> 7.335650002 | CJ73: =+V73*KeyAssumptionsPriceControl_FO!AE$15 -> 8.584829163 | CK73: =+W73*KeyAssumptionsPriceControl_FO!AF$15 -> 7.175695567 | CL73: =+X73*KeyAssumptionsPriceControl_FO!AG$15 -> 7.853540781 | CN73: 0.05676827508 | CO73: 0.1692924077 | CP73: 0.2863648947 | CQ73: 0.4035126332 | CR73: 0.5160405317 | CS73: 0.608590938 | CT73: 0.6811228048 | CU73: 0.7607252006 | CV73: 0.8395278243 | CW73: 0.914674006
C74: Sewer Reliability M&E | E74: Sewerage | F74: Renewals | G74: Pipelines/network | H74: Capital Programs / Allocation | J74: Straight line | K74: Ongoing | L74: 50 | M74: 50 | O74: 2.9625 | P74: 3.1325 | Q74: 2.8 | R74: 2.77 | S74: 3.09 | T74: 3.5 | U74: 3.5 | V74: 3.5 | W74: 3.5 | X74: 3.5 | AV74: 2.9625 | AW74: 3.1325 | AX74: 2.8 | AY74: 2.77 | AZ74: 3.09 | BA74: 3.5 | BB74: 3.5 | BC74: 3.5 | BD74: 3.5 | BE74: 3.5 | BG74: 0.029625 | BH74: 0.090575 | BI74: 0.1499 | BJ74: 0.2056 | BK74: 0.2642 | BL74: 0.3301 | BM74: 0.4001 | BN74: 0.4701 | BO74: 0.5401 | BP74: 0.6101 | BR74: =+IF($K74="Ongoing",AV74,IF(RIGHT($K74,2)=RIGHT(BR$39,2),SUM($AV74:AV74),0)+IF(RIGHT(BR$39,2)>RIGHT($K74,2),AV74,0)) -> 2.9625 | BS74: =+IF($K74="Ongoing",AW74,IF(RIGHT($K74,2)=RIGHT(BS$39,2),SUM($AV74:AW74),0)+IF(RIGHT(BS$39,2)>RIGHT($K74,2),AW74,0)) -> 3.1325 | BT74: =+IF($K74="Ongoing",AX74,IF(RIGHT($K74,2)=RIGHT(BT$39,2),SUM($AV74:AX74),0)+IF(RIGHT(BT$39,2)>RIGHT($K74,2),AX74,0)) -> 2.8 | BU74: =+IF($K74="Ongoing",AY74,IF(RIGHT($K74,2)=RIGHT(BU$39,2),SUM($AV74:AY74),0)+IF(RIGHT(BU$39,2)>RIGHT($K74,2),AY74,0)) -> 2.77 | BV74: =+IF($K74="Ongoing",AZ74,IF(RIGHT($K74,2)=RIGHT(BV$39,2),SUM($AV74:AZ74),0)+IF(RIGHT(BV$39,2)>RIGHT($K74,2),AZ74,0)) -> 3.09 | BW74: =+IF($K74="Ongoing",BA74,IF(RIGHT($K74,2)=RIGHT(BW$39,2),SUM($AV74:BA74),0)+IF(RIGHT(BW$39,2)>RIGHT($K74,2),BA74,0)) -> 3.5 | BX74: =+IF($K74="Ongoing",BB74,IF(RIGHT($K74,2)=RIGHT(BX$39,2),SUM($AV74:BB74),0)+IF(RIGHT(BX$39,2)>RIGHT($K74,2),BB74,0)) -> 3.5 | BY74: =+IF($K74="Ongoing",BC74,IF(RIGHT($K74,2)=RIGHT(BY$39,2),SUM($AV74:BC74),0)+IF(RIGHT(BY$39,2)>RIGHT($K74,2),BC74,0)) -> 3.5 | BZ74: =+IF($K74="Ongoing",BD74,IF(RIGHT($K74,2)=RIGHT(BZ$39,2),SUM($AV74:BD74),0)+IF(RIGHT(BZ$39,2)>RIGHT($K74,2),BD74,0)) -> 3.5 | CA74: =+IF($K74="Ongoing",BE74,IF(RIGHT($K74,2)=RIGHT(CA$39,2),SUM($AV74:BE74),0)+IF(RIGHT(CA$39,2)>RIGHT($K74,2),BE74,0)) -> 3.5 | CC74: =+O74*KeyAssumptionsPriceControl_FO!X$15 -> 3.0306375 | CD74: =+P74*KeyAssumptionsPriceControl_FO!Y$15 -> 3.278252092 | CE74: =+Q74*KeyAssumptionsPriceControl_FO!Z$15 -> 2.997677668 | CF74: =+R74*KeyAssumptionsPriceControl_FO!AA$15 -> 3.033767566 | CG74: =+S74*KeyAssumptionsPriceControl_FO!AB$15 -> 3.462076404 | CH74: =+T74*KeyAssumptionsPriceControl_FO!AC$15 -> 4.011639017 | CI74: =+U74*KeyAssumptionsPriceControl_FO!AD$15 -> 4.103906715 | CJ74: =+V74*KeyAssumptionsPriceControl_FO!AE$15 -> 4.198296569 | CK74: =+W74*KeyAssumptionsPriceControl_FO!AF$15 -> 4.29485739 | CL74: =+X74*KeyAssumptionsPriceControl_FO!AG$15 -> 4.39363911 | CN74: 0.030306375 | CO74: 0.09339527092 | CP74: 0.1561545685 | CQ74: 0.2164690209 | CR74: 0.2814274605 | CS74: 0.3561646148 | CT74: 0.4373200721 | CU74: 0.5203421049 | CV74: 0.6052736445 | CW74: 0.6921586095
C75: Sewage Treatment & Recycling | E75: Sewerage | F75: Improvements / Compliance | G75: Treatment | H75: Capital Programs / Allocation | J75: Straight line | K75: Ongoing | L75: 50 | M75: 50 | O75: 14.127 | P75: 13.882 | Q75: 9.5495 | R75: 7.531925 | S75: 9.095925 | T75: 10.338925 | U75: 7.692775 | V75: 7.867775 | W75: 5.695475 | X75: 5.454825 | AV75: 14.127 | AW75: 13.882 | AX75: 9.5495 | AY75: 7.531925 | AZ75: 9.095925 | BA75: 10.338925 | BB75: 7.692775 | BC75: 7.867775 | BD75: 5.695475 | BE75: 5.454825 | BG75: 0.14127 | BH75: 0.42136 | BI75: 0.655675 | BJ75: 0.82648925 | BK75: 0.99276775 | BL75: 1.18711625 | BM75: 1.36743325 | BN75: 1.52303875 | BO75: 1.65867125 | BP75: 1.77017425 | BR75: =+IF($K75="Ongoing",AV75,IF(RIGHT($K75,2)=RIGHT(BR$39,2),SUM($AV75:AV75),0)+IF(RIGHT(BR$39,2)>RIGHT($K75,2),AV75,0)) -> 14.127 | BS75: =+IF($K75="Ongoing",AW75,IF(RIGHT($K75,2)=RIGHT(BS$39,2),SUM($AV75:AW75),0)+IF(RIGHT(BS$39,2)>RIGHT($K75,2),AW75,0)) -> 13.882 | BT75: =+IF($K75="Ongoing",AX75,IF(RIGHT($K75,2)=RIGHT(BT$39,2),SUM($AV75:AX75),0)+IF(RIGHT(BT$39,2)>RIGHT($K75,2),AX75,0)) -> 9.5495 | BU75: =+IF($K75="Ongoing",AY75,IF(RIGHT($K75,2)=RIGHT(BU$39,2),SUM($AV75:AY75),0)+IF(RIGHT(BU$39,2)>RIGHT($K75,2),AY75,0)) -> 7.531925 | BV75: =+IF($K75="Ongoing",AZ75,IF(RIGHT($K75,2)=RIGHT(BV$39,2),SUM($AV75:AZ75),0)+IF(RIGHT(BV$39,2)>RIGHT($K75,2),AZ75,0)) -> 9.095925 | BW75: =+IF($K75="Ongoing",BA75,IF(RIGHT($K75,2)=RIGHT(BW$39,2),SUM($AV75:BA75),0)+IF(RIGHT(BW$39,2)>RIGHT($K75,2),BA75,0)) -> 10.338925 | BX75: =+IF($K75="Ongoing",BB75,IF(RIGHT($K75,2)=RIGHT(BX$39,2),SUM($AV75:BB75),0)+IF(RIGHT(BX$39,2)>RIGHT($K75,2),BB75,0)) -> 7.692775 | BY75: =+IF($K75="Ongoing",BC75,IF(RIGHT($K75,2)=RIGHT(BY$39,2),SUM($AV75:BC75),0)+IF(RIGHT(BY$39,2)>RIGHT($K75,2),BC75,0)) -> 7.867775 | BZ75: =+IF($K75="Ongoing",BD75,IF(RIGHT($K75,2)=RIGHT(BZ$39,2),SUM($AV75:BD75),0)+IF(RIGHT(BZ$39,2)>RIGHT($K75,2),BD75,0)) -> 5.695475 | CA75: =+IF($K75="Ongoing",BE75,IF(RIGHT($K75,2)=RIGHT(CA$39,2),SUM($AV75:BE75),0)+IF(RIGHT(CA$39,2)>RIGHT($K75,2),BE75,0)) -> 5.454825 | CC75: =+O75*KeyAssumptionsPriceControl_FO!X$15 -> 14.451921 | CD75: =+P75*KeyAssumptionsPriceControl_FO!Y$15 -> 14.52791558 | CE75: =+Q75*KeyAssumptionsPriceControl_FO!Z$15 -> 10.22368675 | CF75: =+R75*KeyAssumptionsPriceControl_FO!AA$15 -> 8.249137101 | CG75: =+S75*KeyAssumptionsPriceControl_FO!AB$15 -> 10.19119331 | CH75: =+T75*KeyAssumptionsPriceControl_FO!AC$15 -> 11.85029569 | CI75: =+U75*KeyAssumptionsPriceControl_FO!AD$15 -> 9.020123136 | CJ75: =+V75*KeyAssumptionsPriceControl_FO!AE$15 -> 9.437500797 | CK75: =+W75*KeyAssumptionsPriceControl_FO!AF$15 -> 6.988929399 | CL75: =+X75*KeyAssumptionsPriceControl_FO!AG$15 -> 6.847580703 | CN75: 0.14451921 | CO75: 0.4343175758 | CP75: 0.681833599 | CQ75: 0.8665618375 | CR75: 1.050965142 | CS75: 1.271380032 | CT75: 1.48008422 | CU75: 1.664660459 | CV75: 1.828924761 | CW75: 1.967289862
C76: [Capex Item - Significant Project / Capital Program / Other Capex] | E76: [Service] | F76: [Major Cost Driver] | G76: [Asset category] | H76: [Capital type] | J76: Straight line | K76: [Year finalised?] | AV76: 0 | AW76: 0 | AX76: 0 | AY76: 0 | AZ76: 0 | BA76: 0 | BB76: 0 | BC76: 0 | BD76: 0 | BE76: 0 | BG76: 0 | BH76: 0 | BI76: 0 | BJ76: 0 | BK76: 0 | BL76: 0 | BM76: 0 | BN76: 0 | BO76: 0 | BP76: 0 | BR76: =+IF($K76="Ongoing",AV76,IF(RIGHT($K76,2)=RIGHT(BR$39,2),SUM($AV76:AV76),0)+IF(RIGHT(BR$39,2)>RIGHT($K76,2),AV76,0)) -> 0 | BS76: =+IF($K76="Ongoing",AW76,IF(RIGHT($K76,2)=RIGHT(BS$39,2),SUM($AV76:AW76),0)+IF(RIGHT(BS$39,2)>RIGHT($K76,2),AW76,0)) -> 0 | BT76: =+IF($K76="Ongoing",AX76,IF(RIGHT($K76,2)=RIGHT(BT$39,2),SUM($AV76:AX76),0)+IF(RIGHT(BT$39,2)>RIGHT($K76,2),AX76,0)) -> 0 | BU76: =+IF($K76="Ongoing",AY76,IF(RIGHT($K76,2)=RIGHT(BU$39,2),SUM($AV76:AY76),0)+IF(RIGHT(BU$39,2)>RIGHT($K76,2),AY76,0)) -> 0 | BV76: =+IF($K76="Ongoing",AZ76,IF(RIGHT($K76,2)=RIGHT(BV$39,2),SUM($AV76:AZ76),0)+IF(RIGHT(BV$39,2)>RIGHT($K76,2),AZ76,0)) -> 0 | BW76: =+IF($K76="Ongoing",BA76,IF(RIGHT($K76,2)=RIGHT(BW$39,2),SUM($AV76:BA76),0)+IF(RIGHT(BW$39,2)>RIGHT($K76,2),BA76,0)) -> 0 | BX76: =+IF($K76="Ongoing",BB76,IF(RIGHT($K76,2)=RIGHT(BX$39,2),SUM($AV76:BB76),0)+IF(RIGHT(BX$39,2)>RIGHT($K76,2),BB76,0)) -> 0 | BY76: =+IF($K76="Ongoing",BC76,IF(RIGHT($K76,2)=RIGHT(BY$39,2),SUM($AV76:BC76),0)+IF(RIGHT(BY$39,2)>RIGHT($K76,2),BC76,0)) -> 0 | BZ76: =+IF($K76="Ongoing",BD76,IF(RIGHT($K76,2)=RIGHT(BZ$39,2),SUM($AV76:BD76),0)+IF(RIGHT(BZ$39,2)>RIGHT($K76,2),BD76,0)) -> 0 | CA76: =+IF($K76="Ongoing",BE76,IF(RIGHT($K76,2)=RIGHT(CA$39,2),SUM($AV76:BE76),0)+IF(RIGHT(CA$39,2)>RIGHT($K76,2),BE76,0)) -> 0 | CC76: =+O76*KeyAssumptionsPriceControl_FO!X$15 -> 0 | CD76: =+P76*KeyAssumptionsPriceControl_FO!Y$15 -> 0 | CE76: =+Q76*KeyAssumptionsPriceControl_FO!Z$15 -> 0 | CF76: =+R76*KeyAssumptionsPriceControl_FO!AA$15 -> 0 | CG76: =+S76*KeyAssumptionsPriceControl_FO!AB$15 -> 0 | CH76: =+T76*KeyAssumptionsPriceControl_FO!AC$15 -> 0 | CI76: =+U76*KeyAssumptionsPriceControl_FO!AD$15 -> 0 | CJ76: =+V76*KeyAssumptionsPriceControl_FO!AE$15 -> 0 | CK76: =+W76*KeyAssumptionsPriceControl_FO!AF$15 -> 0 | CL76: =+X76*KeyAssumptionsPriceControl_FO!AG$15 -> 0 | CN76: 0 | CO76: 0 | CP76: 0 | CQ76: 0 | CR76: 0 | CS76: 0 | CT76: 0 | CU76: 0 | CV76: 0 | CW76: 0
C77: IT System Improvement | E77: Water | F77: Renewals | G77: Corporate | H77: Capital Programs / Allocation | J77: Straight line | K77: Ongoing | L77: 4 | M77: 4 | O77: 5.106284658 | P77: 5.106284658 | Q77: 5.106284658 | R77: 5.106284658 | S77: 5.106284658 | T77: 5.106284658 | U77: 5.106284658 | V77: 5.106284658 | W77: 5.106284658 | X77: 5.106284658 | AV77: 5.106284658 | AW77: 5.106284658 | AX77: 5.106284658 | AY77: 5.106284658 | AZ77: 5.106284658 | BA77: 5.106284658 | BB77: 5.106284658 | BC77: 5.106284658 | BD77: 5.106284658 | BE77: 5.106284658 | BG77: 0.6382855823 | BH77: 1.914856747 | BI77: 3.191427911 | BJ77: 4.467999076 | BK77: 5.106284658 | BL77: 5.106284658 | BM77: 5.106284658 | BN77: 5.106284658 | BO77: 5.106284658 | BP77: 5.106284658 | BR77: =+IF($K77="Ongoing",AV77,IF(RIGHT($K77,2)=RIGHT(BR$39,2),SUM($AV77:AV77),0)+IF(RIGHT(BR$39,2)>RIGHT($K77,2),AV77,0)) -> 5.106284658 | BS77: =+IF($K77="Ongoing",AW77,IF(RIGHT($K77,2)=RIGHT(BS$39,2),SUM($AV77:AW77),0)+IF(RIGHT(BS$39,2)>RIGHT($K77,2),AW77,0)) -> 5.106284658 | BT77: =+IF($K77="Ongoing",AX77,IF(RIGHT($K77,2)=RIGHT(BT$39,2),SUM($AV77:AX77),0)+IF(RIGHT(BT$39,2)>RIGHT($K77,2),AX77,0)) -> 5.106284658 | BU77: =+IF($K77="Ongoing",AY77,IF(RIGHT($K77,2)=RIGHT(BU$39,2),SUM($AV77:AY77),0)+IF(RIGHT(BU$39,2)>RIGHT($K77,2),AY77,0)) -> 5.106284658 | BV77: =+IF($K77="Ongoing",AZ77,IF(RIGHT($K77,2)=RIGHT(BV$39,2),SUM($AV77:AZ77),0)+IF(RIGHT(BV$39,2)>RIGHT($K77,2),AZ77,0)) -> 5.106284658 | BW77: =+IF($K77="Ongoing",BA77,IF(RIGHT($K77,2)=RIGHT(BW$39,2),SUM($AV77:BA77),0)+IF(RIGHT(BW$39,2)>RIGHT($K77,2),BA77,0)) -> 5.106284658 | BX77: =+IF($K77="Ongoing",BB77,IF(RIGHT($K77,2)=RIGHT(BX$39,2),SUM($AV77:BB77),0)+IF(RIGHT(BX$39,2)>RIGHT($K77,2),BB77,0)) -> 5.106284658 | BY77: =+IF($K77="Ongoing",BC77,IF(RIGHT($K77,2)=RIGHT(BY$39,2),SUM($AV77:BC77),0)+IF(RIGHT(BY$39,2)>RIGHT($K77,2),BC77,0)) -> 5.106284658 | BZ77: =+IF($K77="Ongoing",BD77,IF(RIGHT($K77,2)=RIGHT(BZ$39,2),SUM($AV77:BD77),0)+IF(RIGHT(BZ$39,2)>RIGHT($K77,2),BD77,0)) -> 5.106284658 | CA77: =+IF($K77="Ongoing",BE77,IF(RIGHT($K77,2)=RIGHT(CA$39,2),SUM($AV77:BE77),0)+IF(RIGHT(CA$39,2)>RIGHT($K77,2),BE77,0)) -> 5.106284658 | CC77: =+O77*KeyAssumptionsPriceControl_FO!X$15 -> 5.223729205 | CD77: =+P77*KeyAssumptionsPriceControl_FO!Y$15 -> 5.343874977 | CE77: =+Q77*KeyAssumptionsPriceControl_FO!Z$15 -> 5.466784101 | CF77: =+R77*KeyAssumptionsPriceControl_FO!AA$15 -> 5.592520136 | CG77: =+S77*KeyAssumptionsPriceControl_FO!AB$15 -> 5.721148099 | CH77: =+T77*KeyAssumptionsPriceControl_FO!AC$15 -> 5.852734505 | CI77: =+U77*KeyAssumptionsPriceControl_FO!AD$15 -> 5.987347399 | CJ77: =+V77*KeyAssumptionsPriceControl_FO!AE$15 -> 6.125056389 | CK77: =+W77*KeyAssumptionsPriceControl_FO!AF$15 -> 6.265932686 | CL77: =+X77*KeyAssumptionsPriceControl_FO!AG$15 -> 6.410049138 | CN77: 0.6529661506 | CO77: 1.973916673 | CP77: 3.325249058 | CQ77: 4.707662088 | CR77: 5.468904466 | CS77: 5.594689269 | CT77: 5.723367122 | CU77: 5.855004566 | CV77: 5.989669671 | CW77: 6.127432074
C78: IT Infrastructure | E78: Sewerage | F78: Renewals | G78: Corporate | H78: Capital Programs / Allocation | J78: Straight line | K78: Ongoing | L78: 4 | M78: 4 | O78: 4.953096118 | P78: 5.157347505 | Q78: 6.740295749 | R78: 9.344500924 | S78: 4.391404806 | T78: 4.442467652 | U78: 4.646719039 | V78: 6.229667283 | W78: 9.089186691 | X78: 4.136090573 | AV78: 4.953096118 | AW78: 5.157347505 | AX78: 6.740295749 | AY78: 9.344500924 | AZ78: 4.391404806 | BA78: 4.442467652 | BB78: 4.646719039 | BC78: 6.229667283 | BD78: 9.089186691 | BE78: 4.136090573 | BG78: 0.6191370148 | BH78: 1.882942468 | BI78: 3.370147874 | BJ78: 5.380747458 | BK78: 6.47859866 | BL78: 6.319027264 | BM78: 5.967970194 | BN78: 5.3169189 | BO78: 5.514787431 | BP78: 6.063713031 | BR78: =+IF($K78="Ongoing",AV78,IF(RIGHT($K78,2)=RIGHT(BR$39,2),SUM($AV78:AV78),0)+IF(RIGHT(BR$39,2)>RIGHT($K78,2),AV78,0)) -> 4.953096118 | BS78: =+IF($K78="Ongoing",AW78,IF(RIGHT($K78,2)=RIGHT(BS$39,2),SUM($AV78:AW78),0)+IF(RIGHT(BS$39,2)>RIGHT($K78,2),AW78,0)) -> 5.157347505 | BT78: =+IF($K78="Ongoing",AX78,IF(RIGHT($K78,2)=RIGHT(BT$39,2),SUM($AV78:AX78),0)+IF(RIGHT(BT$39,2)>RIGHT($K78,2),AX78,0)) -> 6.740295749 | BU78: =+IF($K78="Ongoing",AY78,IF(RIGHT($K78,2)=RIGHT(BU$39,2),SUM($AV78:AY78),0)+IF(RIGHT(BU$39,2)>RIGHT($K78,2),AY78,0)) -> 9.344500924 | BV78: =+IF($K78="Ongoing",AZ78,IF(RIGHT($K78,2)=RIGHT(BV$39,2),SUM($AV78:AZ78),0)+IF(RIGHT(BV$39,2)>RIGHT($K78,2),AZ78,0)) -> 4.391404806 | BW78: =+IF($K78="Ongoing",BA78,IF(RIGHT($K78,2)=RIGHT(BW$39,2),SUM($AV78:BA78),0)+IF(RIGHT(BW$39,2)>RIGHT($K78,2),BA78,0)) -> 4.442467652 | BX78: =+IF($K78="Ongoing",BB78,IF(RIGHT($K78,2)=RIGHT(BX$39,2),SUM($AV78:BB78),0)+IF(RIGHT(BX$39,2)>RIGHT($K78,2),BB78,0)) -> 4.646719039 | BY78: =+IF($K78="Ongoing",BC78,IF(RIGHT($K78,2)=RIGHT(BY$39,2),SUM($AV78:BC78),0)+IF(RIGHT(BY$39,2)>RIGHT($K78,2),BC78,0)) -> 6.229667283 | BZ78: =+IF($K78="Ongoing",BD78,IF(RIGHT($K78,2)=RIGHT(BZ$39,2),SUM($AV78:BD78),0)+IF(RIGHT(BZ$39,2)>RIGHT($K78,2),BD78,0)) -> 9.089186691 | CA78: =+IF($K78="Ongoing",BE78,IF(RIGHT($K78,2)=RIGHT(CA$39,2),SUM($AV78:BE78),0)+IF(RIGHT(CA$39,2)>RIGHT($K78,2),BE78,0)) -> 4.136090573 | CC78: =+O78*KeyAssumptionsPriceControl_FO!X$15 -> 5.067017329 | CD78: =+P78*KeyAssumptionsPriceControl_FO!Y$15 -> 5.397313727 | CE78: =+Q78*KeyAssumptionsPriceControl_FO!Z$15 -> 7.216155014 | CF78: =+R78*KeyAssumptionsPriceControl_FO!AA$15 -> 10.23431185 | CG78: =+S78*KeyAssumptionsPriceControl_FO!AB$15 -> 4.920187365 | CH78: =+T78*KeyAssumptionsPriceControl_FO!AC$15 -> 5.091879019 | CI78: =+U78*KeyAssumptionsPriceControl_FO!AD$15 -> 5.448486133 | CJ78: =+V78*KeyAssumptionsPriceControl_FO!AE$15 -> 7.472568794 | CK78: =+W78*KeyAssumptionsPriceControl_FO!AF$15 -> 11.15336018 | CL78: =+X78*KeyAssumptionsPriceControl_FO!AG$15 -> 5.192139801 | CN78: 0.6333771661 | CO78: 1.941418548 | CP78: 3.518102141 | CQ78: 5.699410498 | CR78: 6.960345734 | CS78: 6.90381265 | CT78: 6.644674702 | CU78: 6.07849821 | CV78: 6.51242693 | CW78: 7.30410613
C79: Facilities | E79: Water | F79: Renewals | G79: Corporate | H79: Capital Programs / Allocation | J79: Straight line | K79: Ongoing | L79: 30 | M79: 30 | O79: 1.220402033 | P79: 1.200998152 | Q79: 0.9947042514 | R79: 1.274528651 | S79: 0.9283225508 | T79: 1.123382625 | U79: 1.123382625 | V79: 1.123382625 | W79: 1.123382625 | X79: 1.123382625 | AV79: 1.220402033 | AW79: 1.200998152 | AX79: 0.9947042514 | AY79: 1.274528651 | AZ79: 0.9283225508 | BA79: 1.123382625 | BB79: 1.123382625 | BC79: 1.123382625 | BD79: 1.123382625 | BE79: 1.123382625 | BG79: 0.02034003389 | BH79: 0.06069670364 | BI79: 0.09729174368 | BJ79: 0.1351122921 | BK79: 0.1718264787 | BL79: 0.206021565 | BM79: 0.2434676525 | BN79: 0.28091374 | BO79: 0.3183598275 | BP79: 0.355805915 | BR79: =+IF($K79="Ongoing",AV79,IF(RIGHT($K79,2)=RIGHT(BR$39,2),SUM($AV79:AV79),0)+IF(RIGHT(BR$39,2)>RIGHT($K79,2),AV79,0)) -> 1.220402033 | BS79: =+IF($K79="Ongoing",AW79,IF(RIGHT($K79,2)=RIGHT(BS$39,2),SUM($AV79:AW79),0)+IF(RIGHT(BS$39,2)>RIGHT($K79,2),AW79,0)) -> 1.200998152 | BT79: =+IF($K79="Ongoing",AX79,IF(RIGHT($K79,2)=RIGHT(BT$39,2),SUM($AV79:AX79),0)+IF(RIGHT(BT$39,2)>RIGHT($K79,2),AX79,0)) -> 0.9947042514 | BU79: =+IF($K79="Ongoing",AY79,IF(RIGHT($K79,2)=RIGHT(BU$39,2),SUM($AV79:AY79),0)+IF(RIGHT(BU$39,2)>RIGHT($K79,2),AY79,0)) -> 1.274528651 | BV79: =+IF($K79="Ongoing",AZ79,IF(RIGHT($K79,2)=RIGHT(BV$39,2),SUM($AV79:AZ79),0)+IF(RIGHT(BV$39,2)>RIGHT($K79,2),AZ79,0)) -> 0.9283225508 | BW79: =+IF($K79="Ongoing",BA79,IF(RIGHT($K79,2)=RIGHT(BW$39,2),SUM($AV79:BA79),0)+IF(RIGHT(BW$39,2)>RIGHT($K79,2),BA79,0)) -> 1.123382625 | BX79: =+IF($K79="Ongoing",BB79,IF(RIGHT($K79,2)=RIGHT(BX$39,2),SUM($AV79:BB79),0)+IF(RIGHT(BX$39,2)>RIGHT($K79,2),BB79,0)) -> 1.123382625 | BY79: =+IF($K79="Ongoing",BC79,IF(RIGHT($K79,2)=RIGHT(BY$39,2),SUM($AV79:BC79),0)+IF(RIGHT(BY$39,2)>RIGHT($K79,2),BC79,0)) -> 1.123382625 | BZ79: =+IF($K79="Ongoing",BD79,IF(RIGHT($K79,2)=RIGHT(BZ$39,2),SUM($AV79:BD79),0)+IF(RIGHT(BZ$39,2)>RIGHT($K79,2),BD79,0)) -> 1.123382625 | CA79: =+IF($K79="Ongoing",BE79,IF(RIGHT($K79,2)=RIGHT(CA$39,2),SUM($AV79:BE79),0)+IF(RIGHT(CA$39,2)>RIGHT($K79,2),BE79,0)) -> 1.123382625 | CC79: =+O79*KeyAssumptionsPriceControl_FO!X$15 -> 1.24847128 | CD79: =+P79*KeyAssumptionsPriceControl_FO!Y$15 -> 1.256879395 | CE79: =+Q79*KeyAssumptionsPriceControl_FO!Z$15 -> 1.064929543 | CF79: =+R79*KeyAssumptionsPriceControl_FO!AA$15 -> 1.395893026 | CG79: =+S79*KeyAssumptionsPriceControl_FO!AB$15 -> 1.040104724 | CH79: =+T79*KeyAssumptionsPriceControl_FO!AC$15 -> 1.287601591 | CI79: =+U79*KeyAssumptionsPriceControl_FO!AD$15 -> 1.317216428 | CJ79: =+V79*KeyAssumptionsPriceControl_FO!AE$15 -> 1.347512406 | CK79: =+W79*KeyAssumptionsPriceControl_FO!AF$15 -> 1.378505191 | CL79: =+X79*KeyAssumptionsPriceControl_FO!AG$15 -> 1.41021081 | CN79: 0.02080785467 | CO79: 0.06256369924 | CP79: 0.1012605149 | CQ79: 0.1422742243 | CR79: 0.1828741869 | CS79: 0.2216692921 | CT79: 0.2650829258 | CU79: 0.309495073 | CV79: 0.3549286996 | CW79: 0.4014072996
C80: Motor Vehicles | E80: Sewerage | F80: Renewals | G80: Corporate | H80: Capital Programs / Allocation | J80: Straight line | K80: Ongoing | L80: 8 | M80: 8 | O80: 2.162000924 | P80: 2.162000924 | Q80: 2.162000924 | R80: 2.162000924 | S80: 2.162000924 | T80: 2.162000924 | U80: 2.162000924 | V80: 2.162000924 | W80: 2.162000924 | X80: 2.162000924 | AV80: 2.162000924 | AW80: 2.162000924 | AX80: 2.162000924 | AY80: 2.162000924 | AZ80: 2.162000924 | BA80: 2.162000924 | BB80: 2.162000924 | BC80: 2.162000924 | BD80: 2.162000924 | BE80: 2.162000924 | BG80: 0.1351250578 | BH80: 0.4053751733 | BI80: 0.6756252888 | BJ80: 0.9458754043 | BK80: 1.21612552 | BL80: 1.486375635 | BM80: 1.756625751 | BN80: 2.026875866 | BO80: 2.162000924 | BP80: 2.162000924 | BR80: =+IF($K80="Ongoing",AV80,IF(RIGHT($K80,2)=RIGHT(BR$39,2),SUM($AV80:AV80),0)+IF(RIGHT(BR$39,2)>RIGHT($K80,2),AV80,0)) -> 2.162000924 | BS80: =+IF($K80="Ongoing",AW80,IF(RIGHT($K80,2)=RIGHT(BS$39,2),SUM($AV80:AW80),0)+IF(RIGHT(BS$39,2)>RIGHT($K80,2),AW80,0)) -> 2.162000924 | BT80: =+IF($K80="Ongoing",AX80,IF(RIGHT($K80,2)=RIGHT(BT$39,2),SUM($AV80:AX80),0)+IF(RIGHT(BT$39,2)>RIGHT($K80,2),AX80,0)) -> 2.162000924 | BU80: =+IF($K80="Ongoing",AY80,IF(RIGHT($K80,2)=RIGHT(BU$39,2),SUM($AV80:AY80),0)+IF(RIGHT(BU$39,2)>RIGHT($K80,2),AY80,0)) -> 2.162000924 | BV80: =+IF($K80="Ongoing",AZ80,IF(RIGHT($K80,2)=RIGHT(BV$39,2),SUM($AV80:AZ80),0)+IF(RIGHT(BV$39,2)>RIGHT($K80,2),AZ80,0)) -> 2.162000924 | BW80: =+IF($K80="Ongoing",BA80,IF(RIGHT($K80,2)=RIGHT(BW$39,2),SUM($AV80:BA80),0)+IF(RIGHT(BW$39,2)>RIGHT($K80,2),BA80,0)) -> 2.162000924 | BX80: =+IF($K80="Ongoing",BB80,IF(RIGHT($K80,2)=RIGHT(BX$39,2),SUM($AV80:BB80),0)+IF(RIGHT(BX$39,2)>RIGHT($K80,2),BB80,0)) -> 2.162000924 | BY80: =+IF($K80="Ongoing",BC80,IF(RIGHT($K80,2)=RIGHT(BY$39,2),SUM($AV80:BC80),0)+IF(RIGHT(BY$39,2)>RIGHT($K80,2),BC80,0)) -> 2.162000924 | BZ80: =+IF($K80="Ongoing",BD80,IF(RIGHT($K80,2)=RIGHT(BZ$39,2),SUM($AV80:BD80),0)+IF(RIGHT(BZ$39,2)>RIGHT($K80,2),BD80,0)) -> 2.162000924 | CA80: =+IF($K80="Ongoing",BE80,IF(RIGHT($K80,2)=RIGHT(CA$39,2),SUM($AV80:BE80),0)+IF(RIGHT(CA$39,2)>RIGHT($K80,2),BE80,0)) -> 2.162000924 | CC80: =+O80*KeyAssumptionsPriceControl_FO!X$15 -> 2.211726945 | CD80: =+P80*KeyAssumptionsPriceControl_FO!Y$15 -> 2.262596665 | CE80: =+Q80*KeyAssumptionsPriceControl_FO!Z$15 -> 2.314636389 | CF80: =+R80*KeyAssumptionsPriceControl_FO!AA$15 -> 2.367873025 | CG80: =+S80*KeyAssumptionsPriceControl_FO!AB$15 -> 2.422334105 | CH80: =+T80*KeyAssumptionsPriceControl_FO!AC$15 -> 2.478047789 | CI80: =+U80*KeyAssumptionsPriceControl_FO!AD$15 -> 2.535042889 | CJ80: =+V80*KeyAssumptionsPriceControl_FO!AE$15 -> 2.593348875 | CK80: =+W80*KeyAssumptionsPriceControl_FO!AF$15 -> 2.652995899 | CL80: =+X80*KeyAssumptionsPriceControl_FO!AG$15 -> 2.714014805 | CN80: 0.1382329341 | CO80: 0.4178781598 | CP80: 0.7039552256 | CQ80: 0.996612064 | CR80: 1.29600001 | CS80: 1.602273878 | CT80: 1.915592045 | CU80: 2.236116531 | CV80: 2.425780145 | CW80: 2.481573088
C81: [Capex Item - Significant Project / Capital Program / Other Capex] | E81: [Service] | F81: [Major Cost Driver] | G81: [Asset category] | H81: [Capital type] | J81: Straight line | K81: [Year finalised?] | AV81: 0 | AW81: 0 | AX81: 0 | AY81: 0 | AZ81: 0 | BA81: 0 | BB81: 0 | BC81: 0 | BD81: 0 | BE81: 0 | BG81: 0 | BH81: 0 | BI81: 0 | BJ81: 0 | BK81: 0 | BL81: 0 | BM81: 0 | BN81: 0 | BO81: 0 | BP81: 0 | BR81: =+IF($K81="Ongoing",AV81,IF(RIGHT($K81,2)=RIGHT(BR$39,2),SUM($AV81:AV81),0)+IF(RIGHT(BR$39,2)>RIGHT($K81,2),AV81,0)) -> 0 | BS81: =+IF($K81="Ongoing",AW81,IF(RIGHT($K81,2)=RIGHT(BS$39,2),SUM($AV81:AW81),0)+IF(RIGHT(BS$39,2)>RIGHT($K81,2),AW81,0)) -> 0 | BT81: =+IF($K81="Ongoing",AX81,IF(RIGHT($K81,2)=RIGHT(BT$39,2),SUM($AV81:AX81),0)+IF(RIGHT(BT$39,2)>RIGHT($K81,2),AX81,0)) -> 0 | BU81: =+IF($K81="Ongoing",AY81,IF(RIGHT($K81,2)=RIGHT(BU$39,2),SUM($AV81:AY81),0)+IF(RIGHT(BU$39,2)>RIGHT($K81,2),AY81,0)) -> 0 | BV81: =+IF($K81="Ongoing",AZ81,IF(RIGHT($K81,2)=RIGHT(BV$39,2),SUM($AV81:AZ81),0)+IF(RIGHT(BV$39,2)>RIGHT($K81,2),AZ81,0)) -> 0 | BW81: =+IF($K81="Ongoing",BA81,IF(RIGHT($K81,2)=RIGHT(BW$39,2),SUM($AV81:BA81),0)+IF(RIGHT(BW$39,2)>RIGHT($K81,2),BA81,0)) -> 0 | BX81: =+IF($K81="Ongoing",BB81,IF(RIGHT($K81,2)=RIGHT(BX$39,2),SUM($AV81:BB81),0)+IF(RIGHT(BX$39,2)>RIGHT($K81,2),BB81,0)) -> 0 | BY81: =+IF($K81="Ongoing",BC81,IF(RIGHT($K81,2)=RIGHT(BY$39,2),SUM($AV81:BC81),0)+IF(RIGHT(BY$39,2)>RIGHT($K81,2),BC81,0)) -> 0 | BZ81: =+IF($K81="Ongoing",BD81,IF(RIGHT($K81,2)=RIGHT(BZ$39,2),SUM($AV81:BD81),0)+IF(RIGHT(BZ$39,2)>RIGHT($K81,2),BD81,0)) -> 0 | CA81: =+IF($K81="Ongoing",BE81,IF(RIGHT($K81,2)=RIGHT(CA$39,2),SUM($AV81:BE81),0)+IF(RIGHT(CA$39,2)>RIGHT($K81,2),BE81,0)) -> 0 | CC81: =+O81*KeyAssumptionsPriceControl_FO!X$15 -> 0 | CD81: =+P81*KeyAssumptionsPriceControl_FO!Y$15 -> 0 | CE81: =+Q81*KeyAssumptionsPriceControl_FO!Z$15 -> 0 | CF81: =+R81*KeyAssumptionsPriceControl_FO!AA$15 -> 0 | CG81: =+S81*KeyAssumptionsPriceControl_FO!AB$15 -> 0 | CH81: =+T81*KeyAssumptionsPriceControl_FO!AC$15 -> 0 | CI81: =+U81*KeyAssumptionsPriceControl_FO!AD$15 -> 0 | CJ81: =+V81*KeyAssumptionsPriceControl_FO!AE$15 -> 0 | CK81: =+W81*KeyAssumptionsPriceControl_FO!AF$15 -> 0 | CL81: =+X81*KeyAssumptionsPriceControl_FO!AG$15 -> 0 | CN81: 0 | CO81: 0 | CP81: 0 | CQ81: 0 | CR81: 0 | CS81: 0 | CT81: 0 | CU81: 0 | CV81: 0 | CW81: 0
C82: Water Growth Third Party Funded | E82: Water | F82: Growth | G82: Pipelines/network | H82: Capital Programs / Allocation | J82: Straight line | K82: Ongoing | L82: 1000000 | M82: 90 | O82: 0 | P82: 0 | Q82: 0 | R82: 0 | S82: 0 | T82: 0 | U82: 0 | V82: 0 | W82: 0 | X82: 0 | AK82: 0 | AL82: 0 | AM82: 0 | AN82: 0 | AO82: 0 | AP82: 0 | AQ82: 0 | AR82: 0 | AS82: 0 | AT82: 0 | AV82: 0 | AW82: =+P82-AA82-AL82 -> 0 | AX82: 0 | AY82: 0 | AZ82: 0 | BA82: 0 | BB82: 0 | BC82: 0 | BD82: 0 | BE82: 0 | BG82: 0 | BH82: 0 | BI82: 0 | BJ82: 0 | BK82: 0 | BL82: 0 | BM82: 0 | BN82: 0 | BO82: 0 | BP82: 0 | BR82: =+IF($K82="Ongoing",AV82,IF(RIGHT($K82,2)=RIGHT(BR$39,2),SUM($AV82:AV82),0)+IF(RIGHT(BR$39,2)>RIGHT($K82,2),AV82,0)) -> 0 | BS82: =+IF($K82="Ongoing",AW82,IF(RIGHT($K82,2)=RIGHT(BS$39,2),SUM($AV82:AW82),0)+IF(RIGHT(BS$39,2)>RIGHT($K82,2),AW82,0)) -> 0 | BT82: =+IF($K82="Ongoing",AX82,IF(RIGHT($K82,2)=RIGHT(BT$39,2),SUM($AV82:AX82),0)+IF(RIGHT(BT$39,2)>RIGHT($K82,2),AX82,0)) -> 0 | BU82: =+IF($K82="Ongoing",AY82,IF(RIGHT($K82,2)=RIGHT(BU$39,2),SUM($AV82:AY82),0)+IF(RIGHT(BU$39,2)>RIGHT($K82,2),AY82,0)) -> 0 | BV82: =+IF($K82="Ongoing",AZ82,IF(RIGHT($K82,2)=RIGHT(BV$39,2),SUM($AV82:AZ82),0)+IF(RIGHT(BV$39,2)>RIGHT($K82,2),AZ82,0)) -> 0 | BW82: =+IF($K82="Ongoing",BA82,IF(RIGHT($K82,2)=RIGHT(BW$39,2),SUM($AV82:BA82),0)+IF(RIGHT(BW$39,2)>RIGHT($K82,2),BA82,0)) -> 0 | BX82: =+IF($K82="Ongoing",BB82,IF(RIGHT($K82,2)=RIGHT(BX$39,2),SUM($AV82:BB82),0)+IF(RIGHT(BX$39,2)>RIGHT($K82,2),BB82,0)) -> 0 | BY82: =+IF($K82="Ongoing",BC82,IF(RIGHT($K82,2)=RIGHT(BY$39,2),SUM($AV82:BC82),0)+IF(RIGHT(BY$39,2)>RIGHT($K82,2),BC82,0)) -> 0 | BZ82: =+IF($K82="Ongoing",BD82,IF(RIGHT($K82,2)=RIGHT(BZ$39,2),SUM($AV82:BD82),0)+IF(RIGHT(BZ$39,2)>RIGHT($K82,2),BD82,0)) -> 0 | CA82: =+IF($K82="Ongoing",BE82,IF(RIGHT($K82,2)=RIGHT(CA$39,2),SUM($AV82:BE82),0)+IF(RIGHT(CA$39,2)>RIGHT($K82,2),BE82,0)) -> 0 | CC82: =+O82*KeyAssumptionsPriceControl_FO!X$15 -> 0 | CD82: =+P82*KeyAssumptionsPriceControl_FO!Y$15 -> 0 | CE82: =+Q82*KeyAssumptionsPriceControl_FO!Z$15 -> 0 | CF82: =+R82*KeyAssumptionsPriceControl_FO!AA$15 -> 0 | CG82: =+S82*KeyAssumptionsPriceControl_FO!AB$15 -> 0 | CH82: =+T82*KeyAssumptionsPriceControl_FO!AC$15 -> 0 | CI82: =+U82*KeyAssumptionsPriceControl_FO!AD$15 -> 0 | CJ82: =+V82*KeyAssumptionsPriceControl_FO!AE$15 -> 0 | CK82: =+W82*KeyAssumptionsPriceControl_FO!AF$15 -> 0 | CL82: =+X82*KeyAssumptionsPriceControl_FO!AG$15 -> 0 | CN82: 0 | CO82: 0 | CP82: 0 | CQ82: 0 | CR82: 0 | CS82: 0 | CT82: 0 | CU82: 0 | CV82: 0 | CW82: 0
C83: Sewer Growth Third Party Funded | E83: Sewerage | F83: Renewals | G83: Pipelines/network | H83: Capital Programs / Allocation | J83: Straight line | K83: Ongoing | L83: 1000000 | M83: 90 | O83: 1.5 | P83: 2.8 | Q83: 0 | R83: 0 | S83: 0 | T83: 0.5137655986 | U83: 0 | V83: 0 | W83: 0 | X83: 0 | AK83: 1.5 | AL83: 2.8 | AM83: 0 | AN83: 0 | AO83: 0 | AP83: 0.5137655986 | AQ83: 0 | AR83: 0 | AS83: 0 | AT83: 0 | AV83: =+O83-Z83-AK83 -> 0 | AW83: 0 | AX83: 0 | AY83: 0 | AZ83: 0 | BA83: 0 | BB83: 0 | BC83: 0 | BD83: 0 | BE83: 0 | BG83: 0 | BH83: 0 | BI83: 0 | BJ83: 0 | BK83: 0 | BL83: 0 | BM83: 0 | BN83: 0 | BO83: 0 | BP83: 0 | BR83: =+IF($K83="Ongoing",AV83,IF(RIGHT($K83,2)=RIGHT(BR$39,2),SUM($AV83:AV83),0)+IF(RIGHT(BR$39,2)>RIGHT($K83,2),AV83,0)) -> 0 | BS83: =+IF($K83="Ongoing",AW83,IF(RIGHT($K83,2)=RIGHT(BS$39,2),SUM($AV83:AW83),0)+IF(RIGHT(BS$39,2)>RIGHT($K83,2),AW83,0)) -> 0 | BT83: =+IF($K83="Ongoing",AX83,IF(RIGHT($K83,2)=RIGHT(BT$39,2),SUM($AV83:AX83),0)+IF(RIGHT(BT$39,2)>RIGHT($K83,2),AX83,0)) -> 0 | BU83: =+IF($K83="Ongoing",AY83,IF(RIGHT($K83,2)=RIGHT(BU$39,2),SUM($AV83:AY83),0)+IF(RIGHT(BU$39,2)>RIGHT($K83,2),AY83,0)) -> 0 | BV83: =+IF($K83="Ongoing",AZ83,IF(RIGHT($K83,2)=RIGHT(BV$39,2),SUM($AV83:AZ83),0)+IF(RIGHT(BV$39,2)>RIGHT($K83,2),AZ83,0)) -> 0 | BW83: =+IF($K83="Ongoing",BA83,IF(RIGHT($K83,2)=RIGHT(BW$39,2),SUM($AV83:BA83),0)+IF(RIGHT(BW$39,2)>RIGHT($K83,2),BA83,0)) -> 0 | BX83: =+IF($K83="Ongoing",BB83,IF(RIGHT($K83,2)=RIGHT(BX$39,2),SUM($AV83:BB83),0)+IF(RIGHT(BX$39,2)>RIGHT($K83,2),BB83,0)) -> 0 | BY83: =+IF($K83="Ongoing",BC83,IF(RIGHT($K83,2)=RIGHT(BY$39,2),SUM($AV83:BC83),0)+IF(RIGHT(BY$39,2)>RIGHT($K83,2),BC83,0)) -> 0 | BZ83: =+IF($K83="Ongoing",BD83,IF(RIGHT($K83,2)=RIGHT(BZ$39,2),SUM($AV83:BD83),0)+IF(RIGHT(BZ$39,2)>RIGHT($K83,2),BD83,0)) -> 0 | CA83: =+IF($K83="Ongoing",BE83,IF(RIGHT($K83,2)=RIGHT(CA$39,2),SUM($AV83:BE83),0)+IF(RIGHT(CA$39,2)>RIGHT($K83,2),BE83,0)) -> 0 | CC83: =+O83*KeyAssumptionsPriceControl_FO!X$15 -> 1.5345 | CD83: =+P83*KeyAssumptionsPriceControl_FO!Y$15 -> 2.9302812 | CE83: =+Q83*KeyAssumptionsPriceControl_FO!Z$15 -> 0 | CF83: =+R83*KeyAssumptionsPriceControl_FO!AA$15 -> 0 | CG83: =+S83*KeyAssumptionsPriceControl_FO!AB$15 -> 0 | CH83: =+T83*KeyAssumptionsPriceControl_FO!AC$15 -> 0.5888691774 | CI83: =+U83*KeyAssumptionsPriceControl_FO!AD$15 -> 0 | CJ83: =+V83*KeyAssumptionsPriceControl_FO!AE$15 -> 0 | CK83: =+W83*KeyAssumptionsPriceControl_FO!AF$15 -> 0 | CL83: =+X83*KeyAssumptionsPriceControl_FO!AG$15 -> 0 | CN83: 0.008525 | CO83: 0.03332934 | CP83: 0.04960868 | CQ83: 0.04960868 | CR83: 0.04960868 | CS83: 0.05288017543 | CT83: 0.05615167086 | CU83: 0.05615167086 | CV83: 0.05615167086 | CW83: 0.05615167086
C84: Recycled Water Growth Third Party Funded | E84: Recycled Water | F84: Growth | G84: Pipelines/network | H84: Capital Programs / Allocation | J84: Straight line | K84: Ongoing | L84: 1000000 | M84: 90 | O84: 0 | P84: 0 | Q84: 0 | R84: 0 | S84: 0 | T84: 0 | U84: 0 | V84: 0 | W84: 0 | X84: 0 | AK84: 0 | AL84: 0 | AM84: 0 | AN84: 0 | AO84: 0 | AP84: 0 | AQ84: 0 | AR84: 0 | AS84: 0 | AT84: 0 | AV84: 0 | AW84: 0 | AX84: 0 | AY84: 0 | AZ84: 0 | BA84: 0 | BB84: 0 | BC84: 0 | BD84: 0 | BE84: 0 | BG84: 0 | BH84: 0 | BI84: 0 | BJ84: 0 | BK84: 0 | BL84: 0 | BM84: 0 | BN84: 0 | BO84: =IF($L84=0,0, IF($L84<=0.5,BZ84, IF(AND($J84="straight line",$L84<1.51),(BY84-((BY84/$L84)*0.5))+BZ84/$L84*0.5, IF($J84="straight line", IF((LEFT(BO$39,4)*1)-INT($L84)<LEFT($BG$39,4)*1,0,((OFFSET(BZ84,0,-INT($L84+0.5),1,1))/$L84)*(IF($L84-INT($L84)>0.5,$L84-0.5-INT($L84),IF($L84-INT($L84)<=0.5,$L84-0.5-INT($L84)+1,0)))) +BZ84/$L84*0.5 +SUM(OFFSET(BZ84,0,MAX(-INT($L84+(0.5-(10^-12))),-BO$40)+1,1,MIN(INT($L84+(0.5-(10^-12))),BO$40)-1))*1/$L84, IF($J84="Declining Balance",-$BG$38,0))))) -> 0 | BP84: 0 | BR84: =+IF($K84="Ongoing",AV84,IF(RIGHT($K84,2)=RIGHT(BR$39,2),SUM($AV84:AV84),0)+IF(RIGHT(BR$39,2)>RIGHT($K84,2),AV84,0)) -> 0 | BS84: =+IF($K84="Ongoing",AW84,IF(RIGHT($K84,2)=RIGHT(BS$39,2),SUM($AV84:AW84),0)+IF(RIGHT(BS$39,2)>RIGHT($K84,2),AW84,0)) -> 0 | BT84: =+IF($K84="Ongoing",AX84,IF(RIGHT($K84,2)=RIGHT(BT$39,2),SUM($AV84:AX84),0)+IF(RIGHT(BT$39,2)>RIGHT($K84,2),AX84,0)) -> 0 | BU84: =+IF($K84="Ongoing",AY84,IF(RIGHT($K84,2)=RIGHT(BU$39,2),SUM($AV84:AY84),0)+IF(RIGHT(BU$39,2)>RIGHT($K84,2),AY84,0)) -> 0 | BV84: =+IF($K84="Ongoing",AZ84,IF(RIGHT($K84,2)=RIGHT(BV$39,2),SUM($AV84:AZ84),0)+IF(RIGHT(BV$39,2)>RIGHT($K84,2),AZ84,0)) -> 0 | BW84: =+IF($K84="Ongoing",BA84,IF(RIGHT($K84,2)=RIGHT(BW$39,2),SUM($AV84:BA84),0)+IF(RIGHT(BW$39,2)>RIGHT($K84,2),BA84,0)) -> 0 | BX84: =+IF($K84="Ongoing",BB84,IF(RIGHT($K84,2)=RIGHT(BX$39,2),SUM($AV84:BB84),0)+IF(RIGHT(BX$39,2)>RIGHT($K84,2),BB84,0)) -> 0 | BY84: =+IF($K84="Ongoing",BC84,IF(RIGHT($K84,2)=RIGHT(BY$39,2),SUM($AV84:BC84),0)+IF(RIGHT(BY$39,2)>RIGHT($K84,2),BC84,0)) -> 0 | BZ84: =+IF($K84="Ongoing",BD84,IF(RIGHT($K84,2)=RIGHT(BZ$39,2),SUM($AV84:BD84),0)+IF(RIGHT(BZ$39,2)>RIGHT($K84,2),BD84,0)) -> 0 | CA84: =+IF($K84="Ongoing",BE84,IF(RIGHT($K84,2)=RIGHT(CA$39,2),SUM($AV84:BE84),0)+IF(RIGHT(CA$39,2)>RIGHT($K84,2),BE84,0)) -> 0 | CC84: =+O84*KeyAssumptionsPriceControl_FO!X$15 -> 0 | CD84: =+P84*KeyAssumptionsPriceControl_FO!Y$15 -> 0 | CE84: =+Q84*KeyAssumptionsPriceControl_FO!Z$15 -> 0 | CF84: =+R84*KeyAssumptionsPriceControl_FO!AA$15 -> 0 | CG84: =+S84*KeyAssumptionsPriceControl_FO!AB$15 -> 0 | CH84: =+T84*KeyAssumptionsPriceControl_FO!AC$15 -> 0 | CI84: =+U84*KeyAssumptionsPriceControl_FO!AD$15 -> 0 | CJ84: =+V84*KeyAssumptionsPriceControl_FO!AE$15 -> 0 | CK84: =+W84*KeyAssumptionsPriceControl_FO!AF$15 -> 0 | CL84: =+X84*KeyAssumptionsPriceControl_FO!AG$15 -> 0 | CN84: 0 | CO84: 0 | CP84: 0 | CQ84: 0 | CR84: 0 | CS84: 0 | CT84: 0 | CU84: 0 | CV84: =IF($M84=0,0, IF($M84<=0.5,CK84, IF(AND($J84="straight line",$M84<1.51),(CJ84-((CJ84/$M84)*0.5))+CK84/$M84*0.5, IF($J84="straight line", IF((LEFT(CV$39,4)*1)-INT($M84)<LEFT($CN$39,4)*1,0,((OFFSET(CK84,0,-INT($M84+0.5),1,1))/$M84)*(IF($M84-INT($M84)>0.5,$M84-0.5-INT($M84),IF($M84-INT($M84)<=0.5,$M84-0.5-INT($M84)+1,0)))) +CK84/$M84*0.5 +SUM(OFFSET(CK84,0,MAX(-INT($M84+(0.5-(10^-12))),-CV$40)+1,1,MIN(INT($M84+(0.5-(10^-12))),CV$40)-1))*1/$M84, IF($J84="Declining Balance",-$CN$38,0))))) -> 0 | CW84: 0
C85: Financed Works | E85: Water | F85: Renewals | G85: Pipelines/network | H85: Capital Programs / Allocation | J85: Straight line | K85: Ongoing | L85: 100 | M85: 0.5 | O85: 0.5106284658 | P85: 0.5106284658 | Q85: 0.5106284658 | R85: 0.5106284658 | S85: 0.5106284658 | T85: 0.5106284658 | U85: 0.5106284658 | V85: 0.5106284658 | W85: 0.5106284658 | X85: 0.5106284658 | AK85: 0.5106284658 | AL85: 0.5106284658 | AM85: 0.5106284658 | AN85: 0.5106284658 | AO85: 0.5106284658 | AP85: 0.5106284658 | AQ85: 0.5106284658 | AR85: 0.5106284658 | AS85: 0.5106284658 | AT85: 0.5106284658 | AV85: 0 | AW85: 0 | AX85: 0 | AY85: 0 | AZ85: 0 | BA85: 0 | BB85: 0 | BC85: 0 | BD85: 0 | BE85: 0 | BG85: 0 | BH85: =IF($L85=0,0, IF($L85<=0.5,BS85, IF(AND($J85="straight line",$L85<1.51),(BR85-((BR85/$L85)*0.5))+BS85/$L85*0.5, IF($J85="straight line", IF((LEFT(BH$39,4)*1)-INT($L85)<LEFT($BG$39,4)*1,0,((OFFSET(BS85,0,-INT($L85+0.5),1,1))/$L85)*(IF($L85-INT($L85)>0.5,$L85-0.5-INT($L85),IF($L85-INT($L85)<=0.5,$L85-0.5-INT($L85)+1,0)))) +BS85/$L85*0.5 +SUM(OFFSET(BS85,0,MAX(-INT($L85+(0.5-(10^-12))),-BH$40)+1,1,MIN(INT($L85+(0.5-(10^-12))),BH$40)-1))*1/$L85, IF($J85="Declining Balance",-$BG$38,0))))) -> 0 | BI85: 0 | BJ85: 0 | BK85: 0 | BL85: 0 | BM85: 0 | BN85: 0 | BO85: 0 | BP85: 0 | BR85: =+IF($K85="Ongoing",AV85,IF(RIGHT($K85,2)=RIGHT(BR$39,2),SUM($AV85:AV85),0)+IF(RIGHT(BR$39,2)>RIGHT($K85,2),AV85,0)) -> 0 | BS85: =+IF($K85="Ongoing",AW85,IF(RIGHT($K85,2)=RIGHT(BS$39,2),SUM($AV85:AW85),0)+IF(RIGHT(BS$39,2)>RIGHT($K85,2),AW85,0)) -> 0 | BT85: =+IF($K85="Ongoing",AX85,IF(RIGHT($K85,2)=RIGHT(BT$39,2),SUM($AV85:AX85),0)+IF(RIGHT(BT$39,2)>RIGHT($K85,2),AX85,0)) -> 0 | BU85: =+IF($K85="Ongoing",AY85,IF(RIGHT($K85,2)=RIGHT(BU$39,2),SUM($AV85:AY85),0)+IF(RIGHT(BU$39,2)>RIGHT($K85,2),AY85,0)) -> 0 | BV85: =+IF($K85="Ongoing",AZ85,IF(RIGHT($K85,2)=RIGHT(BV$39,2),SUM($AV85:AZ85),0)+IF(RIGHT(BV$39,2)>RIGHT($K85,2),AZ85,0)) -> 0 | BW85: =+IF($K85="Ongoing",BA85,IF(RIGHT($K85,2)=RIGHT(BW$39,2),SUM($AV85:BA85),0)+IF(RIGHT(BW$39,2)>RIGHT($K85,2),BA85,0)) -> 0 | BX85: =+IF($K85="Ongoing",BB85,IF(RIGHT($K85,2)=RIGHT(BX$39,2),SUM($AV85:BB85),0)+IF(RIGHT(BX$39,2)>RIGHT($K85,2),BB85,0)) -> 0 | BY85: =+IF($K85="Ongoing",BC85,IF(RIGHT($K85,2)=RIGHT(BY$39,2),SUM($AV85:BC85),0)+IF(RIGHT(BY$39,2)>RIGHT($K85,2),BC85,0)) -> 0 | BZ85: =+IF($K85="Ongoing",BD85,IF(RIGHT($K85,2)=RIGHT(BZ$39,2),SUM($AV85:BD85),0)+IF(RIGHT(BZ$39,2)>RIGHT($K85,2),BD85,0)) -> 0 | CA85: =+IF($K85="Ongoing",BE85,IF(RIGHT($K85,2)=RIGHT(CA$39,2),SUM($AV85:BE85),0)+IF(RIGHT(CA$39,2)>RIGHT($K85,2),BE85,0)) -> 0 | CC85: =+O85*KeyAssumptionsPriceControl_FO!X$15 -> 0.5223729205 | CD85: =+P85*KeyAssumptionsPriceControl_FO!Y$15 -> 0.5343874977 | CE85: =+Q85*KeyAssumptionsPriceControl_FO!Z$15 -> 0.5466784101 | CF85: =+R85*KeyAssumptionsPriceControl_FO!AA$15 -> 0.5592520136 | CG85: =+S85*KeyAssumptionsPriceControl_FO!AB$15 -> 0.5721148099 | CH85: =+T85*KeyAssumptionsPriceControl_FO!AC$15 -> 0.5852734505 | CI85: =+U85*KeyAssumptionsPriceControl_FO!AD$15 -> 0.5987347399 | CJ85: =+V85*KeyAssumptionsPriceControl_FO!AE$15 -> 0.6125056389 | CK85: =+W85*KeyAssumptionsPriceControl_FO!AF$15 -> 0.6265932686 | CL85: =+X85*KeyAssumptionsPriceControl_FO!AG$15 -> 0.6410049138 | CN85: 0.5223729205 | CO85: =IF($M85=0,0, IF($M85<=0.5,CD85, IF(AND($J85="straight line",$M85<1.51),(CC85-((CC85/$M85)*0.5))+CD85/$M85*0.5, IF($J85="straight line", IF((LEFT(CO$39,4)*1)-INT($M85)<LEFT($CN$39,4)*1,0,((OFFSET(CD85,0,-INT($M85+0.5),1,1))/$M85)*(IF($M85-INT($M85)>0.5,$M85-0.5-INT($M85),IF($M85-INT($M85)<=0.5,$M85-0.5-INT($M85)+1,0)))) +CD85/$M85*0.5 +SUM(OFFSET(CD85,0,MAX(-INT($M85+(0.5-(10^-12))),-CO$40)+1,1,MIN(INT($M85+(0.5-(10^-12))),CO$40)-1))*1/$M85, IF($J85="Declining Balance",-$CN$38,0))))) -> 0.5343874977 | CP85: 0.5466784101 | CQ85: 0.5592520136 | CR85: 0.5721148099 | CS85: 0.5852734505 | CT85: 0.5987347399 | CU85: 0.6125056389 | CV85: 0.6265932686 | CW85: 0.6410049138
C86: New Meter Installations | E86: Water | F86: Growth | G86: Pipelines/network | H86: Capital Programs / Allocation | J86: Straight line | K86: Ongoing | L86: 18 | M86: 18 | O86: 12.25508318 | P86: 12.25508318 | Q86: 12.25508318 | R86: 12.25508318 | S86: 12.25508318 | T86: 13.27634011 | U86: 13.27634011 | V86: 13.27634011 | W86: 13.27634011 | X86: 13 | AK86: 12.25508318 | AL86: 12.25508318 | AM86: 12.25508318 | AN86: 12.25508318 | AO86: 12.25508318 | AP86: 13.27634011 | AQ86: 13.27634011 | AR86: 13.27634011 | AS86: 13.27634011 | AT86: 13 | AV86: 0 | AW86: 0 | AX86: 0 | AY86: 0 | AZ86: 0 | BA86: 0 | BB86: 0 | BC86: 0 | BD86: 0 | BE86: 0 | BG86: 0 | BH86: 0 | BI86: 0 | BJ86: 0 | BK86: 0 | BL86: 0 | BM86: 0 | BN86: 0 | BO86: 0 | BP86: 0 | BR86: =+IF($K86="Ongoing",AV86,IF(RIGHT($K86,2)=RIGHT(BR$39,2),SUM($AV86:AV86),0)+IF(RIGHT(BR$39,2)>RIGHT($K86,2),AV86,0)) -> 0 | BS86: =+IF($K86="Ongoing",AW86,IF(RIGHT($K86,2)=RIGHT(BS$39,2),SUM($AV86:AW86),0)+IF(RIGHT(BS$39,2)>RIGHT($K86,2),AW86,0)) -> 0 | BT86: =+IF($K86="Ongoing",AX86,IF(RIGHT($K86,2)=RIGHT(BT$39,2),SUM($AV86:AX86),0)+IF(RIGHT(BT$39,2)>RIGHT($K86,2),AX86,0)) -> 0 | BU86: =+IF($K86="Ongoing",AY86,IF(RIGHT($K86,2)=RIGHT(BU$39,2),SUM($AV86:AY86),0)+IF(RIGHT(BU$39,2)>RIGHT($K86,2),AY86,0)) -> 0 | BV86: =+IF($K86="Ongoing",AZ86,IF(RIGHT($K86,2)=RIGHT(BV$39,2),SUM($AV86:AZ86),0)+IF(RIGHT(BV$39,2)>RIGHT($K86,2),AZ86,0)) -> 0 | BW86: =+IF($K86="Ongoing",BA86,IF(RIGHT($K86,2)=RIGHT(BW$39,2),SUM($AV86:BA86),0)+IF(RIGHT(BW$39,2)>RIGHT($K86,2),BA86,0)) -> 0 | BX86: =+IF($K86="Ongoing",BB86,IF(RIGHT($K86,2)=RIGHT(BX$39,2),SUM($AV86:BB86),0)+IF(RIGHT(BX$39,2)>RIGHT($K86,2),BB86,0)) -> 0 | BY86: =+IF($K86="Ongoing",BC86,IF(RIGHT($K86,2)=RIGHT(BY$39,2),SUM($AV86:BC86),0)+IF(RIGHT(BY$39,2)>RIGHT($K86,2),BC86,0)) -> 0 | BZ86: =+IF($K86="Ongoing",BD86,IF(RIGHT($K86,2)=RIGHT(BZ$39,2),SUM($AV86:BD86),0)+IF(RIGHT(BZ$39,2)>RIGHT($K86,2),BD86,0)) -> 0 | CA86: =+IF($K86="Ongoing",BE86,IF(RIGHT($K86,2)=RIGHT(CA$39,2),SUM($AV86:BE86),0)+IF(RIGHT(CA$39,2)>RIGHT($K86,2),BE86,0)) -> 0 | CC86: =+O86*KeyAssumptionsPriceControl_FO!X$15 -> 12.53695009 | CD86: =+P86*KeyAssumptionsPriceControl_FO!Y$15 -> 12.82529994 | CE86: =+Q86*KeyAssumptionsPriceControl_FO!Z$15 -> 13.12028184 | CF86: =+R86*KeyAssumptionsPriceControl_FO!AA$15 -> 13.42204833 | CG86: =+S86*KeyAssumptionsPriceControl_FO!AB$15 -> 13.73075544 | CH86: =+T86*KeyAssumptionsPriceControl_FO!AC$15 -> 15.21710971 | CI86: =+U86*KeyAssumptionsPriceControl_FO!AD$15 -> 15.56710324 | CJ86: =+V86*KeyAssumptionsPriceControl_FO!AE$15 -> 15.92514661 | CK86: =+W86*KeyAssumptionsPriceControl_FO!AF$15 -> 16.29142498 | CL86: =+X86*KeyAssumptionsPriceControl_FO!AG$15 -> 16.31923098 | CN86: 0.3482486137 | CO86: 1.052755559 | CP86: 1.773466164 | CQ86: 2.510753114 | CR86: 3.264997662 | CS86: 4.069105028 | CT86: 4.924222054 | CU86: 5.799006772 | CV86: 6.693911539 | CW86: 7.599763093
C87: [Capex Item - Significant Project / Capital Program / Other Capex] | E87: [Service] | F87: [Major Cost Driver] | G87: [Asset category] | H87: [Capital type] | J87: Straight line | K87: [Year finalised?] | AV87: 0 | AW87: 0 | AX87: 0 | AY87: 0 | AZ87: 0 | BA87: 0 | BB87: 0 | BC87: 0 | BD87: 0 | BE87: 0 | BG87: 0 | BH87: 0 | BI87: 0 | BJ87: 0 | BK87: 0 | BL87: 0 | BM87: 0 | BN87: 0 | BO87: 0 | BP87: 0 | BR87: =+IF($K87="Ongoing",AV87,IF(RIGHT($K87,2)=RIGHT(BR$39,2),SUM($AV87:AV87),0)+IF(RIGHT(BR$39,2)>RIGHT($K87,2),AV87,0)) -> 0 | BS87: =+IF($K87="Ongoing",AW87,IF(RIGHT($K87,2)=RIGHT(BS$39,2),SUM($AV87:AW87),0)+IF(RIGHT(BS$39,2)>RIGHT($K87,2),AW87,0)) -> 0 | BT87: =+IF($K87="Ongoing",AX87,IF(RIGHT($K87,2)=RIGHT(BT$39,2),SUM($AV87:AX87),0)+IF(RIGHT(BT$39,2)>RIGHT($K87,2),AX87,0)) -> 0 | BU87: =+IF($K87="Ongoing",AY87,IF(RIGHT($K87,2)=RIGHT(BU$39,2),SUM($AV87:AY87),0)+IF(RIGHT(BU$39,2)>RIGHT($K87,2),AY87,0)) -> 0 | BV87: =+IF($K87="Ongoing",AZ87,IF(RIGHT($K87,2)=RIGHT(BV$39,2),SUM($AV87:AZ87),0)+IF(RIGHT(BV$39,2)>RIGHT($K87,2),AZ87,0)) -> 0 | BW87: =+IF($K87="Ongoing",BA87,IF(RIGHT($K87,2)=RIGHT(BW$39,2),SUM($AV87:BA87),0)+IF(RIGHT(BW$39,2)>RIGHT($K87,2),BA87,0)) -> 0 | BX87: =+IF($K87="Ongoing",BB87,IF(RIGHT($K87,2)=RIGHT(BX$39,2),SUM($AV87:BB87),0)+IF(RIGHT(BX$39,2)>RIGHT($K87,2),BB87,0)) -> 0 | BY87: =+IF($K87="Ongoing",BC87,IF(RIGHT($K87,2)=RIGHT(BY$39,2),SUM($AV87:BC87),0)+IF(RIGHT(BY$39,2)>RIGHT($K87,2),BC87,0)) -> 0 | BZ87: =+IF($K87="Ongoing",BD87,IF(RIGHT($K87,2)=RIGHT(BZ$39,2),SUM($AV87:BD87),0)+IF(RIGHT(BZ$39,2)>RIGHT($K87,2),BD87,0)) -> 0 | CA87: =+IF($K87="Ongoing",BE87,IF(RIGHT($K87,2)=RIGHT(CA$39,2),SUM($AV87:BE87),0)+IF(RIGHT(CA$39,2)>RIGHT($K87,2),BE87,0)) -> 0 | CC87: =+O87*KeyAssumptionsPriceControl_FO!X$15 -> 0 | CD87: =+P87*KeyAssumptionsPriceControl_FO!Y$15 -> 0 | CE87: =+Q87*KeyAssumptionsPriceControl_FO!Z$15 -> 0 | CF87: =+R87*KeyAssumptionsPriceControl_FO!AA$15 -> 0 | CG87: =+S87*KeyAssumptionsPriceControl_FO!AB$15 -> 0 | CH87: =+T87*KeyAssumptionsPriceControl_FO!AC$15 -> 0 | CI87: =+U87*KeyAssumptionsPriceControl_FO!AD$15 -> 0 | CJ87: =+V87*KeyAssumptionsPriceControl_FO!AE$15 -> 0 | CK87: =+W87*KeyAssumptionsPriceControl_FO!AF$15 -> 0 | CL87: =+X87*KeyAssumptionsPriceControl_FO!AG$15 -> 0 | CN87: 0 | CO87: 0 | CP87: 0 | CQ87: 0 | CR87: 0 | CS87: 0 | CT87: 0 | CU87: 0 | CV87: 0 | CW87: 0
C88: [Capex Item - Significant Project / Capital Program / Other Capex] | E88: [Service] | F88: [Major Cost Driver] | G88: [Asset category] | H88: [Capital type] | J88: Straight line | K88: [Year finalised?] | AV88: 0 | AW88: 0 | AX88: 0 | AY88: 0 | AZ88: 0 | BA88: 0 | BB88: 0 | BC88: 0 | BD88: 0 | BE88: 0 | BG88: 0 | BH88: 0 | BI88: 0 | BJ88: 0 | BK88: 0 | BL88: 0 | BM88: 0 | BN88: 0 | BO88: 0 | BP88: 0 | BR88: =+IF($K88="Ongoing",AV88,IF(RIGHT($K88,2)=RIGHT(BR$39,2),SUM($AV88:AV88),0)+IF(RIGHT(BR$39,2)>RIGHT($K88,2),AV88,0)) -> 0 | BS88: =+IF($K88="Ongoing",AW88,IF(RIGHT($K88,2)=RIGHT(BS$39,2),SUM($AV88:AW88),0)+IF(RIGHT(BS$39,2)>RIGHT($K88,2),AW88,0)) -> 0 | BT88: =+IF($K88="Ongoing",AX88,IF(RIGHT($K88,2)=RIGHT(BT$39,2),SUM($AV88:AX88),0)+IF(RIGHT(BT$39,2)>RIGHT($K88,2),AX88,0)) -> 0 | BU88: =+IF($K88="Ongoing",AY88,IF(RIGHT($K88,2)=RIGHT(BU$39,2),SUM($AV88:AY88),0)+IF(RIGHT(BU$39,2)>RIGHT($K88,2),AY88,0)) -> 0 | BV88: =+IF($K88="Ongoing",AZ88,IF(RIGHT($K88,2)=RIGHT(BV$39,2),SUM($AV88:AZ88),0)+IF(RIGHT(BV$39,2)>RIGHT($K88,2),AZ88,0)) -> 0 | BW88: =+IF($K88="Ongoing",BA88,IF(RIGHT($K88,2)=RIGHT(BW$39,2),SUM($AV88:BA88),0)+IF(RIGHT(BW$39,2)>RIGHT($K88,2),BA88,0)) -> 0 | BX88: =+IF($K88="Ongoing",BB88,IF(RIGHT($K88,2)=RIGHT(BX$39,2),SUM($AV88:BB88),0)+IF(RIGHT(BX$39,2)>RIGHT($K88,2),BB88,0)) -> 0 | BY88: =+IF($K88="Ongoing",BC88,IF(RIGHT($K88,2)=RIGHT(BY$39,2),SUM($AV88:BC88),0)+IF(RIGHT(BY$39,2)>RIGHT($K88,2),BC88,0)) -> 0 | BZ88: =+IF($K88="Ongoing",BD88,IF(RIGHT($K88,2)=RIGHT(BZ$39,2),SUM($AV88:BD88),0)+IF(RIGHT(BZ$39,2)>RIGHT($K88,2),BD88,0)) -> 0 | CA88: =+IF($K88="Ongoing",BE88,IF(RIGHT($K88,2)=RIGHT(CA$39,2),SUM($AV88:BE88),0)+IF(RIGHT(CA$39,2)>RIGHT($K88,2),BE88,0)) -> 0 | CC88: =+O88*KeyAssumptionsPriceControl_FO!X$15 -> 0 | CD88: =+P88*KeyAssumptionsPriceControl_FO!Y$15 -> 0 | CE88: =+Q88*KeyAssumptionsPriceControl_FO!Z$15 -> 0 | CF88: =+R88*KeyAssumptionsPriceControl_FO!AA$15 -> 0 | CG88: =+S88*KeyAssumptionsPriceControl_FO!AB$15 -> 0 | CH88: =+T88*KeyAssumptionsPriceControl_FO!AC$15 -> 0 | CI88: =+U88*KeyAssumptionsPriceControl_FO!AD$15 -> 0 | CJ88: =+V88*KeyAssumptionsPriceControl_FO!AE$15 -> 0 | CK88: =+W88*KeyAssumptionsPriceControl_FO!AF$15 -> 0 | CL88: =+X88*KeyAssumptionsPriceControl_FO!AG$15 -> 0 | CN88: 0 | CO88: 0 | CP88: 0 | CQ88: 0 | CR88: 0 | CS88: 0 | CT88: 0 | CU88: 0 | CV88: 0 | CW88: 0
C89: [Capex Item - Significant Project / Capital Program / Other Capex] | E89: [Service] | F89: [Major Cost Driver] | G89: [Asset category] | H89: [Capital type] | J89: Straight line | K89: [Year finalised?] | AV89: 0 | AW89: 0 | AX89: 0 | AY89: 0 | AZ89: 0 | BA89: 0 | BB89: 0 | BC89: 0 | BD89: 0 | BE89: 0 | BG89: 0 | BH89: 0 | BI89: 0 | BJ89: 0 | BK89: 0 | BL89: 0 | BM89: 0 | BN89: 0 | BO89: 0 | BP89: 0 | BR89: =+IF($K89="Ongoing",AV89,IF(RIGHT($K89,2)=RIGHT(BR$39,2),SUM($AV89:AV89),0)+IF(RIGHT(BR$39,2)>RIGHT($K89,2),AV89,0)) -> 0 | BS89: =+IF($K89="Ongoing",AW89,IF(RIGHT($K89,2)=RIGHT(BS$39,2),SUM($AV89:AW89),0)+IF(RIGHT(BS$39,2)>RIGHT($K89,2),AW89,0)) -> 0 | BT89: =+IF($K89="Ongoing",AX89,IF(RIGHT($K89,2)=RIGHT(BT$39,2),SUM($AV89:AX89),0)+IF(RIGHT(BT$39,2)>RIGHT($K89,2),AX89,0)) -> 0 | BU89: =+IF($K89="Ongoing",AY89,IF(RIGHT($K89,2)=RIGHT(BU$39,2),SUM($AV89:AY89),0)+IF(RIGHT(BU$39,2)>RIGHT($K89,2),AY89,0)) -> 0 | BV89: =+IF($K89="Ongoing",AZ89,IF(RIGHT($K89,2)=RIGHT(BV$39,2),SUM($AV89:AZ89),0)+IF(RIGHT(BV$39,2)>RIGHT($K89,2),AZ89,0)) -> 0 | BW89: =+IF($K89="Ongoing",BA89,IF(RIGHT($K89,2)=RIGHT(BW$39,2),SUM($AV89:BA89),0)+IF(RIGHT(BW$39,2)>RIGHT($K89,2),BA89,0)) -> 0 | BX89: =+IF($K89="Ongoing",BB89,IF(RIGHT($K89,2)=RIGHT(BX$39,2),SUM($AV89:BB89),0)+IF(RIGHT(BX$39,2)>RIGHT($K89,2),BB89,0)) -> 0 | BY89: =+IF($K89="Ongoing",BC89,IF(RIGHT($K89,2)=RIGHT(BY$39,2),SUM($AV89:BC89),0)+IF(RIGHT(BY$39,2)>RIGHT($K89,2),BC89,0)) -> 0 | BZ89: =+IF($K89="Ongoing",BD89,IF(RIGHT($K89,2)=RIGHT(BZ$39,2),SUM($AV89:BD89),0)+IF(RIGHT(BZ$39,2)>RIGHT($K89,2),BD89,0)) -> 0 | CA89: =+IF($K89="Ongoing",BE89,IF(RIGHT($K89,2)=RIGHT(CA$39,2),SUM($AV89:BE89),0)+IF(RIGHT(CA$39,2)>RIGHT($K89,2),BE89,0)) -> 0 | CC89: =+O89*KeyAssumptionsPriceControl_FO!X$15 -> 0 | CD89: =+P89*KeyAssumptionsPriceControl_FO!Y$15 -> 0 | CE89: =+Q89*KeyAssumptionsPriceControl_FO!Z$15 -> 0 | CF89: =+R89*KeyAssumptionsPriceControl_FO!AA$15 -> 0 | CG89: =+S89*KeyAssumptionsPriceControl_FO!AB$15 -> 0 | CH89: =+T89*KeyAssumptionsPriceControl_FO!AC$15 -> 0 | CI89: =+U89*KeyAssumptionsPriceControl_FO!AD$15 -> 0 | CJ89: =+V89*KeyAssumptionsPriceControl_FO!AE$15 -> 0 | CK89: =+W89*KeyAssumptionsPriceControl_FO!AF$15 -> 0 | CL89: =+X89*KeyAssumptionsPriceControl_FO!AG$15 -> 0 | CN89: 0 | CO89: 0 | CP89: 0 | CQ89: 0 | CR89: 0 | CS89: 0 | CT89: 0 | CU89: 0 | CV89: 0 | CW89: 0
C90: [Capex Item - Significant Project / Capital Program / Other Capex] | E90: [Service] | F90: [Major Cost Driver] | G90: [Asset category] | H90: [Capital type] | J90: Straight line | K90: [Year finalised?] | AV90: 0 | AW90: 0 | AX90: 0 | AY90: 0 | AZ90: 0 | BA90: 0 | BB90: 0 | BC90: 0 | BD90: 0 | BE90: 0 | BG90: 0 | BH90: 0 | BI90: 0 | BJ90: 0 | BK90: 0 | BL90: 0 | BM90: 0 | BN90: 0 | BO90: 0 | BP90: 0 | BR90: =+IF($K90="Ongoing",AV90,IF(RIGHT($K90,2)=RIGHT(BR$39,2),SUM($AV90:AV90),0)+IF(RIGHT(BR$39,2)>RIGHT($K90,2),AV90,0)) -> 0 | BS90: =+IF($K90="Ongoing",AW90,IF(RIGHT($K90,2)=RIGHT(BS$39,2),SUM($AV90:AW90),0)+IF(RIGHT(BS$39,2)>RIGHT($K90,2),AW90,0)) -> 0 | BT90: =+IF($K90="Ongoing",AX90,IF(RIGHT($K90,2)=RIGHT(BT$39,2),SUM($AV90:AX90),0)+IF(RIGHT(BT$39,2)>RIGHT($K90,2),AX90,0)) -> 0 | BU90: =+IF($K90="Ongoing",AY90,IF(RIGHT($K90,2)=RIGHT(BU$39,2),SUM($AV90:AY90),0)+IF(RIGHT(BU$39,2)>RIGHT($K90,2),AY90,0)) -> 0 | BV90: =+IF($K90="Ongoing",AZ90,IF(RIGHT($K90,2)=RIGHT(BV$39,2),SUM($AV90:AZ90),0)+IF(RIGHT(BV$39,2)>RIGHT($K90,2),AZ90,0)) -> 0 | BW90: =+IF($K90="Ongoing",BA90,IF(RIGHT($K90,2)=RIGHT(BW$39,2),SUM($AV90:BA90),0)+IF(RIGHT(BW$39,2)>RIGHT($K90,2),BA90,0)) -> 0 | BX90: =+IF($K90="Ongoing",BB90,IF(RIGHT($K90,2)=RIGHT(BX$39,2),SUM($AV90:BB90),0)+IF(RIGHT(BX$39,2)>RIGHT($K90,2),BB90,0)) -> 0 | BY90: =+IF($K90="Ongoing",BC90,IF(RIGHT($K90,2)=RIGHT(BY$39,2),SUM($AV90:BC90),0)+IF(RIGHT(BY$39,2)>RIGHT($K90,2),BC90,0)) -> 0 | BZ90: =+IF($K90="Ongoing",BD90,IF(RIGHT($K90,2)=RIGHT(BZ$39,2),SUM($AV90:BD90),0)+IF(RIGHT(BZ$39,2)>RIGHT($K90,2),BD90,0)) -> 0 | CA90: =+IF($K90="Ongoing",BE90,IF(RIGHT($K90,2)=RIGHT(CA$39,2),SUM($AV90:BE90),0)+IF(RIGHT(CA$39,2)>RIGHT($K90,2),BE90,0)) -> 0 | CC90: =+O90*KeyAssumptionsPriceControl_FO!X$15 -> 0 | CD90: =+P90*KeyAssumptionsPriceControl_FO!Y$15 -> 0 | CE90: =+Q90*KeyAssumptionsPriceControl_FO!Z$15 -> 0 | CF90: =+R90*KeyAssumptionsPriceControl_FO!AA$15 -> 0 | CG90: =+S90*KeyAssumptionsPriceControl_FO!AB$15 -> 0 | CH90: =+T90*KeyAssumptionsPriceControl_FO!AC$15 -> 0 | CI90: =+U90*KeyAssumptionsPriceControl_FO!AD$15 -> 0 | CJ90: =+V90*KeyAssumptionsPriceControl_FO!AE$15 -> 0 | CK90: =+W90*KeyAssumptionsPriceControl_FO!AF$15 -> 0 | CL90: =+X90*KeyAssumptionsPriceControl_FO!AG$15 -> 0 | CN90: 0 | CO90: 0 | CP90: 0 | CQ90: 0 | CR90: 0 | CS90: 0 | CT90: 0 | CU90: 0 | CV90: 0 | CW90: 0
C91: [Capex Item - Significant Project / Capital Program / Other Capex] | E91: [Service] | F91: [Major Cost Driver] | G91: [Asset category] | H91: [Capital type] | J91: Straight line | K91: [Year finalised?] | AV91: 0 | AW91: 0 | AX91: 0 | AY91: 0 | AZ91: 0 | BA91: 0 | BB91: 0 | BC91: 0 | BD91: 0 | BE91: 0 | BG91: 0 | BH91: 0 | BI91: 0 | BJ91: 0 | BK91: 0 | BL91: 0 | BM91: 0 | BN91: 0 | BO91: 0 | BP91: 0 | BR91: =+IF($K91="Ongoing",AV91,IF(RIGHT($K91,2)=RIGHT(BR$39,2),SUM($AV91:AV91),0)+IF(RIGHT(BR$39,2)>RIGHT($K91,2),AV91,0)) -> 0 | BS91: =+IF($K91="Ongoing",AW91,IF(RIGHT($K91,2)=RIGHT(BS$39,2),SUM($AV91:AW91),0)+IF(RIGHT(BS$39,2)>RIGHT($K91,2),AW91,0)) -> 0 | BT91: =+IF($K91="Ongoing",AX91,IF(RIGHT($K91,2)=RIGHT(BT$39,2),SUM($AV91:AX91),0)+IF(RIGHT(BT$39,2)>RIGHT($K91,2),AX91,0)) -> 0 | BU91: =+IF($K91="Ongoing",AY91,IF(RIGHT($K91,2)=RIGHT(BU$39,2),SUM($AV91:AY91),0)+IF(RIGHT(BU$39,2)>RIGHT($K91,2),AY91,0)) -> 0 | BV91: =+IF($K91="Ongoing",AZ91,IF(RIGHT($K91,2)=RIGHT(BV$39,2),SUM($AV91:AZ91),0)+IF(RIGHT(BV$39,2)>RIGHT($K91,2),AZ91,0)) -> 0 | BW91: =+IF($K91="Ongoing",BA91,IF(RIGHT($K91,2)=RIGHT(BW$39,2),SUM($AV91:BA91),0)+IF(RIGHT(BW$39,2)>RIGHT($K91,2),BA91,0)) -> 0 | BX91: =+IF($K91="Ongoing",BB91,IF(RIGHT($K91,2)=RIGHT(BX$39,2),SUM($AV91:BB91),0)+IF(RIGHT(BX$39,2)>RIGHT($K91,2),BB91,0)) -> 0 | BY91: =+IF($K91="Ongoing",BC91,IF(RIGHT($K91,2)=RIGHT(BY$39,2),SUM($AV91:BC91),0)+IF(RIGHT(BY$39,2)>RIGHT($K91,2),BC91,0)) -> 0 | BZ91: =+IF($K91="Ongoing",BD91,IF(RIGHT($K91,2)=RIGHT(BZ$39,2),SUM($AV91:BD91),0)+IF(RIGHT(BZ$39,2)>RIGHT($K91,2),BD91,0)) -> 0 | CA91: =+IF($K91="Ongoing",BE91,IF(RIGHT($K91,2)=RIGHT(CA$39,2),SUM($AV91:BE91),0)+IF(RIGHT(CA$39,2)>RIGHT($K91,2),BE91,0)) -> 0 | CC91: =+O91*KeyAssumptionsPriceControl_FO!X$15 -> 0 | CD91: =+P91*KeyAssumptionsPriceControl_FO!Y$15 -> 0 | CE91: =+Q91*KeyAssumptionsPriceControl_FO!Z$15 -> 0 | CF91: =+R91*KeyAssumptionsPriceControl_FO!AA$15 -> 0 | CG91: =+S91*KeyAssumptionsPriceControl_FO!AB$15 -> 0 | CH91: =+T91*KeyAssumptionsPriceControl_FO!AC$15 -> 0 | CI91: =+U91*KeyAssumptionsPriceControl_FO!AD$15 -> 0 | CJ91: =+V91*KeyAssumptionsPriceControl_FO!AE$15 -> 0 | CK91: =+W91*KeyAssumptionsPriceControl_FO!AF$15 -> 0 | CL91: =+X91*KeyAssumptionsPriceControl_FO!AG$15 -> 0 | CN91: 0 | CO91: 0 | CP91: 0 | CQ91: 0 | CR91: 0 | CS91: 0 | CT91: 0 | CU91: 0 | CV91: 0 | CW91: 0
C92: [Capex Item - Significant Project / Capital Program / Other Capex] | E92: [Service] | F92: [Major Cost Driver] | G92: [Asset category] | H92: [Capital type] | J92: Straight line | K92: [Year finalised?] | AV92: 0 | AW92: 0 | AX92: 0 | AY92: 0 | AZ92: 0 | BA92: 0 | BB92: 0 | BC92: 0 | BD92: 0 | BE92: 0 | BG92: 0 | BH92: 0 | BI92: 0 | BJ92: 0 | BK92: 0 | BL92: 0 | BM92: 0 | BN92: 0 | BO92: 0 | BP92: 0 | BR92: =+IF($K92="Ongoing",AV92,IF(RIGHT($K92,2)=RIGHT(BR$39,2),SUM($AV92:AV92),0)+IF(RIGHT(BR$39,2)>RIGHT($K92,2),AV92,0)) -> 0 | BS92: =+IF($K92="Ongoing",AW92,IF(RIGHT($K92,2)=RIGHT(BS$39,2),SUM($AV92:AW92),0)+IF(RIGHT(BS$39,2)>RIGHT($K92,2),AW92,0)) -> 0 | BT92: =+IF($K92="Ongoing",AX92,IF(RIGHT($K92,2)=RIGHT(BT$39,2),SUM($AV92:AX92),0)+IF(RIGHT(BT$39,2)>RIGHT($K92,2),AX92,0)) -> 0 | BU92: =+IF($K92="Ongoing",AY92,IF(RIGHT($K92,2)=RIGHT(BU$39,2),SUM($AV92:AY92),0)+IF(RIGHT(BU$39,2)>RIGHT($K92,2),AY92,0)) -> 0 | BV92: =+IF($K92="Ongoing",AZ92,IF(RIGHT($K92,2)=RIGHT(BV$39,2),SUM($AV92:AZ92),0)+IF(RIGHT(BV$39,2)>RIGHT($K92,2),AZ92,0)) -> 0 | BW92: =+IF($K92="Ongoing",BA92,IF(RIGHT($K92,2)=RIGHT(BW$39,2),SUM($AV92:BA92),0)+IF(RIGHT(BW$39,2)>RIGHT($K92,2),BA92,0)) -> 0 | BX92: =+IF($K92="Ongoing",BB92,IF(RIGHT($K92,2)=RIGHT(BX$39,2),SUM($AV92:BB92),0)+IF(RIGHT(BX$39,2)>RIGHT($K92,2),BB92,0)) -> 0 | BY92: =+IF($K92="Ongoing",BC92,IF(RIGHT($K92,2)=RIGHT(BY$39,2),SUM($AV92:BC92),0)+IF(RIGHT(BY$39,2)>RIGHT($K92,2),BC92,0)) -> 0 | BZ92: =+IF($K92="Ongoing",BD92,IF(RIGHT($K92,2)=RIGHT(BZ$39,2),SUM($AV92:BD92),0)+IF(RIGHT(BZ$39,2)>RIGHT($K92,2),BD92,0)) -> 0 | CA92: =+IF($K92="Ongoing",BE92,IF(RIGHT($K92,2)=RIGHT(CA$39,2),SUM($AV92:BE92),0)+IF(RIGHT(CA$39,2)>RIGHT($K92,2),BE92,0)) -> 0 | CC92: =+O92*KeyAssumptionsPriceControl_FO!X$15 -> 0 | CD92: =+P92*KeyAssumptionsPriceControl_FO!Y$15 -> 0 | CE92: =+Q92*KeyAssumptionsPriceControl_FO!Z$15 -> 0 | CF92: =+R92*KeyAssumptionsPriceControl_FO!AA$15 -> 0 | CG92: =+S92*KeyAssumptionsPriceControl_FO!AB$15 -> 0 | CH92: =+T92*KeyAssumptionsPriceControl_FO!AC$15 -> 0 | CI92: =+U92*KeyAssumptionsPriceControl_FO!AD$15 -> 0 | CJ92: =+V92*KeyAssumptionsPriceControl_FO!AE$15 -> 0 | CK92: =+W92*KeyAssumptionsPriceControl_FO!AF$15 -> 0 | CL92: =+X92*KeyAssumptionsPriceControl_FO!AG$15 -> 0 | CN92: 0 | CO92: 0 | CP92: 0 | CQ92: 0 | CR92: 0 | CS92: 0 | CT92: 0 | CU92: 0 | CV92: 0 | CW92: 0
C93: [Capex Item - Significant Project / Capital Program / Other Capex] | E93: [Service] | F93: [Major Cost Driver] | G93: [Asset category] | H93: [Capital type] | J93: Straight line | K93: [Year finalised?] | AV93: 0 | AW93: 0 | AX93: 0 | AY93: 0 | AZ93: 0 | BA93: 0 | BB93: 0 | BC93: 0 | BD93: 0 | BE93: 0 | BG93: 0 | BH93: 0 | BI93: 0 | BJ93: 0 | BK93: 0 | BL93: 0 | BM93: 0 | BN93: 0 | BO93: 0 | BP93: 0 | BR93: =+IF($K93="Ongoing",AV93,IF(RIGHT($K93,2)=RIGHT(BR$39,2),SUM($AV93:AV93),0)+IF(RIGHT(BR$39,2)>RIGHT($K93,2),AV93,0)) -> 0 | BS93: =+IF($K93="Ongoing",AW93,IF(RIGHT($K93,2)=RIGHT(BS$39,2),SUM($AV93:AW93),0)+IF(RIGHT(BS$39,2)>RIGHT($K93,2),AW93,0)) -> 0 | BT93: =+IF($K93="Ongoing",AX93,IF(RIGHT($K93,2)=RIGHT(BT$39,2),SUM($AV93:AX93),0)+IF(RIGHT(BT$39,2)>RIGHT($K93,2),AX93,0)) -> 0 | BU93: =+IF($K93="Ongoing",AY93,IF(RIGHT($K93,2)=RIGHT(BU$39,2),SUM($AV93:AY93),0)+IF(RIGHT(BU$39,2)>RIGHT($K93,2),AY93,0)) -> 0 | BV93: =+IF($K93="Ongoing",AZ93,IF(RIGHT($K93,2)=RIGHT(BV$39,2),SUM($AV93:AZ93),0)+IF(RIGHT(BV$39,2)>RIGHT($K93,2),AZ93,0)) -> 0 | BW93: =+IF($K93="Ongoing",BA93,IF(RIGHT($K93,2)=RIGHT(BW$39,2),SUM($AV93:BA93),0)+IF(RIGHT(BW$39,2)>RIGHT($K93,2),BA93,0)) -> 0 | BX93: =+IF($K93="Ongoing",BB93,IF(RIGHT($K93,2)=RIGHT(BX$39,2),SUM($AV93:BB93),0)+IF(RIGHT(BX$39,2)>RIGHT($K93,2),BB93,0)) -> 0 | BY93: =+IF($K93="Ongoing",BC93,IF(RIGHT($K93,2)=RIGHT(BY$39,2),SUM($AV93:BC93),0)+IF(RIGHT(BY$39,2)>RIGHT($K93,2),BC93,0)) -> 0 | BZ93: =+IF($K93="Ongoing",BD93,IF(RIGHT($K93,2)=RIGHT(BZ$39,2),SUM($AV93:BD93),0)+IF(RIGHT(BZ$39,2)>RIGHT($K93,2),BD93,0)) -> 0 | CA93: =+IF($K93="Ongoing",BE93,IF(RIGHT($K93,2)=RIGHT(CA$39,2),SUM($AV93:BE93),0)+IF(RIGHT(CA$39,2)>RIGHT($K93,2),BE93,0)) -> 0 | CC93: =+O93*KeyAssumptionsPriceControl_FO!X$15 -> 0 | CD93: =+P93*KeyAssumptionsPriceControl_FO!Y$15 -> 0 | CE93: =+Q93*KeyAssumptionsPriceControl_FO!Z$15 -> 0 | CF93: =+R93*KeyAssumptionsPriceControl_FO!AA$15 -> 0 | CG93: =+S93*KeyAssumptionsPriceControl_FO!AB$15 -> 0 | CH93: =+T93*KeyAssumptionsPriceControl_FO!AC$15 -> 0 | CI93: =+U93*KeyAssumptionsPriceControl_FO!AD$15 -> 0 | CJ93: =+V93*KeyAssumptionsPriceControl_FO!AE$15 -> 0 | CK93: =+W93*KeyAssumptionsPriceControl_FO!AF$15 -> 0 | CL93: =+X93*KeyAssumptionsPriceControl_FO!AG$15 -> 0 | CN93: 0 | CO93: 0 | CP93: 0 | CQ93: 0 | CR93: 0 | CS93: 0 | CT93: 0 | CU93: 0 | CV93: 0 | CW93: 0
C94: [Capex Item - Significant Project / Capital Program / Other Capex] | E94: [Service] | F94: [Major Cost Driver] | G94: [Asset category] | H94: [Capital type] | J94: Straight line | K94: [Year finalised?] | AV94: 0 | AW94: 0 | AX94: 0 | AY94: 0 | AZ94: 0 | BA94: 0 | BB94: 0 | BC94: 0 | BD94: 0 | BE94: 0 | BG94: 0 | BH94: 0 | BI94: 0 | BJ94: 0 | BK94: 0 | BL94: 0 | BM94: 0 | BN94: 0 | BO94: 0 | BP94: 0 | BR94: =+IF($K94="Ongoing",AV94,IF(RIGHT($K94,2)=RIGHT(BR$39,2),SUM($AV94:AV94),0)+IF(RIGHT(BR$39,2)>RIGHT($K94,2),AV94,0)) -> 0 | BS94: =+IF($K94="Ongoing",AW94,IF(RIGHT($K94,2)=RIGHT(BS$39,2),SUM($AV94:AW94),0)+IF(RIGHT(BS$39,2)>RIGHT($K94,2),AW94,0)) -> 0 | BT94: =+IF($K94="Ongoing",AX94,IF(RIGHT($K94,2)=RIGHT(BT$39,2),SUM($AV94:AX94),0)+IF(RIGHT(BT$39,2)>RIGHT($K94,2),AX94,0)) -> 0 | BU94: =+IF($K94="Ongoing",AY94,IF(RIGHT($K94,2)=RIGHT(BU$39,2),SUM($AV94:AY94),0)+IF(RIGHT(BU$39,2)>RIGHT($K94,2),AY94,0)) -> 0 | BV94: =+IF($K94="Ongoing",AZ94,IF(RIGHT($K94,2)=RIGHT(BV$39,2),SUM($AV94:AZ94),0)+IF(RIGHT(BV$39,2)>RIGHT($K94,2),AZ94,0)) -> 0 | BW94: =+IF($K94="Ongoing",BA94,IF(RIGHT($K94,2)=RIGHT(BW$39,2),SUM($AV94:BA94),0)+IF(RIGHT(BW$39,2)>RIGHT($K94,2),BA94,0)) -> 0 | BX94: =+IF($K94="Ongoing",BB94,IF(RIGHT($K94,2)=RIGHT(BX$39,2),SUM($AV94:BB94),0)+IF(RIGHT(BX$39,2)>RIGHT($K94,2),BB94,0)) -> 0 | BY94: =+IF($K94="Ongoing",BC94,IF(RIGHT($K94,2)=RIGHT(BY$39,2),SUM($AV94:BC94),0)+IF(RIGHT(BY$39,2)>RIGHT($K94,2),BC94,0)) -> 0 | BZ94: =+IF($K94="Ongoing",BD94,IF(RIGHT($K94,2)=RIGHT(BZ$39,2),SUM($AV94:BD94),0)+IF(RIGHT(BZ$39,2)>RIGHT($K94,2),BD94,0)) -> 0 | CA94: =+IF($K94="Ongoing",BE94,IF(RIGHT($K94,2)=RIGHT(CA$39,2),SUM($AV94:BE94),0)+IF(RIGHT(CA$39,2)>RIGHT($K94,2),BE94,0)) -> 0 | CC94: =+O94*KeyAssumptionsPriceControl_FO!X$15 -> 0 | CD94: =+P94*KeyAssumptionsPriceControl_FO!Y$15 -> 0 | CE94: =+Q94*KeyAssumptionsPriceControl_FO!Z$15 -> 0 | CF94: =+R94*KeyAssumptionsPriceControl_FO!AA$15 -> 0 | CG94: =+S94*KeyAssumptionsPriceControl_FO!AB$15 -> 0 | CH94: =+T94*KeyAssumptionsPriceControl_FO!AC$15 -> 0 | CI94: =+U94*KeyAssumptionsPriceControl_FO!AD$15 -> 0 | CJ94: =+V94*KeyAssumptionsPriceControl_FO!AE$15 -> 0 | CK94: =+W94*KeyAssumptionsPriceControl_FO!AF$15 -> 0 | CL94: =+X94*KeyAssumptionsPriceControl_FO!AG$15 -> 0 | CN94: 0 | CO94: 0 | CP94: 0 | CQ94: 0 | CR94: 0 | CS94: 0 | CT94: 0 | CU94: 0 | CV94: 0 | CW94: 0
C95: [Capex Item - Significant Project / Capital Program / Other Capex] | E95: [Service] | F95: [Major Cost Driver] | G95: [Asset category] | H95: [Capital type] | J95: Straight line | K95: [Year finalised?] | AV95: 0 | AW95: 0 | AX95: 0 | AY95: 0 | AZ95: 0 | BA95: 0 | BB95: 0 | BC95: 0 | BD95: 0 | BE95: 0 | BG95: 0 | BH95: 0 | BI95: 0 | BJ95: 0 | BK95: 0 | BL95: 0 | BM95: 0 | BN95: 0 | BO95: 0 | BP95: 0 | BR95: =+IF($K95="Ongoing",AV95,IF(RIGHT($K95,2)=RIGHT(BR$39,2),SUM($AV95:AV95),0)+IF(RIGHT(BR$39,2)>RIGHT($K95,2),AV95,0)) -> 0 | BS95: =+IF($K95="Ongoing",AW95,IF(RIGHT($K95,2)=RIGHT(BS$39,2),SUM($AV95:AW95),0)+IF(RIGHT(BS$39,2)>RIGHT($K95,2),AW95,0)) -> 0 | BT95: =+IF($K95="Ongoing",AX95,IF(RIGHT($K95,2)=RIGHT(BT$39,2),SUM($AV95:AX95),0)+IF(RIGHT(BT$39,2)>RIGHT($K95,2),AX95,0)) -> 0 | BU95: =+IF($K95="Ongoing",AY95,IF(RIGHT($K95,2)=RIGHT(BU$39,2),SUM($AV95:AY95),0)+IF(RIGHT(BU$39,2)>RIGHT($K95,2),AY95,0)) -> 0 | BV95: =+IF($K95="Ongoing",AZ95,IF(RIGHT($K95,2)=RIGHT(BV$39,2),SUM($AV95:AZ95),0)+IF(RIGHT(BV$39,2)>RIGHT($K95,2),AZ95,0)) -> 0 | BW95: =+IF($K95="Ongoing",BA95,IF(RIGHT($K95,2)=RIGHT(BW$39,2),SUM($AV95:BA95),0)+IF(RIGHT(BW$39,2)>RIGHT($K95,2),BA95,0)) -> 0 | BX95: =+IF($K95="Ongoing",BB95,IF(RIGHT($K95,2)=RIGHT(BX$39,2),SUM($AV95:BB95),0)+IF(RIGHT(BX$39,2)>RIGHT($K95,2),BB95,0)) -> 0 | BY95: =+IF($K95="Ongoing",BC95,IF(RIGHT($K95,2)=RIGHT(BY$39,2),SUM($AV95:BC95),0)+IF(RIGHT(BY$39,2)>RIGHT($K95,2),BC95,0)) -> 0 | BZ95: =+IF($K95="Ongoing",BD95,IF(RIGHT($K95,2)=RIGHT(BZ$39,2),SUM($AV95:BD95),0)+IF(RIGHT(BZ$39,2)>RIGHT($K95,2),BD95,0)) -> 0 | CA95: =+IF($K95="Ongoing",BE95,IF(RIGHT($K95,2)=RIGHT(CA$39,2),SUM($AV95:BE95),0)+IF(RIGHT(CA$39,2)>RIGHT($K95,2),BE95,0)) -> 0 | CC95: =+O95*KeyAssumptionsPriceControl_FO!X$15 -> 0 | CD95: =+P95*KeyAssumptionsPriceControl_FO!Y$15 -> 0 | CE95: =+Q95*KeyAssumptionsPriceControl_FO!Z$15 -> 0 | CF95: =+R95*KeyAssumptionsPriceControl_FO!AA$15 -> 0 | CG95: =+S95*KeyAssumptionsPriceControl_FO!AB$15 -> 0 | CH95: =+T95*KeyAssumptionsPriceControl_FO!AC$15 -> 0 | CI95: =+U95*KeyAssumptionsPriceControl_FO!AD$15 -> 0 | CJ95: =+V95*KeyAssumptionsPriceControl_FO!AE$15 -> 0 | CK95: =+W95*KeyAssumptionsPriceControl_FO!AF$15 -> 0 | CL95: =+X95*KeyAssumptionsPriceControl_FO!AG$15 -> 0 | CN95: 0 | CO95: 0 | CP95: 0 | CQ95: 0 | CR95: 0 | CS95: 0 | CT95: 0 | CU95: 0 | CV95: 0 | CW95: 0
C96: [Capex Item - Significant Project / Capital Program / Other Capex] | E96: [Service] | F96: [Major Cost Driver] | G96: [Asset category] | H96: [Capital type] | J96: Straight line | K96: [Year finalised?] | AV96: 0 | AW96: 0 | AX96: 0 | AY96: 0 | AZ96: 0 | BA96: 0 | BB96: 0 | BC96: 0 | BD96: 0 | BE96: 0 | BG96: 0 | BH96: 0 | BI96: 0 | BJ96: 0 | BK96: 0 | BL96: 0 | BM96: 0 | BN96: 0 | BO96: 0 | BP96: 0 | BR96: =+IF($K96="Ongoing",AV96,IF(RIGHT($K96,2)=RIGHT(BR$39,2),SUM($AV96:AV96),0)+IF(RIGHT(BR$39,2)>RIGHT($K96,2),AV96,0)) -> 0 | BS96: =+IF($K96="Ongoing",AW96,IF(RIGHT($K96,2)=RIGHT(BS$39,2),SUM($AV96:AW96),0)+IF(RIGHT(BS$39,2)>RIGHT($K96,2),AW96,0)) -> 0 | BT96: =+IF($K96="Ongoing",AX96,IF(RIGHT($K96,2)=RIGHT(BT$39,2),SUM($AV96:AX96),0)+IF(RIGHT(BT$39,2)>RIGHT($K96,2),AX96,0)) -> 0 | BU96: =+IF($K96="Ongoing",AY96,IF(RIGHT($K96,2)=RIGHT(BU$39,2),SUM($AV96:AY96),0)+IF(RIGHT(BU$39,2)>RIGHT($K96,2),AY96,0)) -> 0 | BV96: =+IF($K96="Ongoing",AZ96,IF(RIGHT($K96,2)=RIGHT(BV$39,2),SUM($AV96:AZ96),0)+IF(RIGHT(BV$39,2)>RIGHT($K96,2),AZ96,0)) -> 0 | BW96: =+IF($K96="Ongoing",BA96,IF(RIGHT($K96,2)=RIGHT(BW$39,2),SUM($AV96:BA96),0)+IF(RIGHT(BW$39,2)>RIGHT($K96,2),BA96,0)) -> 0 | BX96: =+IF($K96="Ongoing",BB96,IF(RIGHT($K96,2)=RIGHT(BX$39,2),SUM($AV96:BB96),0)+IF(RIGHT(BX$39,2)>RIGHT($K96,2),BB96,0)) -> 0 | BY96: =+IF($K96="Ongoing",BC96,IF(RIGHT($K96,2)=RIGHT(BY$39,2),SUM($AV96:BC96),0)+IF(RIGHT(BY$39,2)>RIGHT($K96,2),BC96,0)) -> 0 | BZ96: =+IF($K96="Ongoing",BD96,IF(RIGHT($K96,2)=RIGHT(BZ$39,2),SUM($AV96:BD96),0)+IF(RIGHT(BZ$39,2)>RIGHT($K96,2),BD96,0)) -> 0 | CA96: =+IF($K96="Ongoing",BE96,IF(RIGHT($K96,2)=RIGHT(CA$39,2),SUM($AV96:BE96),0)+IF(RIGHT(CA$39,2)>RIGHT($K96,2),BE96,0)) -> 0 | CC96: =+O96*KeyAssumptionsPriceControl_FO!X$15 -> 0 | CD96: =+P96*KeyAssumptionsPriceControl_FO!Y$15 -> 0 | CE96: =+Q96*KeyAssumptionsPriceControl_FO!Z$15 -> 0 | CF96: =+R96*KeyAssumptionsPriceControl_FO!AA$15 -> 0 | CG96: =+S96*KeyAssumptionsPriceControl_FO!AB$15 -> 0 | CH96: =+T96*KeyAssumptionsPriceControl_FO!AC$15 -> 0 | CI96: =+U96*KeyAssumptionsPriceControl_FO!AD$15 -> 0 | CJ96: =+V96*KeyAssumptionsPriceControl_FO!AE$15 -> 0 | CK96: =+W96*KeyAssumptionsPriceControl_FO!AF$15 -> 0 | CL96: =+X96*KeyAssumptionsPriceControl_FO!AG$15 -> 0 | CN96: 0 | CO96: 0 | CP96: 0 | CQ96: 0 | CR96: 0 | CS96: 0 | CT96: 0 | CU96: 0 | CV96: 0 | CW96: 0
C97: [Capex Item - Significant Project / Capital Program / Other Capex] | E97: [Service] | F97: [Major Cost Driver] | G97: [Asset category] | H97: [Capital type] | J97: Straight line | K97: [Year finalised?] | AV97: 0 | AW97: 0 | AX97: 0 | AY97: 0 | AZ97: 0 | BA97: 0 | BB97: 0 | BC97: 0 | BD97: 0 | BE97: 0 | BG97: 0 | BH97: 0 | BI97: 0 | BJ97: 0 | BK97: 0 | BL97: 0 | BM97: 0 | BN97: 0 | BO97: 0 | BP97: 0 | BR97: =+IF($K97="Ongoing",AV97,IF(RIGHT($K97,2)=RIGHT(BR$39,2),SUM($AV97:AV97),0)+IF(RIGHT(BR$39,2)>RIGHT($K97,2),AV97,0)) -> 0 | BS97: =+IF($K97="Ongoing",AW97,IF(RIGHT($K97,2)=RIGHT(BS$39,2),SUM($AV97:AW97),0)+IF(RIGHT(BS$39,2)>RIGHT($K97,2),AW97,0)) -> 0 | BT97: =+IF($K97="Ongoing",AX97,IF(RIGHT($K97,2)=RIGHT(BT$39,2),SUM($AV97:AX97),0)+IF(RIGHT(BT$39,2)>RIGHT($K97,2),AX97,0)) -> 0 | BU97: =+IF($K97="Ongoing",AY97,IF(RIGHT($K97,2)=RIGHT(BU$39,2),SUM($AV97:AY97),0)+IF(RIGHT(BU$39,2)>RIGHT($K97,2),AY97,0)) -> 0 | BV97: =+IF($K97="Ongoing",AZ97,IF(RIGHT($K97,2)=RIGHT(BV$39,2),SUM($AV97:AZ97),0)+IF(RIGHT(BV$39,2)>RIGHT($K97,2),AZ97,0)) -> 0 | BW97: =+IF($K97="Ongoing",BA97,IF(RIGHT($K97,2)=RIGHT(BW$39,2),SUM($AV97:BA97),0)+IF(RIGHT(BW$39,2)>RIGHT($K97,2),BA97,0)) -> 0 | BX97: =+IF($K97="Ongoing",BB97,IF(RIGHT($K97,2)=RIGHT(BX$39,2),SUM($AV97:BB97),0)+IF(RIGHT(BX$39,2)>RIGHT($K97,2),BB97,0)) -> 0 | BY97: =+IF($K97="Ongoing",BC97,IF(RIGHT($K97,2)=RIGHT(BY$39,2),SUM($AV97:BC97),0)+IF(RIGHT(BY$39,2)>RIGHT($K97,2),BC97,0)) -> 0 | BZ97: =+IF($K97="Ongoing",BD97,IF(RIGHT($K97,2)=RIGHT(BZ$39,2),SUM($AV97:BD97),0)+IF(RIGHT(BZ$39,2)>RIGHT($K97,2),BD97,0)) -> 0 | CA97: =+IF($K97="Ongoing",BE97,IF(RIGHT($K97,2)=RIGHT(CA$39,2),SUM($AV97:BE97),0)+IF(RIGHT(CA$39,2)>RIGHT($K97,2),BE97,0)) -> 0 | CC97: =+O97*KeyAssumptionsPriceControl_FO!X$15 -> 0 | CD97: =+P97*KeyAssumptionsPriceControl_FO!Y$15 -> 0 | CE97: =+Q97*KeyAssumptionsPriceControl_FO!Z$15 -> 0 | CF97: =+R97*KeyAssumptionsPriceControl_FO!AA$15 -> 0 | CG97: =+S97*KeyAssumptionsPriceControl_FO!AB$15 -> 0 | CH97: =+T97*KeyAssumptionsPriceControl_FO!AC$15 -> 0 | CI97: =+U97*KeyAssumptionsPriceControl_FO!AD$15 -> 0 | CJ97: =+V97*KeyAssumptionsPriceControl_FO!AE$15 -> 0 | CK97: =+W97*KeyAssumptionsPriceControl_FO!AF$15 -> 0 | CL97: =+X97*KeyAssumptionsPriceControl_FO!AG$15 -> 0 | CN97: 0 | CO97: 0 | CP97: 0 | CQ97: 0 | CR97: 0 | CS97: 0 | CT97: 0 | CU97: 0 | CV97: 0 | CW97: 0
C98: [Capex Item - Significant Project / Capital Program / Other Capex] | E98: [Service] | F98: [Major Cost Driver] | G98: [Asset category] | H98: [Capital type] | J98: Straight line | K98: [Year finalised?] | AV98: 0 | AW98: 0 | AX98: 0 | AY98: 0 | AZ98: 0 | BA98: 0 | BB98: 0 | BC98: 0 | BD98: 0 | BE98: 0 | BG98: 0 | BH98: 0 | BI98: 0 | BJ98: 0 | BK98: 0 | BL98: 0 | BM98: 0 | BN98: 0 | BO98: 0 | BP98: 0 | BR98: =+IF($K98="Ongoing",AV98,IF(RIGHT($K98,2)=RIGHT(BR$39,2),SUM($AV98:AV98),0)+IF(RIGHT(BR$39,2)>RIGHT($K98,2),AV98,0)) -> 0 | BS98: =+IF($K98="Ongoing",AW98,IF(RIGHT($K98,2)=RIGHT(BS$39,2),SUM($AV98:AW98),0)+IF(RIGHT(BS$39,2)>RIGHT($K98,2),AW98,0)) -> 0 | BT98: =+IF($K98="Ongoing",AX98,IF(RIGHT($K98,2)=RIGHT(BT$39,2),SUM($AV98:AX98),0)+IF(RIGHT(BT$39,2)>RIGHT($K98,2),AX98,0)) -> 0 | BU98: =+IF($K98="Ongoing",AY98,IF(RIGHT($K98,2)=RIGHT(BU$39,2),SUM($AV98:AY98),0)+IF(RIGHT(BU$39,2)>RIGHT($K98,2),AY98,0)) -> 0 | BV98: =+IF($K98="Ongoing",AZ98,IF(RIGHT($K98,2)=RIGHT(BV$39,2),SUM($AV98:AZ98),0)+IF(RIGHT(BV$39,2)>RIGHT($K98,2),AZ98,0)) -> 0 | BW98: =+IF($K98="Ongoing",BA98,IF(RIGHT($K98,2)=RIGHT(BW$39,2),SUM($AV98:BA98),0)+IF(RIGHT(BW$39,2)>RIGHT($K98,2),BA98,0)) -> 0 | BX98: =+IF($K98="Ongoing",BB98,IF(RIGHT($K98,2)=RIGHT(BX$39,2),SUM($AV98:BB98),0)+IF(RIGHT(BX$39,2)>RIGHT($K98,2),BB98,0)) -> 0 | BY98: =+IF($K98="Ongoing",BC98,IF(RIGHT($K98,2)=RIGHT(BY$39,2),SUM($AV98:BC98),0)+IF(RIGHT(BY$39,2)>RIGHT($K98,2),BC98,0)) -> 0 | BZ98: =+IF($K98="Ongoing",BD98,IF(RIGHT($K98,2)=RIGHT(BZ$39,2),SUM($AV98:BD98),0)+IF(RIGHT(BZ$39,2)>RIGHT($K98,2),BD98,0)) -> 0 | CA98: =+IF($K98="Ongoing",BE98,IF(RIGHT($K98,2)=RIGHT(CA$39,2),SUM($AV98:BE98),0)+IF(RIGHT(CA$39,2)>RIGHT($K98,2),BE98,0)) -> 0 | CC98: =+O98*KeyAssumptionsPriceControl_FO!X$15 -> 0 | CD98: =+P98*KeyAssumptionsPriceControl_FO!Y$15 -> 0 | CE98: =+Q98*KeyAssumptionsPriceControl_FO!Z$15 -> 0 | CF98: =+R98*KeyAssumptionsPriceControl_FO!AA$15 -> 0 | CG98: =+S98*KeyAssumptionsPriceControl_FO!AB$15 -> 0 | CH98: =+T98*KeyAssumptionsPriceControl_FO!AC$15 -> 0 | CI98: =+U98*KeyAssumptionsPriceControl_FO!AD$15 -> 0 | CJ98: =+V98*KeyAssumptionsPriceControl_FO!AE$15 -> 0 | CK98: =+W98*KeyAssumptionsPriceControl_FO!AF$15 -> 0 | CL98: =+X98*KeyAssumptionsPriceControl_FO!AG$15 -> 0 | CN98: 0 | CO98: 0 | CP98: 0 | CQ98: 0 | CR98: 0 | CS98: 0 | CT98: 0 | CU98: 0 | CV98: 0 | CW98: 0
C99: [Capex Item - Significant Project / Capital Program / Other Capex] | E99: [Service] | F99: [Major Cost Driver] | G99: [Asset category] | H99: [Capital type] | J99: Straight line | K99: [Year finalised?] | AV99: 0 | AW99: 0 | AX99: 0 | AY99: 0 | AZ99: 0 | BA99: 0 | BB99: 0 | BC99: 0 | BD99: 0 | BE99: 0 | BG99: 0 | BH99: 0 | BI99: 0 | BJ99: 0 | BK99: 0 | BL99: 0 | BM99: 0 | BN99: 0 | BO99: 0 | BP99: 0 | BR99: =+IF($K99="Ongoing",AV99,IF(RIGHT($K99,2)=RIGHT(BR$39,2),SUM($AV99:AV99),0)+IF(RIGHT(BR$39,2)>RIGHT($K99,2),AV99,0)) -> 0 | BS99: =+IF($K99="Ongoing",AW99,IF(RIGHT($K99,2)=RIGHT(BS$39,2),SUM($AV99:AW99),0)+IF(RIGHT(BS$39,2)>RIGHT($K99,2),AW99,0)) -> 0 | BT99: =+IF($K99="Ongoing",AX99,IF(RIGHT($K99,2)=RIGHT(BT$39,2),SUM($AV99:AX99),0)+IF(RIGHT(BT$39,2)>RIGHT($K99,2),AX99,0)) -> 0 | BU99: =+IF($K99="Ongoing",AY99,IF(RIGHT($K99,2)=RIGHT(BU$39,2),SUM($AV99:AY99),0)+IF(RIGHT(BU$39,2)>RIGHT($K99,2),AY99,0)) -> 0 | BV99: =+IF($K99="Ongoing",AZ99,IF(RIGHT($K99,2)=RIGHT(BV$39,2),SUM($AV99:AZ99),0)+IF(RIGHT(BV$39,2)>RIGHT($K99,2),AZ99,0)) -> 0 | BW99: =+IF($K99="Ongoing",BA99,IF(RIGHT($K99,2)=RIGHT(BW$39,2),SUM($AV99:BA99),0)+IF(RIGHT(BW$39,2)>RIGHT($K99,2),BA99,0)) -> 0 | BX99: =+IF($K99="Ongoing",BB99,IF(RIGHT($K99,2)=RIGHT(BX$39,2),SUM($AV99:BB99),0)+IF(RIGHT(BX$39,2)>RIGHT($K99,2),BB99,0)) -> 0 | BY99: =+IF($K99="Ongoing",BC99,IF(RIGHT($K99,2)=RIGHT(BY$39,2),SUM($AV99:BC99),0)+IF(RIGHT(BY$39,2)>RIGHT($K99,2),BC99,0)) -> 0 | BZ99: =+IF($K99="Ongoing",BD99,IF(RIGHT($K99,2)=RIGHT(BZ$39,2),SUM($AV99:BD99),0)+IF(RIGHT(BZ$39,2)>RIGHT($K99,2),BD99,0)) -> 0 | CA99: =+IF($K99="Ongoing",BE99,IF(RIGHT($K99,2)=RIGHT(CA$39,2),SUM($AV99:BE99),0)+IF(RIGHT(CA$39,2)>RIGHT($K99,2),BE99,0)) -> 0 | CC99: =+O99*KeyAssumptionsPriceControl_FO!X$15 -> 0 | CD99: =+P99*KeyAssumptionsPriceControl_FO!Y$15 -> 0 | CE99: =+Q99*KeyAssumptionsPriceControl_FO!Z$15 -> 0 | CF99: =+R99*KeyAssumptionsPriceControl_FO!AA$15 -> 0 | CG99: =+S99*KeyAssumptionsPriceControl_FO!AB$15 -> 0 | CH99: =+T99*KeyAssumptionsPriceControl_FO!AC$15 -> 0 | CI99: =+U99*KeyAssumptionsPriceControl_FO!AD$15 -> 0 | CJ99: =+V99*KeyAssumptionsPriceControl_FO!AE$15 -> 0 | CK99: =+W99*KeyAssumptionsPriceControl_FO!AF$15 -> 0 | CL99: =+X99*KeyAssumptionsPriceControl_FO!AG$15 -> 0 | CN99: 0 | CO99: 0 | CP99: 0 | CQ99: 0 | CR99: 0 | CS99: 0 | CT99: 0 | CU99: 0 | CV99: 0 | CW99: 0
C100: [Capex Item - Significant Project / Capital Program / Other Capex] | E100: [Service] | F100: [Major Cost Driver] | G100: [Asset category] | H100: [Capital type] | J100: Straight line | K100: [Year finalised?] | AV100: 0 | AW100: 0 | AX100: 0 | AY100: 0 | AZ100: 0 | BA100: 0 | BB100: 0 | BC100: 0 | BD100: 0 | BE100: 0 | BG100: 0 | BH100: 0 | BI100: 0 | BJ100: 0 | BK100: 0 | BL100: 0 | BM100: 0 | BN100: 0 | BO100: 0 | BP100: 0 | BR100: =+IF($K100="Ongoing",AV100,IF(RIGHT($K100,2)=RIGHT(BR$39,2),SUM($AV100:AV100),0)+IF(RIGHT(BR$39,2)>RIGHT($K100,2),AV100,0)) -> 0 | BS100: =+IF($K100="Ongoing",AW100,IF(RIGHT($K100,2)=RIGHT(BS$39,2),SUM($AV100:AW100),0)+IF(RIGHT(BS$39,2)>RIGHT($K100,2),AW100,0)) -> 0 | BT100: =+IF($K100="Ongoing",AX100,IF(RIGHT($K100,2)=RIGHT(BT$39,2),SUM($AV100:AX100),0)+IF(RIGHT(BT$39,2)>RIGHT($K100,2),AX100,0)) -> 0 | BU100: =+IF($K100="Ongoing",AY100,IF(RIGHT($K100,2)=RIGHT(BU$39,2),SUM($AV100:AY100),0)+IF(RIGHT(BU$39,2)>RIGHT($K100,2),AY100,0)) -> 0 | BV100: =+IF($K100="Ongoing",AZ100,IF(RIGHT($K100,2)=RIGHT(BV$39,2),SUM($AV100:AZ100),0)+IF(RIGHT(BV$39,2)>RIGHT($K100,2),AZ100,0)) -> 0 | BW100: =+IF($K100="Ongoing",BA100,IF(RIGHT($K100,2)=RIGHT(BW$39,2),SUM($AV100:BA100),0)+IF(RIGHT(BW$39,2)>RIGHT($K100,2),BA100,0)) -> 0 | BX100: =+IF($K100="Ongoing",BB100,IF(RIGHT($K100,2)=RIGHT(BX$39,2),SUM($AV100:BB100),0)+IF(RIGHT(BX$39,2)>RIGHT($K100,2),BB100,0)) -> 0 | BY100: =+IF($K100="Ongoing",BC100,IF(RIGHT($K100,2)=RIGHT(BY$39,2),SUM($AV100:BC100),0)+IF(RIGHT(BY$39,2)>RIGHT($K100,2),BC100,0)) -> 0 | BZ100: =+IF($K100="Ongoing",BD100,IF(RIGHT($K100,2)=RIGHT(BZ$39,2),SUM($AV100:BD100),0)+IF(RIGHT(BZ$39,2)>RIGHT($K100,2),BD100,0)) -> 0 | CA100: =+IF($K100="Ongoing",BE100,IF(RIGHT($K100,2)=RIGHT(CA$39,2),SUM($AV100:BE100),0)+IF(RIGHT(CA$39,2)>RIGHT($K100,2),BE100,0)) -> 0 | CC100: =+O100*KeyAssumptionsPriceControl_FO!X$15 -> 0 | CD100: =+P100*KeyAssumptionsPriceControl_FO!Y$15 -> 0 | CE100: =+Q100*KeyAssumptionsPriceControl_FO!Z$15 -> 0 | CF100: =+R100*KeyAssumptionsPriceControl_FO!AA$15 -> 0 | CG100: =+S100*KeyAssumptionsPriceControl_FO!AB$15 -> 0 | CH100: =+T100*KeyAssumptionsPriceControl_FO!AC$15 -> 0 | CI100: =+U100*KeyAssumptionsPriceControl_FO!AD$15 -> 0 | CJ100: =+V100*KeyAssumptionsPriceControl_FO!AE$15 -> 0 | CK100: =+W100*KeyAssumptionsPriceControl_FO!AF$15 -> 0 | CL100: =+X100*KeyAssumptionsPriceControl_FO!AG$15 -> 0 | CN100: 0 | CO100: 0 | CP100: 0 | CQ100: 0 | CR100: 0 | CS100: 0 | CT100: 0 | CU100: 0 | CV100: 0 | CW100: 0
C101: [Capex Item - Significant Project / Capital Program / Other Capex] | E101: [Service] | F101: [Major Cost Driver] | G101: [Asset category] | H101: [Capital type] | J101: Straight line | K101: [Year finalised?] | AV101: 0 | AW101: 0 | AX101: 0 | AY101: 0 | AZ101: 0 | BA101: 0 | BB101: 0 | BC101: 0 | BD101: 0 | BE101: 0 | BG101: 0 | BH101: 0 | BI101: 0 | BJ101: 0 | BK101: 0 | BL101: 0 | BM101: 0 | BN101: 0 | BO101: 0 | BP101: 0 | BR101: =+IF($K101="Ongoing",AV101,IF(RIGHT($K101,2)=RIGHT(BR$39,2),SUM($AV101:AV101),0)+IF(RIGHT(BR$39,2)>RIGHT($K101,2),AV101,0)) -> 0 | BS101: =+IF($K101="Ongoing",AW101,IF(RIGHT($K101,2)=RIGHT(BS$39,2),SUM($AV101:AW101),0)+IF(RIGHT(BS$39,2)>RIGHT($K101,2),AW101,0)) -> 0 | BT101: =+IF($K101="Ongoing",AX101,IF(RIGHT($K101,2)=RIGHT(BT$39,2),SUM($AV101:AX101),0)+IF(RIGHT(BT$39,2)>RIGHT($K101,2),AX101,0)) -> 0 | BU101: =+IF($K101="Ongoing",AY101,IF(RIGHT($K101,2)=RIGHT(BU$39,2),SUM($AV101:AY101),0)+IF(RIGHT(BU$39,2)>RIGHT($K101,2),AY101,0)) -> 0 | BV101: =+IF($K101="Ongoing",AZ101,IF(RIGHT($K101,2)=RIGHT(BV$39,2),SUM($AV101:AZ101),0)+IF(RIGHT(BV$39,2)>RIGHT($K101,2),AZ101,0)) -> 0 | BW101: =+IF($K101="Ongoing",BA101,IF(RIGHT($K101,2)=RIGHT(BW$39,2),SUM($AV101:BA101),0)+IF(RIGHT(BW$39,2)>RIGHT($K101,2),BA101,0)) -> 0 | BX101: =+IF($K101="Ongoing",BB101,IF(RIGHT($K101,2)=RIGHT(BX$39,2),SUM($AV101:BB101),0)+IF(RIGHT(BX$39,2)>RIGHT($K101,2),BB101,0)) -> 0 | BY101: =+IF($K101="Ongoing",BC101,IF(RIGHT($K101,2)=RIGHT(BY$39,2),SUM($AV101:BC101),0)+IF(RIGHT(BY$39,2)>RIGHT($K101,2),BC101,0)) -> 0 | BZ101: =+IF($K101="Ongoing",BD101,IF(RIGHT($K101,2)=RIGHT(BZ$39,2),SUM($AV101:BD101),0)+IF(RIGHT(BZ$39,2)>RIGHT($K101,2),BD101,0)) -> 0 | CA101: =+IF($K101="Ongoing",BE101,IF(RIGHT($K101,2)=RIGHT(CA$39,2),SUM($AV101:BE101),0)+IF(RIGHT(CA$39,2)>RIGHT($K101,2),BE101,0)) -> 0 | CC101: =+O101*KeyAssumptionsPriceControl_FO!X$15 -> 0 | CD101: =+P101*KeyAssumptionsPriceControl_FO!Y$15 -> 0 | CE101: =+Q101*KeyAssumptionsPriceControl_FO!Z$15 -> 0 | CF101: =+R101*KeyAssumptionsPriceControl_FO!AA$15 -> 0 | CG101: =+S101*KeyAssumptionsPriceControl_FO!AB$15 -> 0 | CH101: =+T101*KeyAssumptionsPriceControl_FO!AC$15 -> 0 | CI101: =+U101*KeyAssumptionsPriceControl_FO!AD$15 -> 0 | CJ101: =+V101*KeyAssumptionsPriceControl_FO!AE$15 -> 0 | CK101: =+W101*KeyAssumptionsPriceControl_FO!AF$15 -> 0 | CL101: =+X101*KeyAssumptionsPriceControl_FO!AG$15 -> 0 | CN101: 0 | CO101: 0 | CP101: 0 | CQ101: 0 | CR101: 0 | CS101: 0 | CT101: 0 | CU101: 0 | CV101: 0 | CW101: 0
C102: [Capex Item - Significant Project / Capital Program / Other Capex] | E102: [Service] | F102: [Major Cost Driver] | G102: [Asset category] | H102: [Capital type] | J102: Straight line | K102: [Year finalised?] | AV102: 0 | AW102: 0 | AX102: 0 | AY102: 0 | AZ102: 0 | BA102: 0 | BB102: 0 | BC102: 0 | BD102: 0 | BE102: 0 | BG102: 0 | BH102: 0 | BI102: 0 | BJ102: 0 | BK102: 0 | BL102: 0 | BM102: 0 | BN102: 0 | BO102: 0 | BP102: 0 | BR102: =+IF($K102="Ongoing",AV102,IF(RIGHT($K102,2)=RIGHT(BR$39,2),SUM($AV102:AV102),0)+IF(RIGHT(BR$39,2)>RIGHT($K102,2),AV102,0)) -> 0 | BS102: =+IF($K102="Ongoing",AW102,IF(RIGHT($K102,2)=RIGHT(BS$39,2),SUM($AV102:AW102),0)+IF(RIGHT(BS$39,2)>RIGHT($K102,2),AW102,0)) -> 0 | BT102: =+IF($K102="Ongoing",AX102,IF(RIGHT($K102,2)=RIGHT(BT$39,2),SUM($AV102:AX102),0)+IF(RIGHT(BT$39,2)>RIGHT($K102,2),AX102,0)) -> 0 | BU102: =+IF($K102="Ongoing",AY102,IF(RIGHT($K102,2)=RIGHT(BU$39,2),SUM($AV102:AY102),0)+IF(RIGHT(BU$39,2)>RIGHT($K102,2),AY102,0)) -> 0 | BV102: =+IF($K102="Ongoing",AZ102,IF(RIGHT($K102,2)=RIGHT(BV$39,2),SUM($AV102:AZ102),0)+IF(RIGHT(BV$39,2)>RIGHT($K102,2),AZ102,0)) -> 0 | BW102: =+IF($K102="Ongoing",BA102,IF(RIGHT($K102,2)=RIGHT(BW$39,2),SUM($AV102:BA102),0)+IF(RIGHT(BW$39,2)>RIGHT($K102,2),BA102,0)) -> 0 | BX102: =+IF($K102="Ongoing",BB102,IF(RIGHT($K102,2)=RIGHT(BX$39,2),SUM($AV102:BB102),0)+IF(RIGHT(BX$39,2)>RIGHT($K102,2),BB102,0)) -> 0 | BY102: =+IF($K102="Ongoing",BC102,IF(RIGHT($K102,2)=RIGHT(BY$39,2),SUM($AV102:BC102),0)+IF(RIGHT(BY$39,2)>RIGHT($K102,2),BC102,0)) -> 0 | BZ102: =+IF($K102="Ongoing",BD102,IF(RIGHT($K102,2)=RIGHT(BZ$39,2),SUM($AV102:BD102),0)+IF(RIGHT(BZ$39,2)>RIGHT($K102,2),BD102,0)) -> 0 | CA102: =+IF($K102="Ongoing",BE102,IF(RIGHT($K102,2)=RIGHT(CA$39,2),SUM($AV102:BE102),0)+IF(RIGHT(CA$39,2)>RIGHT($K102,2),BE102,0)) -> 0 | CC102: =+O102*KeyAssumptionsPriceControl_FO!X$15 -> 0 | CD102: =+P102*KeyAssumptionsPriceControl_FO!Y$15 -> 0 | CE102: =+Q102*KeyAssumptionsPriceControl_FO!Z$15 -> 0 | CF102: =+R102*KeyAssumptionsPriceControl_FO!AA$15 -> 0 | CG102: =+S102*KeyAssumptionsPriceControl_FO!AB$15 -> 0 | CH102: =+T102*KeyAssumptionsPriceControl_FO!AC$15 -> 0 | CI102: =+U102*KeyAssumptionsPriceControl_FO!AD$15 -> 0 | CJ102: =+V102*KeyAssumptionsPriceControl_FO!AE$15 -> 0 | CK102: =+W102*KeyAssumptionsPriceControl_FO!AF$15 -> 0 | CL102: =+X102*KeyAssumptionsPriceControl_FO!AG$15 -> 0 | CN102: 0 | CO102: 0 | CP102: 0 | CQ102: 0 | CR102: 0 | CS102: 0 | CT102: 0 | CU102: 0 | CV102: 0 | CW102: 0
C103: [Capex Item - Significant Project / Capital Program / Other Capex] | E103: [Service] | F103: [Major Cost Driver] | G103: [Asset category] | H103: [Capital type] | J103: Straight line | K103: [Year finalised?] | AV103: 0 | AW103: 0 | AX103: 0 | AY103: 0 | AZ103: 0 | BA103: 0 | BB103: 0 | BC103: 0 | BD103: 0 | BE103: 0 | BG103: 0 | BH103: 0 | BI103: 0 | BJ103: 0 | BK103: 0 | BL103: 0 | BM103: 0 | BN103: 0 | BO103: 0 | BP103: 0 | BR103: =+IF($K103="Ongoing",AV103,IF(RIGHT($K103,2)=RIGHT(BR$39,2),SUM($AV103:AV103),0)+IF(RIGHT(BR$39,2)>RIGHT($K103,2),AV103,0)) -> 0 | BS103: =+IF($K103="Ongoing",AW103,IF(RIGHT($K103,2)=RIGHT(BS$39,2),SUM($AV103:AW103),0)+IF(RIGHT(BS$39,2)>RIGHT($K103,2),AW103,0)) -> 0 | BT103: =+IF($K103="Ongoing",AX103,IF(RIGHT($K103,2)=RIGHT(BT$39,2),SUM($AV103:AX103),0)+IF(RIGHT(BT$39,2)>RIGHT($K103,2),AX103,0)) -> 0 | BU103: =+IF($K103="Ongoing",AY103,IF(RIGHT($K103,2)=RIGHT(BU$39,2),SUM($AV103:AY103),0)+IF(RIGHT(BU$39,2)>RIGHT($K103,2),AY103,0)) -> 0 | BV103: =+IF($K103="Ongoing",AZ103,IF(RIGHT($K103,2)=RIGHT(BV$39,2),SUM($AV103:AZ103),0)+IF(RIGHT(BV$39,2)>RIGHT($K103,2),AZ103,0)) -> 0 | BW103: =+IF($K103="Ongoing",BA103,IF(RIGHT($K103,2)=RIGHT(BW$39,2),SUM($AV103:BA103),0)+IF(RIGHT(BW$39,2)>RIGHT($K103,2),BA103,0)) -> 0 | BX103: =+IF($K103="Ongoing",BB103,IF(RIGHT($K103,2)=RIGHT(BX$39,2),SUM($AV103:BB103),0)+IF(RIGHT(BX$39,2)>RIGHT($K103,2),BB103,0)) -> 0 | BY103: =+IF($K103="Ongoing",BC103,IF(RIGHT($K103,2)=RIGHT(BY$39,2),SUM($AV103:BC103),0)+IF(RIGHT(BY$39,2)>RIGHT($K103,2),BC103,0)) -> 0 | BZ103: =+IF($K103="Ongoing",BD103,IF(RIGHT($K103,2)=RIGHT(BZ$39,2),SUM($AV103:BD103),0)+IF(RIGHT(BZ$39,2)>RIGHT($K103,2),BD103,0)) -> 0 | CA103: =+IF($K103="Ongoing",BE103,IF(RIGHT($K103,2)=RIGHT(CA$39,2),SUM($AV103:BE103),0)+IF(RIGHT(CA$39,2)>RIGHT($K103,2),BE103,0)) -> 0 | CC103: =+O103*KeyAssumptionsPriceControl_FO!X$15 -> 0 | CD103: =+P103*KeyAssumptionsPriceControl_FO!Y$15 -> 0 | CE103: =+Q103*KeyAssumptionsPriceControl_FO!Z$15 -> 0 | CF103: =+R103*KeyAssumptionsPriceControl_FO!AA$15 -> 0 | CG103: =+S103*KeyAssumptionsPriceControl_FO!AB$15 -> 0 | CH103: =+T103*KeyAssumptionsPriceControl_FO!AC$15 -> 0 | CI103: =+U103*KeyAssumptionsPriceControl_FO!AD$15 -> 0 | CJ103: =+V103*KeyAssumptionsPriceControl_FO!AE$15 -> 0 | CK103: =+W103*KeyAssumptionsPriceControl_FO!AF$15 -> 0 | CL103: =+X103*KeyAssumptionsPriceControl_FO!AG$15 -> 0 | CN103: 0 | CO103: 0 | CP103: 0 | CQ103: 0 | CR103: 0 | CS103: 0 | CT103: 0 | CU103: 0 | CV103: 0 | CW103: 0
C104: [Capex Item - Significant Project / Capital Program / Other Capex] | E104: [Service] | F104: [Major Cost Driver] | G104: [Asset category] | H104: [Capital type] | J104: Straight line | K104: [Year finalised?] | AV104: 0 | AW104: 0 | AX104: 0 | AY104: 0 | AZ104: 0 | BA104: 0 | BB104: 0 | BC104: 0 | BD104: 0 | BE104: 0 | BG104: 0 | BH104: 0 | BI104: 0 | BJ104: 0 | BK104: 0 | BL104: 0 | BM104: 0 | BN104: 0 | BO104: 0 | BP104: 0 | BR104: =+IF($K104="Ongoing",AV104,IF(RIGHT($K104,2)=RIGHT(BR$39,2),SUM($AV104:AV104),0)+IF(RIGHT(BR$39,2)>RIGHT($K104,2),AV104,0)) -> 0 | BS104: =+IF($K104="Ongoing",AW104,IF(RIGHT($K104,2)=RIGHT(BS$39,2),SUM($AV104:AW104),0)+IF(RIGHT(BS$39,2)>RIGHT($K104,2),AW104,0)) -> 0 | BT104: =+IF($K104="Ongoing",AX104,IF(RIGHT($K104,2)=RIGHT(BT$39,2),SUM($AV104:AX104),0)+IF(RIGHT(BT$39,2)>RIGHT($K104,2),AX104,0)) -> 0 | BU104: =+IF($K104="Ongoing",AY104,IF(RIGHT($K104,2)=RIGHT(BU$39,2),SUM($AV104:AY104),0)+IF(RIGHT(BU$39,2)>RIGHT($K104,2),AY104,0)) -> 0 | BV104: =+IF($K104="Ongoing",AZ104,IF(RIGHT($K104,2)=RIGHT(BV$39,2),SUM($AV104:AZ104),0)+IF(RIGHT(BV$39,2)>RIGHT($K104,2),AZ104,0)) -> 0 | BW104: =+IF($K104="Ongoing",BA104,IF(RIGHT($K104,2)=RIGHT(BW$39,2),SUM($AV104:BA104),0)+IF(RIGHT(BW$39,2)>RIGHT($K104,2),BA104,0)) -> 0 | BX104: =+IF($K104="Ongoing",BB104,IF(RIGHT($K104,2)=RIGHT(BX$39,2),SUM($AV104:BB104),0)+IF(RIGHT(BX$39,2)>RIGHT($K104,2),BB104,0)) -> 0 | BY104: =+IF($K104="Ongoing",BC104,IF(RIGHT($K104,2)=RIGHT(BY$39,2),SUM($AV104:BC104),0)+IF(RIGHT(BY$39,2)>RIGHT($K104,2),BC104,0)) -> 0 | BZ104: =+IF($K104="Ongoing",BD104,IF(RIGHT($K104,2)=RIGHT(BZ$39,2),SUM($AV104:BD104),0)+IF(RIGHT(BZ$39,2)>RIGHT($K104,2),BD104,0)) -> 0 | CA104: =+IF($K104="Ongoing",BE104,IF(RIGHT($K104,2)=RIGHT(CA$39,2),SUM($AV104:BE104),0)+IF(RIGHT(CA$39,2)>RIGHT($K104,2),BE104,0)) -> 0 | CC104: =+O104*KeyAssumptionsPriceControl_FO!X$15 -> 0 | CD104: =+P104*KeyAssumptionsPriceControl_FO!Y$15 -> 0 | CE104: =+Q104*KeyAssumptionsPriceControl_FO!Z$15 -> 0 | CF104: =+R104*KeyAssumptionsPriceControl_FO!AA$15 -> 0 | CG104: =+S104*KeyAssumptionsPriceControl_FO!AB$15 -> 0 | CH104: =+T104*KeyAssumptionsPriceControl_FO!AC$15 -> 0 | CI104: =+U104*KeyAssumptionsPriceControl_FO!AD$15 -> 0 | CJ104: =+V104*KeyAssumptionsPriceControl_FO!AE$15 -> 0 | CK104: =+W104*KeyAssumptionsPriceControl_FO!AF$15 -> 0 | CL104: =+X104*KeyAssumptionsPriceControl_FO!AG$15 -> 0 | CN104: 0 | CO104: 0 | CP104: 0 | CQ104: 0 | CR104: 0 | CS104: 0 | CT104: 0 | CU104: 0 | CV104: 0 | CW104: 0
C105: [Capex Item - Significant Project / Capital Program / Other Capex] | E105: [Service] | F105: [Major Cost Driver] | G105: [Asset category] | H105: [Capital type] | J105: Straight line | K105: [Year finalised?] | AV105: 0 | AW105: 0 | AX105: 0 | AY105: 0 | AZ105: 0 | BA105: 0 | BB105: 0 | BC105: 0 | BD105: 0 | BE105: 0 | BG105: 0 | BH105: 0 | BI105: 0 | BJ105: 0 | BK105: 0 | BL105: 0 | BM105: 0 | BN105: 0 | BO105: 0 | BP105: 0 | BR105: =+IF($K105="Ongoing",AV105,IF(RIGHT($K105,2)=RIGHT(BR$39,2),SUM($AV105:AV105),0)+IF(RIGHT(BR$39,2)>RIGHT($K105,2),AV105,0)) -> 0 | BS105: =+IF($K105="Ongoing",AW105,IF(RIGHT($K105,2)=RIGHT(BS$39,2),SUM($AV105:AW105),0)+IF(RIGHT(BS$39,2)>RIGHT($K105,2),AW105,0)) -> 0 | BT105: =+IF($K105="Ongoing",AX105,IF(RIGHT($K105,2)=RIGHT(BT$39,2),SUM($AV105:AX105),0)+IF(RIGHT(BT$39,2)>RIGHT($K105,2),AX105,0)) -> 0 | BU105: =+IF($K105="Ongoing",AY105,IF(RIGHT($K105,2)=RIGHT(BU$39,2),SUM($AV105:AY105),0)+IF(RIGHT(BU$39,2)>RIGHT($K105,2),AY105,0)) -> 0 | BV105: =+IF($K105="Ongoing",AZ105,IF(RIGHT($K105,2)=RIGHT(BV$39,2),SUM($AV105:AZ105),0)+IF(RIGHT(BV$39,2)>RIGHT($K105,2),AZ105,0)) -> 0 | BW105: =+IF($K105="Ongoing",BA105,IF(RIGHT($K105,2)=RIGHT(BW$39,2),SUM($AV105:BA105),0)+IF(RIGHT(BW$39,2)>RIGHT($K105,2),BA105,0)) -> 0 | BX105: =+IF($K105="Ongoing",BB105,IF(RIGHT($K105,2)=RIGHT(BX$39,2),SUM($AV105:BB105),0)+IF(RIGHT(BX$39,2)>RIGHT($K105,2),BB105,0)) -> 0 | BY105: =+IF($K105="Ongoing",BC105,IF(RIGHT($K105,2)=RIGHT(BY$39,2),SUM($AV105:BC105),0)+IF(RIGHT(BY$39,2)>RIGHT($K105,2),BC105,0)) -> 0 | BZ105: =+IF($K105="Ongoing",BD105,IF(RIGHT($K105,2)=RIGHT(BZ$39,2),SUM($AV105:BD105),0)+IF(RIGHT(BZ$39,2)>RIGHT($K105,2),BD105,0)) -> 0 | CA105: =+IF($K105="Ongoing",BE105,IF(RIGHT($K105,2)=RIGHT(CA$39,2),SUM($AV105:BE105),0)+IF(RIGHT(CA$39,2)>RIGHT($K105,2),BE105,0)) -> 0 | CC105: =+O105*KeyAssumptionsPriceControl_FO!X$15 -> 0 | CD105: =+P105*KeyAssumptionsPriceControl_FO!Y$15 -> 0 | CE105: =+Q105*KeyAssumptionsPriceControl_FO!Z$15 -> 0 | CF105: =+R105*KeyAssumptionsPriceControl_FO!AA$15 -> 0 | CG105: =+S105*KeyAssumptionsPriceControl_FO!AB$15 -> 0 | CH105: =+T105*KeyAssumptionsPriceControl_FO!AC$15 -> 0 | CI105: =+U105*KeyAssumptionsPriceControl_FO!AD$15 -> 0 | CJ105: =+V105*KeyAssumptionsPriceControl_FO!AE$15 -> 0 | CK105: =+W105*KeyAssumptionsPriceControl_FO!AF$15 -> 0 | CL105: =+X105*KeyAssumptionsPriceControl_FO!AG$15 -> 0 | CN105: 0 | CO105: 0 | CP105: 0 | CQ105: 0 | CR105: 0 | CS105: 0 | CT105: 0 | CU105: 0 | CV105: 0 | CW105: 0
C106: [Capex Item - Significant Project / Capital Program / Other Capex] | E106: [Service] | F106: [Major Cost Driver] | G106: [Asset category] | H106: [Capital type] | J106: Straight line | K106: [Year finalised?] | AV106: 0 | AW106: 0 | AX106: 0 | AY106: 0 | AZ106: 0 | BA106: 0 | BB106: 0 | BC106: 0 | BD106: 0 | BE106: 0 | BG106: 0 | BH106: 0 | BI106: 0 | BJ106: 0 | BK106: 0 | BL106: 0 | BM106: 0 | BN106: 0 | BO106: 0 | BP106: 0 | BR106: =+IF($K106="Ongoing",AV106,IF(RIGHT($K106,2)=RIGHT(BR$39,2),SUM($AV106:AV106),0)+IF(RIGHT(BR$39,2)>RIGHT($K106,2),AV106,0)) -> 0 | BS106: =+IF($K106="Ongoing",AW106,IF(RIGHT($K106,2)=RIGHT(BS$39,2),SUM($AV106:AW106),0)+IF(RIGHT(BS$39,2)>RIGHT($K106,2),AW106,0)) -> 0 | BT106: =+IF($K106="Ongoing",AX106,IF(RIGHT($K106,2)=RIGHT(BT$39,2),SUM($AV106:AX106),0)+IF(RIGHT(BT$39,2)>RIGHT($K106,2),AX106,0)) -> 0 | BU106: =+IF($K106="Ongoing",AY106,IF(RIGHT($K106,2)=RIGHT(BU$39,2),SUM($AV106:AY106),0)+IF(RIGHT(BU$39,2)>RIGHT($K106,2),AY106,0)) -> 0 | BV106: =+IF($K106="Ongoing",AZ106,IF(RIGHT($K106,2)=RIGHT(BV$39,2),SUM($AV106:AZ106),0)+IF(RIGHT(BV$39,2)>RIGHT($K106,2),AZ106,0)) -> 0 | BW106: =+IF($K106="Ongoing",BA106,IF(RIGHT($K106,2)=RIGHT(BW$39,2),SUM($AV106:BA106),0)+IF(RIGHT(BW$39,2)>RIGHT($K106,2),BA106,0)) -> 0 | BX106: =+IF($K106="Ongoing",BB106,IF(RIGHT($K106,2)=RIGHT(BX$39,2),SUM($AV106:BB106),0)+IF(RIGHT(BX$39,2)>RIGHT($K106,2),BB106,0)) -> 0 | BY106: =+IF($K106="Ongoing",BC106,IF(RIGHT($K106,2)=RIGHT(BY$39,2),SUM($AV106:BC106),0)+IF(RIGHT(BY$39,2)>RIGHT($K106,2),BC106,0)) -> 0 | BZ106: =+IF($K106="Ongoing",BD106,IF(RIGHT($K106,2)=RIGHT(BZ$39,2),SUM($AV106:BD106),0)+IF(RIGHT(BZ$39,2)>RIGHT($K106,2),BD106,0)) -> 0 | CA106: =+IF($K106="Ongoing",BE106,IF(RIGHT($K106,2)=RIGHT(CA$39,2),SUM($AV106:BE106),0)+IF(RIGHT(CA$39,2)>RIGHT($K106,2),BE106,0)) -> 0 | CC106: =+O106*KeyAssumptionsPriceControl_FO!X$15 -> 0 | CD106: =+P106*KeyAssumptionsPriceControl_FO!Y$15 -> 0 | CE106: =+Q106*KeyAssumptionsPriceControl_FO!Z$15 -> 0 | CF106: =+R106*KeyAssumptionsPriceControl_FO!AA$15 -> 0 | CG106: =+S106*KeyAssumptionsPriceControl_FO!AB$15 -> 0 | CH106: =+T106*KeyAssumptionsPriceControl_FO!AC$15 -> 0 | CI106: =+U106*KeyAssumptionsPriceControl_FO!AD$15 -> 0 | CJ106: =+V106*KeyAssumptionsPriceControl_FO!AE$15 -> 0 | CK106: =+W106*KeyAssumptionsPriceControl_FO!AF$15 -> 0 | CL106: =+X106*KeyAssumptionsPriceControl_FO!AG$15 -> 0 | CN106: 0 | CO106: 0 | CP106: 0 | CQ106: 0 | CR106: 0 | CS106: 0 | CT106: 0 | CU106: 0 | CV106: 0 | CW106: 0
C107: [Capex Item - Significant Project / Capital Program / Other Capex] | E107: [Service] | F107: [Major Cost Driver] | G107: [Asset category] | H107: [Capital type] | J107: Straight line | K107: [Year finalised?] | AV107: 0 | AW107: 0 | AX107: 0 | AY107: 0 | AZ107: 0 | BA107: 0 | BB107: 0 | BC107: 0 | BD107: 0 | BE107: 0 | BG107: =IF($L107=0,0, IF($L107<=0.5,BR107, IF($J107="straight line", IF((LEFT(BG$39,4)*1)-INT($L107)<LEFT($BG$39,4)*1,0,((OFFSET(BR107,0,-INT($L107+0.5),1,1))/$L107)*(IF($L107-INT($L107)>0.5,$L107-0.5-INT($L107),IF($L107-INT($L107)<=0.5,$L107-0.5-INT($L107)+1,0)))) +BR107/$L107*0.5, IF($J107="Declining Balance",-$BG$38,0)))) -> 0 | BH107: 0 | BI107: 0 | BJ107: 0 | BK107: 0 | BL107: 0 | BM107: 0 | BN107: 0 | BO107: 0 | BP107: 0 | BR107: =+IF($K107="Ongoing",AV107,IF(RIGHT($K107,2)=RIGHT(BR$39,2),SUM($AV107:AV107),0)+IF(RIGHT(BR$39,2)>RIGHT($K107,2),AV107,0)) -> 0 | BS107: =+IF($K107="Ongoing",AW107,IF(RIGHT($K107,2)=RIGHT(BS$39,2),SUM($AV107:AW107),0)+IF(RIGHT(BS$39,2)>RIGHT($K107,2),AW107,0)) -> 0 | BT107: =+IF($K107="Ongoing",AX107,IF(RIGHT($K107,2)=RIGHT(BT$39,2),SUM($AV107:AX107),0)+IF(RIGHT(BT$39,2)>RIGHT($K107,2),AX107,0)) -> 0 | BU107: =+IF($K107="Ongoing",AY107,IF(RIGHT($K107,2)=RIGHT(BU$39,2),SUM($AV107:AY107),0)+IF(RIGHT(BU$39,2)>RIGHT($K107,2),AY107,0)) -> 0 | BV107: =+IF($K107="Ongoing",AZ107,IF(RIGHT($K107,2)=RIGHT(BV$39,2),SUM($AV107:AZ107),0)+IF(RIGHT(BV$39,2)>RIGHT($K107,2),AZ107,0)) -> 0 | BW107: =+IF($K107="Ongoing",BA107,IF(RIGHT($K107,2)=RIGHT(BW$39,2),SUM($AV107:BA107),0)+IF(RIGHT(BW$39,2)>RIGHT($K107,2),BA107,0)) -> 0 | BX107: =+IF($K107="Ongoing",BB107,IF(RIGHT($K107,2)=RIGHT(BX$39,2),SUM($AV107:BB107),0)+IF(RIGHT(BX$39,2)>RIGHT($K107,2),BB107,0)) -> 0 | BY107: =+IF($K107="Ongoing",BC107,IF(RIGHT($K107,2)=RIGHT(BY$39,2),SUM($AV107:BC107),0)+IF(RIGHT(BY$39,2)>RIGHT($K107,2),BC107,0)) -> 0 | BZ107: =+IF($K107="Ongoing",BD107,IF(RIGHT($K107,2)=RIGHT(BZ$39,2),SUM($AV107:BD107),0)+IF(RIGHT(BZ$39,2)>RIGHT($K107,2),BD107,0)) -> 0 | CA107: =+IF($K107="Ongoing",BE107,IF(RIGHT($K107,2)=RIGHT(CA$39,2),SUM($AV107:BE107),0)+IF(RIGHT(CA$39,2)>RIGHT($K107,2),BE107,0)) -> 0 | CC107: =+O107*KeyAssumptionsPriceControl_FO!X$15 -> 0 | CD107: =+P107*KeyAssumptionsPriceControl_FO!Y$15 -> 0 | CE107: =+Q107*KeyAssumptionsPriceControl_FO!Z$15 -> 0 | CF107: =+R107*KeyAssumptionsPriceControl_FO!AA$15 -> 0 | CG107: =+S107*KeyAssumptionsPriceControl_FO!AB$15 -> 0 | CH107: =+T107*KeyAssumptionsPriceControl_FO!AC$15 -> 0 | CI107: =+U107*KeyAssumptionsPriceControl_FO!AD$15 -> 0 | CJ107: =+V107*KeyAssumptionsPriceControl_FO!AE$15 -> 0 | CK107: =+W107*KeyAssumptionsPriceControl_FO!AF$15 -> 0 | CL107: =+X107*KeyAssumptionsPriceControl_FO!AG$15 -> 0 | CN107: =IF($M107=0,0, IF($M107<=0.5,CC107, IF($J107="straight line", IF((LEFT(CN$39,4)*1)-INT($M107)<LEFT($CN$39,4)*1,0,((OFFSET(CC107,0,-INT($M107+0.5),1,1))/$M107)*(IF($M107-INT($M107)>0.5,$M107-0.5-INT($M107),IF($M107-INT($M107)<=0.5,$M107-0.5-INT($M107)+1,0)))) +CC107/$M107*0.5, IF($J107="Declining Balance",-$CN$38,0)))) -> 0 | CO107: 0 | CP107: 0 | CQ107: 0 | CR107: 0 | CS107: 0 | CT107: 0 | CU107: 0 | CV107: 0 | CW107: 0
C108: [Capex Item - Significant Project / Capital Program / Other Capex] | E108: [Service] | F108: [Major Cost Driver] | G108: [Asset category] | H108: [Capital type] | J108: Straight line | K108: [Year finalised?] | AV108: 0 | AW108: 0 | AX108: 0 | AY108: 0 | AZ108: 0 | BA108: 0 | BB108: 0 | BC108: 0 | BD108: 0 | BE108: 0 | BG108: 0 | BH108: 0 | BI108: 0 | BJ108: 0 | BK108: 0 | BL108: 0 | BM108: 0 | BN108: 0 | BO108: 0 | BP108: 0 | BR108: =+IF($K108="Ongoing",AV108,IF(RIGHT($K108,2)=RIGHT(BR$39,2),SUM($AV108:AV108),0)+IF(RIGHT(BR$39,2)>RIGHT($K108,2),AV108,0)) -> 0 | BS108: =+IF($K108="Ongoing",AW108,IF(RIGHT($K108,2)=RIGHT(BS$39,2),SUM($AV108:AW108),0)+IF(RIGHT(BS$39,2)>RIGHT($K108,2),AW108,0)) -> 0 | BT108: =+IF($K108="Ongoing",AX108,IF(RIGHT($K108,2)=RIGHT(BT$39,2),SUM($AV108:AX108),0)+IF(RIGHT(BT$39,2)>RIGHT($K108,2),AX108,0)) -> 0 | BU108: =+IF($K108="Ongoing",AY108,IF(RIGHT($K108,2)=RIGHT(BU$39,2),SUM($AV108:AY108),0)+IF(RIGHT(BU$39,2)>RIGHT($K108,2),AY108,0)) -> 0 | BV108: =+IF($K108="Ongoing",AZ108,IF(RIGHT($K108,2)=RIGHT(BV$39,2),SUM($AV108:AZ108),0)+IF(RIGHT(BV$39,2)>RIGHT($K108,2),AZ108,0)) -> 0 | BW108: =+IF($K108="Ongoing",BA108,IF(RIGHT($K108,2)=RIGHT(BW$39,2),SUM($AV108:BA108),0)+IF(RIGHT(BW$39,2)>RIGHT($K108,2),BA108,0)) -> 0 | BX108: =+IF($K108="Ongoing",BB108,IF(RIGHT($K108,2)=RIGHT(BX$39,2),SUM($AV108:BB108),0)+IF(RIGHT(BX$39,2)>RIGHT($K108,2),BB108,0)) -> 0 | BY108: =+IF($K108="Ongoing",BC108,IF(RIGHT($K108,2)=RIGHT(BY$39,2),SUM($AV108:BC108),0)+IF(RIGHT(BY$39,2)>RIGHT($K108,2),BC108,0)) -> 0 | BZ108: =+IF($K108="Ongoing",BD108,IF(RIGHT($K108,2)=RIGHT(BZ$39,2),SUM($AV108:BD108),0)+IF(RIGHT(BZ$39,2)>RIGHT($K108,2),BD108,0)) -> 0 | CA108: =+IF($K108="Ongoing",BE108,IF(RIGHT($K108,2)=RIGHT(CA$39,2),SUM($AV108:BE108),0)+IF(RIGHT(CA$39,2)>RIGHT($K108,2),BE108,0)) -> 0 | CC108: =+O108*KeyAssumptionsPriceControl_FO!X$15 -> 0 | CD108: =+P108*KeyAssumptionsPriceControl_FO!Y$15 -> 0 | CE108: =+Q108*KeyAssumptionsPriceControl_FO!Z$15 -> 0 | CF108: =+R108*KeyAssumptionsPriceControl_FO!AA$15 -> 0 | CG108: =+S108*KeyAssumptionsPriceControl_FO!AB$15 -> 0 | CH108: =+T108*KeyAssumptionsPriceControl_FO!AC$15 -> 0 | CI108: =+U108*KeyAssumptionsPriceControl_FO!AD$15 -> 0 | CJ108: =+V108*KeyAssumptionsPriceControl_FO!AE$15 -> 0 | CK108: =+W108*KeyAssumptionsPriceControl_FO!AF$15 -> 0 | CL108: =+X108*KeyAssumptionsPriceControl_FO!AG$15 -> 0 | CN108: 0 | CO108: 0 | CP108: 0 | CQ108: 0 | CR108: 0 | CS108: 0 | CT108: 0 | CU108: 0 | CV108: 0 | CW108: 0
C109: [Capex Item - Significant Project / Capital Program / Other Capex] | E109: [Service] | F109: [Major Cost Driver] | G109: [Asset category] | H109: [Capital type] | J109: Straight line | K109: [Year finalised?] | AV109: 0 | AW109: 0 | AX109: 0 | AY109: 0 | AZ109: 0 | BA109: 0 | BB109: 0 | BC109: 0 | BD109: 0 | BE109: 0 | BG109: 0 | BH109: 0 | BI109: 0 | BJ109: 0 | BK109: 0 | BL109: 0 | BM109: 0 | BN109: 0 | BO109: 0 | BP109: 0 | BR109: =+IF($K109="Ongoing",AV109,IF(RIGHT($K109,2)=RIGHT(BR$39,2),SUM($AV109:AV109),0)+IF(RIGHT(BR$39,2)>RIGHT($K109,2),AV109,0)) -> 0 | BS109: =+IF($K109="Ongoing",AW109,IF(RIGHT($K109,2)=RIGHT(BS$39,2),SUM($AV109:AW109),0)+IF(RIGHT(BS$39,2)>RIGHT($K109,2),AW109,0)) -> 0 | BT109: =+IF($K109="Ongoing",AX109,IF(RIGHT($K109,2)=RIGHT(BT$39,2),SUM($AV109:AX109),0)+IF(RIGHT(BT$39,2)>RIGHT($K109,2),AX109,0)) -> 0 | BU109: =+IF($K109="Ongoing",AY109,IF(RIGHT($K109,2)=RIGHT(BU$39,2),SUM($AV109:AY109),0)+IF(RIGHT(BU$39,2)>RIGHT($K109,2),AY109,0)) -> 0 | BV109: =+IF($K109="Ongoing",AZ109,IF(RIGHT($K109,2)=RIGHT(BV$39,2),SUM($AV109:AZ109),0)+IF(RIGHT(BV$39,2)>RIGHT($K109,2),AZ109,0)) -> 0 | BW109: =+IF($K109="Ongoing",BA109,IF(RIGHT($K109,2)=RIGHT(BW$39,2),SUM($AV109:BA109),0)+IF(RIGHT(BW$39,2)>RIGHT($K109,2),BA109,0)) -> 0 | BX109: =+IF($K109="Ongoing",BB109,IF(RIGHT($K109,2)=RIGHT(BX$39,2),SUM($AV109:BB109),0)+IF(RIGHT(BX$39,2)>RIGHT($K109,2),BB109,0)) -> 0 | BY109: =+IF($K109="Ongoing",BC109,IF(RIGHT($K109,2)=RIGHT(BY$39,2),SUM($AV109:BC109),0)+IF(RIGHT(BY$39,2)>RIGHT($K109,2),BC109,0)) -> 0 | BZ109: =+IF($K109="Ongoing",BD109,IF(RIGHT($K109,2)=RIGHT(BZ$39,2),SUM($AV109:BD109),0)+IF(RIGHT(BZ$39,2)>RIGHT($K109,2),BD109,0)) -> 0 | CA109: =+IF($K109="Ongoing",BE109,IF(RIGHT($K109,2)=RIGHT(CA$39,2),SUM($AV109:BE109),0)+IF(RIGHT(CA$39,2)>RIGHT($K109,2),BE109,0)) -> 0 | CC109: =+O109*KeyAssumptionsPriceControl_FO!X$15 -> 0 | CD109: =+P109*KeyAssumptionsPriceControl_FO!Y$15 -> 0 | CE109: =+Q109*KeyAssumptionsPriceControl_FO!Z$15 -> 0 | CF109: =+R109*KeyAssumptionsPriceControl_FO!AA$15 -> 0 | CG109: =+S109*KeyAssumptionsPriceControl_FO!AB$15 -> 0 | CH109: =+T109*KeyAssumptionsPriceControl_FO!AC$15 -> 0 | CI109: =+U109*KeyAssumptionsPriceControl_FO!AD$15 -> 0 | CJ109: =+V109*KeyAssumptionsPriceControl_FO!AE$15 -> 0 | CK109: =+W109*KeyAssumptionsPriceControl_FO!AF$15 -> 0 | CL109: =+X109*KeyAssumptionsPriceControl_FO!AG$15 -> 0 | CN109: 0 | CO109: 0 | CP109: 0 | CQ109: 0 | CR109: 0 | CS109: 0 | CT109: 0 | CU109: 0 | CV109: 0 | CW109: 0
C110: [Capex Item - Significant Project / Capital Program / Other Capex] | E110: [Service] | F110: [Major Cost Driver] | G110: [Asset category] | H110: [Capital type] | J110: Straight line | K110: [Year finalised?] | AV110: 0 | AW110: 0 | AX110: 0 | AY110: 0 | AZ110: =+S110-AD110-AO110 -> 0 | BA110: 0 | BB110: 0 | BC110: 0 | BD110: 0 | BE110: 0 | BG110: 0 | BH110: 0 | BI110: 0 | BJ110: 0 | BK110: 0 | BL110: 0 | BM110: 0 | BN110: 0 | BO110: 0 | BP110: 0 | BR110: =+IF($K110="Ongoing",AV110,IF(RIGHT($K110,2)=RIGHT(BR$39,2),SUM($AV110:AV110),0)+IF(RIGHT(BR$39,2)>RIGHT($K110,2),AV110,0)) -> 0 | BS110: =+IF($K110="Ongoing",AW110,IF(RIGHT($K110,2)=RIGHT(BS$39,2),SUM($AV110:AW110),0)+IF(RIGHT(BS$39,2)>RIGHT($K110,2),AW110,0)) -> 0 | BT110: =+IF($K110="Ongoing",AX110,IF(RIGHT($K110,2)=RIGHT(BT$39,2),SUM($AV110:AX110),0)+IF(RIGHT(BT$39,2)>RIGHT($K110,2),AX110,0)) -> 0 | BU110: =+IF($K110="Ongoing",AY110,IF(RIGHT($K110,2)=RIGHT(BU$39,2),SUM($AV110:AY110),0)+IF(RIGHT(BU$39,2)>RIGHT($K110,2),AY110,0)) -> 0 | BV110: =+IF($K110="Ongoing",AZ110,IF(RIGHT($K110,2)=RIGHT(BV$39,2),SUM($AV110:AZ110),0)+IF(RIGHT(BV$39,2)>RIGHT($K110,2),AZ110,0)) -> 0 | BW110: =+IF($K110="Ongoing",BA110,IF(RIGHT($K110,2)=RIGHT(BW$39,2),SUM($AV110:BA110),0)+IF(RIGHT(BW$39,2)>RIGHT($K110,2),BA110,0)) -> 0 | BX110: =+IF($K110="Ongoing",BB110,IF(RIGHT($K110,2)=RIGHT(BX$39,2),SUM($AV110:BB110),0)+IF(RIGHT(BX$39,2)>RIGHT($K110,2),BB110,0)) -> 0 | BY110: =+IF($K110="Ongoing",BC110,IF(RIGHT($K110,2)=RIGHT(BY$39,2),SUM($AV110:BC110),0)+IF(RIGHT(BY$39,2)>RIGHT($K110,2),BC110,0)) -> 0 | BZ110: =+IF($K110="Ongoing",BD110,IF(RIGHT($K110,2)=RIGHT(BZ$39,2),SUM($AV110:BD110),0)+IF(RIGHT(BZ$39,2)>RIGHT($K110,2),BD110,0)) -> 0 | CA110: =+IF($K110="Ongoing",BE110,IF(RIGHT($K110,2)=RIGHT(CA$39,2),SUM($AV110:BE110),0)+IF(RIGHT(CA$39,2)>RIGHT($K110,2),BE110,0)) -> 0 | CC110: =+O110*KeyAssumptionsPriceControl_FO!X$15 -> 0 | CD110: =+P110*KeyAssumptionsPriceControl_FO!Y$15 -> 0 | CE110: =+Q110*KeyAssumptionsPriceControl_FO!Z$15 -> 0 | CF110: =+R110*KeyAssumptionsPriceControl_FO!AA$15 -> 0 | CG110: =+S110*KeyAssumptionsPriceControl_FO!AB$15 -> 0 | CH110: =+T110*KeyAssumptionsPriceControl_FO!AC$15 -> 0 | CI110: =+U110*KeyAssumptionsPriceControl_FO!AD$15 -> 0 | CJ110: =+V110*KeyAssumptionsPriceControl_FO!AE$15 -> 0 | CK110: =+W110*KeyAssumptionsPriceControl_FO!AF$15 -> 0 | CL110: =+X110*KeyAssumptionsPriceControl_FO!AG$15 -> 0 | CN110: 0 | CO110: 0 | CP110: 0 | CQ110: 0 | CR110: 0 | CS110: 0 | CT110: 0 | CU110: 0 | CV110: 0 | CW110: 0
C111: [Capex Item - Significant Project / Capital Program / Other Capex] | E111: [Service] | F111: [Major Cost Driver] | G111: [Asset category] | H111: [Capital type] | J111: Straight line | K111: [Year finalised?] | AV111: 0 | AW111: 0 | AX111: 0 | AY111: 0 | AZ111: 0 | BA111: 0 | BB111: 0 | BC111: 0 | BD111: 0 | BE111: 0 | BG111: 0 | BH111: 0 | BI111: 0 | BJ111: 0 | BK111: 0 | BL111: 0 | BM111: 0 | BN111: 0 | BO111: 0 | BP111: 0 | BR111: =+IF($K111="Ongoing",AV111,IF(RIGHT($K111,2)=RIGHT(BR$39,2),SUM($AV111:AV111),0)+IF(RIGHT(BR$39,2)>RIGHT($K111,2),AV111,0)) -> 0 | BS111: =+IF($K111="Ongoing",AW111,IF(RIGHT($K111,2)=RIGHT(BS$39,2),SUM($AV111:AW111),0)+IF(RIGHT(BS$39,2)>RIGHT($K111,2),AW111,0)) -> 0 | BT111: =+IF($K111="Ongoing",AX111,IF(RIGHT($K111,2)=RIGHT(BT$39,2),SUM($AV111:AX111),0)+IF(RIGHT(BT$39,2)>RIGHT($K111,2),AX111,0)) -> 0 | BU111: =+IF($K111="Ongoing",AY111,IF(RIGHT($K111,2)=RIGHT(BU$39,2),SUM($AV111:AY111),0)+IF(RIGHT(BU$39,2)>RIGHT($K111,2),AY111,0)) -> 0 | BV111: =+IF($K111="Ongoing",AZ111,IF(RIGHT($K111,2)=RIGHT(BV$39,2),SUM($AV111:AZ111),0)+IF(RIGHT(BV$39,2)>RIGHT($K111,2),AZ111,0)) -> 0 | BW111: =+IF($K111="Ongoing",BA111,IF(RIGHT($K111,2)=RIGHT(BW$39,2),SUM($AV111:BA111),0)+IF(RIGHT(BW$39,2)>RIGHT($K111,2),BA111,0)) -> 0 | BX111: =+IF($K111="Ongoing",BB111,IF(RIGHT($K111,2)=RIGHT(BX$39,2),SUM($AV111:BB111),0)+IF(RIGHT(BX$39,2)>RIGHT($K111,2),BB111,0)) -> 0 | BY111: =+IF($K111="Ongoing",BC111,IF(RIGHT($K111,2)=RIGHT(BY$39,2),SUM($AV111:BC111),0)+IF(RIGHT(BY$39,2)>RIGHT($K111,2),BC111,0)) -> 0 | BZ111: =+IF($K111="Ongoing",BD111,IF(RIGHT($K111,2)=RIGHT(BZ$39,2),SUM($AV111:BD111),0)+IF(RIGHT(BZ$39,2)>RIGHT($K111,2),BD111,0)) -> 0 | CA111: =+IF($K111="Ongoing",BE111,IF(RIGHT($K111,2)=RIGHT(CA$39,2),SUM($AV111:BE111),0)+IF(RIGHT(CA$39,2)>RIGHT($K111,2),BE111,0)) -> 0 | CC111: =+O111*KeyAssumptionsPriceControl_FO!X$15 -> 0 | CD111: =+P111*KeyAssumptionsPriceControl_FO!Y$15 -> 0 | CE111: =+Q111*KeyAssumptionsPriceControl_FO!Z$15 -> 0 | CF111: =+R111*KeyAssumptionsPriceControl_FO!AA$15 -> 0 | CG111: =+S111*KeyAssumptionsPriceControl_FO!AB$15 -> 0 | CH111: =+T111*KeyAssumptionsPriceControl_FO!AC$15 -> 0 | CI111: =+U111*KeyAssumptionsPriceControl_FO!AD$15 -> 0 | CJ111: =+V111*KeyAssumptionsPriceControl_FO!AE$15 -> 0 | CK111: =+W111*KeyAssumptionsPriceControl_FO!AF$15 -> 0 | CL111: =+X111*KeyAssumptionsPriceControl_FO!AG$15 -> 0 | CN111: 0 | CO111: 0 | CP111: 0 | CQ111: 0 | CR111: 0 | CS111: 0 | CT111: 0 | CU111: 0 | CV111: 0 | CW111: 0
C112: [Capex Item - Significant Project / Capital Program / Other Capex] | E112: [Service] | F112: [Major Cost Driver] | G112: [Asset category] | H112: [Capital type] | J112: Straight line | K112: [Year finalised?] | AV112: 0 | AW112: 0 | AX112: 0 | AY112: 0 | AZ112: 0 | BA112: 0 | BB112: 0 | BC112: 0 | BD112: 0 | BE112: 0 | BG112: 0 | BH112: 0 | BI112: 0 | BJ112: 0 | BK112: 0 | BL112: 0 | BM112: 0 | BN112: 0 | BO112: 0 | BP112: 0 | BR112: =+IF($K112="Ongoing",AV112,IF(RIGHT($K112,2)=RIGHT(BR$39,2),SUM($AV112:AV112),0)+IF(RIGHT(BR$39,2)>RIGHT($K112,2),AV112,0)) -> 0 | BS112: =+IF($K112="Ongoing",AW112,IF(RIGHT($K112,2)=RIGHT(BS$39,2),SUM($AV112:AW112),0)+IF(RIGHT(BS$39,2)>RIGHT($K112,2),AW112,0)) -> 0 | BT112: =+IF($K112="Ongoing",AX112,IF(RIGHT($K112,2)=RIGHT(BT$39,2),SUM($AV112:AX112),0)+IF(RIGHT(BT$39,2)>RIGHT($K112,2),AX112,0)) -> 0 | BU112: =+IF($K112="Ongoing",AY112,IF(RIGHT($K112,2)=RIGHT(BU$39,2),SUM($AV112:AY112),0)+IF(RIGHT(BU$39,2)>RIGHT($K112,2),AY112,0)) -> 0 | BV112: =+IF($K112="Ongoing",AZ112,IF(RIGHT($K112,2)=RIGHT(BV$39,2),SUM($AV112:AZ112),0)+IF(RIGHT(BV$39,2)>RIGHT($K112,2),AZ112,0)) -> 0 | BW112: =+IF($K112="Ongoing",BA112,IF(RIGHT($K112,2)=RIGHT(BW$39,2),SUM($AV112:BA112),0)+IF(RIGHT(BW$39,2)>RIGHT($K112,2),BA112,0)) -> 0 | BX112: =+IF($K112="Ongoing",BB112,IF(RIGHT($K112,2)=RIGHT(BX$39,2),SUM($AV112:BB112),0)+IF(RIGHT(BX$39,2)>RIGHT($K112,2),BB112,0)) -> 0 | BY112: =+IF($K112="Ongoing",BC112,IF(RIGHT($K112,2)=RIGHT(BY$39,2),SUM($AV112:BC112),0)+IF(RIGHT(BY$39,2)>RIGHT($K112,2),BC112,0)) -> 0 | BZ112: =+IF($K112="Ongoing",BD112,IF(RIGHT($K112,2)=RIGHT(BZ$39,2),SUM($AV112:BD112),0)+IF(RIGHT(BZ$39,2)>RIGHT($K112,2),BD112,0)) -> 0 | CA112: =+IF($K112="Ongoing",BE112,IF(RIGHT($K112,2)=RIGHT(CA$39,2),SUM($AV112:BE112),0)+IF(RIGHT(CA$39,2)>RIGHT($K112,2),BE112,0)) -> 0 | CC112: =+O112*KeyAssumptionsPriceControl_FO!X$15 -> 0 | CD112: =+P112*KeyAssumptionsPriceControl_FO!Y$15 -> 0 | CE112: =+Q112*KeyAssumptionsPriceControl_FO!Z$15 -> 0 | CF112: =+R112*KeyAssumptionsPriceControl_FO!AA$15 -> 0 | CG112: =+S112*KeyAssumptionsPriceControl_FO!AB$15 -> 0 | CH112: =+T112*KeyAssumptionsPriceControl_FO!AC$15 -> 0 | CI112: =+U112*KeyAssumptionsPriceControl_FO!AD$15 -> 0 | CJ112: =+V112*KeyAssumptionsPriceControl_FO!AE$15 -> 0 | CK112: =+W112*KeyAssumptionsPriceControl_FO!AF$15 -> 0 | CL112: =+X112*KeyAssumptionsPriceControl_FO!AG$15 -> 0 | CN112: 0 | CO112: 0 | CP112: 0 | CQ112: 0 | CR112: 0 | CS112: 0 | CT112: 0 | CU112: 0 | CV112: 0 | CW112: 0
C113: [Capex Item - Significant Project / Capital Program / Other Capex] | E113: [Service] | F113: [Major Cost Driver] | G113: [Asset category] | H113: [Capital type] | J113: Straight line | K113: [Year finalised?] | AV113: 0 | AW113: 0 | AX113: 0 | AY113: 0 | AZ113: 0 | BA113: 0 | BB113: 0 | BC113: 0 | BD113: 0 | BE113: 0 | BG113: 0 | BH113: 0 | BI113: 0 | BJ113: 0 | BK113: 0 | BL113: 0 | BM113: 0 | BN113: 0 | BO113: 0 | BP113: 0 | BR113: =+IF($K113="Ongoing",AV113,IF(RIGHT($K113,2)=RIGHT(BR$39,2),SUM($AV113:AV113),0)+IF(RIGHT(BR$39,2)>RIGHT($K113,2),AV113,0)) -> 0 | BS113: =+IF($K113="Ongoing",AW113,IF(RIGHT($K113,2)=RIGHT(BS$39,2),SUM($AV113:AW113),0)+IF(RIGHT(BS$39,2)>RIGHT($K113,2),AW113,0)) -> 0 | BT113: =+IF($K113="Ongoing",AX113,IF(RIGHT($K113,2)=RIGHT(BT$39,2),SUM($AV113:AX113),0)+IF(RIGHT(BT$39,2)>RIGHT($K113,2),AX113,0)) -> 0 | BU113: =+IF($K113="Ongoing",AY113,IF(RIGHT($K113,2)=RIGHT(BU$39,2),SUM($AV113:AY113),0)+IF(RIGHT(BU$39,2)>RIGHT($K113,2),AY113,0)) -> 0 | BV113: =+IF($K113="Ongoing",AZ113,IF(RIGHT($K113,2)=RIGHT(BV$39,2),SUM($AV113:AZ113),0)+IF(RIGHT(BV$39,2)>RIGHT($K113,2),AZ113,0)) -> 0 | BW113: =+IF($K113="Ongoing",BA113,IF(RIGHT($K113,2)=RIGHT(BW$39,2),SUM($AV113:BA113),0)+IF(RIGHT(BW$39,2)>RIGHT($K113,2),BA113,0)) -> 0 | BX113: =+IF($K113="Ongoing",BB113,IF(RIGHT($K113,2)=RIGHT(BX$39,2),SUM($AV113:BB113),0)+IF(RIGHT(BX$39,2)>RIGHT($K113,2),BB113,0)) -> 0 | BY113: =+IF($K113="Ongoing",BC113,IF(RIGHT($K113,2)=RIGHT(BY$39,2),SUM($AV113:BC113),0)+IF(RIGHT(BY$39,2)>RIGHT($K113,2),BC113,0)) -> 0 | BZ113: =+IF($K113="Ongoing",BD113,IF(RIGHT($K113,2)=RIGHT(BZ$39,2),SUM($AV113:BD113),0)+IF(RIGHT(BZ$39,2)>RIGHT($K113,2),BD113,0)) -> 0 | CA113: =+IF($K113="Ongoing",BE113,IF(RIGHT($K113,2)=RIGHT(CA$39,2),SUM($AV113:BE113),0)+IF(RIGHT(CA$39,2)>RIGHT($K113,2),BE113,0)) -> 0 | CC113: =+O113*KeyAssumptionsPriceControl_FO!X$15 -> 0 | CD113: =+P113*KeyAssumptionsPriceControl_FO!Y$15 -> 0 | CE113: =+Q113*KeyAssumptionsPriceControl_FO!Z$15 -> 0 | CF113: =+R113*KeyAssumptionsPriceControl_FO!AA$15 -> 0 | CG113: =+S113*KeyAssumptionsPriceControl_FO!AB$15 -> 0 | CH113: =+T113*KeyAssumptionsPriceControl_FO!AC$15 -> 0 | CI113: =+U113*KeyAssumptionsPriceControl_FO!AD$15 -> 0 | CJ113: =+V113*KeyAssumptionsPriceControl_FO!AE$15 -> 0 | CK113: =+W113*KeyAssumptionsPriceControl_FO!AF$15 -> 0 | CL113: =+X113*KeyAssumptionsPriceControl_FO!AG$15 -> 0 | CN113: 0 | CO113: 0 | CP113: 0 | CQ113: 0 | CR113: 0 | CS113: 0 | CT113: 0 | CU113: 0 | CV113: 0 | CW113: 0
C114: [Capex Item - Significant Project / Capital Program / Other Capex] | E114: [Service] | F114: [Major Cost Driver] | G114: [Asset category] | H114: [Capital type] | J114: Straight line | K114: [Year finalised?] | AV114: 0 | AW114: 0 | AX114: 0 | AY114: 0 | AZ114: 0 | BA114: 0 | BB114: 0 | BC114: 0 | BD114: 0 | BE114: 0 | BG114: 0 | BH114: 0 | BI114: 0 | BJ114: 0 | BK114: 0 | BL114: 0 | BM114: 0 | BN114: 0 | BO114: 0 | BP114: 0 | BR114: =+IF($K114="Ongoing",AV114,IF(RIGHT($K114,2)=RIGHT(BR$39,2),SUM($AV114:AV114),0)+IF(RIGHT(BR$39,2)>RIGHT($K114,2),AV114,0)) -> 0 | BS114: =+IF($K114="Ongoing",AW114,IF(RIGHT($K114,2)=RIGHT(BS$39,2),SUM($AV114:AW114),0)+IF(RIGHT(BS$39,2)>RIGHT($K114,2),AW114,0)) -> 0 | BT114: =+IF($K114="Ongoing",AX114,IF(RIGHT($K114,2)=RIGHT(BT$39,2),SUM($AV114:AX114),0)+IF(RIGHT(BT$39,2)>RIGHT($K114,2),AX114,0)) -> 0 | BU114: =+IF($K114="Ongoing",AY114,IF(RIGHT($K114,2)=RIGHT(BU$39,2),SUM($AV114:AY114),0)+IF(RIGHT(BU$39,2)>RIGHT($K114,2),AY114,0)) -> 0 | BV114: =+IF($K114="Ongoing",AZ114,IF(RIGHT($K114,2)=RIGHT(BV$39,2),SUM($AV114:AZ114),0)+IF(RIGHT(BV$39,2)>RIGHT($K114,2),AZ114,0)) -> 0 | BW114: =+IF($K114="Ongoing",BA114,IF(RIGHT($K114,2)=RIGHT(BW$39,2),SUM($AV114:BA114),0)+IF(RIGHT(BW$39,2)>RIGHT($K114,2),BA114,0)) -> 0 | BX114: =+IF($K114="Ongoing",BB114,IF(RIGHT($K114,2)=RIGHT(BX$39,2),SUM($AV114:BB114),0)+IF(RIGHT(BX$39,2)>RIGHT($K114,2),BB114,0)) -> 0 | BY114: =+IF($K114="Ongoing",BC114,IF(RIGHT($K114,2)=RIGHT(BY$39,2),SUM($AV114:BC114),0)+IF(RIGHT(BY$39,2)>RIGHT($K114,2),BC114,0)) -> 0 | BZ114: =+IF($K114="Ongoing",BD114,IF(RIGHT($K114,2)=RIGHT(BZ$39,2),SUM($AV114:BD114),0)+IF(RIGHT(BZ$39,2)>RIGHT($K114,2),BD114,0)) -> 0 | CA114: =+IF($K114="Ongoing",BE114,IF(RIGHT($K114,2)=RIGHT(CA$39,2),SUM($AV114:BE114),0)+IF(RIGHT(CA$39,2)>RIGHT($K114,2),BE114,0)) -> 0 | CC114: =+O114*KeyAssumptionsPriceControl_FO!X$15 -> 0 | CD114: =+P114*KeyAssumptionsPriceControl_FO!Y$15 -> 0 | CE114: =+Q114*KeyAssumptionsPriceControl_FO!Z$15 -> 0 | CF114: =+R114*KeyAssumptionsPriceControl_FO!AA$15 -> 0 | CG114: =+S114*KeyAssumptionsPriceControl_FO!AB$15 -> 0 | CH114: =+T114*KeyAssumptionsPriceControl_FO!AC$15 -> 0 | CI114: =+U114*KeyAssumptionsPriceControl_FO!AD$15 -> 0 | CJ114: =+V114*KeyAssumptionsPriceControl_FO!AE$15 -> 0 | CK114: =+W114*KeyAssumptionsPriceControl_FO!AF$15 -> 0 | CL114: =+X114*KeyAssumptionsPriceControl_FO!AG$15 -> 0 | CN114: 0 | CO114: 0 | CP114: 0 | CQ114: 0 | CR114: 0 | CS114: 0 | CT114: 0 | CU114: 0 | CV114: 0 | CW114: 0
C115: [Capex Item - Significant Project / Capital Program / Other Capex] | E115: [Service] | F115: [Major Cost Driver] | G115: [Asset category] | H115: [Capital type] | J115: Straight line | K115: [Year finalised?] | AV115: 0 | AW115: 0 | AX115: 0 | AY115: 0 | AZ115: 0 | BA115: 0 | BB115: 0 | BC115: 0 | BD115: 0 | BE115: 0 | BG115: 0 | BH115: 0 | BI115: 0 | BJ115: 0 | BK115: 0 | BL115: 0 | BM115: 0 | BN115: 0 | BO115: 0 | BP115: 0 | BR115: =+IF($K115="Ongoing",AV115,IF(RIGHT($K115,2)=RIGHT(BR$39,2),SUM($AV115:AV115),0)+IF(RIGHT(BR$39,2)>RIGHT($K115,2),AV115,0)) -> 0 | BS115: =+IF($K115="Ongoing",AW115,IF(RIGHT($K115,2)=RIGHT(BS$39,2),SUM($AV115:AW115),0)+IF(RIGHT(BS$39,2)>RIGHT($K115,2),AW115,0)) -> 0 | BT115: =+IF($K115="Ongoing",AX115,IF(RIGHT($K115,2)=RIGHT(BT$39,2),SUM($AV115:AX115),0)+IF(RIGHT(BT$39,2)>RIGHT($K115,2),AX115,0)) -> 0 | BU115: =+IF($K115="Ongoing",AY115,IF(RIGHT($K115,2)=RIGHT(BU$39,2),SUM($AV115:AY115),0)+IF(RIGHT(BU$39,2)>RIGHT($K115,2),AY115,0)) -> 0 | BV115: =+IF($K115="Ongoing",AZ115,IF(RIGHT($K115,2)=RIGHT(BV$39,2),SUM($AV115:AZ115),0)+IF(RIGHT(BV$39,2)>RIGHT($K115,2),AZ115,0)) -> 0 | BW115: =+IF($K115="Ongoing",BA115,IF(RIGHT($K115,2)=RIGHT(BW$39,2),SUM($AV115:BA115),0)+IF(RIGHT(BW$39,2)>RIGHT($K115,2),BA115,0)) -> 0 | BX115: =+IF($K115="Ongoing",BB115,IF(RIGHT($K115,2)=RIGHT(BX$39,2),SUM($AV115:BB115),0)+IF(RIGHT(BX$39,2)>RIGHT($K115,2),BB115,0)) -> 0 | BY115: =+IF($K115="Ongoing",BC115,IF(RIGHT($K115,2)=RIGHT(BY$39,2),SUM($AV115:BC115),0)+IF(RIGHT(BY$39,2)>RIGHT($K115,2),BC115,0)) -> 0 | BZ115: =+IF($K115="Ongoing",BD115,IF(RIGHT($K115,2)=RIGHT(BZ$39,2),SUM($AV115:BD115),0)+IF(RIGHT(BZ$39,2)>RIGHT($K115,2),BD115,0)) -> 0 | CA115: =+IF($K115="Ongoing",BE115,IF(RIGHT($K115,2)=RIGHT(CA$39,2),SUM($AV115:BE115),0)+IF(RIGHT(CA$39,2)>RIGHT($K115,2),BE115,0)) -> 0 | CC115: =+O115*KeyAssumptionsPriceControl_FO!X$15 -> 0 | CD115: =+P115*KeyAssumptionsPriceControl_FO!Y$15 -> 0 | CE115: =+Q115*KeyAssumptionsPriceControl_FO!Z$15 -> 0 | CF115: =+R115*KeyAssumptionsPriceControl_FO!AA$15 -> 0 | CG115: =+S115*KeyAssumptionsPriceControl_FO!AB$15 -> 0 | CH115: =+T115*KeyAssumptionsPriceControl_FO!AC$15 -> 0 | CI115: =+U115*KeyAssumptionsPriceControl_FO!AD$15 -> 0 | CJ115: =+V115*KeyAssumptionsPriceControl_FO!AE$15 -> 0 | CK115: =+W115*KeyAssumptionsPriceControl_FO!AF$15 -> 0 | CL115: =+X115*KeyAssumptionsPriceControl_FO!AG$15 -> 0 | CN115: 0 | CO115: 0 | CP115: 0 | CQ115: 0 | CR115: 0 | CS115: 0 | CT115: 0 | CU115: 0 | CV115: 0 | CW115: 0
C116: [Capex Item - Significant Project / Capital Program / Other Capex] | E116: [Service] | F116: [Major Cost Driver] | G116: [Asset category] | H116: [Capital type] | J116: Straight line | K116: [Year finalised?] | AV116: 0 | AW116: 0 | AX116: 0 | AY116: 0 | AZ116: 0 | BA116: 0 | BB116: 0 | BC116: 0 | BD116: 0 | BE116: 0 | BG116: 0 | BH116: 0 | BI116: 0 | BJ116: 0 | BK116: 0 | BL116: 0 | BM116: 0 | BN116: 0 | BO116: 0 | BP116: 0 | BR116: =+IF($K116="Ongoing",AV116,IF(RIGHT($K116,2)=RIGHT(BR$39,2),SUM($AV116:AV116),0)+IF(RIGHT(BR$39,2)>RIGHT($K116,2),AV116,0)) -> 0 | BS116: =+IF($K116="Ongoing",AW116,IF(RIGHT($K116,2)=RIGHT(BS$39,2),SUM($AV116:AW116),0)+IF(RIGHT(BS$39,2)>RIGHT($K116,2),AW116,0)) -> 0 | BT116: =+IF($K116="Ongoing",AX116,IF(RIGHT($K116,2)=RIGHT(BT$39,2),SUM($AV116:AX116),0)+IF(RIGHT(BT$39,2)>RIGHT($K116,2),AX116,0)) -> 0 | BU116: =+IF($K116="Ongoing",AY116,IF(RIGHT($K116,2)=RIGHT(BU$39,2),SUM($AV116:AY116),0)+IF(RIGHT(BU$39,2)>RIGHT($K116,2),AY116,0)) -> 0 | BV116: =+IF($K116="Ongoing",AZ116,IF(RIGHT($K116,2)=RIGHT(BV$39,2),SUM($AV116:AZ116),0)+IF(RIGHT(BV$39,2)>RIGHT($K116,2),AZ116,0)) -> 0 | BW116: =+IF($K116="Ongoing",BA116,IF(RIGHT($K116,2)=RIGHT(BW$39,2),SUM($AV116:BA116),0)+IF(RIGHT(BW$39,2)>RIGHT($K116,2),BA116,0)) -> 0 | BX116: =+IF($K116="Ongoing",BB116,IF(RIGHT($K116,2)=RIGHT(BX$39,2),SUM($AV116:BB116),0)+IF(RIGHT(BX$39,2)>RIGHT($K116,2),BB116,0)) -> 0 | BY116: =+IF($K116="Ongoing",BC116,IF(RIGHT($K116,2)=RIGHT(BY$39,2),SUM($AV116:BC116),0)+IF(RIGHT(BY$39,2)>RIGHT($K116,2),BC116,0)) -> 0 | BZ116: =+IF($K116="Ongoing",BD116,IF(RIGHT($K116,2)=RIGHT(BZ$39,2),SUM($AV116:BD116),0)+IF(RIGHT(BZ$39,2)>RIGHT($K116,2),BD116,0)) -> 0 | CA116: =+IF($K116="Ongoing",BE116,IF(RIGHT($K116,2)=RIGHT(CA$39,2),SUM($AV116:BE116),0)+IF(RIGHT(CA$39,2)>RIGHT($K116,2),BE116,0)) -> 0 | CC116: =+O116*KeyAssumptionsPriceControl_FO!X$15 -> 0 | CD116: =+P116*KeyAssumptionsPriceControl_FO!Y$15 -> 0 | CE116: =+Q116*KeyAssumptionsPriceControl_FO!Z$15 -> 0 | CF116: =+R116*KeyAssumptionsPriceControl_FO!AA$15 -> 0 | CG116: =+S116*KeyAssumptionsPriceControl_FO!AB$15 -> 0 | CH116: =+T116*KeyAssumptionsPriceControl_FO!AC$15 -> 0 | CI116: =+U116*KeyAssumptionsPriceControl_FO!AD$15 -> 0 | CJ116: =+V116*KeyAssumptionsPriceControl_FO!AE$15 -> 0 | CK116: =+W116*KeyAssumptionsPriceControl_FO!AF$15 -> 0 | CL116: =+X116*KeyAssumptionsPriceControl_FO!AG$15 -> 0 | CN116: 0 | CO116: 0 | CP116: 0 | CQ116: 0 | CR116: 0 | CS116: 0 | CT116: 0 | CU116: 0 | CV116: 0 | CW116: 0
C117: [Capex Item - Significant Project / Capital Program / Other Capex] | E117: [Service] | F117: [Major Cost Driver] | G117: [Asset category] | H117: [Capital type] | J117: Straight line | K117: [Year finalised?] | AV117: 0 | AW117: 0 | AX117: 0 | AY117: 0 | AZ117: 0 | BA117: 0 | BB117: 0 | BC117: 0 | BD117: 0 | BE117: 0 | BG117: 0 | BH117: 0 | BI117: 0 | BJ117: 0 | BK117: 0 | BL117: 0 | BM117: 0 | BN117: 0 | BO117: 0 | BP117: 0 | BR117: =+IF($K117="Ongoing",AV117,IF(RIGHT($K117,2)=RIGHT(BR$39,2),SUM($AV117:AV117),0)+IF(RIGHT(BR$39,2)>RIGHT($K117,2),AV117,0)) -> 0 | BS117: =+IF($K117="Ongoing",AW117,IF(RIGHT($K117,2)=RIGHT(BS$39,2),SUM($AV117:AW117),0)+IF(RIGHT(BS$39,2)>RIGHT($K117,2),AW117,0)) -> 0 | BT117: =+IF($K117="Ongoing",AX117,IF(RIGHT($K117,2)=RIGHT(BT$39,2),SUM($AV117:AX117),0)+IF(RIGHT(BT$39,2)>RIGHT($K117,2),AX117,0)) -> 0 | BU117: =+IF($K117="Ongoing",AY117,IF(RIGHT($K117,2)=RIGHT(BU$39,2),SUM($AV117:AY117),0)+IF(RIGHT(BU$39,2)>RIGHT($K117,2),AY117,0)) -> 0 | BV117: =+IF($K117="Ongoing",AZ117,IF(RIGHT($K117,2)=RIGHT(BV$39,2),SUM($AV117:AZ117),0)+IF(RIGHT(BV$39,2)>RIGHT($K117,2),AZ117,0)) -> 0 | BW117: =+IF($K117="Ongoing",BA117,IF(RIGHT($K117,2)=RIGHT(BW$39,2),SUM($AV117:BA117),0)+IF(RIGHT(BW$39,2)>RIGHT($K117,2),BA117,0)) -> 0 | BX117: =+IF($K117="Ongoing",BB117,IF(RIGHT($K117,2)=RIGHT(BX$39,2),SUM($AV117:BB117),0)+IF(RIGHT(BX$39,2)>RIGHT($K117,2),BB117,0)) -> 0 | BY117: =+IF($K117="Ongoing",BC117,IF(RIGHT($K117,2)=RIGHT(BY$39,2),SUM($AV117:BC117),0)+IF(RIGHT(BY$39,2)>RIGHT($K117,2),BC117,0)) -> 0 | BZ117: =+IF($K117="Ongoing",BD117,IF(RIGHT($K117,2)=RIGHT(BZ$39,2),SUM($AV117:BD117),0)+IF(RIGHT(BZ$39,2)>RIGHT($K117,2),BD117,0)) -> 0 | CA117: =+IF($K117="Ongoing",BE117,IF(RIGHT($K117,2)=RIGHT(CA$39,2),SUM($AV117:BE117),0)+IF(RIGHT(CA$39,2)>RIGHT($K117,2),BE117,0)) -> 0 | CC117: =+O117*KeyAssumptionsPriceControl_FO!X$15 -> 0 | CD117: =+P117*KeyAssumptionsPriceControl_FO!Y$15 -> 0 | CE117: =+Q117*KeyAssumptionsPriceControl_FO!Z$15 -> 0 | CF117: =+R117*KeyAssumptionsPriceControl_FO!AA$15 -> 0 | CG117: =+S117*KeyAssumptionsPriceControl_FO!AB$15 -> 0 | CH117: =+T117*KeyAssumptionsPriceControl_FO!AC$15 -> 0 | CI117: =+U117*KeyAssumptionsPriceControl_FO!AD$15 -> 0 | CJ117: =+V117*KeyAssumptionsPriceControl_FO!AE$15 -> 0 | CK117: =+W117*KeyAssumptionsPriceControl_FO!AF$15 -> 0 | CL117: =+X117*KeyAssumptionsPriceControl_FO!AG$15 -> 0 | CN117: 0 | CO117: 0 | CP117: 0 | CQ117: 0 | CR117: 0 | CS117: 0 | CT117: 0 | CU117: 0 | CV117: 0 | CW117: 0
C118: [Capex Item - Significant Project / Capital Program / Other Capex] | E118: [Service] | F118: [Major Cost Driver] | G118: [Asset category] | H118: [Capital type] | J118: Straight line | K118: [Year finalised?] | AV118: 0 | AW118: 0 | AX118: 0 | AY118: 0 | AZ118: 0 | BA118: 0 | BB118: 0 | BC118: 0 | BD118: 0 | BE118: 0 | BG118: 0 | BH118: 0 | BI118: 0 | BJ118: 0 | BK118: 0 | BL118: 0 | BM118: 0 | BN118: 0 | BO118: 0 | BP118: 0 | BR118: =+IF($K118="Ongoing",AV118,IF(RIGHT($K118,2)=RIGHT(BR$39,2),SUM($AV118:AV118),0)+IF(RIGHT(BR$39,2)>RIGHT($K118,2),AV118,0)) -> 0 | BS118: =+IF($K118="Ongoing",AW118,IF(RIGHT($K118,2)=RIGHT(BS$39,2),SUM($AV118:AW118),0)+IF(RIGHT(BS$39,2)>RIGHT($K118,2),AW118,0)) -> 0 | BT118: =+IF($K118="Ongoing",AX118,IF(RIGHT($K118,2)=RIGHT(BT$39,2),SUM($AV118:AX118),0)+IF(RIGHT(BT$39,2)>RIGHT($K118,2),AX118,0)) -> 0 | BU118: =+IF($K118="Ongoing",AY118,IF(RIGHT($K118,2)=RIGHT(BU$39,2),SUM($AV118:AY118),0)+IF(RIGHT(BU$39,2)>RIGHT($K118,2),AY118,0)) -> 0 | BV118: =+IF($K118="Ongoing",AZ118,IF(RIGHT($K118,2)=RIGHT(BV$39,2),SUM($AV118:AZ118),0)+IF(RIGHT(BV$39,2)>RIGHT($K118,2),AZ118,0)) -> 0 | BW118: =+IF($K118="Ongoing",BA118,IF(RIGHT($K118,2)=RIGHT(BW$39,2),SUM($AV118:BA118),0)+IF(RIGHT(BW$39,2)>RIGHT($K118,2),BA118,0)) -> 0 | BX118: =+IF($K118="Ongoing",BB118,IF(RIGHT($K118,2)=RIGHT(BX$39,2),SUM($AV118:BB118),0)+IF(RIGHT(BX$39,2)>RIGHT($K118,2),BB118,0)) -> 0 | BY118: =+IF($K118="Ongoing",BC118,IF(RIGHT($K118,2)=RIGHT(BY$39,2),SUM($AV118:BC118),0)+IF(RIGHT(BY$39,2)>RIGHT($K118,2),BC118,0)) -> 0 | BZ118: =+IF($K118="Ongoing",BD118,IF(RIGHT($K118,2)=RIGHT(BZ$39,2),SUM($AV118:BD118),0)+IF(RIGHT(BZ$39,2)>RIGHT($K118,2),BD118,0)) -> 0 | CA118: =+IF($K118="Ongoing",BE118,IF(RIGHT($K118,2)=RIGHT(CA$39,2),SUM($AV118:BE118),0)+IF(RIGHT(CA$39,2)>RIGHT($K118,2),BE118,0)) -> 0 | CC118: =+O118*KeyAssumptionsPriceControl_FO!X$15 -> 0 | CD118: =+P118*KeyAssumptionsPriceControl_FO!Y$15 -> 0 | CE118: =+Q118*KeyAssumptionsPriceControl_FO!Z$15 -> 0 | CF118: =+R118*KeyAssumptionsPriceControl_FO!AA$15 -> 0 | CG118: =+S118*KeyAssumptionsPriceControl_FO!AB$15 -> 0 | CH118: =+T118*KeyAssumptionsPriceControl_FO!AC$15 -> 0 | CI118: =+U118*KeyAssumptionsPriceControl_FO!AD$15 -> 0 | CJ118: =+V118*KeyAssumptionsPriceControl_FO!AE$15 -> 0 | CK118: =+W118*KeyAssumptionsPriceControl_FO!AF$15 -> 0 | CL118: =+X118*KeyAssumptionsPriceControl_FO!AG$15 -> 0 | CN118: 0 | CO118: 0 | CP118: 0 | CQ118: 0 | CR118: 0 | CS118: 0 | CT118: 0 | CU118: 0 | CV118: 0 | CW118: 0
C119: [Capex Item - Significant Project / Capital Program / Other Capex] | E119: [Service] | F119: [Major Cost Driver] | G119: [Asset category] | H119: [Capital type] | J119: Straight line | K119: [Year finalised?] | AV119: 0 | AW119: 0 | AX119: 0 | AY119: 0 | AZ119: 0 | BA119: 0 | BB119: 0 | BC119: 0 | BD119: 0 | BE119: 0 | BG119: 0 | BH119: 0 | BI119: 0 | BJ119: 0 | BK119: 0 | BL119: 0 | BM119: 0 | BN119: 0 | BO119: 0 | BP119: 0 | BR119: =+IF($K119="Ongoing",AV119,IF(RIGHT($K119,2)=RIGHT(BR$39,2),SUM($AV119:AV119),0)+IF(RIGHT(BR$39,2)>RIGHT($K119,2),AV119,0)) -> 0 | BS119: =+IF($K119="Ongoing",AW119,IF(RIGHT($K119,2)=RIGHT(BS$39,2),SUM($AV119:AW119),0)+IF(RIGHT(BS$39,2)>RIGHT($K119,2),AW119,0)) -> 0 | BT119: =+IF($K119="Ongoing",AX119,IF(RIGHT($K119,2)=RIGHT(BT$39,2),SUM($AV119:AX119),0)+IF(RIGHT(BT$39,2)>RIGHT($K119,2),AX119,0)) -> 0 | BU119: =+IF($K119="Ongoing",AY119,IF(RIGHT($K119,2)=RIGHT(BU$39,2),SUM($AV119:AY119),0)+IF(RIGHT(BU$39,2)>RIGHT($K119,2),AY119,0)) -> 0 | BV119: =+IF($K119="Ongoing",AZ119,IF(RIGHT($K119,2)=RIGHT(BV$39,2),SUM($AV119:AZ119),0)+IF(RIGHT(BV$39,2)>RIGHT($K119,2),AZ119,0)) -> 0 | BW119: =+IF($K119="Ongoing",BA119,IF(RIGHT($K119,2)=RIGHT(BW$39,2),SUM($AV119:BA119),0)+IF(RIGHT(BW$39,2)>RIGHT($K119,2),BA119,0)) -> 0 | BX119: =+IF($K119="Ongoing",BB119,IF(RIGHT($K119,2)=RIGHT(BX$39,2),SUM($AV119:BB119),0)+IF(RIGHT(BX$39,2)>RIGHT($K119,2),BB119,0)) -> 0 | BY119: =+IF($K119="Ongoing",BC119,IF(RIGHT($K119,2)=RIGHT(BY$39,2),SUM($AV119:BC119),0)+IF(RIGHT(BY$39,2)>RIGHT($K119,2),BC119,0)) -> 0 | BZ119: =+IF($K119="Ongoing",BD119,IF(RIGHT($K119,2)=RIGHT(BZ$39,2),SUM($AV119:BD119),0)+IF(RIGHT(BZ$39,2)>RIGHT($K119,2),BD119,0)) -> 0 | CA119: =+IF($K119="Ongoing",BE119,IF(RIGHT($K119,2)=RIGHT(CA$39,2),SUM($AV119:BE119),0)+IF(RIGHT(CA$39,2)>RIGHT($K119,2),BE119,0)) -> 0 | CC119: =+O119*KeyAssumptionsPriceControl_FO!X$15 -> 0 | CD119: =+P119*KeyAssumptionsPriceControl_FO!Y$15 -> 0 | CE119: =+Q119*KeyAssumptionsPriceControl_FO!Z$15 -> 0 | CF119: =+R119*KeyAssumptionsPriceControl_FO!AA$15 -> 0 | CG119: =+S119*KeyAssumptionsPriceControl_FO!AB$15 -> 0 | CH119: =+T119*KeyAssumptionsPriceControl_FO!AC$15 -> 0 | CI119: =+U119*KeyAssumptionsPriceControl_FO!AD$15 -> 0 | CJ119: =+V119*KeyAssumptionsPriceControl_FO!AE$15 -> 0 | CK119: =+W119*KeyAssumptionsPriceControl_FO!AF$15 -> 0 | CL119: =+X119*KeyAssumptionsPriceControl_FO!AG$15 -> 0 | CN119: 0 | CO119: 0 | CP119: 0 | CQ119: 0 | CR119: 0 | CS119: 0 | CT119: 0 | CU119: 0 | CV119: 0 | CW119: 0
C120: [Capex Item - Significant Project / Capital Program / Other Capex] | E120: [Service] | F120: [Major Cost Driver] | G120: [Asset category] | H120: [Capital type] | J120: Straight line | K120: [Year finalised?] | AV120: 0 | AW120: 0 | AX120: 0 | AY120: 0 | AZ120: 0 | BA120: 0 | BB120: 0 | BC120: 0 | BD120: 0 | BE120: 0 | BG120: 0 | BH120: 0 | BI120: 0 | BJ120: 0 | BK120: 0 | BL120: 0 | BM120: 0 | BN120: 0 | BO120: 0 | BP120: 0 | BR120: =+IF($K120="Ongoing",AV120,IF(RIGHT($K120,2)=RIGHT(BR$39,2),SUM($AV120:AV120),0)+IF(RIGHT(BR$39,2)>RIGHT($K120,2),AV120,0)) -> 0 | BS120: =+IF($K120="Ongoing",AW120,IF(RIGHT($K120,2)=RIGHT(BS$39,2),SUM($AV120:AW120),0)+IF(RIGHT(BS$39,2)>RIGHT($K120,2),AW120,0)) -> 0 | BT120: =+IF($K120="Ongoing",AX120,IF(RIGHT($K120,2)=RIGHT(BT$39,2),SUM($AV120:AX120),0)+IF(RIGHT(BT$39,2)>RIGHT($K120,2),AX120,0)) -> 0 | BU120: =+IF($K120="Ongoing",AY120,IF(RIGHT($K120,2)=RIGHT(BU$39,2),SUM($AV120:AY120),0)+IF(RIGHT(BU$39,2)>RIGHT($K120,2),AY120,0)) -> 0 | BV120: =+IF($K120="Ongoing",AZ120,IF(RIGHT($K120,2)=RIGHT(BV$39,2),SUM($AV120:AZ120),0)+IF(RIGHT(BV$39,2)>RIGHT($K120,2),AZ120,0)) -> 0 | BW120: =+IF($K120="Ongoing",BA120,IF(RIGHT($K120,2)=RIGHT(BW$39,2),SUM($AV120:BA120),0)+IF(RIGHT(BW$39,2)>RIGHT($K120,2),BA120,0)) -> 0 | BX120: =+IF($K120="Ongoing",BB120,IF(RIGHT($K120,2)=RIGHT(BX$39,2),SUM($AV120:BB120),0)+IF(RIGHT(BX$39,2)>RIGHT($K120,2),BB120,0)) -> 0 | BY120: =+IF($K120="Ongoing",BC120,IF(RIGHT($K120,2)=RIGHT(BY$39,2),SUM($AV120:BC120),0)+IF(RIGHT(BY$39,2)>RIGHT($K120,2),BC120,0)) -> 0 | BZ120: =+IF($K120="Ongoing",BD120,IF(RIGHT($K120,2)=RIGHT(BZ$39,2),SUM($AV120:BD120),0)+IF(RIGHT(BZ$39,2)>RIGHT($K120,2),BD120,0)) -> 0 | CA120: =+IF($K120="Ongoing",BE120,IF(RIGHT($K120,2)=RIGHT(CA$39,2),SUM($AV120:BE120),0)+IF(RIGHT(CA$39,2)>RIGHT($K120,2),BE120,0)) -> 0 | CC120: =+O120*KeyAssumptionsPriceControl_FO!X$15 -> 0 | CD120: =+P120*KeyAssumptionsPriceControl_FO!Y$15 -> 0 | CE120: =+Q120*KeyAssumptionsPriceControl_FO!Z$15 -> 0 | CF120: =+R120*KeyAssumptionsPriceControl_FO!AA$15 -> 0 | CG120: =+S120*KeyAssumptionsPriceControl_FO!AB$15 -> 0 | CH120: =+T120*KeyAssumptionsPriceControl_FO!AC$15 -> 0 | CI120: =+U120*KeyAssumptionsPriceControl_FO!AD$15 -> 0 | CJ120: =+V120*KeyAssumptionsPriceControl_FO!AE$15 -> 0 | CK120: =+W120*KeyAssumptionsPriceControl_FO!AF$15 -> 0 | CL120: =+X120*KeyAssumptionsPriceControl_FO!AG$15 -> 0 | CN120: 0 | CO120: 0 | CP120: 0 | CQ120: 0 | CR120: 0 | CS120: 0 | CT120: 0 | CU120: 0 | CV120: 0 | CW120: 0
C121: [Capex Item - Significant Project / Capital Program / Other Capex] | E121: [Service] | F121: [Major Cost Driver] | G121: [Asset category] | H121: [Capital type] | J121: Straight line | K121: [Year finalised?] | AV121: 0 | AW121: 0 | AX121: 0 | AY121: 0 | AZ121: 0 | BA121: 0 | BB121: 0 | BC121: 0 | BD121: 0 | BE121: 0 | BG121: 0 | BH121: 0 | BI121: 0 | BJ121: 0 | BK121: =IF($L121=0,0, IF($L121<=0.5,BV121, IF(AND($J121="straight line",$L121<1.51),(BU121-((BU121/$L121)*0.5))+BV121/$L121*0.5, IF($J121="straight line", IF((LEFT(BK$39,4)*1)-INT($L121)<LEFT($BG$39,4)*1,0,((OFFSET(BV121,0,-INT($L121+0.5),1,1))/$L121)*(IF($L121-INT($L121)>0.5,$L121-0.5-INT($L121),IF($L121-INT($L121)<=0.5,$L121-0.5-INT($L121)+1,0)))) +BV121/$L121*0.5 +SUM(OFFSET(BV121,0,MAX(-INT($L121+(0.5-(10^-12))),-BK$40)+1,1,MIN(INT($L121+(0.5-(10^-12))),BK$40)-1))*1/$L121, IF($J121="Declining Balance",-$BG$38,0))))) -> 0 | BL121: 0 | BM121: 0 | BN121: 0 | BO121: 0 | BP121: 0 | BR121: =+IF($K121="Ongoing",AV121,IF(RIGHT($K121,2)=RIGHT(BR$39,2),SUM($AV121:AV121),0)+IF(RIGHT(BR$39,2)>RIGHT($K121,2),AV121,0)) -> 0 | BS121: =+IF($K121="Ongoing",AW121,IF(RIGHT($K121,2)=RIGHT(BS$39,2),SUM($AV121:AW121),0)+IF(RIGHT(BS$39,2)>RIGHT($K121,2),AW121,0)) -> 0 | BT121: =+IF($K121="Ongoing",AX121,IF(RIGHT($K121,2)=RIGHT(BT$39,2),SUM($AV121:AX121),0)+IF(RIGHT(BT$39,2)>RIGHT($K121,2),AX121,0)) -> 0 | BU121: =+IF($K121="Ongoing",AY121,IF(RIGHT($K121,2)=RIGHT(BU$39,2),SUM($AV121:AY121),0)+IF(RIGHT(BU$39,2)>RIGHT($K121,2),AY121,0)) -> 0 | BV121: =+IF($K121="Ongoing",AZ121,IF(RIGHT($K121,2)=RIGHT(BV$39,2),SUM($AV121:AZ121),0)+IF(RIGHT(BV$39,2)>RIGHT($K121,2),AZ121,0)) -> 0 | BW121: =+IF($K121="Ongoing",BA121,IF(RIGHT($K121,2)=RIGHT(BW$39,2),SUM($AV121:BA121),0)+IF(RIGHT(BW$39,2)>RIGHT($K121,2),BA121,0)) -> 0 | BX121: =+IF($K121="Ongoing",BB121,IF(RIGHT($K121,2)=RIGHT(BX$39,2),SUM($AV121:BB121),0)+IF(RIGHT(BX$39,2)>RIGHT($K121,2),BB121,0)) -> 0 | BY121: =+IF($K121="Ongoing",BC121,IF(RIGHT($K121,2)=RIGHT(BY$39,2),SUM($AV121:BC121),0)+IF(RIGHT(BY$39,2)>RIGHT($K121,2),BC121,0)) -> 0 | BZ121: =+IF($K121="Ongoing",BD121,IF(RIGHT($K121,2)=RIGHT(BZ$39,2),SUM($AV121:BD121),0)+IF(RIGHT(BZ$39,2)>RIGHT($K121,2),BD121,0)) -> 0 | CA121: =+IF($K121="Ongoing",BE121,IF(RIGHT($K121,2)=RIGHT(CA$39,2),SUM($AV121:BE121),0)+IF(RIGHT(CA$39,2)>RIGHT($K121,2),BE121,0)) -> 0 | CC121: =+O121*KeyAssumptionsPriceControl_FO!X$15 -> 0 | CD121: =+P121*KeyAssumptionsPriceControl_FO!Y$15 -> 0 | CE121: =+Q121*KeyAssumptionsPriceControl_FO!Z$15 -> 0 | CF121: =+R121*KeyAssumptionsPriceControl_FO!AA$15 -> 0 | CG121: =+S121*KeyAssumptionsPriceControl_FO!AB$15 -> 0 | CH121: =+T121*KeyAssumptionsPriceControl_FO!AC$15 -> 0 | CI121: =+U121*KeyAssumptionsPriceControl_FO!AD$15 -> 0 | CJ121: =+V121*KeyAssumptionsPriceControl_FO!AE$15 -> 0 | CK121: =+W121*KeyAssumptionsPriceControl_FO!AF$15 -> 0 | CL121: =+X121*KeyAssumptionsPriceControl_FO!AG$15 -> 0 | CN121: 0 | CO121: 0 | CP121: 0 | CQ121: 0 | CR121: =IF($M121=0,0, IF($M121<=0.5,CG121, IF(AND($J121="straight line",$M121<1.51),(CF121-((CF121/$M121)*0.5))+CG121/$M121*0.5, IF($J121="straight line", IF((LEFT(CR$39,4)*1)-INT($M121)<LEFT($CN$39,4)*1,0,((OFFSET(CG121,0,-INT($M121+0.5),1,1))/$M121)*(IF($M121-INT($M121)>0.5,$M121-0.5-INT($M121),IF($M121-INT($M121)<=0.5,$M121-0.5-INT($M121)+1,0)))) +CG121/$M121*0.5 +SUM(OFFSET(CG121,0,MAX(-INT($M121+(0.5-(10^-12))),-CR$40)+1,1,MIN(INT($M121+(0.5-(10^-12))),CR$40)-1))*1/$M121, IF($J121="Declining Balance",-$CN$38,0))))) -> 0 | CS121: 0 | CT121: 0 | CU121: 0 | CV121: 0 | CW121: 0
